Workbook

Sheet Checks (hidden)
A1: Checks
A3: Stakeholder CF transfer | D3: ='Airport CFS'!F179 -> 1.629814506e-09

Sheet Airport CFS
A1: AIBD integrated model
A2: Summary financials
I4: =Assumptions!I17 -> 2005 | J4: =Assumptions!J17 -> 2006 | K4: =Assumptions!K17 -> 2007 | L4: =Assumptions!L17 -> 2008 | M4: =Assumptions!M17 -> 2009 | N4: =Assumptions!N17 -> 2010 | O4: =Assumptions!O17 -> 2011 | P4: =Assumptions!P17 -> 2012 | Q4: =Assumptions!Q17 -> 2013 | R4: =Assumptions!R17 -> 2014 | S4: =Assumptions!S17 -> 2015 | T4: =Assumptions!T17 -> 2016 | U4: =Assumptions!U17 -> 2017 | V4: =Assumptions!V17 -> 2018 | W4: =Assumptions!W17 -> 2019 | X4: =Assumptions!X17 -> 2020 | Y4: =Assumptions!Y17 -> 2021 | Z4: =Assumptions!Z17 -> 2022 | AA4: =Assumptions!AA17 -> 2023 | AB4: =Assumptions!AB17 -> 2024 | AC4: =Assumptions!AC17 -> 2025
A7: 1 | B7: Balance Sheet
B9: Intangible assets
B10: Start-up cost | N10: ='Input Capex, Depr, Assets'!N161 -> 3999375 | O10: ='Input Capex, Depr, Assets'!O161 -> 2666250 | P10: ='Input Capex, Depr, Assets'!P161 -> 1333125 | Q10: ='Input Capex, Depr, Assets'!Q161 -> 0 | R10: ='Input Capex, Depr, Assets'!R161 -> 0 | S10: ='Input Capex, Depr, Assets'!S161 -> 0 | T10: ='Input Capex, Depr, Assets'!T161 -> 0 | U10: ='Input Capex, Depr, Assets'!U161 -> 0 | V10: ='Input Capex, Depr, Assets'!V161 -> 0 | W10: ='Input Capex, Depr, Assets'!W161 -> 0 | X10: ='Input Capex, Depr, Assets'!X161 -> 0 | Y10: ='Input Capex, Depr, Assets'!Y161 -> 0 | Z10: ='Input Capex, Depr, Assets'!Z161 -> 0 | AA10: ='Input Capex, Depr, Assets'!AA161 -> 0 | AB10: ='Input Capex, Depr, Assets'!AB161 -> 0 | AC10: ='Input Capex, Depr, Assets'!AC161 -> 0
B11: Equipment | N11: ='Input Capex, Depr, Assets'!N167 -> 2079000 | O11: ='Input Capex, Depr, Assets'!O167 -> 1948800 | P11: ='Input Capex, Depr, Assets'!P167 -> 1809200 | Q11: ='Input Capex, Depr, Assets'!Q167 -> 1660000 | R11: ='Input Capex, Depr, Assets'!R167 -> 1501000 | S11: ='Input Capex, Depr, Assets'!S167 -> 1332000 | T11: ='Input Capex, Depr, Assets'!T167 -> 1152800 | U11: ='Input Capex, Depr, Assets'!U167 -> 963200 | V11: ='Input Capex, Depr, Assets'!V167 -> 763000 | W11: ='Input Capex, Depr, Assets'!W167 -> 552000 | X11: ='Input Capex, Depr, Assets'!X167 -> 561000 | Y11: ='Input Capex, Depr, Assets'!Y167 -> 570000 | Z11: ='Input Capex, Depr, Assets'!Z167 -> 579000 | AA11: ='Input Capex, Depr, Assets'!AA167 -> 588000 | AB11: ='Input Capex, Depr, Assets'!AB167 -> 597000 | AC11: ='Input Capex, Depr, Assets'!AC167 -> 606000
B12: Office furniture | N12: ='Input Capex, Depr, Assets'!N173 -> 495000 | O12: ='Input Capex, Depr, Assets'!O173 -> 460174.4997 | P12: ='Input Capex, Depr, Assets'!P173 -> 438298.2086 | Q12: ='Input Capex, Depr, Assets'!Q173 -> 415496.1141 | R12: ='Input Capex, Depr, Assets'!R173 -> 391638.733 | S12: ='Input Capex, Depr, Assets'!S173 -> 366138.255 | T12: ='Input Capex, Depr, Assets'!T173 -> 340948.204 | U12: ='Input Capex, Depr, Assets'!U173 -> 315303.4569 | V12: ='Input Capex, Depr, Assets'!V173 -> 283926.9439 | W12: ='Input Capex, Depr, Assets'!W173 -> 243521.5927 | X12: ='Input Capex, Depr, Assets'!X173 -> 256007.8814 | Y12: ='Input Capex, Depr, Assets'!Y173 -> 268510.9091 | Z12: ='Input Capex, Depr, Assets'!Z173 -> 282593.4477 | AA12: ='Input Capex, Depr, Assets'!AA173 -> 298454.8183 | AB12: ='Input Capex, Depr, Assets'!AB173 -> 316306.9123 | AC12: ='Input Capex, Depr, Assets'!AC173 -> 336324.9198
B13: IT for office | N13: ='Input Capex, Depr, Assets'!N179 -> 528000 | O13: ='Input Capex, Depr, Assets'!O179 -> 430363.8515 | P13: ='Input Capex, Depr, Assets'!P179 -> 342327.3419 | Q13: ='Input Capex, Depr, Assets'!Q179 -> 268098.7987 | R13: ='Input Capex, Depr, Assets'!R179 -> 187823.6612 | S13: ='Input Capex, Depr, Assets'!S179 -> 220490.5436 | T13: ='Input Capex, Depr, Assets'!T179 -> 244329.0605 | U13: ='Input Capex, Depr, Assets'!U179 -> 261927.4054 | V13: ='Input Capex, Depr, Assets'!V179 -> 272745 | W13: ='Input Capex, Depr, Assets'!W179 -> 276084.188 | X13: ='Input Capex, Depr, Assets'!X179 -> 281504.4511 | Y13: ='Input Capex, Depr, Assets'!Y179 -> 289815.609 | Z13: ='Input Capex, Depr, Assets'!Z179 -> 301715.106 | AA13: ='Input Capex, Depr, Assets'!AA179 -> 316440.3189 | AB13: ='Input Capex, Depr, Assets'!AB179 -> 332194.807 | AC13: ='Input Capex, Depr, Assets'!AC179 -> 349062.836
B14: Operational hard & software (e.g. Terminal) | N14: ='Input Capex, Depr, Assets'!N185 -> 2357142.857 | O14: ='Input Capex, Depr, Assets'!O185 -> 2228285.714 | P14: ='Input Capex, Depr, Assets'!P185 -> 2060142.857 | Q14: ='Input Capex, Depr, Assets'!Q185 -> 1851928.571 | R14: ='Input Capex, Depr, Assets'!R185 -> 1602857.143 | S14: ='Input Capex, Depr, Assets'!S185 -> 1312142.857 | T14: ='Input Capex, Depr, Assets'!T185 -> 979000 | U14: ='Input Capex, Depr, Assets'!U185 -> 995500 | V14: ='Input Capex, Depr, Assets'!V185 -> 1012000 | W14: ='Input Capex, Depr, Assets'!W185 -> 1028500 | X14: ='Input Capex, Depr, Assets'!X185 -> 1045000 | Y14: ='Input Capex, Depr, Assets'!Y185 -> 1061500 | Z14: ='Input Capex, Depr, Assets'!Z185 -> 1078000 | AA14: ='Input Capex, Depr, Assets'!AA185 -> 1094500 | AB14: ='Input Capex, Depr, Assets'!AB185 -> 1111000 | AC14: ='Input Capex, Depr, Assets'!AC185 -> 1127500
B15: Tangible assets | N15: =SUM(N10:N14) -> 9458517.857 | O15: 7733874.065 | P15: 5983093.408 | Q15: 4195523.484 | R15: 3683319.537 | S15: 3230771.656 | T15: 2717077.264 | U15: 2535930.862 | V15: 2331671.944 | W15: 2100105.781 | X15: 2143512.333 | Y15: 2189826.518 | Z15: 2241308.554 | AA15: 2297395.137 | AB15: 2356501.719 | AC15: 2418887.756
B17: Financing fees | N17: ='Debt Workings'!N33 -> 135000 | O17: ='Debt Workings'!O33 -> 120750 | P17: ='Debt Workings'!P33 -> 107212.5 | Q17: ='Debt Workings'!Q33 -> 94351.875 | R17: ='Debt Workings'!R33 -> 82134.28125 | S17: ='Debt Workings'!S33 -> 70527.56719 | T17: ='Debt Workings'!T33 -> 59501.18883 | U17: ='Debt Workings'!U33 -> 49026.12939 | V17: ='Debt Workings'!V33 -> 39074.82292 | W17: ='Debt Workings'!W33 -> 29621.08177 | X17: ='Debt Workings'!X33 -> 20640.02768 | Y17: ='Debt Workings'!Y33 -> 12108.0263 | Z17: ='Debt Workings'!Z33 -> 4002.624984 | AA17: ='Debt Workings'!AA33 -> 0 | AB17: ='Debt Workings'!AB33 -> 0 | AC17: ='Debt Workings'!AC33 -> 0
B18: Fixed assets | N18: =N15+N17 -> 9593517.857 | O18: 7854624.065 | P18: 6090305.908 | Q18: 4289875.359 | R18: 3765453.818 | S18: 3301299.223 | T18: 2776578.453 | U18: 2584956.992 | V18: 2370746.767 | W18: 2129726.863 | X18: 2164152.36 | Y18: 2201934.544 | Z18: 2245311.179 | AA18: 2297395.137 | AB18: 2356501.719 | AC18: 2418887.756
B20: Inventories | N20: ='Working Capital'!N14 -> 952850.1907 | O20: ='Working Capital'!O14 -> 1038371.063 | P20: ='Working Capital'!P14 -> 1135200.322 | Q20: ='Working Capital'!Q14 -> 1240801.115 | R20: ='Working Capital'!R14 -> 1355599.325 | S20: ='Working Capital'!S14 -> 1475057.603 | T20: ='Working Capital'!T14 -> 1609979.645 | U20: ='Working Capital'!U14 -> 1758631.619 | V20: ='Working Capital'!V14 -> 1909169.27 | W20: ='Working Capital'!W14 -> 2053733.455 | X20: ='Working Capital'!X14 -> 2211637.837 | Y20: ='Working Capital'!Y14 -> 2379456.28 | Z20: ='Working Capital'!Z14 -> 2559247.973 | AA20: ='Working Capital'!AA14 -> 2752029.602 | AB20: ='Working Capital'!AB14 -> 2958744.985 | AC20: ='Working Capital'!AC14 -> 3181068.226
B21: Total Trade Receivables | N21: ='Working Capital'!N18 -> 7119677.639 | O21: ='Working Capital'!O18 -> 7758687.894 | P21: ='Working Capital'!P18 -> 8482194.186 | Q21: ='Working Capital'!Q18 -> 9271241.211 | R21: ='Working Capital'!R18 -> 10129011.15 | S21: ='Working Capital'!S18 -> 11021601.02 | T21: ='Working Capital'!T18 -> 12029735.83 | U21: ='Working Capital'!U18 -> 13140460.42 | V21: ='Working Capital'!V18 -> 14265274.75 | W21: ='Working Capital'!W18 -> 15345455.45 | X21: ='Working Capital'!X18 -> 16525313.85 | Y21: ='Working Capital'!Y18 -> 17779249.91 | Z21: ='Working Capital'!Z18 -> 19122649.86 | AA21: ='Working Capital'!AA18 -> 20563110.35 | AB21: ='Working Capital'!AB18 -> 22107683.57 | AC21: ='Working Capital'!AC18 -> 23768878.4
B22: Other Current Assets | N22: ='Working Capital'!N22 -> 1775766.265 | O22: ='Working Capital'!O22 -> 1935146.072 | P22: ='Working Capital'!P22 -> 2115600.6 | Q22: ='Working Capital'!Q22 -> 2312402.079 | R22: ='Working Capital'!R22 -> 2526344.197 | S22: ='Working Capital'!S22 -> 2748970.987 | T22: ='Working Capital'!T22 -> 3000416.612 | U22: ='Working Capital'!U22 -> 3277449.836 | V22: ='Working Capital'!V22 -> 3557997.276 | W22: ='Working Capital'!W22 -> 3827412.348 | X22: ='Working Capital'!X22 -> 4121688.697 | Y22: ='Working Capital'!Y22 -> 4434441.249 | Z22: ='Working Capital'!Z22 -> 4769507.586 | AA22: ='Working Capital'!AA22 -> 5128782.439 | AB22: ='Working Capital'!AB22 -> 5514024.744 | AC22: ='Working Capital'!AC22 -> 5928354.421
B23: Reserve Accounts
B24: Liquid Assets (Cash) | N24: =N147 -> 850000 | O24: 538042.8895 | P24: 8753060.216 | Q24: 16656786.02 | R24: 25960400.88 | S24: 36635815.08 | T24: 49053364.03 | U24: 63532075.68 | V24: 80522303.55 | W24: 100316866.4 | X24: 123335956 | Y24: 149728344.1 | Z24: 176571495.4 | AA24: 207344797.3 | AB24: 242126355.1 | AC24: 281259151.2
B25: Prepayments and Accrued Income
B26: Current Assets | N26: =N20+N21+N22+N23+N24+N25 -> 10698294.09 | O26: 11270247.92 | P26: 20486055.32 | Q26: 29481230.43 | R26: 39971355.55 | S26: 51881444.69 | T26: 65693496.12 | U26: 81708617.55 | V26: 100254744.8 | W26: 121543467.7 | X26: 146194596.4 | Y26: 174321491.6 | Z26: 203022900.8 | AA26: 235788719.7 | AB26: 272706808.4 | AC26: 314137452.2
B28: Total Assets | N28: =N26+N18 -> 20291811.95 | O28: 19124871.98 | P28: 26576361.23 | Q28: 33771105.79 | R28: 43736809.37 | S28: 55182743.91 | T28: 68470074.57 | U28: 84293574.55 | V28: 102625491.6 | W28: 123673194.6 | X28: 148358748.7 | Y28: 176523426.1 | Z28: 205268212 | AA28: 238086114.9 | AB28: 275063310.1 | AC28: 316556340
B31: Subscribed Equity | D31: =Assumptions!N863 -> 700000 | N31: =$D$31 -> 700000 | O31: 700000 | P31: 700000 | Q31: 700000 | R31: 700000 | S31: 700000 | T31: 700000 | U31: 700000 | V31: 700000 | W31: 700000 | X31: 700000 | Y31: 700000 | Z31: 700000 | AA31: 700000 | AB31: 700000 | AC31: 700000
B32: Retained Earnings | M32: 0 | N32: ='P&L'!N104 -> 4556756.93 | O32: =N32+'P&L'!O104 -> 9858291.163 | P32: =O32+'P&L'!P104 -> 16551027.18 | Q32: =P32+'P&L'!Q104 -> 23086596.51 | R32: =Q32+'P&L'!R104 -> 32122813.75 | S32: =R32+'P&L'!S104 -> 42685541.77 | T32: =S32+'P&L'!T104 -> 55030904.82 | U32: =T32+'P&L'!U104 -> 69779407.64 | V32: =U32+'P&L'!V104 -> 87128344.64 | W32: =V32+'P&L'!W104 -> 107315637 | X32: =W32+'P&L'!X104 -> 131030723.7 | Y32: =X32+'P&L'!Y104 -> 158184248.2 | Z32: =Y32+'P&L'!Z104 -> 186097748 | AA32: =Z32+'P&L'!AA104 -> 217768534.9 | AB32: =AA32+'P&L'!AB104 -> 253509779.4 | AC32: =AB32+'P&L'!AC104 -> 293668463.7
B33: Tied-Up Reserve
B34: Equity | N34: =N31+N32+N33 -> 5256756.93 | O34: 10558291.16 | P34: 17251027.18 | Q34: 23786596.51 | R34: 32822813.75 | S34: 43385541.77 | T34: 55730904.82 | U34: 70479407.64 | V34: 87828344.64 | W34: 108015637 | X34: 131730723.7 | Y34: 158884248.2 | Z34: 186797748 | AA34: 218468534.9 | AB34: 254209779.4 | AC34: 294368463.7
B36: Provisions for Pensions and Similar Obligations
B37: Provisions for Taxation | N37: ='Working Capital'!N28 -> 543831.8458 | O37: ='Working Capital'!O28 -> 621678.7048 | P37: ='Working Capital'!P28 -> 757200.1649 | Q37: ='Working Capital'!Q28 -> 760212.3471 | R37: ='Working Capital'!R28 -> 994493.3313 | S37: ='Working Capital'!S28 -> 1145272.757 | T37: ='Working Capital'!T28 -> 1320630.6 | U37: ='Working Capital'!U28 -> 1551802.461 | V37: ='Working Capital'!V28 -> 1800330.951 | W37: ='Working Capital'!W28 -> 2068493.478 | X37: ='Working Capital'!X28 -> 2398369.542 | Y37: ='Working Capital'!Y28 -> 2722077.575 | Z37: ='Working Capital'!Z28 -> 2816059.797 | AA37: ='Working Capital'!AA28 -> 3171263.604 | AB37: ='Working Capital'!AB28 -> 3555738.112 | AC37: ='Working Capital'!AC28 -> 3972670.215
B38: Other Provisions (e.g. pensions,other) | N38: ='Working Capital'!N32 -> 2273236.019 | O38: ='Working Capital'!O32 -> 2314567.583 | P38: ='Working Capital'!P32 -> 2355899.147 | Q38: ='Working Capital'!Q32 -> 2397230.711 | R38: ='Working Capital'!R32 -> 2438562.275 | S38: ='Working Capital'!S32 -> 2479893.839 | T38: ='Working Capital'!T32 -> 2521225.403 | U38: ='Working Capital'!U32 -> 2562556.967 | V38: ='Working Capital'!V32 -> 2603888.531 | W38: ='Working Capital'!W32 -> 2645220.095 | X38: ='Working Capital'!X32 -> 2686551.659 | Y38: ='Working Capital'!Y32 -> 2727883.223 | Z38: ='Working Capital'!Z32 -> 2769214.787 | AA38: ='Working Capital'!AA32 -> 2810546.351 | AB38: ='Working Capital'!AB32 -> 2851877.915 | AC38: ='Working Capital'!AC32 -> 2893209.479
B39: Provisions | N39: =SUM(N36:N38) -> 2817067.865 | O39: 2936246.288 | P39: 3113099.312 | Q39: 3157443.058 | R39: 3433055.607 | S39: 3625166.596 | T39: 3841856.003 | U39: 4114359.428 | V39: 4404219.482 | W39: 4713713.574 | X39: 5084921.201 | Y39: 5449960.798 | Z39: 5585274.585 | AA39: 5981809.955 | AB39: 6407616.027 | AC39: 6865879.694
B41: Liquidity Facility | N41: ='Debt Workings'!N25 -> 7067831.387 | O41: ='Debt Workings'!O25 -> 0 | P41: ='Debt Workings'!P25 -> 0 | Q41: ='Debt Workings'!Q25 -> 0 | R41: ='Debt Workings'!R25 -> 0 | S41: ='Debt Workings'!S25 -> 0 | T41: ='Debt Workings'!T25 -> 0 | U41: ='Debt Workings'!U25 -> 0 | V41: ='Debt Workings'!V25 -> 0 | W41: ='Debt Workings'!W25 -> 0 | X41: ='Debt Workings'!X25 -> 0 | Y41: ='Debt Workings'!Y25 -> 0 | Z41: ='Debt Workings'!Z25 -> 0 | AA41: ='Debt Workings'!AA25 -> 0 | AB41: ='Debt Workings'!AB25 -> 0 | AC41: ='Debt Workings'!AC25 -> 0
B42: Trade Payables | N42: ='Working Capital'!N36 -> 2272975.663 | O42: ='Working Capital'!O36 -> 2549011.636 | P42: ='Working Capital'!P36 -> 2836877.701 | Q42: ='Working Capital'!Q36 -> 3126661.6 | R42: ='Working Capital'!R36 -> 3422790.732 | S42: ='Working Capital'!S36 -> 3730032.494 | T42: ='Working Capital'!T36 -> 4018181.961 | U42: ='Working Capital'!U36 -> 4332244.881 | V42: ='Working Capital'!V36 -> 4525544.424 | W42: ='Working Capital'!W36 -> 4591972.187 | X42: ='Working Capital'!X36 -> 4661033.125 | Y42: ='Working Capital'!Y36 -> 4732873.093 | Z42: ='Working Capital'!Z36 -> 4804798.789 | AA42: ='Working Capital'!AA36 -> 4876809.887 | AB42: ='Working Capital'!AB36 -> 4948875.357 | AC42: ='Working Capital'!AC36 -> 5020974.648
B43: Other Payables | N43: ='Working Capital'!N44 -> 1481581.887 | O43: ='Working Capital'!O44 -> 1561247.077 | P43: ='Working Capital'!P44 -> 1714580.55 | Q43: ='Working Capital'!Q44 -> 1885819.246 | R43: ='Working Capital'!R44 -> 2076647.818 | S43: ='Working Capital'!S44 -> 2286739.603 | T43: ='Working Capital'!T44 -> 2528000.657 | U43: ='Working Capital'!U44 -> 2800825.974 | V43: ='Working Capital'!V44 -> 3083312.356 | W43: ='Working Capital'!W44 -> 3359760.203 | X43: ='Working Capital'!X44 -> 3663092.43 | Y43: ='Working Capital'!Y44 -> 3996013.569 | Z43: ='Working Capital'!Z44 -> 4361505.514 | AA43: ='Working Capital'!AA44 -> 4762856.341 | AB43: ='Working Capital'!AB44 -> 5203692.139 | AC43: ='Working Capital'!AC44 -> 5688012.19
B44: Other short term liabilities | N44: ='Working Capital'!N48 -> 52945.67806 | O44: ='Working Capital'!O48 -> 56916.59646 | P44: ='Working Capital'!P48 -> 61176.03552 | Q44: ='Working Capital'!Q48 -> 66183.80138 | R44: ='Working Capital'!R48 -> 71338.77471 | S44: ='Working Capital'!S48 -> 76773.18904 | T44: ='Working Capital'!T48 -> 82523.44594 | U44: ='Working Capital'!U48 -> 88664.79485 | V44: ='Working Capital'!V48 -> 93877.64248 | W44: ='Working Capital'!W48 -> 98214.49391 | X44: ='Working Capital'!X48 -> 102579.5408 | Y44: ='Working Capital'!Y48 -> 107460.2199 | Z44: ='Working Capital'!Z48 -> 112672.0791 | AA44: ='Working Capital'!AA48 -> 118243.9072 | AB44: ='Working Capital'!AB48 -> 124206.5086 | AC44: ='Working Capital'!AC48 -> 130595.4739
B45: Total Short term liabilities | N45: =N41+N42+N43+N44 -> 10875334.61 | O45: 4167175.309 | P45: 4612634.287 | Q45: 5078664.646 | R45: 5570777.325 | S45: 6093545.286 | T45: 6628706.064 | U45: 7221735.65 | V45: 7702734.423 | W45: 8049946.884 | X45: 8426705.096 | Y45: 8836346.882 | Z45: 9278976.382 | AA45: 9757910.136 | AB45: 10276774.01 | AC45: 10839582.31
B47: Accruals and deferred income | N47: ='Working Capital'!N52 -> 1342652.541 | O47: ='Working Capital'!O52 -> 1463159.225 | P47: ='Working Capital'!P52 -> 1599600.453 | Q47: ='Working Capital'!Q52 -> 1748401.572 | R47: ='Working Capital'!R52 -> 1910162.686 | S47: ='Working Capital'!S52 -> 2078490.258 | T47: ='Working Capital'!T52 -> 2268607.682 | U47: ='Working Capital'!U52 -> 2478071.827 | V47: ='Working Capital'!V52 -> 2690193.063 | W47: ='Working Capital'!W52 -> 2893897.141 | X47: ='Working Capital'!X52 -> 3116398.771 | Y47: ='Working Capital'!Y52 -> 3352870.213 | Z47: ='Working Capital'!Z52 -> 3606213.053 | AA47: ='Working Capital'!AA52 -> 3877859.893 | AB47: ='Working Capital'!AB52 -> 4169140.66 | AC47: ='Working Capital'!AC52 -> 4482414.318
B49: Total Equity & Liabilities | N49: =N47+N45+N39+N34 -> 20291811.95 | O49: 19124871.98 | P49: 26576361.23 | Q49: 33771105.79 | R49: 43736809.37 | S49: 55182743.91 | T49: 68470074.57 | U49: 84293574.55 | V49: 102625491.6 | W49: 123673194.6 | X49: 148358748.7 | Y49: 176523426.1 | Z49: 205268212 | AA49: 238086114.9 | AB49: 275063310.1 | AC49: 316556340
B51: Balance Check | N51: =N49-N28 -> 0 | O51: 0 | P51: 0 | Q51: 0 | R51: 0 | S51: 0 | T51: 0 | U51: 0 | V51: 0 | W51: 0 | X51: 0 | Y51: 0 | Z51: 0 | AA51: 0 | AB51: 0 | AC51: 0
N52: =N51-M51 -> 0 | O52: 0 | P52: 0 | Q52: 0 | R52: 0 | S52: 0 | T52: 0 | U52: 0 | V52: 0 | W52: 0 | X52: 0 | Y52: 0 | Z52: 0 | AA52: 0 | AB52: 0 | AC52: 0
A56: 1 | B56: Detailed Cash Flow Statement (EUR m)
I58: =+J58-1 -> -4 | J58: =+K58-1 -> -3 | K58: =+L58-1 -> -2 | L58: =+M58-1 -> -1 | M58: 0 | N58: 1 | O58: =+N58+1 -> 2 | P58: =+O58+1 -> 3 | Q58: 4 | R58: 5 | S58: 6 | T58: 7 | U58: 8 | V58: 9 | W58: 10 | X58: 11 | Y58: 12 | Z58: 13 | AA58: 14 | AB58: 15 | AC58: 16
B59: December Year-end | I59: =I$4 -> 2005 | J59: 2006 | K59: 2007 | L59: 2008 | M59: 2009 | N59: 2010 | O59: =O$4 -> 2011 | P59: 2012 | Q59: 2013 | R59: 2014 | S59: 2015 | T59: 2016 | U59: 2017 | V59: 2018 | W59: 2019 | X59: 2020 | Y59: 2021 | Z59: 2022 | AA59: 2023 | AB59: 2024 | AC59: 2025
B61: Landing Revenue | N61: ='Aero&ComRevs'!N57 -> 4624650.377 | O61: ='Aero&ComRevs'!O57 -> 4965654.196 | P61: ='Aero&ComRevs'!P57 -> 5327917.072 | Q61: ='Aero&ComRevs'!Q57 -> 5713044.04 | R61: ='Aero&ComRevs'!R57 -> 6117964.348 | S61: ='Aero&ComRevs'!S57 -> 6542106.096 | T61: ='Aero&ComRevs'!T57 -> 7023422.347 | U61: ='Aero&ComRevs'!U57 -> 7536414.16 | V61: ='Aero&ComRevs'!V57 -> 8083213.379 | W61: ='Aero&ComRevs'!W57 -> 8666103.355 | X61: ='Aero&ComRevs'!X57 -> 9358770.992 | Y61: ='Aero&ComRevs'!Y57 -> 10076570.32 | Z61: ='Aero&ComRevs'!Z57 -> 10847439.91 | AA61: ='Aero&ComRevs'!AA57 -> 11675486.2 | AB61: ='Aero&ComRevs'!AB57 -> 12565150.83 | AC61: ='Aero&ComRevs'!AC57 -> 13537961.67
B62: Passenger Revenue | N62: ='Aero&ComRevs'!N67 -> 25046192.74 | O62: ='Aero&ComRevs'!O67 -> 27463741.88 | P62: ='Aero&ComRevs'!P67 -> 30267558.09 | Q62: ='Aero&ComRevs'!Q67 -> 33348080.73 | R62: ='Aero&ComRevs'!R67 -> 36722176.66 | S62: ='Aero&ComRevs'!S67 -> 40364450.24 | T62: ='Aero&ComRevs'!T67 -> 44499527.34 | U62: ='Aero&ComRevs'!U67 -> 49098106.33 | V62: ='Aero&ComRevs'!V67 -> 53712550.93 | W62: ='Aero&ComRevs'!W67 -> 58035050.63 | X62: ='Aero&ComRevs'!X67 -> 62676185.74 | Y62: ='Aero&ComRevs'!Y67 -> 67636604.89 | Z62: ='Aero&ComRevs'!Z67 -> 72959215.49 | AA62: ='Aero&ComRevs'!AA67 -> 78669991.38 | AB62: ='Aero&ComRevs'!AB67 -> 84796758.77 | AC62: ='Aero&ComRevs'!AC67 -> 91369327.66
B63: Freight Revenue | N63: ='Aero&ComRevs'!N73 -> 840068.1758 | O63: ='Aero&ComRevs'!O73 -> 900268.3694 | P63: ='Aero&ComRevs'!P73 -> 963825.9629 | Q63: ='Aero&ComRevs'!Q73 -> 1030913.983 | R63: ='Aero&ComRevs'!R73 -> 1100396.136 | S63: ='Aero&ComRevs'!S73 -> 1175015.85 | T63: ='Aero&ComRevs'!T73 -> 1253735.066 | U63: ='Aero&ComRevs'!U73 -> 1336764.223 | V63: ='Aero&ComRevs'!V73 -> 1424324.363 | W63: ='Aero&ComRevs'!W73 -> 1516647.674 | X63: ='Aero&ComRevs'!X73 -> 1613978.046 | Y63: ='Aero&ComRevs'!Y73 -> 1716571.666 | Z63: ='Aero&ComRevs'!Z73 -> 1819856.538 | AA63: ='Aero&ComRevs'!AA73 -> 1928279.846 | AB63: ='Aero&ComRevs'!AB73 -> 2042076.476 | AC63: ='Aero&ComRevs'!AC73 -> 2161491.575
B64: Safety / Security Revenue | N64: ='Aero&ComRevs'!N79 -> 674384.4018 | O64: ='Aero&ComRevs'!O79 -> 739350.7432 | P64: ='Aero&ComRevs'!P79 -> 814687.4655 | Q64: ='Aero&ComRevs'!Q79 -> 897439.3742 | R64: ='Aero&ComRevs'!R79 -> 988054.8162 | S64: ='Aero&ComRevs'!S79 -> 1085844.601 | T64: ='Aero&ComRevs'!T79 -> 1196898.526 | U64: ='Aero&ComRevs'!U79 -> 1320380.346 | V64: ='Aero&ComRevs'!V79 -> 1444247.246 | W64: ='Aero&ComRevs'!W79 -> 1560223.068 | X64: ='Aero&ComRevs'!X79 -> 1684723.183 | Y64: ='Aero&ComRevs'!Y79 -> 1817648.184 | Z64: ='Aero&ComRevs'!Z79 -> 1960236.641 | AA64: ='Aero&ComRevs'!AA79 -> 2113178.021 | AB64: ='Aero&ComRevs'!AB79 -> 2277210.706 | AC64: ='Aero&ComRevs'!AC79 -> 2453125.446
B65: Fuel Revenue | N65: ='Aero&ComRevs'!N85 -> 1173717.228 | O65: ='Aero&ComRevs'!O85 -> 1291675.735 | P65: ='Aero&ComRevs'!P85 -> 1419229.922 | Q65: ='Aero&ComRevs'!Q85 -> 1557128.837 | R65: ='Aero&ComRevs'!R85 -> 1705378.928 | S65: ='Aero&ComRevs'!S85 -> 1864369.173 | T65: ='Aero&ComRevs'!T85 -> 2041775.472 | U65: ='Aero&ComRevs'!U85 -> 2233664.325 | V65: ='Aero&ComRevs'!V85 -> 2441151.124 | W65: ='Aero&ComRevs'!W85 -> 2665438.083 | X65: ='Aero&ComRevs'!X85 -> 2931869.66 | Y65: ='Aero&ComRevs'!Y85 -> 3211395.988 | Z65: ='Aero&ComRevs'!Z85 -> 3515262.671 | AA65: ='Aero&ComRevs'!AA85 -> 3845565.865 | AB65: ='Aero&ComRevs'!AB85 -> 4204588.15 | AC65: ='Aero&ComRevs'!AC85 -> 4600923.784
B66: Revenue Lighting Systems | N66: ='Aero&ComRevs'!N94 -> 0 | O66: ='Aero&ComRevs'!O94 -> 0 | P66: ='Aero&ComRevs'!P94 -> 0 | Q66: ='Aero&ComRevs'!Q94 -> 0 | R66: ='Aero&ComRevs'!R94 -> 0 | S66: ='Aero&ComRevs'!S94 -> 0 | T66: ='Aero&ComRevs'!T94 -> 0 | U66: ='Aero&ComRevs'!U94 -> 0 | V66: ='Aero&ComRevs'!V94 -> 0 | W66: ='Aero&ComRevs'!W94 -> 0 | X66: ='Aero&ComRevs'!X94 -> 0 | Y66: ='Aero&ComRevs'!Y94 -> 0 | Z66: ='Aero&ComRevs'!Z94 -> 0 | AA66: ='Aero&ComRevs'!AA94 -> 0 | AB66: ='Aero&ComRevs'!AB94 -> 0 | AC66: ='Aero&ComRevs'!AC94 -> 0
B67: Parking Revenue | N67: ='Aero&ComRevs'!N102 -> 298413.9996 | O67: ='Aero&ComRevs'!O102 -> 317810.8912 | P67: ='Aero&ComRevs'!P102 -> 338282.6698 | Q67: ='Aero&ComRevs'!Q102 -> 359904.7483 | R67: ='Aero&ComRevs'!R102 -> 382577.0766 | S67: ='Aero&ComRevs'!S102 -> 406294.4012 | T67: ='Aero&ComRevs'!T102 -> 432595.9511 | U67: ='Aero&ComRevs'!U102 -> 460461.3184 | V67: ='Aero&ComRevs'!V102 -> 489990.9269 | W67: ='Aero&ComRevs'!W102 -> 521291.8802 | X67: ='Aero&ComRevs'!X102 -> 559064.1408 | Y67: ='Aero&ComRevs'!Y102 -> 597429.9252 | Z67: ='Aero&ComRevs'!Z102 -> 638389.0965 | AA67: ='Aero&ComRevs'!AA102 -> 682132.5401 | AB67: ='Aero&ComRevs'!AB102 -> 728866.1049 | AC67: ='Aero&ComRevs'!AC102 -> 779847.1587
B68: Shelter Revenue | N68: ='Aero&ComRevs'!N110 -> 59682.79993 | O68: ='Aero&ComRevs'!O110 -> 63562.17824 | P68: ='Aero&ComRevs'!P110 -> 67656.53396 | Q68: ='Aero&ComRevs'!Q110 -> 71980.94966 | R68: ='Aero&ComRevs'!R110 -> 76515.41531 | S68: ='Aero&ComRevs'!S110 -> 81258.88024 | T68: ='Aero&ComRevs'!T110 -> 86519.19022 | U68: ='Aero&ComRevs'!U110 -> 92092.26368 | V68: ='Aero&ComRevs'!V110 -> 97998.18537 | W68: ='Aero&ComRevs'!W110 -> 104258.376 | X68: ='Aero&ComRevs'!X110 -> 111812.8282 | Y68: ='Aero&ComRevs'!Y110 -> 119485.985 | Z68: ='Aero&ComRevs'!Z110 -> 127677.8193 | AA68: ='Aero&ComRevs'!AA110 -> 136426.508 | AB68: ='Aero&ComRevs'!AB110 -> 145773.221 | AC68: ='Aero&ComRevs'!AC110 -> 155969.4317
B69: Boarding bridge Revenue | N69: ='Aero&ComRevs'!N116 -> 1636666.194 | O69: ='Aero&ComRevs'!O116 -> 1757069.913 | P69: ='Aero&ComRevs'!P116 -> 1884927.648 | Q69: ='Aero&ComRevs'!Q116 -> 2020791.885 | R69: ='Aero&ComRevs'!R116 -> 2163675.385 | S69: ='Aero&ComRevs'!S116 -> 2313415.724 | T69: ='Aero&ComRevs'!T116 -> 2483398.679 | U69: ='Aero&ComRevs'!U116 -> 2664537.503 | V69: ='Aero&ComRevs'!V116 -> 2857579.839 | W69: ='Aero&ComRevs'!W116 -> 3063326.143 | X69: ='Aero&ComRevs'!X116 -> 3307992.286 | Y69: ='Aero&ComRevs'!Y116 -> 3561471.407 | Z69: ='Aero&ComRevs'!Z116 -> 3833658.975 | AA69: ='Aero&ComRevs'!AA116 -> 4125999.055 | AB69: ='Aero&ComRevs'!AB116 -> 4440053.166 | AC69: ='Aero&ComRevs'!AC116 -> 4783462.701
B70: ='Aero&ComRevs'!B120 -> Total Aeronautical Revenues | N70: =SUM(N61:N69) -> 34353775.91 | O70: 37499133.9 | P70: 41084085.36 | Q70: 44999284.54 | R70: 49256738.77 | S70: 53832754.96 | T70: 59017872.57 | U70: 64742420.46 | V70: 70551056 | W70: 76132339.21 | X70: 82244396.87 | Y70: 88737178.37 | Z70: 95701737.14 | AA70: 103177059.4 | AB70: 111200477.4 | AC70: 119842109.4
B71: % of revenues | N71: =N70/N84 -> 0.7931814229 | O71: 0.7944953159 | P71: 0.7962029789 | Q71: 0.7978589378 | R71: 0.799386834 | S71: 0.8028978713 | T71: 0.8064655975 | U71: 0.8099099519 | V71: 0.812983561 | W71: 0.8155447138 | X71: 0.8181161946 | Y71: 0.8204470662 | Z71: 0.822678474 | AA71: 0.8248077368 | AB71: 0.8268406085 | AC71: 0.828817938
B73: Duty Free Shop & other shops | N73: ='Aero&ComRevs'!N127 -> 2293854.312 | O73: ='Aero&ComRevs'!O127 -> 2639451.457 | P73: ='Aero&ComRevs'!P127 -> 3037716.483 | Q73: ='Aero&ComRevs'!Q127 -> 3480735.38 | R73: ='Aero&ComRevs'!R127 -> 3972237.57 | S73: ='Aero&ComRevs'!S127 -> 4330837.58 | T73: ='Aero&ComRevs'!T127 -> 4738653.072 | U73: ='Aero&ComRevs'!U127 -> 5193149.133 | V73: ='Aero&ComRevs'!V127 -> 5647162.557 | W73: ='Aero&ComRevs'!W127 -> 6069301.266 | X73: ='Aero&ComRevs'!X127 -> 6524312.395 | Y73: ='Aero&ComRevs'!Y127 -> 7014837.939 | Z73: ='Aero&ComRevs'!Z127 -> 7543736.905 | AA73: ='Aero&ComRevs'!AA127 -> 8114103.39 | AB73: ='Aero&ComRevs'!AB127 -> 8729286.181 | AC73: ='Aero&ComRevs'!AC127 -> 9392910.003
B74: Inflight Catering-Commissariat | N74: ='Aero&ComRevs'!N129 -> 237881.1879 | O74: ='Aero&ComRevs'!O129 -> 252665.4386 | P74: ='Aero&ComRevs'!P129 -> 270019.243 | Q74: ='Aero&ComRevs'!Q129 -> 288772.1204 | R74: ='Aero&ComRevs'!R129 -> 308951.811 | S74: ='Aero&ComRevs'!S129 -> 330238.1597 | T74: ='Aero&ComRevs'!T129 -> 354250.1976 | U74: ='Aero&ComRevs'!U129 -> 380614.9211 | V74: ='Aero&ComRevs'!V129 -> 405774.8565 | W74: ='Aero&ComRevs'!W129 -> 427556.3562 | X74: ='Aero&ComRevs'!X129 -> 450597.9874 | Y74: ='Aero&ComRevs'!Y129 -> 474976.3332 | Z74: ='Aero&ComRevs'!Z129 -> 500772.752 | AA74: ='Aero&ComRevs'!AA129 -> 528073.6797 | AB74: ='Aero&ComRevs'!AB129 -> 556970.9505 | AC74: ='Aero&ComRevs'!AC129 -> 587562.138
B75: Rental income (offices, warehouses, shops etc.) | N75: ='Aero&ComRevs'!N131 -> 2916965.108 | O75: ='Aero&ComRevs'!O131 -> 3066287.44 | P75: ='Aero&ComRevs'!P131 -> 3223301.176 | Q75: ='Aero&ComRevs'!Q131 -> 3388405.733 | R75: ='Aero&ComRevs'!R131 -> 3561356.902 | S75: ='Aero&ComRevs'!S131 -> 3743890.667 | T75: ='Aero&ComRevs'!T131 -> 3935841.899 | U75: ='Aero&ComRevs'!U131 -> 4137700.708 | V75: ='Aero&ComRevs'!V131 -> 4349982.994 | W75: ='Aero&ComRevs'!W131 -> 4573231.833 | X75: ='Aero&ComRevs'!X131 -> 4808018.926 | Y75: ='Aero&ComRevs'!Y131 -> 5054946.127 | Z75: ='Aero&ComRevs'!Z131 -> 5312331.778 | AA75: ='Aero&ComRevs'!AA131 -> 5582853.109 | AB75: ='Aero&ComRevs'!AB131 -> 5867182.263 | AC75: ='Aero&ComRevs'!AC131 -> 6166025.879
B76: Reinvoicing for utilities (electricity, water, phone, waste etc.) | N76: =Assumptions!N467*Assumptions!N651 -> 1839656.237 | O76: =Assumptions!O467*Assumptions!O651 -> 1950116.591 | P76: =Assumptions!P467*Assumptions!P651 -> 2051562.228 | Q76: =Assumptions!Q467*Assumptions!Q651 -> 2154626.136 | R76: =Assumptions!R467*Assumptions!R651 -> 2262643.908 | S76: =Assumptions!S467*Assumptions!S651 -> 2375090.281 | T76: =Assumptions!T467*Assumptions!T651 -> 2496639.493 | U76: =Assumptions!U467*Assumptions!U651 -> 2622789.685 | V76: =Assumptions!V467*Assumptions!V651 -> 2747204.973 | W76: =Assumptions!W467*Assumptions!W651 -> 2874022.42 | X76: =Assumptions!X467*Assumptions!X651 -> 3017913.021 | Y76: =Assumptions!Y467*Assumptions!Y651 -> 3169005.841 | Z76: =Assumptions!Z467*Assumptions!Z651 -> 3327661.185 | AA76: =Assumptions!AA467*Assumptions!AA651 -> 3494257.377 | AB76: =Assumptions!AB467*Assumptions!AB651 -> 3669191.655 | AC76: =Assumptions!AC467*Assumptions!AC651 -> 3852881.123
B77: Rental income of check-in counters | N77: ='Aero&ComRevs'!N135 -> 849575.671 | O77: ='Aero&ComRevs'!O135 -> 902376.5664 | P77: ='Aero&ComRevs'!P135 -> 964354.4392 | Q77: ='Aero&ComRevs'!Q135 -> 1031329.001 | R77: ='Aero&ComRevs'!R135 -> 1103399.325 | S77: ='Aero&ComRevs'!S135 -> 1179421.999 | T77: ='Aero&ComRevs'!T135 -> 1265179.277 | U77: ='Aero&ComRevs'!U135 -> 1359339.004 | V77: ='Aero&ComRevs'!V135 -> 1449195.916 | W77: ='Aero&ComRevs'!W135 -> 1526986.986 | X77: ='Aero&ComRevs'!X135 -> 1609278.526 | Y77: ='Aero&ComRevs'!Y135 -> 1696344.047 | Z77: ='Aero&ComRevs'!Z135 -> 1788474.114 | AA77: ='Aero&ComRevs'!AA135 -> 1885977.428 | AB77: ='Aero&ComRevs'!AB135 -> 1989181.966 | AC77: ='Aero&ComRevs'!AC135 -> 2098436.207
B78: Parking | N78: ='Aero&ComRevs'!N137 -> 441779.3489 | O78: ='Aero&ComRevs'!O137 -> 469235.8145 | P78: ='Aero&ComRevs'!P137 -> 501464.3084 | Q78: ='Aero&ComRevs'!Q137 -> 536291.0808 | R78: ='Aero&ComRevs'!R137 -> 573767.6489 | S78: ='Aero&ComRevs'!S137 -> 613299.4394 | T78: ='Aero&ComRevs'!T137 -> 657893.2241 | U78: ='Aero&ComRevs'!U137 -> 706856.2821 | V78: ='Aero&ComRevs'!V137 -> 753581.8764 | W78: ='Aero&ComRevs'!W137 -> 794033.2329 | X78: ='Aero&ComRevs'!X137 -> 836824.8337 | Y78: ='Aero&ComRevs'!Y137 -> 882098.9044 | Z78: ='Aero&ComRevs'!Z137 -> 930006.5394 | AA78: ='Aero&ComRevs'!AA137 -> 980708.2624 | AB78: ='Aero&ComRevs'!AB137 -> 1034374.622 | AC78: ='Aero&ComRevs'!AC137 -> 1091186.828
B79: Others e.g. VIP lounges, call center | N79: ='Aero&ComRevs'!N139 -> 377884.5265 | O79: ='Aero&ComRevs'!O139 -> 419417.4777 | P79: ='Aero&ComRevs'!P139 -> 467511.3906 | Q79: ='Aero&ComRevs'!Q139 -> 520606.7078 | R79: ='Aero&ComRevs'!R139 -> 579055.2225 | S79: ='Aero&ComRevs'!S139 -> 642539.7594 | T79: ='Aero&ComRevs'!T139 -> 714563.2305 | U79: ='Aero&ComRevs'!U139 -> 794930.6782 | V79: ='Aero&ComRevs'!V139 -> 876462.2067 | W79: ='Aero&ComRevs'!W139 -> 954049.3693 | X79: ='Aero&ComRevs'!X139 -> 1037650.042 | Y79: ='Aero&ComRevs'!Y139 -> 1127716.081 | Z79: ='Aero&ComRevs'!Z139 -> 1224732.902 | AA79: ='Aero&ComRevs'!AA139 -> 1329221.947 | AB79: ='Aero&ComRevs'!AB139 -> 1441743.327 | AC79: ='Aero&ComRevs'!AC139 -> 1562898.659
B81: Total Non-Aeronautical Revenues | N81: =SUM(N73:N79) -> 8957596.391 | O81: 9699550.785 | P81: 10515929.27 | Q81: 11400766.16 | R81: 12361412.39 | S81: 13215317.89 | T81: 14163020.39 | U81: 15195380.41 | V81: 16229365.38 | W81: 17219181.46 | X81: 18284595.73 | Y81: 19419925.27 | Z81: 20627716.18 | AA81: 21915195.19 | AB81: 23287930.97 | AC81: 24751900.84
B82: % of revenues | N82: =N81/N84 -> 0.2068185771 | O82: 0.2055046841 | P82: 0.2037970211 | Q82: 0.2021410622 | R82: 0.200613166 | S82: 0.1971021287 | T82: 0.1935344025 | U82: 0.1900900481 | V82: 0.187016439 | W82: 0.1844552862 | X82: 0.1818838054 | Y82: 0.1795529338 | Z82: 0.177321526 | AA82: 0.1751922632 | AB82: 0.1731593915 | AC82: 0.171182062
B84: Total Revenues | N84: =N70+N81 -> 43311372.31 | O84: 47198684.69 | P84: 51600014.63 | Q84: 56400050.7 | R84: 61618151.15 | S84: 67048072.85 | T84: 73180892.97 | U84: 79937800.88 | V84: 86780421.38 | W84: 93351520.67 | X84: 100528992.6 | Y84: 108157103.6 | Z84: 116329453.3 | AA84: 125092254.6 | AB84: 134488408.4 | AC84: 144594010.3
B85: growth in % | O85: =O84/N84-1 -> 0.08975269488 | P85: 0.09325111426 | Q85: 0.09302392854 | R85: 0.09251942835 | S85: 0.08812211325 | T85: 0.09146899919 | U85: 0.09233158594 | V85: 0.08559930878 | W85: 0.0757209886 | X85: 0.07688650254 | Y85: 0.07587971227 | Z85: 0.07555999012 | AA85: 0.07532745185 | AB85: 0.07511379346 | AC85: 0.07514106234
B86: Personell Expenses | N86: =Assumptions!N588 -> 4938606.288 | O86: =Assumptions!O588 -> 5204156.922 | P86: =Assumptions!P588 -> 5715268.501 | Q86: =Assumptions!Q588 -> 6286064.152 | R86: =Assumptions!R588 -> 6922159.393 | S86: =Assumptions!S588 -> 7622465.343 | T86: =Assumptions!T588 -> 8426668.857 | U86: =Assumptions!U588 -> 9336086.582 | V86: =Assumptions!V588 -> 10277707.85 | W86: =Assumptions!W588 -> 11199200.68 | X86: =Assumptions!X588 -> 12210308.1 | Y86: =Assumptions!Y588 -> 13320045.23 | Z86: =Assumptions!Z588 -> 14538351.71 | AA86: =Assumptions!AA588 -> 15876187.8 | AB86: =Assumptions!AB588 -> 17345640.46 | AC86: =Assumptions!AC588 -> 18960040.63
B87: % of revenues | N87: =N86/N84 -> 0.1140256248 | O87: 0.1102606345 | P87: 0.1107609861 | Q87: 0.111454938 | R87: 0.1123396153 | S87: 0.1136865688 | T87: 0.1151484836 | U87: 0.1167918867 | V87: 0.1184334864 | W87: 0.1199680583 | X87: 0.1214605636 | Y87: 0.1231546036 | Z87: 0.124975673 | AA87: 0.1269158339 | AB87: 0.1289749851 | AC87: 0.1311260446
B88: Airport Maintenance (inflated) | N88: =(Assumptions!$H$708*Assumptions!N41)*Assumptions!N622 -> 9092944.077 | O88: =(Assumptions!$H$708*Assumptions!O41)*Assumptions!O622 -> 10184097.37 | P88: =(Assumptions!$H$708*Assumptions!P41)*Assumptions!P622 -> 11308315.91 | Q88: =(Assumptions!$H$708*Assumptions!Q41)*Assumptions!Q622 -> 12465599.7 | R88: =(Assumptions!$H$708*Assumptions!R41)*Assumptions!R622 -> 13655948.74 | S88: =(Assumptions!$H$708*Assumptions!S41)*Assumptions!S622 -> 14879363.04 | T88: =(Assumptions!$H$708*Assumptions!T41)*Assumptions!T622 -> 16135842.58 | U88: =(Assumptions!$H$708*Assumptions!U41)*Assumptions!U622 -> 17425387.38 | V88: =(Assumptions!$H$708*Assumptions!V41)*Assumptions!V622 -> 18227219.72 | W88: =(Assumptions!$H$708*Assumptions!W41)*Assumptions!W622 -> 18516540.67 | X88: =(Assumptions!$H$708*Assumptions!X41)*Assumptions!X622 -> 18805861.61 | Y88: =(Assumptions!$H$708*Assumptions!Y41)*Assumptions!Y622 -> 19095182.56 | Z88: =(Assumptions!$H$708*Assumptions!Z41)*Assumptions!Z622 -> 19384503.51 | AA88: =(Assumptions!$H$708*Assumptions!AA41)*Assumptions!AA622 -> 19673824.46 | AB88: =(Assumptions!$H$708*Assumptions!AB41)*Assumptions!AB622 -> 19963145.41 | AC88: =(Assumptions!$H$708*Assumptions!AC41)*Assumptions!AC622 -> 20252466.35
B89: Equipment Maintenance | N89: =Assumptions!N629*('Input Capex, Depr, Assets'!N165+'Input Capex, Depr, Assets'!N167)/2 -> 65835 | O89: =Assumptions!O629*('Input Capex, Depr, Assets'!O164+'Input Capex, Depr, Assets'!O165+'Input Capex, Depr, Assets'!O167)/2 -> 103495 | P89: =Assumptions!P629*('Input Capex, Depr, Assets'!P164+'Input Capex, Depr, Assets'!P165+'Input Capex, Depr, Assets'!P167)/2 -> 154880 | Q89: =Assumptions!Q629*('Input Capex, Depr, Assets'!Q164+'Input Capex, Depr, Assets'!Q165+'Input Capex, Depr, Assets'!Q167)/2 -> 179260 | R89: =Assumptions!R629*('Input Capex, Depr, Assets'!R164+'Input Capex, Depr, Assets'!R165+'Input Capex, Depr, Assets'!R167)/2 -> 196740 | S89: =Assumptions!S629*('Input Capex, Depr, Assets'!S164+'Input Capex, Depr, Assets'!S165+'Input Capex, Depr, Assets'!S167)/2 -> 221475 | T89: =Assumptions!T629*('Input Capex, Depr, Assets'!T164+'Input Capex, Depr, Assets'!T165+'Input Capex, Depr, Assets'!T167)/2 -> 130340 | U89: =Assumptions!U629*('Input Capex, Depr, Assets'!U164+'Input Capex, Depr, Assets'!U165+'Input Capex, Depr, Assets'!U167)/2 -> 112000 | V89: =Assumptions!V629*('Input Capex, Depr, Assets'!V164+'Input Capex, Depr, Assets'!V165+'Input Capex, Depr, Assets'!V167)/2 -> 92610 | W89: =Assumptions!W629*('Input Capex, Depr, Assets'!W164+'Input Capex, Depr, Assets'!W165+'Input Capex, Depr, Assets'!W167)/2 -> 72150 | X89: =Assumptions!X629*('Input Capex, Depr, Assets'!X164+'Input Capex, Depr, Assets'!X165+'Input Capex, Depr, Assets'!X167)/2 -> 62150 | Y89: =Assumptions!Y629*('Input Capex, Depr, Assets'!Y164+'Input Capex, Depr, Assets'!Y165+'Input Capex, Depr, Assets'!Y167)/2 -> 63150 | Z89: =Assumptions!Z629*('Input Capex, Depr, Assets'!Z164+'Input Capex, Depr, Assets'!Z165+'Input Capex, Depr, Assets'!Z167)/2 -> 64150 | AA89: =Assumptions!AA629*('Input Capex, Depr, Assets'!AA164+'Input Capex, Depr, Assets'!AA165+'Input Capex, Depr, Assets'!AA167)/2 -> 65150 | AB89: =Assumptions!AB629*('Input Capex, Depr, Assets'!AB164+'Input Capex, Depr, Assets'!AB165+'Input Capex, Depr, Assets'!AB167)/2 -> 66150 | AC89: =Assumptions!AC629*('Input Capex, Depr, Assets'!AC164+'Input Capex, Depr, Assets'!AC165+'Input Capex, Depr, Assets'!AC167)/2 -> 67150
B90: IT Maintenance | N90: =Assumptions!N631*('Input Capex, Depr, Assets'!N177+'Input Capex, Depr, Assets'!N179)/2 -> 59400 | O90: =Assumptions!O631*('Input Capex, Depr, Assets'!O176+'Input Capex, Depr, Assets'!O177+'Input Capex, Depr, Assets'!O179)/2 -> 50065.93329 | P90: =Assumptions!P631*('Input Capex, Depr, Assets'!P176+'Input Capex, Depr, Assets'!P177+'Input Capex, Depr, Assets'!P179)/2 -> 41919.213 | Q90: =Assumptions!Q631*('Input Capex, Depr, Assets'!Q176+'Input Capex, Depr, Assets'!Q177+'Input Capex, Depr, Assets'!Q179)/2 -> 35490.12159 | R90: =Assumptions!R631*('Input Capex, Depr, Assets'!R176+'Input Capex, Depr, Assets'!R177+'Input Capex, Depr, Assets'!R179)/2 -> 28629.22906 | S90: =Assumptions!S631*('Input Capex, Depr, Assets'!S176+'Input Capex, Depr, Assets'!S177+'Input Capex, Depr, Assets'!S179)/2 -> 26515.96906 | T90: =Assumptions!T631*('Input Capex, Depr, Assets'!T176+'Input Capex, Depr, Assets'!T177+'Input Capex, Depr, Assets'!T179)/2 -> 29777.5957 | U90: =Assumptions!U631*('Input Capex, Depr, Assets'!U176+'Input Capex, Depr, Assets'!U177+'Input Capex, Depr, Assets'!U179)/2 -> 32272.41858 | V90: =Assumptions!V631*('Input Capex, Depr, Assets'!V176+'Input Capex, Depr, Assets'!V177+'Input Capex, Depr, Assets'!V179)/2 -> 33767.11385 | W90: =Assumptions!W631*('Input Capex, Depr, Assets'!W176+'Input Capex, Depr, Assets'!W177+'Input Capex, Depr, Assets'!W179)/2 -> 34307.64945 | X90: =Assumptions!X631*('Input Capex, Depr, Assets'!X176+'Input Capex, Depr, Assets'!X177+'Input Capex, Depr, Assets'!X179)/2 -> 35067.172 | Y90: =Assumptions!Y631*('Input Capex, Depr, Assets'!Y176+'Input Capex, Depr, Assets'!Y177+'Input Capex, Depr, Assets'!Y179)/2 -> 36097.20512 | Z90: =Assumptions!Z631*('Input Capex, Depr, Assets'!Z176+'Input Capex, Depr, Assets'!Z177+'Input Capex, Depr, Assets'!Z179)/2 -> 37474.91076 | AA90: =Assumptions!AA631*('Input Capex, Depr, Assets'!AA176+'Input Capex, Depr, Assets'!AA177+'Input Capex, Depr, Assets'!AA179)/2 -> 39198.97386 | AB90: =Assumptions!AB631*('Input Capex, Depr, Assets'!AB176+'Input Capex, Depr, Assets'!AB177+'Input Capex, Depr, Assets'!AB179)/2 -> 41143.54175 | AC90: =Assumptions!AC631*('Input Capex, Depr, Assets'!AC176+'Input Capex, Depr, Assets'!AC177+'Input Capex, Depr, Assets'!AC179)/2 -> 43225.27526
B91: Material Expenses (maintenance) | N91: =SUM(N88:N90) -> 9218179.077 | O91: 10337658.3 | P91: 11505115.12 | Q91: 12680349.82 | R91: 13881317.97 | S91: 15127354 | T91: 16295960.18 | U91: 17569659.8 | V91: 18353596.83 | W91: 18622998.32 | X91: 18903078.79 | Y91: 19194429.77 | Z91: 19486128.42 | AA91: 19778173.43 | AB91: 20070438.95 | AC91: 20362841.63
B92: % of revenues | N92: =N91/N84 -> 0.2128350728 | O92: 0.2190242878 | P92: 0.2229672841 | Q92: 0.2248286954 | R92: 0.2252796897 | S92: 0.2256195199 | T92: 0.222680532 | U92: 0.219791633 | V92: 0.2114946729 | W92: 0.1994932507 | X92: 0.1880360908 | Y92: 0.1774680453 | Z92: 0.1675081234 | AA92: 0.1581086974 | AB92: 0.149235456 | AC92: 0.1408276981
B93: Office and terminal cleaning | N93: =Assumptions!N689 -> 167503.9857 | O93: =Assumptions!O689 -> 179420.0632 | P93: =Assumptions!P689 -> 193222.2091 | Q93: =Assumptions!Q689 -> 208265.6463 | R93: =Assumptions!R689 -> 224612.8805 | S93: =Assumptions!S689 -> 242103.9598 | T93: =Assumptions!T689 -> 261832.6077 | U93: =Assumptions!U689 -> 283638.6547 | V93: =Assumptions!V689 -> 305196.4281 | W93: =Assumptions!W689 -> 324976.7014 | X93: =Assumptions!X689 -> 346101.3127 | Y93: =Assumptions!Y689 -> 368664.9213 | Z93: =Assumptions!Z689 -> 392768.897 | AA93: =Assumptions!AA689 -> 418521.7952 | AB93: =Assumptions!AB689 -> 446039.867 | AC93: =Assumptions!AC689 -> 475447.6035
B94: % of revenues | N94: =N93/N84 -> 0.003867436583 | O94: 0.003801378457 | P94: 0.003744615394 | Q94: 0.003692649983 | R94: 0.003645238883 | S94: 0.003610901097 | T94: 0.00357788211 | U94: 0.003548241904 | V94: 0.00351688115 | W94: 0.003481214864 | X94: 0.003442800964 | Y94: 0.003408605712 | Z94: 0.003376349547 | AA94: 0.003345705108 | AB94: 0.003316567371 | AC94: 0.003288155592
B95: O&M of operating soft/hardware in terminal | N95: =Assumptions!N693 -> 220000 | O95: =Assumptions!O693 -> 224000 | P95: =Assumptions!P693 -> 228000 | Q95: =Assumptions!Q693 -> 290000 | R95: =Assumptions!R693 -> 295000 | S95: =Assumptions!S693 -> 300000 | T95: =Assumptions!T693 -> 366000 | U95: =Assumptions!U693 -> 372000 | V95: =Assumptions!V693 -> 378000 | W95: =Assumptions!W693 -> 480000 | X95: =Assumptions!X693 -> 390000 | Y95: =Assumptions!Y693 -> 396000 | Z95: =Assumptions!Z693 -> 402000 | AA95: =Assumptions!AA693 -> 408000 | AB95: =Assumptions!AB693 -> 414000 | AC95: =Assumptions!AC693 -> 420000
B96: % of revenues | N96: =N95/N84 -> 0.00507949733 | O96: 0.004745894965 | P96: 0.004418603398 | Q96: 0.005141839349 | R96: 0.004787550332 | S96: 0.004474401534 | T96: 0.005001305466 | U96: 0.004653618137 | V96: 0.00435582121 | W96: 0.005141855179 | X96: 0.003879477849 | Y96: 0.003661340649 | Z96: 0.003455702649 | AA96: 0.003261592824 | AB96: 0.003078332214 | AC96: 0.002904684635
B97: External Services e.g. O&M oper soft/hardware, cleaning | N97: =SUM(N93,N95) -> 387503.9857 | O97: 403420.0632 | P97: 421222.2091 | Q97: 498265.6463 | R97: 519612.8805 | S97: 542103.9598 | T97: 627832.6077 | U97: 655638.6547 | V97: 683196.4281 | W97: 804976.7014 | X97: 736101.3127 | Y97: 764664.9213 | Z97: 794768.897 | AA97: 826521.7952 | AB97: 860039.867 | AC97: 895447.6035
B98: % of revenues | N98: =N97/N84 -> 0.008946933913 | O98: 0.008547273421 | P98: 0.008163218792 | Q98: 0.008834489332 | R98: 0.008432789215 | S98: 0.008085302631 | T98: 0.008579187576 | U98: 0.008201860041 | V98: 0.00787270236 | W98: 0.008623070043 | X98: 0.007322278813 | Y98: 0.007069946361 | Z98: 0.006832052196 | AA98: 0.006607297932 | AB98: 0.006394899585 | AC98: 0.006192840228
B99: Utilities | N99: =Assumptions!N651 -> 9198281.187 | O99: =Assumptions!O651 -> 9750582.956 | P99: =Assumptions!P651 -> 10257811.14 | Q99: =Assumptions!Q651 -> 10773130.68 | R99: =Assumptions!R651 -> 11313219.54 | S99: =Assumptions!S651 -> 11875451.41 | T99: =Assumptions!T651 -> 12483197.47 | U99: =Assumptions!U651 -> 13113948.43 | V99: =Assumptions!V651 -> 13736024.86 | W99: =Assumptions!W651 -> 14370112.1 | X99: =Assumptions!X651 -> 15089565.1 | Y99: =Assumptions!Y651 -> 15845029.2 | Z99: =Assumptions!Z651 -> 16638305.93 | AA99: =Assumptions!AA651 -> 17471286.89 | AB99: =Assumptions!AB651 -> 18345958.28 | AC99: =Assumptions!AC651 -> 19264405.62
B100: % of revenues | N100: =N99/N84 -> 0.2123756579 | O100: 0.2065859042 | P100: 0.1987947332 | Q100: 0.1910127836 | R100: 0.1836020609 | S100: 0.17711846 | T100: 0.1705800102 | U100: 0.1640519039 | V100: 0.1582848371 | W100: 0.1539354902 | X100: 0.1501016245 | Y100: 0.146500125 | Z100: 0.1430274574 | AA100: 0.1396672155 | AB100: 0.1364129333 | AC100: 0.1332310072
B101: Marketing Expense | N101: =Assumptions!N665 -> 510000 | O101: =Assumptions!O665 -> 520200 | P101: =Assumptions!P665 -> 530604 | Q101: =Assumptions!Q665 -> 541216.08 | R101: =Assumptions!R665 -> 552040.4016 | S101: =Assumptions!S665 -> 563081.2096 | T101: =Assumptions!T665 -> 574342.8338 | U101: =Assumptions!U665 -> 585829.6905 | V101: =Assumptions!V665 -> 597546.2843 | W101: =Assumptions!W665 -> 609497.21 | X101: =Assumptions!X665 -> 621687.1542 | Y101: =Assumptions!Y665 -> 634120.8973 | Z101: =Assumptions!Z665 -> 646803.3152 | AA101: =Assumptions!AA665 -> 659739.3815 | AB101: =Assumptions!AB665 -> 672934.1692 | AC101: =Assumptions!AC665 -> 686392.8525
B102: % of revenues | N102: =N101/N84 -> 0.01177519836 | O102: 0.01102149357 | P102: 0.01028302034 | Q102: 0.009596021161 | R102: 0.008959054942 | S102: 0.008398171427 | T102: 0.00784826217 | U102: 0.007328569014 | V102: 0.006885726928 | W102: 0.00652905497 | X102: 0.006184157805 | Y102: 0.005862961155 | Z102: 0.005560099328 | AA102: 0.005274022629 | AB102: 0.005003659254 | AC102: 0.004747035173
B103: Training Expense | N103: =Assumptions!N676 -> 300000 | O103: =Assumptions!O676 -> 300000 | P103: =Assumptions!P676 -> 75000 | Q103: =Assumptions!Q676 -> 76500 | R103: =Assumptions!R676 -> 78030 | S103: =Assumptions!S676 -> 79590.6 | T103: =Assumptions!T676 -> 81182.412 | U103: =Assumptions!U676 -> 82806.06024 | V103: =Assumptions!V676 -> 84462.18144 | W103: =Assumptions!W676 -> 86151.42507 | X103: =Assumptions!X676 -> 87874.45358 | Y103: =Assumptions!Y676 -> 89631.94265 | Z103: =Assumptions!Z676 -> 91424.5815 | AA103: =Assumptions!AA676 -> 93253.07313 | AB103: =Assumptions!AB676 -> 95118.13459 | AC103: =Assumptions!AC676 -> 97020.49728
B104: % of revenues | N104: =N103/N84 -> 0.006926587269 | O104: 0.006356109327 | P104: 0.00145348796 | Q104: 0.001356381759 | R104: 0.001266347635 | S104: 0.001187067676 | T104: 0.001109338909 | U104: 0.001035881139 | V104: 0.0009732861411 | W104: 0.0009228711482 | X104: 0.0008741205029 | Y104: 0.0008287198865 | Z104: 0.0007859108669 | AA104: 0.0007454743974 | AB104: 0.0007072589804 | AC104: 0.00067098559
B105: Insurance | N105: =Assumptions!N659 -> 428927.3238 | O105: =Assumptions!O659 -> 436319.4492 | P105: =Assumptions!P659 -> 444996.3514 | Q105: =Assumptions!Q659 -> 454372.7901 | R105: =Assumptions!R659 -> 464462.6354 | S105: =Assumptions!S659 -> 475105.8098 | T105: =Assumptions!T659 -> 487111.8287 | U105: =Assumptions!U659 -> 500294.1905 | V105: =Assumptions!V659 -> 512874.1582 | W105: =Assumptions!W659 -> 523764.908 | X105: =Assumptions!X659 -> 535285.7236 | Y105: =Assumptions!Y659 -> 547474.8965 | Z105: =Assumptions!Z659 -> 560373.1059 | AA105: =Assumptions!AA659 -> 574023.5698 | AB105: =Assumptions!AB659 -> 588472.2052 | AC105: =Assumptions!AC659 -> 603767.7989
B106: % of revenues | N106: =N105/N84 -> 0.009903341802 | O106: 0.009244313736 | P106: 0.008623957853 | Q106: 0.008056247901 | R106: 0.00753775676 | S106: 0.007086047213 | T106: 0.006656270632 | U106: 0.00625854333 | V106: 0.005910021524 | W106: 0.005610673551 | X106: 0.00532469002 | Y106: 0.005061848719 | Z106: 0.004817121459 | AA106: 0.004588801853 | AB106: 0.004375635136 | AC106: 0.004175607259
B107: Other operating expenses | N107: =Assumptions!N679 -> 102000 | O107: =Assumptions!O679 -> 104040 | P107: =Assumptions!P679 -> 106120.8 | Q107: =Assumptions!Q679 -> 108243.216 | R107: =Assumptions!R679 -> 110408.0803 | S107: =Assumptions!S679 -> 112616.2419 | T107: =Assumptions!T679 -> 114868.5668 | U107: =Assumptions!U679 -> 117165.9381 | V107: =Assumptions!V679 -> 119509.2569 | W107: =Assumptions!W679 -> 121899.442 | X107: =Assumptions!X679 -> 124337.4308 | Y107: =Assumptions!Y679 -> 126824.1795 | Z107: =Assumptions!Z679 -> 129360.663 | AA107: =Assumptions!AA679 -> 131947.8763 | AB107: =Assumptions!AB679 -> 134586.8338 | AC107: =Assumptions!AC679 -> 137278.5705
B108: % of revenues | N108: =N107/N84 -> 0.002355039671 | O108: 0.002204298715 | P108: 0.002056604068 | Q108: 0.001919204232 | R108: 0.001791810988 | S108: 0.001679634285 | T108: 0.001569652434 | U108: 0.001465713803 | V108: 0.001377145386 | W108: 0.001305810994 | X108: 0.001236831561 | Y108: 0.001172592231 | Z108: 0.001112019866 | AA108: 0.001054804526 | AB108: 0.001000731851 | AC108: 0.0009494070346
B109: o/w Management fee paid | D109: =Control!$K$114 -> 0.03 | N109: =$D$109*N84 -> 1299341.169 | O109: 1415960.541 | P109: 1548000.439 | Q109: 1692001.521 | R109: 1848544.535 | S109: 2011442.185 | T109: 2195426.789 | U109: 2398134.026 | V109: 2603412.641 | W109: 2800545.62 | X109: 3015869.778 | Y109: 3244713.109 | Z109: 3489883.6 | AA109: 3752767.638 | AB109: 4034652.252 | AC109: 4337820.308
B110: ="o/w " &'Debt Workings'!D28 -> o/w Commitment fee paid | N110: ='Debt Workings'!N28 -> 90000 | O110: ='Debt Workings'!O28 -> 90000 | P110: ='Debt Workings'!P28 -> 90000 | Q110: ='Debt Workings'!Q28 -> 90000 | R110: ='Debt Workings'!R28 -> 90000 | S110: ='Debt Workings'!S28 -> 90000 | T110: ='Debt Workings'!T28 -> 90000 | U110: ='Debt Workings'!U28 -> 90000 | V110: ='Debt Workings'!V28 -> 90000 | W110: ='Debt Workings'!W28 -> 90000 | X110: ='Debt Workings'!X28 -> 90000 | Y110: ='Debt Workings'!Y28 -> 90000 | Z110: ='Debt Workings'!Z28 -> 90000 | AA110: ='Debt Workings'!AA28 -> 90000 | AB110: ='Debt Workings'!AB28 -> 90000 | AC110: ='Debt Workings'!AC28 -> 90000
B111: Total other operating expenses | N111: =SUM(N107,N109,N110) -> 1491341.169 | O111: =SUM(O109:O110) -> 1505960.541 | P111: 1638000.439 | Q111: 1782001.521 | R111: 1938544.535 | S111: 2101442.185 | T111: 2285426.789 | U111: 2488134.026 | V111: 2693412.641 | W111: 2890545.62 | X111: 3105869.778 | Y111: 3334713.109 | Z111: 3579883.6 | AA111: 3842767.638 | AB111: 4124652.252 | AC111: 4427820.308
B112: % of revenues | N112: =N111/N84 -> 0.03443301585 | O112: 0.0319068328 | P112: 0.03174418555 | Q112: 0.03159574325 | R112: 0.03146060858 | S112: 0.03134232046 | T112: 0.03122982921 | U112: 0.03112587536 | V112: 0.03103710029 | W112: 0.03096409785 | X112: 0.03089526412 | Y112: 0.03083212287 | Z112: 0.03077366477 | AA112: 0.03071946901 | AB112: 0.03066920266 | AC112: 0.03062243242
B114: Total Operating Expenses | N114: =SUM(N86,N91,N97,N99,N101,N103,N105,N111) -> 26472839.03 | O114: 28458298.23 | P114: 30588017.76 | Q114: 33091900.69 | R114: 35669387.36 | S114: 38386594.52 | T114: 41261722.97 | U114: 44332397.43 | V114: 46938821.24 | W114: 49107246.96 | X114: 51289770.41 | Y114: 53730109.97 | Z114: 56336039.56 | AA114: 59121953.58 | AB114: 62103254.32 | AC114: 65297736.94
B115: % of revenues | N115: =N114/N84 -> 0.6112214326 | O115: 0.6029468494 | P115: 0.5927908738 | Q115: 0.5867353004 | R115: 0.578877923 | S115: 0.572523458 | T115: 0.5638319143 | U115: 0.5545861525 | V115: 0.5408918336 | W115: 0.5260465668 | X115: 0.5101987903 | Y115: 0.4967783729 | Z115: 0.4842801024 | AA115: 0.4726268126 | AB115: 0.4617740299 | AC115: 0.4515936505
B117: Gross margin | N117: =N84-N114 -> 16838533.28 | O117: 18740386.46 | P117: 21011996.87 | Q117: 23308150.01 | R117: 25948763.79 | S117: 28661478.33 | T117: 31919170 | U117: 35605403.45 | V117: 39841600.13 | W117: 44244273.72 | X117: 49239222.19 | Y117: 54426993.67 | Z117: 59993413.76 | AA117: 65970301.04 | AB117: 72385154.07 | AC117: 79296273.33
B118: % of revenues | N118: =N117/N84 -> 0.3887785674 | O118: 0.3970531506 | P118: 0.4072091262 | Q118: 0.4132646996 | R118: 0.421122077 | S118: 0.427476542 | T118: 0.4361680857 | U118: 0.4454138475 | V118: 0.4591081664 | W118: 0.4739534332 | X118: 0.4898012097 | Y118: 0.5032216271 | Z118: 0.5157198976 | AA118: 0.5273731874 | AB118: 0.5382259701 | AC118: 0.5484063495
B120: Concession Fee (fix) | D120: =Control!E128 -> 1500000 | E120: inflated | N120: =$D$120*(1+Assumptions!N36) -> 1650000 | O120: =N120*(1+Assumptions!O36) -> 1683000 | P120: =O120*(1+Assumptions!P36) -> 1716660 | Q120: =P120*(1+Assumptions!Q36) -> 1750993.2 | R120: =Q120*(1+Assumptions!R36) -> 1786013.064 | S120: =R120*(1+Assumptions!S36) -> 1821733.325 | T120: =S120*(1+Assumptions!T36) -> 1858167.992 | U120: =T120*(1+Assumptions!U36) -> 1895331.352 | V120: =U120*(1+Assumptions!V36) -> 1933237.979 | W120: =V120*(1+Assumptions!W36) -> 1971902.738 | X120: =W120*(1+Assumptions!X36) -> 2011340.793 | Y120: =X120*(1+Assumptions!Y36) -> 2051567.609 | Z120: =Y120*(1+Assumptions!Z36) -> 2092598.961 | AA120: =Z120*(1+Assumptions!AA36) -> 2134450.94 | AB120: =AA120*(1+Assumptions!AB36) -> 2177139.959 | AC120: =AB120*(1+Assumptions!AC36) -> 2220682.758
B121: % of revenues | N121: =N120/N84 -> 0.03809622998 | O121: 0.03565777333 | P121: 0.03326859522 | Q121: 0.03104595081 | R121: 0.02898517775 | S121: 0.02717055462 | T121: 0.02539143643 | U121: 0.02371007622 | V121: 0.02227735183 | W121: 0.02112341314 | X121: 0.02000756937 | Y121: 0.01896840374 | Z121: 0.01798855665 | AA121: 0.01706301439 | AB121: 0.01618830935 | AC121: 0.01535805497
B122: Concession Fee (variable) | D122: 17% - 20% - 23% | N122: =N123*N84 -> 7362933.292 | O122: =O123*O84 -> 8023776.397 | P122: 8772002.487 | Q122: 11280010.14 | R122: 12323630.23 | S122: 13409614.57 | T122: 14636178.59 | U122: 15987560.18 | V122: 17356084.28 | W122: 18670304.13 | X122: 20105798.52 | Y122: 21631420.73 | Z122: 26755774.26 | AA122: 28771218.56 | AB122: 30932333.93 | AC122: 33256622.36
B123: % of revenues | D123: for Years 1-3, 4-13, thereafter | N123: ='P&L'!N75 -> 0.17 | O123: ='P&L'!O75 -> 0.17 | P123: ='P&L'!P75 -> 0.17 | Q123: ='P&L'!Q75 -> 0.2 | R123: ='P&L'!R75 -> 0.2 | S123: ='P&L'!S75 -> 0.2 | T123: ='P&L'!T75 -> 0.2 | U123: ='P&L'!U75 -> 0.2 | V123: ='P&L'!V75 -> 0.2 | W123: ='P&L'!W75 -> 0.2 | X123: ='P&L'!X75 -> 0.2 | Y123: ='P&L'!Y75 -> 0.2 | Z123: ='P&L'!Z75 -> 0.23 | AA123: ='P&L'!AA75 -> 0.23 | AB123: ='P&L'!AB75 -> 0.23 | AC123: ='P&L'!AC75 -> 0.23
B124: Total Concession Fee | N124: =SUM(N120,N122) -> 9012933.292 | O124: 9706776.397 | P124: 10488662.49 | Q124: 13031003.34 | R124: 14109643.29 | S124: 15231347.89 | T124: 16494346.59 | U124: 17882891.53 | V124: 19289322.25 | W124: 20642206.87 | X124: 22117139.31 | Y124: 23682988.34 | Z124: 28848373.22 | AA124: 30905669.5 | AB124: 33109473.89 | AC124: 35477305.12
B125: % of revenues | N125: =N124/N84 -> 0.20809623 | O125: 0.2056577733 | P125: 0.2032685952 | Q125: 0.2310459508 | R125: 0.2289851778 | S125: 0.2271705546 | T125: 0.2253914364 | U125: 0.2237100762 | V125: 0.2222773518 | W125: 0.2211234131 | X125: 0.2200075694 | Y125: 0.2189684037 | Z125: 0.2479885566 | AA125: 0.2470630144 | AB125: 0.2461883094 | AC125: 0.245358055
B127: ='P&L'!B79 -> EBITDA | N127: =+N117-N124 -> 7825599.983 | O127: =+O117-O124 -> 9033610.062 | P127: 10523334.38 | Q127: 10277146.67 | R127: 11839120.5 | S127: 13430130.43 | T127: 15424823.41 | U127: 17722511.92 | V127: 20552277.88 | W127: 23602066.85 | X127: 27122082.88 | Y127: 30744005.33 | Z127: 31145040.53 | AA127: 35064631.53 | AB127: 39275680.18 | AC127: 43818968.21
B128: Tax | N128: =-'Tax Workings'!N11 -> -1109860.91 | O128: =-'Tax Workings'!O11 -> -1268732.051 | P128: =-'Tax Workings'!P11 -> -1545306.459 | Q128: =-'Tax Workings'!Q11 -> -1551453.77 | R128: =-'Tax Workings'!R11 -> -2029578.227 | S128: =-'Tax Workings'!S11 -> -2337291.341 | T128: =-'Tax Workings'!T11 -> -2695164.489 | U128: =-'Tax Workings'!U11 -> -3166943.798 | V128: =-'Tax Workings'!V11 -> -3674144.798 | W128: =-'Tax Workings'!W11 -> -4221415.262 | X128: =-'Tax Workings'!X11 -> -4894631.718 | Y128: =-'Tax Workings'!Y11 -> -5555260.357 | Z128: =-'Tax Workings'!Z11 -> -5747060.811 | AA128: =-'Tax Workings'!AA11 -> -6471966.538 | AB128: =-'Tax Workings'!AB11 -> -7256608.391 | AC128: =-'Tax Workings'!AC11 -> -8107490.234
B129: ='Debt Workings'!D7 -> WC / Provisions | N129: ='Debt Workings'!N7 -> -1881070.461 | O129: ='Debt Workings'!O7 -> -284553.7471 | P129: ='Debt Workings'!P7 -> -242036.8471 | Q129: ='Debt Workings'!Q7 -> -432274.0743 | R129: ='Debt Workings'!R7 -> -257023.9244 | S129: ='Debt Workings'!S7 -> -351468.4109 | T129: ='Debt Workings'!T7 -> -452534.8735 | U129: ='Debt Workings'!U7 -> -461412.6296 | V129: ='Debt Workings'!V7 -> -572919.358 | W129: ='Debt Workings'!W7 -> -633749.3318 | X129: ='Debt Workings'!X7 -> -661571.6616 | Y129: ='Debt Workings'!Y7 -> -723354.2304 | Z129: ='Debt Workings'!Z7 -> -1026971.851 | AA129: ='Debt Workings'!AA7 -> -845401.0044 | AB129: ='Debt Workings'!AB7 -> -900580.203 | AC129: ='Debt Workings'!AC7 -> -963502.1149
B130: Cash Flow from Operations | N130: =N127+N128+N129 -> 4834668.613 | O130: 7480324.264 | P130: 8735991.076 | Q130: 8293418.828 | R130: 9552518.349 | S130: 10741370.68 | T130: 12277124.05 | U130: 14094155.49 | V130: 16305213.72 | W130: 18746902.25 | X130: 21565879.5 | Y130: 24465390.75 | Z130: 24371007.87 | AA130: 27747263.99 | AB130: 31118491.59 | AC130: 34747975.86
B132: CAPEX | N132: ='Debt Workings'!N6 -> -11602500 | O132: ='Debt Workings'!O6 -> -485370.9252 | P132: ='Debt Workings'!P6 -> -532487.8665 | Q132: ='Debt Workings'!Q6 -> -577008.5097 | R132: ='Debt Workings'!R6 -> -605358.7121 | S132: ='Debt Workings'!S6 -> -621509.0585 | T132: ='Debt Workings'!T6 -> -643581.5424 | U132: ='Debt Workings'!U6 -> -665185.8352 | V132: ='Debt Workings'!V6 -> -674572.2753 | W132: ='Debt Workings'!W6 -> -675516.6516 | X132: ='Debt Workings'!X6 -> -693570.9015 | Y132: ='Debt Workings'!Y6 -> -712392.074 | Z132: ='Debt Workings'!Z6 -> -732043.1253 | AA132: ='Debt Workings'!AA6 -> -752592.0914 | AB132: ='Debt Workings'!AB6 -> -774112.4907 | AC132: ='Debt Workings'!AC6 -> -796683.7587
B133: Cash Flow from Investments | N133: =N132 -> -11602500 | O133: -485370.9252 | P133: -532487.8665 | Q133: -577008.5097 | R133: -605358.7121 | S133: -621509.0585 | T133: -643581.5424 | U133: -665185.8352 | V133: -674572.2753 | W133: -675516.6516 | X133: -693570.9015 | Y133: -712392.074 | Z133: -732043.1253 | AA133: -752592.0914 | AB133: -774112.4907 | AC133: -796683.7587
B136: FREE CASH FLOW | N136: =N130+N133 -> -6767831.387 | O136: 6994953.339 | P136: 8203503.209 | Q136: 7716410.318 | R136: 8947159.637 | S136: 10119861.62 | T136: 11633542.51 | U136: 13428969.66 | V136: 15630641.45 | W136: 18071385.6 | X136: 20872308.6 | Y136: 23752998.67 | Z136: 23638964.75 | AA136: 26994671.9 | AB136: 30344379.1 | AC136: 33951292.1
B138: Capital Increase | N138: =N31-M31 -> 700000 | O138: 0 | P138: 0 | Q138: 0 | R138: 0 | S138: 0 | T138: 0 | U138: 0 | V138: 0 | W138: 0 | X138: 0 | Y138: 0 | Z138: 0 | AA138: 0 | AB138: 0 | AC138: 0
B139: Liquidity Facility | N139: ='Debt Workings'!N23+'Debt Workings'!N24 -> 7067831.387 | O139: ='Debt Workings'!O23+'Debt Workings'!O24 -> -7067831.387 | P139: ='Debt Workings'!P23+'Debt Workings'!P24 -> 0 | Q139: ='Debt Workings'!Q23+'Debt Workings'!Q24 -> 0 | R139: ='Debt Workings'!R23+'Debt Workings'!R24 -> 0 | S139: ='Debt Workings'!S23+'Debt Workings'!S24 -> 0 | T139: ='Debt Workings'!T23+'Debt Workings'!T24 -> 0 | U139: ='Debt Workings'!U23+'Debt Workings'!U24 -> 0 | V139: ='Debt Workings'!V23+'Debt Workings'!V24 -> 0 | W139: ='Debt Workings'!W23+'Debt Workings'!W24 -> 0 | X139: ='Debt Workings'!X23+'Debt Workings'!X24 -> 0 | Y139: ='Debt Workings'!Y23+'Debt Workings'!Y24 -> 0 | Z139: ='Debt Workings'!Z23+'Debt Workings'!Z24 -> 0 | AA139: ='Debt Workings'!AA23+'Debt Workings'!AA24 -> 0 | AB139: ='Debt Workings'!AB23+'Debt Workings'!AB24 -> 0 | AC139: ='Debt Workings'!AC23+'Debt Workings'!AC24 -> 0
B140: Interest Income | N140: ='Debt Workings'!N39 -> 0 | O140: ='Debt Workings'!O39 -> 18190 | P140: ='Debt Workings'!P39 -> 11514.11783 | Q140: ='Debt Workings'!Q39 -> 187315.4886 | R140: ='Debt Workings'!R39 -> 356455.2209 | S140: ='Debt Workings'!S39 -> 555552.5788 | T140: ='Debt Workings'!T39 -> 784006.4427 | U140: ='Debt Workings'!U39 -> 1049741.99 | V140: ='Debt Workings'!V39 -> 1359586.42 | W140: ='Debt Workings'!W39 -> 1723177.296 | X140: ='Debt Workings'!X39 -> 2146780.942 | Y140: ='Debt Workings'!Y39 -> 2639389.458 | Z140: ='Debt Workings'!Z39 -> 3204186.564 | AA140: ='Debt Workings'!AA39 -> 3778630.002 | AB140: ='Debt Workings'!AB39 -> 4437178.663 | AC140: ='Debt Workings'!AC39 -> 5181503.999
B141: Interest Expenses | N141: ='Debt Workings'!N41-'Debt Workings'!N30 -> -150000 | O141: ='Debt Workings'!O41 -> -257269.0625 | P141: ='Debt Workings'!P41 -> 0 | Q141: ='Debt Workings'!Q41 -> 0 | R141: ='Debt Workings'!R41 -> 0 | S141: ='Debt Workings'!S41 -> 0 | T141: ='Debt Workings'!T41 -> 0 | U141: ='Debt Workings'!U41 -> 0 | V141: ='Debt Workings'!V41 -> 0 | W141: ='Debt Workings'!W41 -> 0 | X141: ='Debt Workings'!X41 -> 0 | Y141: ='Debt Workings'!Y41 -> 0 | Z141: ='Debt Workings'!Z41 -> 0 | AA141: ='Debt Workings'!AA41 -> 0 | AB141: ='Debt Workings'!AB41 -> 0 | AC141: ='Debt Workings'!AC41 -> 0
B142: Dividend Payment | N142: ='Debt Workings'!N45*-1 -> 0 | O142: ='Debt Workings'!O45*-1 -> 0 | P142: ='Debt Workings'!P45*-1 -> 0 | Q142: ='Debt Workings'!Q45*-1 -> 0 | R142: ='Debt Workings'!R45*-1 -> 0 | S142: ='Debt Workings'!S45*-1 -> 0 | T142: ='Debt Workings'!T45*-1 -> 0 | U142: ='Debt Workings'!U45*-1 -> 0 | V142: ='Debt Workings'!V45*-1 -> 0 | W142: ='Debt Workings'!W45*-1 -> 0 | X142: ='Debt Workings'!X45*-1 -> 0 | Y142: ='Debt Workings'!Y45*-1 -> 0 | Z142: ='Debt Workings'!Z45*-1 -> 0 | AA142: ='Debt Workings'!AA45*-1 -> 0 | AB142: ='Debt Workings'!AB45*-1 -> 0 | AC142: ='Debt Workings'!AC45*-1 -> 0
B143: Cash Flow from Financing | N143: =N138+N139+N140+N141+N142 -> 7617831.387 | O143: -7306910.45 | P143: 11514.11783 | Q143: 187315.4886 | R143: 356455.2209 | S143: 555552.5788 | T143: 784006.4427 | U143: 1049741.99 | V143: 1359586.42 | W143: 1723177.296 | X143: 2146780.942 | Y143: 2639389.458 | Z143: 3204186.564 | AA143: 3778630.002 | AB143: 4437178.663 | AC143: 5181503.999
B145: CASH BoP | N145: =M24 -> 0 | O145: 850000 | P145: 538042.8895 | Q145: 8753060.216 | R145: 16656786.02 | S145: 25960400.88 | T145: 36635815.08 | U145: 49053364.03 | V145: 63532075.68 | W145: 80522303.55 | X145: 100316866.4 | Y145: 123335956 | Z145: 149728344.1 | AA145: 176571495.4 | AB145: 207344797.3 | AC145: 242126355.1
B146: Change | N146: =N136+N143 -> 850000 | O146: -311957.1105 | P146: 8215017.327 | Q146: 7903725.807 | R146: 9303614.857 | S146: 10675414.2 | T146: 12417548.95 | U146: 14478711.65 | V146: 16990227.87 | W146: 19794562.9 | X146: 23019089.54 | Y146: 26392388.13 | Z146: 26843151.31 | AA146: 30773301.9 | AB146: 34781557.76 | AC146: 39132796.1
B147: CASH EoP | N147: =N145+N146 -> 850000 | O147: 538042.8895 | P147: 8753060.216 | Q147: 16656786.02 | R147: 25960400.88 | S147: 36635815.08 | T147: 49053364.03 | U147: 63532075.68 | V147: 80522303.55 | W147: 100316866.4 | X147: 123335956 | Y147: 149728344.1 | Z147: 176571495.4 | AA147: 207344797.3 | AB147: 242126355.1 | AC147: 281259151.2
B148: Check | N148: ='Debt Workings'!N52 -> 850000 | O148: ='Debt Workings'!O52 -> 538042.8895 | P148: ='Debt Workings'!P52 -> 8753060.216 | Q148: ='Debt Workings'!Q52 -> 16656786.02 | R148: ='Debt Workings'!R52 -> 25960400.88 | S148: =S147-'Debt Workings'!S52 -> 0 | T148: =T147-'Debt Workings'!T52 -> 0 | U148: =U147-'Debt Workings'!U52 -> 0 | V148: =V147-'Debt Workings'!V52 -> 0 | W148: =W147-'Debt Workings'!W52 -> 0 | X148: =X147-'Debt Workings'!X52 -> 0 | Y148: =Y147-'Debt Workings'!Y52 -> 0 | Z148: =Z147-'Debt Workings'!Z52 -> 0 | AA148: =AA147-'Debt Workings'!AA52 -> 0 | AB148: =AB147-'Debt Workings'!AB52 -> 0 | AC148: =AC147-'Debt Workings'!AC52 -> 0
A150: 2.a | B150: SUMMARY OF CASHFLOWS FOR AIRPORT OPERATION (EUR m)
I151: =+J151-1 -> -4 | J151: =+K151-1 -> -3 | K151: =+L151-1 -> -2 | L151: =+M151-1 -> -1 | M151: 0 | N151: 1 | O151: =+N151+1 -> 2 | P151: =+O151+1 -> 3 | Q151: 4 | R151: 5 | S151: 6 | T151: 7 | U151: 8 | V151: 9 | W151: 10 | X151: 11 | Y151: 12 | Z151: 13 | AA151: 14 | AB151: 15 | AC151: 16
B152: December Year-end | I152: =I$4 -> 2005 | J152: 2006 | K152: 2007 | L152: 2008 | M152: 2009 | N152: 2010 | O152: =O$4 -> 2011 | P152: 2012 | Q152: 2013 | R152: 2014 | S152: 2015 | T152: 2016 | U152: 2017 | V152: 2018 | W152: 2019 | X152: 2020 | Y152: 2021 | Z152: 2022 | AA152: 2023 | AB152: 2024 | AC152: 2025
B154: Airport operating Cashflow before (i) taxes;
B155: (ii) AIBD Concession fee; and (iii) Fraport mgmt fee | N155: =N130+N124-N128+N109+N110 -> 16346803.98 | O155: =O130+O124-O128+O109+O110 -> 19961793.25 | P155: 22407960.46 | Q155: 24657877.46 | R155: 27630284.4 | S155: 30411452.1 | T155: 33752061.91 | U155: 37632124.85 | V155: 41962093.42 | W155: 46501070.01 | X155: 51683520.31 | Y155: 57038352.55 | Z155: 62546325.51 | AA155: 68967667.67 | AB155: 75609226.12 | AC155: 82760591.52
B156: Capex | N156: =N132 -> -11602500 | O156: -485370.9252 | P156: -532487.8665 | Q156: -577008.5097 | R156: -605358.7121 | S156: -621509.0585 | T156: =T132 -> -643581.5424 | U156: -665185.8352 | V156: -674572.2753 | W156: -675516.6516 | X156: -693570.9015 | Y156: -712392.074 | Z156: -732043.1253 | AA156: -752592.0914 | AB156: -774112.4907 | AC156: -796683.7587
B157: Interest expense / commitment fee | N157: =+N141-N110 -> -240000 | O157: =+O141-O110 -> -347269.0625 | P157: -90000 | Q157: -90000 | R157: -90000 | S157: -90000 | T157: -90000 | U157: -90000 | V157: -90000 | W157: -90000 | X157: -90000 | Y157: -90000 | Z157: -90000 | AA157: -90000 | AB157: -90000 | AC157: -90000
B158: FCF before (i) taxes; (ii) AIBD concession fee; and (iii) mgmt fee | N158: =SUM(N155:N157) -> 4504303.984 | O158: 19129153.27 | P158: 21785472.59 | Q158: 23990868.95 | R158: 26934925.69 | S158: 29699943.04 | T158: 33018480.37 | U158: 36876939.01 | V158: 41197521.14 | W158: 45735553.36 | X158: 50899949.41 | Y158: 56235960.48 | Z158: 61724282.38 | AA158: 68125075.58 | AB158: 74745113.63 | AC158: 81873907.76
B160: Payments to stakeholders
B161: AIBD fee [Fixed = €1.5m inflated + Variable = (17% to 23%) of revenues] | N161: =-N124 -> -9012933.292 | O161: =-O124 -> -9706776.397 | P161: -10488662.49 | Q161: -13031003.34 | R161: -14109643.29 | S161: -15231347.89 | T161: -16494346.59 | U161: -17882891.53 | V161: -19289322.25 | W161: -20642206.87 | X161: -22117139.31 | Y161: -23682988.34 | Z161: -28848373.22 | AA161: -30905669.5 | AB161: -33109473.89 | AC161: -35477305.12
B162: Govt - taxes paid by Daport [15% on EBIT and 20% on Mgmt fees] | N162: =+N128 -> -1109860.91 | O162: =+O128 -> -1268732.051 | P162: -1545306.459 | Q162: -1551453.77 | R162: -2029578.227 | S162: -2337291.341 | T162: -2695164.489 | U162: -3166943.798 | V162: -3674144.798 | W162: -4221415.262 | X162: -4894631.718 | Y162: -5555260.357 | Z162: -5747060.811 | AA162: -6471966.538 | AB162: -7256608.391 | AC162: -8107490.234
B163: Cashflow pre-capital injection | N163: =N158+N161+N162 -> -5618490.218 | O163: =O158+O161+O162 -> 8153644.818 | P163: 9751503.648 | Q163: 9408411.839 | R163: 10795704.17 | S163: 12131303.81 | T163: 13828969.3 | U163: 15827103.69 | V163: 18234054.09 | W163: 20871931.22 | X163: 23888178.37 | Y163: 26997711.78 | Z163: 27128848.35 | AA163: 30747439.54 | AB163: 34379031.35 | AC163: 38289112.41
B165: Financing - equity | N165: =N138 -> 700000 | O165: 0 | P165: 0 | Q165: 0 | R165: 0 | S165: 0 | T165: =T138 -> 0 | U165: 0 | V165: 0 | W165: 0 | X165: 0 | Y165: 0 | Z165: 0 | AA165: 0 | AB165: 0 | AC165: 0
B166: Financing - debt drawdown (+) or repayment (-) | N166: =N139 -> 7067831.387 | O166: =O139 -> -7067831.387 | P166: =(P139>0)*P139 -> 0 | Q166: =(Q139>0)*Q139 -> 0 | R166: =(R139>0)*R139 -> 0 | S166: =(S139>0)*S139 -> 0 | T166: =(T139>0)*T139 -> 0 | U166: 0 | V166: 0 | W166: 0 | X166: 0 | Y166: 0 | Z166: 0 | AA166: 0 | AB166: 0 | AC166: 0
B168: Daport - mgmt fee [3% of revenues] | N168: =-N109 -> -1299341.169 | O168: =-O109 -> -1415960.541 | P168: -1548000.439 | Q168: -1692001.521 | R168: -1848544.535 | S168: -2011442.185 | T168: -2195426.789 | U168: -2398134.026 | V168: -2603412.641 | W168: -2800545.62 | X168: -3015869.778 | Y168: -3244713.109 | Z168: -3489883.6 | AA168: -3752767.638 | AB168: -4034652.252 | AC168: -4337820.308
B169: Daport - project total cashflows | N169: =+N163+N165+N166+N168 -> 850000 | O169: =+O163+O165+O166+O168 -> -330147.1105 | P169: 8203503.209 | Q169: 7716410.318 | R169: 8947159.637 | S169: 10119861.62 | T169: 11633542.51 | U169: 13428969.66 | V169: 15630641.45 | W169: 18071385.6 | X169: 20872308.6 | Y169: 23752998.67 | Z169: 23638964.75 | AA169: 26994671.9 | AB169: 30344379.1 | AC169: 33951292.1
B171: Daport/Fraport - total cashflows received (project total CF + mgmt fees) | N171: =+N169-N168 -> 2149341.169 | O171: =+O169-O168 -> 1085813.43 | P171: 9751503.648 | Q171: 9408411.839 | R171: 10795704.17 | S171: 12131303.81 | T171: 13828969.3 | U171: 15827103.69 | V171: 18234054.09 | W171: 20871931.22 | X171: 23888178.37 | Y171: 26997711.78 | Z171: 27128848.35 | AA171: 30747439.54 | AB171: 34379031.35 | AC171: 38289112.41
B174: Notes
B175: 1. Does not include interest income on cash balances - i.e. assumes cash is paid out as dividend to Daport shareholders every year
B176: 2. ASECNA fees already deducted
B178: Interest income / commitment fee - PER FRAPORT MODEL | N178: =+N140 -> 0 | O178: 18190 | P178: 11514.11783 | Q178: 187315.4886 | R178: 356455.2209 | S178: 555552.5788 | T178: =+T140 -> 784006.4427 | U178: 1049741.99 | V178: 1359586.42 | W178: 1723177.296 | X178: 2146780.942 | Y178: 2639389.458 | Z178: 3204186.564 | AA178: 3778630.002 | AB178: 4437178.663 | AC178: 5181503.999
B179: CHECK | F179: =MAX(MAX(N179:AC179),-MIN(N179:AC179)) -> 1.629814506e-09 | N179: =+N169+N178-N146 -> 0 | O179: -1.629814506e-09 | P179: 0 | Q179: 0 | R179: 0 | S179: 0 | T179: =+T169+T178-T146 -> 0 | U179: 0 | V179: 0 | W179: 0 | X179: 0 | Y179: 0 | Z179: 0 | AA179: 0 | AB179: 0 | AC179: 0
A181: 2.b | B181: DISTRIBUTION OF AIRPORT CASHFLOWS TO VARIOUS STAKEHOLDERS (EUR m)
I182: =+I$151 -> -4 | J182: -3 | K182: -2 | L182: -1 | M182: 0 | N182: 1 | O182: =+N182+1 -> 2 | P182: =+O182+1 -> 3 | Q182: 4 | R182: 5 | S182: 6 | T182: 7 | U182: 8 | V182: 9 | W182: 10 | X182: 11 | Y182: 12 | Z182: 13 | AA182: 14 | AB182: 15 | AC182: 16
B183: December Year-end | I183: =I$152 -> 2005 | J183: 2006 | K183: 2007 | L183: 2008 | M183: 2009 | N183: 2010 | O183: =O$152 -> 2011 | P183: 2012 | Q183: 2013 | R183: 2014 | S183: 2015 | T183: 2016 | U183: 2017 | V183: 2018 | W183: 2019 | X183: 2020 | Y183: 2021 | Z183: 2022 | AA183: 2023 | AB183: 2024 | AC183: 2025
E185: Years 1-16
E186: Total | F186: Disc. @
E187: undisc. | F187: 0.1
B188: Airport cashflow distributed to stakeholders | E188: =SUM(N188:AC188) -> 677177450.6 | F188: =NPV($F$187,N188:AC188) -> 263908493.7 | N188: =N189+N190+N191 -> 12272135.37 | O188: 12061321.88 | P188: 21785472.59 | Q188: 23990868.95 | R188: 26934925.69 | S188: 29699943.04 | T188: 33018480.37 | U188: 36876939.01 | V188: 41197521.14 | W188: 45735553.36 | X188: 50899949.41 | Y188: 56235960.48 | Z188: 61724282.38 | AA188: 68125075.58 | AB188: 74745113.63 | AC188: 81873907.76
B189: AIBD [pre-own costs] | E189: =SUM(N189:AC189) -> 320030083.3 | F189: =NPV($F$187,N189:AC189) -> 130740616.1 | N189: =-N161 -> 9012933.292 | O189: =-O161 -> 9706776.397 | P189: 10488662.49 | Q189: 13031003.34 | R189: 14109643.29 | S189: 15231347.89 | T189: 16494346.59 | U189: 17882891.53 | V189: 19289322.25 | W189: 20642206.87 | X189: 22117139.31 | Y189: 23682988.34 | Z189: 28848373.22 | AA189: 30905669.5 | AB189: 33109473.89 | AC189: 35477305.12
B190: Govt - taxes from Daport | E190: =SUM(N190:AC190) -> 61632909.15 | F190: =NPV($F$187,N190:AC190) -> 23260115.79 | N190: =-N162 -> 1109860.91 | O190: =-O162 -> 1268732.051 | P190: 1545306.459 | Q190: 1551453.77 | R190: 2029578.227 | S190: 2337291.341 | T190: 2695164.489 | U190: 3166943.798 | V190: 3674144.798 | W190: 4221415.262 | X190: 4894631.718 | Y190: 5555260.357 | Z190: 5747060.811 | AA190: 6471966.538 | AB190: 7256608.391 | AC190: 8107490.234
B191: Daport / Fraport | E191: =SUM(N191:AC191) -> 295514458.2 | F191: =NPV($F$187,N191:AC191) -> 109907761.8 | N191: =N171 -> 2149341.169 | O191: =O171 -> 1085813.43 | P191: 9751503.648 | Q191: 9408411.839 | R191: 10795704.17 | S191: 12131303.81 | T191: 13828969.3 | U191: 15827103.69 | V191: 18234054.09 | W191: 20871931.22 | X191: 23888178.37 | Y191: 26997711.78 | Z191: 27128848.35 | AA191: 30747439.54 | AB191: 34379031.35 | AC191: 38289112.41
B193: Share of airport cashflow by stakeholder
B194: AIBD [pre-own costs] | E194: =E189/E$188 -> 0.4725941229 | F194: 0.4954013198 | N194: =N189/N$188 -> 0.7344225776 | O194: =O189/O$188 -> 0.8047854535 | P194: 0.4814521439 | Q194: 0.5431651254 | R194: 0.5238419239 | S194: 0.51284098 | T194: 0.4995489314 | U194: 0.4849342708 | V194: 0.4682156042 | W194: 0.4513382994 | X194: 0.434521833 | Y194: 0.4211360158 | Z194: 0.4673747853 | AA194: 0.4536607004 | AB194: 0.4429650619 | AC194: 0.4333163775
B195: Govt - taxes from Daport | E195: 0.09101441446 | F195: 0.0881370488 | N195: =N190/N$188 -> 0.09043747289 | O195: =O190/O$188 -> 0.1051901328 | P195: 0.07093288669 | Q195: 0.06466851087 | R195: 0.07535117231 | S195: 0.07869682906 | T195: 0.08162593975 | U195: 0.08587870584 | V195: 0.08918363766 | W195: 0.09230051792 | X195: 0.09616181892 | Y195: 0.09878483999 | Z195: 0.09310858854 | AA195: 0.09500123828 | AB195: 0.0970847195 | AC195: 0.0990241025
B196: Daport / Fraport | E196: 0.4363914626 | F196: 0.4164616314 | N196: =N191/N$188 -> 0.1751399495 | O196: =O191/O$188 -> 0.09002441367 | P196: 0.4476149694 | Q196: 0.3921663638 | R196: 0.4008069038 | S196: 0.408462191 | T196: 0.4188251289 | U196: 0.4291870234 | V196: 0.4426007581 | W196: 0.4563611827 | X196: 0.4693163481 | Y196: 0.4800791443 | Z196: 0.4395166262 | AA196: 0.4513380613 | AB196: 0.4599502186 | AC196: 0.46765952
A199: 3 | B199: AIBD (EUR m)
I201: =+I$151 -> -4 | J201: -3 | K201: -2 | L201: -1 | M201: 0 | N201: 1 | O201: 2 | P201: 3 | Q201: 4 | R201: 5 | S201: 6 | T201: 7 | U201: 8 | V201: 9 | W201: 10 | X201: 11 | Y201: 12 | Z201: 13 | AA201: 14 | AB201: 15 | AC201: 16
B202: December Year-end | I202: =I$152 -> 2005 | J202: 2006 | K202: 2007 | L202: 2008 | M202: 2009 | N202: 2010 | O202: 2011 | P202: 2012 | Q202: 2013 | R202: 2014 | S202: 2015 | T202: 2016 | U202: 2017 | V202: 2018 | W202: 2019 | X202: 2020 | Y202: 2021 | Z202: 2022 | AA202: 2023 | AB202: 2024 | AC202: 2025
B204: Cash revenues (concession fee) | I204: =+I189 -> 0 | J204: =+J189 -> 0 | K204: 0 | L204: 0 | M204: 0 | N204: 9012933.292 | O204: 9706776.397 | P204: 10488662.49 | Q204: 13031003.34 | R204: 14109643.29 | S204: 15231347.89 | T204: 16494346.59 | U204: 17882891.53 | V204: 19289322.25 | W204: 20642206.87 | X204: 22117139.31 | Y204: 23682988.34 | Z204: 28848373.22 | AA204: 30905669.5 | AB204: 33109473.89 | AC204: 35477305.12
B206: Operating costs | I206: =-('Budget AIBD SA'!J65)*10^6 -> 0 | J206: =-('Budget AIBD SA'!K65)*10^6 -> -412069.647 | K206: =-('Budget AIBD SA'!L65)*10^6 -> -1405579.78 | L206: =-('Budget AIBD SA'!M65)*10^6 -> -1112267.904 | M206: =-('Budget AIBD SA'!N65)*10^6 -> -1167149.544 | N206: =-('Budget AIBD SA'!O65)*10^6 -> -1699044.105 | O206: =-('Budget AIBD SA'!P65)*10^6 -> -1133458.315 | P206: =-('Budget AIBD SA'!Q65)*10^6 -> -1183766.485 | Q206: =-('Budget AIBD SA'!R65)*10^6 -> -1231117.144 | R206: =-('Budget AIBD SA'!S65)*10^6 -> -1280361.83 | S206: =-('Budget AIBD SA'!T65)*10^6 -> -1331576.303 | T206: =-('Budget AIBD SA'!U65)*10^6 -> -1384839.356 | U206: =-('Budget AIBD SA'!V65)*10^6 -> -1440232.93 | V206: =-('Budget AIBD SA'!W65)*10^6 -> -1497842.247 | W206: =-('Budget AIBD SA'!X65)*10^6 -> -1557755.937 | X206: =-('Budget AIBD SA'!Y65)*10^6 -> -1620066.174 | Y206: =-('Budget AIBD SA'!Z65)*10^6 -> -1684868.821 | Z206: =-('Budget AIBD SA'!AA65)*10^6 -> -1752263.574 | AA206: =-('Budget AIBD SA'!AB65)*10^6 -> -1822354.117 | AB206: =-('Budget AIBD SA'!AC65)*10^6 -> -1895248.282 | AC206: =-('Budget AIBD SA'!AD65)*10^6 -> -1971058.213
B208: Reserves for repairs and equipment renewals (FCFA 2bn per PIM) | I208: =-'Budget AIBD SA'!J81*10^6 -> 0 | J208: =-'Budget AIBD SA'!K81*10^6 -> 0 | K208: =-'Budget AIBD SA'!L81*10^6 -> 0 | L208: =-'Budget AIBD SA'!M81*10^6 -> 0 | M208: =-'Budget AIBD SA'!N81*10^6 -> 0 | N208: =-'Budget AIBD SA'!O81*10^6 -> -3048980 | O208: =-'Budget AIBD SA'!P81*10^6 -> -3170939.2 | P208: =-'Budget AIBD SA'!Q81*10^6 -> -3297776.768 | Q208: =-'Budget AIBD SA'!R81*10^6 -> -3429687.839 | R208: =-'Budget AIBD SA'!S81*10^6 -> -3566875.352 | S208: =-'Budget AIBD SA'!T81*10^6 -> -3709550.366 | T208: =-'Budget AIBD SA'!U81*10^6 -> -3857932.381 | U208: =-'Budget AIBD SA'!V81*10^6 -> -4012249.676 | V208: =-'Budget AIBD SA'!W81*10^6 -> -4172739.663 | W208: =-'Budget AIBD SA'!X81*10^6 -> -4339649.25 | X208: =-'Budget AIBD SA'!Y81*10^6 -> -4513235.22 | Y208: =-'Budget AIBD SA'!Z81*10^6 -> -4693764.629 | Z208: =-'Budget AIBD SA'!AA81*10^6 -> -4881515.214 | AA208: =-'Budget AIBD SA'!AB81*10^6 -> -5076775.822 | AB208: =-'Budget AIBD SA'!AC81*10^6 -> -5279846.855 | AC208: =-'Budget AIBD SA'!AD81*10^6 -> -5491040.729
B209: Amount to be reviewed
B211: Project development costs (consultants etc.) | I211: =-'Budget AIBD SA'!K71*10^6 -> -3338633.1 | J211: =-'Budget AIBD SA'!L71*10^6 -> -24553435.94 | K211: =-'Budget AIBD SA'!M71*10^6 -> -2381253.38 | L211: =-'Budget AIBD SA'!N71*10^6 -> -2381253.38 | M211: =-'Budget AIBD SA'!O71*10^6 -> -38112.25 | N211: =-'Budget AIBD SA'!P71*10^6 -> -38112.25 | O211: =-'Budget AIBD SA'!Q71*10^6 -> -38112.25 | P211: =-'Budget AIBD SA'!R71*10^6 -> 0 | Q211: =-'Budget AIBD SA'!S71*10^6 -> 0 | R211: =-'Budget AIBD SA'!T71*10^6 -> 0 | S211: =-'Budget AIBD SA'!U71*10^6 -> 0 | T211: =-'Budget AIBD SA'!V71*10^6 -> 0 | U211: =-'Budget AIBD SA'!W71*10^6 -> 0 | V211: =-'Budget AIBD SA'!X71*10^6 -> 0 | W211: =-'Budget AIBD SA'!Y71*10^6 -> 0 | X211: =-'Budget AIBD SA'!Z71*10^6 -> 0 | Y211: =-'Budget AIBD SA'!AA71*10^6 -> 0 | Z211: =-'Budget AIBD SA'!AB71*10^6 -> 0 | AA211: =-'Budget AIBD SA'!AC71*10^6 -> 0 | AB211: =-'Budget AIBD SA'!AD71*10^6 -> 0 | AC211: =-'Budget AIBD SA'!AE71*10^6 -> 0
B212: Capex | I212: =-'Budget AIBD SA'!K68*10^6 -> -235076.358 | J212: =-'Budget AIBD SA'!L68*10^6 -> -2499607.161 | K212: =-'Budget AIBD SA'!M68*10^6 -> -254711.7892 | L212: =-'Budget AIBD SA'!N68*10^6 -> -257455.8712 | M212: =-'Budget AIBD SA'!O68*10^6 -> -174096.758 | N212: =-'Budget AIBD SA'!P68*10^6 -> -240259.624 | O212: =-'Budget AIBD SA'!Q68*10^6 -> -244375.747 | P212: =-'Budget AIBD SA'!R68*10^6 -> 0 | Q212: =-'Budget AIBD SA'!S68*10^6 -> 0 | R212: =-'Budget AIBD SA'!T68*10^6 -> 0 | S212: =-'Budget AIBD SA'!U68*10^6 -> 0 | T212: =-'Budget AIBD SA'!V68*10^6 -> 0 | U212: =-'Budget AIBD SA'!W68*10^6 -> 0 | V212: =-'Budget AIBD SA'!X68*10^6 -> 0 | W212: =-'Budget AIBD SA'!Y68*10^6 -> 0 | X212: =-'Budget AIBD SA'!Z68*10^6 -> 0 | Y212: =-'Budget AIBD SA'!AA68*10^6 -> 0 | Z212: =-'Budget AIBD SA'!AB68*10^6 -> 0 | AA212: =-'Budget AIBD SA'!AC68*10^6 -> 0 | AB212: =-'Budget AIBD SA'!AD68*10^6 -> 0 | AC212: =-'Budget AIBD SA'!AE68*10^6 -> 0
B214: Cashflow pre-insurance / other costs / payment to transport authorities | I214: =SUM(I204:I212) -> -3573709.458 | J214: =SUM(J204:J212) -> -27465112.75 | K214: -4041544.949 | L214: -3750977.155 | M214: -1379358.552 | N214: 3986537.313 | O214: 5119890.885 | P214: 6007119.234 | Q214: 8370198.357 | R214: 9262406.112 | S214: 10190221.22 | T214: 11251574.85 | U214: 12430408.92 | V214: 13618740.34 | W214: 14744801.69 | X214: 15983837.92 | Y214: 17304354.89 | Z214: 22214594.44 | AA214: 24006539.56 | AB214: 25934378.75 | AC214: 28015206.18
B216: Insurance - TBD
B217: Security and other costs - TBD
B219: Payment to Senegalese Transport Authorities (FCFA 4bn per PIM) | I219: =-'Budget AIBD SA'!J78*10^6 -> 0 | J219: =-'Budget AIBD SA'!K78*10^6 -> 0 | K219: =-'Budget AIBD SA'!L78*10^6 -> 0 | L219: =-'Budget AIBD SA'!M78*10^6 -> 0 | M219: =-'Budget AIBD SA'!N78*10^6 -> 0 | N219: =-'Budget AIBD SA'!O78*10^6 -> -6097960 | O219: =-'Budget AIBD SA'!P78*10^6 -> -6341878.4 | P219: =-'Budget AIBD SA'!Q78*10^6 -> -6595553.536 | Q219: =-'Budget AIBD SA'!R78*10^6 -> -6859375.677 | R219: =-'Budget AIBD SA'!S78*10^6 -> -7133750.705 | S219: =-'Budget AIBD SA'!T78*10^6 -> -7419100.733 | T219: =-'Budget AIBD SA'!U78*10^6 -> -7715864.762 | U219: =-'Budget AIBD SA'!V78*10^6 -> -8024499.353 | V219: =-'Budget AIBD SA'!W78*10^6 -> -8345479.327 | W219: =-'Budget AIBD SA'!X78*10^6 -> -8679298.5 | X219: =-'Budget AIBD SA'!Y78*10^6 -> -9026470.44 | Y219: =-'Budget AIBD SA'!Z78*10^6 -> -9387529.257 | Z219: =-'Budget AIBD SA'!AA78*10^6 -> -9763030.428 | AA219: =-'Budget AIBD SA'!AB78*10^6 -> -10153551.64 | AB219: =-'Budget AIBD SA'!AC78*10^6 -> -10559693.71 | AC219: =-'Budget AIBD SA'!AD78*10^6 -> -10982081.46
B220: Payment to Senegalese Transport Authorities to be paid out only if sufficient cashflows are available
B222: Note: For simplicity, taxes are not considered above at this stage (15% CIT)
A224: 4 | B224: Summary of RDIA and loan repayment (EUR m)
I226: =+I$151 -> -4 | J226: -3 | K226: -2 | L226: -1 | M226: 0 | N226: 1 | O226: 2 | P226: 3 | Q226: 4 | R226: 5 | S226: 6 | T226: 7 | U226: 8 | V226: 9 | W226: 10 | X226: 11 | Y226: 12 | Z226: 13 | AA226: 14 | AB226: 15 | AC226: 16
B227: December Year-end | I227: =I$152 -> 2005 | J227: 2006 | K227: 2007 | L227: 2008 | M227: 2009 | N227: 2010 | O227: 2011 | P227: 2012 | Q227: 2013 | R227: 2014 | S227: 2015 | T227: 2016 | U227: 2017 | V227: 2018 | W227: 2019 | X227: 2020 | Y227: 2021 | Z227: 2022 | AA227: 2023 | AB227: 2024 | AC227: 2025
B229: 1. Summary of Long Term Debt Facility
C231: Opening debt balance | O231: ='LT with Cash Sweep '!CU234 ->  | P231: ='LT with Cash Sweep '!CV234 ->  | Q231: ='LT with Cash Sweep '!CW234 ->  | R231: ='LT with Cash Sweep '!CX234 ->  | S231: ='LT with Cash Sweep '!CY234 ->  | T231: ='LT with Cash Sweep '!CZ234 ->  | U231: ='LT with Cash Sweep '!DA234 ->  | V231: ='LT with Cash Sweep '!DB234 ->  | W231: ='LT with Cash Sweep '!DC234 ->  | X231: ='LT with Cash Sweep '!DD234 ->  | Y231: ='LT with Cash Sweep '!DE234 ->  | Z231: ='LT with Cash Sweep '!DF234 ->  | AA231: ='LT with Cash Sweep '!DG234 ->  | AB231: ='LT with Cash Sweep '!DH234 ->  | AC231: ='LT with Cash Sweep '!DI234 ->  | AH231: ='LT with Cash Sweep '!DN234 -> 0 | AI231: ='LT with Cash Sweep '!DO234 -> 0 | AJ231: ='LT with Cash Sweep '!DP234 -> 47581880.1
C232: Drawdown / scheduled repayment | N232: =N234 ->  | O232: =+O234-O233-O231 ->  | AB232: =+AB234-AB233-AB231 ->  | AC232: =+AC234-AC233-AC231 -> 
C233: Cash sweep | O233: =-'LT with Cash Sweep '!DR234 ->  | P233: =-'LT with Cash Sweep '!DS234 ->  | Q233: =-'LT with Cash Sweep '!DT234 ->  | R233: =-'LT with Cash Sweep '!DU234 ->  | S233: =-'LT with Cash Sweep '!DV234 ->  | T233: =-'LT with Cash Sweep '!DW234 ->  | U233: =-'LT with Cash Sweep '!DX234 ->  | V233: =-'LT with Cash Sweep '!DY234 ->  | W233: =-'LT with Cash Sweep '!DZ234 ->  | X233: =-'LT with Cash Sweep '!EA234 ->  | Y233: =-'LT with Cash Sweep '!EB234 ->  | Z233: =-'LT with Cash Sweep '!EC234 ->  | AA233: =-'LT with Cash Sweep '!ED234 ->  | AB233: =-'LT with Cash Sweep '!EE234 ->  | AC233: =-'LT with Cash Sweep '!EF234 -> 
C234: Closing debt balance | N234: =O231 ->  | AC234: 0 | AH234: 0 | AI234: 47581880.1
B236: Scheduled repayment | I236: ='LT with Cash Sweep '!EJ234 -> 0 | J236: ='LT with Cash Sweep '!EK234 -> 0 | K236: ='LT with Cash Sweep '!EL234 -> 0 | L236: ='LT with Cash Sweep '!EM234 -> 0 | M236: ='LT with Cash Sweep '!EN234 ->  | N236: ='LT with Cash Sweep '!EO234 ->  | O236: ='LT with Cash Sweep '!EP234 ->  | P236: ='LT with Cash Sweep '!EQ234 ->  | Q236: ='LT with Cash Sweep '!ER234 ->  | R236: ='LT with Cash Sweep '!ES234 ->  | S236: ='LT with Cash Sweep '!ET234 ->  | T236: ='LT with Cash Sweep '!EU234 ->  | U236: ='LT with Cash Sweep '!EV234 ->  | V236: ='LT with Cash Sweep '!EW234 ->  | W236: ='LT with Cash Sweep '!EX234 ->  | X236: ='LT with Cash Sweep '!EY234 ->  | Y236: ='LT with Cash Sweep '!EZ234 ->  | Z236: ='LT with Cash Sweep '!FA234 ->  | AA236: ='LT with Cash Sweep '!FB234 ->  | AB236: ='LT with Cash Sweep '!FC234 ->  | AC236: ='LT with Cash Sweep '!FD234 -> 
B237: CHECK | F237: =MAX(MAX(N237:AC237),-MIN(N237:AC237)) ->  | I237: =I232-I236 -> 0 | J237: =J232-J236 -> 0 | K237: =K232-K236 -> 0 | L237: =L232-L236 -> 0 | M237: =M232-M236 ->  | O237: =O232+O236 ->  | P237: =P232+P236 -> 
C238: Interest paid and commitment fees | I238: ='LT with Cash Sweep '!FG234 -> 0 | J238: ='LT with Cash Sweep '!FH234 -> 0 | K238: ='LT with Cash Sweep '!FI234 -> 0 | L238: ='LT with Cash Sweep '!FJ234 -> 0 | M238: ='LT with Cash Sweep '!FK234 -> 3116293.81 | N238: ='LT with Cash Sweep '!FL234 ->  | O238: ='LT with Cash Sweep '!FM234 ->  | P238: ='LT with Cash Sweep '!FN234 ->  | Q238: ='LT with Cash Sweep '!FO234 ->  | R238: ='LT with Cash Sweep '!FP234 ->  | S238: ='LT with Cash Sweep '!FQ234 ->  | T238: ='LT with Cash Sweep '!FR234 ->  | U238: ='LT with Cash Sweep '!FS234 ->  | V238: ='LT with Cash Sweep '!FT234 ->  | W238: ='LT with Cash Sweep '!FU234 ->  | X238: ='LT with Cash Sweep '!FV234 ->  | Y238: ='LT with Cash Sweep '!FW234 ->  | Z238: ='LT with Cash Sweep '!FX234 ->  | AA238: ='LT with Cash Sweep '!FY234 ->  | AB238: ='LT with Cash Sweep '!FZ234 ->  | AC238: ='LT with Cash Sweep '!GA234 -> 
C240: Total Debt Service for DSCR computations [excl. cash sweep] (A) | I240: =+IF(I232>0,0,-I232)+I238 -> 0 | J240: 0 | K240: 0 | L240: 0 | M240: 3116293.81 | O240: =+IF(O232>0,0,-O232)+O238 -> 
B242: 2. RDIA summary
C244: RDIA collected during the year | I244: ='LT with Cash Sweep '!AU234 -> 0 | J244: ='LT with Cash Sweep '!AV234 -> 0 | K244: ='LT with Cash Sweep '!AW234 -> 0 | L244: ='LT with Cash Sweep '!AX234 -> 3548514.27 | M244: ='LT with Cash Sweep '!AY234 -> 35069286.79 | N244: ='LT with Cash Sweep '!AZ234 -> 33568498.45 | O244: ='LT with Cash Sweep '!BA234 -> 41416795.96 | P244: ='LT with Cash Sweep '!BB234 -> 47544876.79 | Q244: ='LT with Cash Sweep '!BC234 -> 52240484.08 | R244: ='LT with Cash Sweep '!BD234 -> 56930770.55 | S244: ='LT with Cash Sweep '!BE234 -> 61093394.62 | T244: ='LT with Cash Sweep '!BF234 -> 65088513.49 | U244: ='LT with Cash Sweep '!BG234 -> 69308422.52 | V244: ='LT with Cash Sweep '!BH234 -> 73837899.19 | W244: ='LT with Cash Sweep '!BI234 -> 77989583.88 | X244: ='LT with Cash Sweep '!BJ234 -> 82196870.2 | Y244: ='LT with Cash Sweep '!BK234 -> 86657101.25 | Z244: ='LT with Cash Sweep '!BL234 -> 91386243.36 | AA244: ='LT with Cash Sweep '!BM234 -> 96401297.17 | AB244: ='LT with Cash Sweep '!BN234 -> 101720365.5 | AC244: ='LT with Cash Sweep '!BO234 -> 107362725.5
C245: Interest on escrow account balances | I245: ='LT with Cash Sweep '!BR234 -> 0 | J245: ='LT with Cash Sweep '!BS234 -> 0 | K245: ='LT with Cash Sweep '!BT234 -> 0 | L245: ='LT with Cash Sweep '!BU234 -> 237122.96 | M245: ='LT with Cash Sweep '!BV234 -> 203368.71 | N245: ='LT with Cash Sweep '!BW234 ->  | O245: ='LT with Cash Sweep '!BX234 ->  | P245: ='LT with Cash Sweep '!BY234 ->  | Q245: ='LT with Cash Sweep '!BZ234 ->  | R245: ='LT with Cash Sweep '!CA234 ->  | S245: ='LT with Cash Sweep '!CB234 ->  | T245: ='LT with Cash Sweep '!CC234 ->  | U245: ='LT with Cash Sweep '!CD234 ->  | V245: ='LT with Cash Sweep '!CE234 ->  | W245: ='LT with Cash Sweep '!CF234 ->  | X245: ='LT with Cash Sweep '!CG234 ->  | Y245: ='LT with Cash Sweep '!CH234 ->  | Z245: ='LT with Cash Sweep '!CI234 ->  | AA245: ='LT with Cash Sweep '!CJ234 ->  | AB245: ='LT with Cash Sweep '!CK234 ->  | AC245: ='LT with Cash Sweep '!CL234 -> 
C246: Total CF for DSCR / LLCR computations (B) | I246: =I244+I245 -> 0 | J246: =J244+J245 -> 0 | K246: 0 | L246: 3785637.23 | M246: 35272655.5
C248: RDIA escrow account - Opening (December) | O248: =N251 ->  | P248: =O251 -> 
C249: New RDIA and interest on cash | O249: =+O246 ->  | P249: =+P246 -> 
C250: Payments to debt holder (incl. cash sweep) | O250: =-O240+O233 ->  | P250: =-P240+P233 -> 
C251: RDIA escrow account - Closing (December) | N251: ='LT with Cash Sweep '!HF234 ->  | O251: =SUM(O248:O250) ->  | P251: =SUM(P248:P250) -> 
C253: Notes:
C254: 1. Cash is swept in October and April of each year
C255: 2. IATA fees deducted from RDIA figures shown above
C257: RDIA escrow account - closing per BNP sheet | N257: ='LT with Cash Sweep '!HF234 ->  | O257: ='LT with Cash Sweep '!HG234 ->  | P257: ='LT with Cash Sweep '!HH234 ->  | Q257: ='LT with Cash Sweep '!HI234 ->  | R257: ='LT with Cash Sweep '!HJ234 ->  | S257: ='LT with Cash Sweep '!HK234 ->  | T257: ='LT with Cash Sweep '!HL234 ->  | U257: ='LT with Cash Sweep '!HM234 ->  | V257: ='LT with Cash Sweep '!HN234 ->  | W257: ='LT with Cash Sweep '!HO234 ->  | X257: ='LT with Cash Sweep '!HP234 ->  | Y257: ='LT with Cash Sweep '!HQ234 ->  | Z257: ='LT with Cash Sweep '!HR234 ->  | AA257: ='LT with Cash Sweep '!HS234 ->  | AB257: ='LT with Cash Sweep '!HT234 ->  | AC257: ='LT with Cash Sweep '!HU234 -> 0
F258: =MAX(MAX(N258:AC258),-MIN(N258:AC258)) ->  | N258: =+N257-N251 ->  | O258: =+O257-O251 -> 
B259: 3. DSCR computations
C261: Indicative annual DSCR (= A / B) | I261: =IF(I240=0,"n/a",IF(I227>$F$281,I246/I240,"n/a")) -> n/a | J261: n/a | K261: n/a | L261: n/a | M261: n/a
C263: 6month DSCR calculation per Term sheet (minimum of H1 and H2) | I263: =IF(OR(I227<$F$281,I231=0),"n/a",'LT with Cash Sweep '!GD234) -> n/a | J263: =IF(OR(J227<$F$281,J231=0),"n/a",'LT with Cash Sweep '!GE234) -> n/a | K263: =IF(OR(K227<$F$281,K231=0),"n/a",'LT with Cash Sweep '!GF234) -> n/a | L263: =IF(OR(L227<$F$281,L231=0),"n/a",'LT with Cash Sweep '!GG234) -> n/a | M263: =IF(OR(M227<$F$281,M231=0),"n/a",'LT with Cash Sweep '!GH234) -> n/a | N263: =IF(OR(N227<$F$281,N231=0),"n/a",'LT with Cash Sweep '!GI234) -> n/a | O263: =IF(OR(O227<$F$281,O231=0),"n/a",'LT with Cash Sweep '!GJ234) ->  | P263: =IF(OR(P227<$F$281,P231=0),"n/a",'LT with Cash Sweep '!GK234) ->  | Q263: =IF(OR(Q227<$F$281,Q231=0),"n/a",'LT with Cash Sweep '!GL234) ->  | R263: =IF(OR(R227<$F$281,R231=0),"n/a",'LT with Cash Sweep '!GM234) ->  | S263: =IF(OR(S227<$F$281,S231=0),"n/a",'LT with Cash Sweep '!GN234) ->  | T263: =IF(OR(T227<$F$281,T231=0),"n/a",'LT with Cash Sweep '!GO234) ->  | U263: =IF(OR(U227<$F$281,U231=0),"n/a",'LT with Cash Sweep '!GP234) ->  | V263: =IF(OR(V227<$F$281,V231=0),"n/a",'LT with Cash Sweep '!GQ234) ->  | W263: =IF(OR(W227<$F$281,W231=0),"n/a",'LT with Cash Sweep '!GR234) ->  | X263: =IF(OR(X227<$F$281,X231=0),"n/a",'LT with Cash Sweep '!GS234) ->  | Y263: =IF(OR(Y227<$F$281,Y231=0),"n/a",'LT with Cash Sweep '!GT234) ->  | Z263: =IF(OR(Z227<$F$281,Z231=0),"n/a",'LT with Cash Sweep '!GU234) ->  | AA263: =IF(OR(AA227<$F$281,AA231=0),"n/a",'LT with Cash Sweep '!GV234) ->  | AB263: =IF(OR(AB227<$F$281,AB231=0),"n/a",'LT with Cash Sweep '!GW234) ->  | AC263: =IF(OR(AC227<$F$281,AC231=0),"n/a",'LT with Cash Sweep '!GX234) -> 
C264: Note: DSCR are computed in October and April of each year
B266: 4. LLCR computations
C268: CF only if debt is outstanding
C271: Total annual CF for debt service in years when debt is outstanding | N271: =+N246 ->  | O271: =IF(O$231>0,O246,0) -> 
... 8 more rows

Sheet Capex assumptions
C3: Capital expenditure build-up | D3: €m
C5: Base EPC contract | D5: ='Financing Plan updated 19_10_09'!C4 -> 349479665
C6: Contingencies for EPC contract (SBG - 7.5%) | D6: ='Financing Plan updated 19_10_09'!C26 -> 26210974.88
C7: Studies / preliminary works / financial costs | D7: ='Long Term Financing'!B30 -> 40961700
C8: Initial cost | D8: =SUM(D5:D7) -> 416652339.9 | E8: Case 1
C10: Claims / changes under EPC (provided by AIBD) | D10: ='Financing Plan updated 19_10_09'!C32 -> 37625000 | E10: (€61.1m according to SBG)
C11: Cost of cavities (50% paid by AIBD - under negotiation) | D11: 13000000
C12: SBG estimated increase in EPC cost due to delays | D12: 31000000
C13: Initials cost + claims (AIBD view) | D13: =SUM(D10:D12)+D8 -> 498277339.9 | E13: Case 2
C15: Potential out of scope items - perimeter to be confirmed | D15: ='Financing Plan updated 19_10_09'!C56 -> 66077502.03
C16: Total revised capex (AIBD view) | D16: =D13+D15 -> 564354841.9 | E16: Case 3
C18: Claims / changes under EPC (SBG view) | D18: ='Financing Plan updated 19_10_09'!B32 -> 61098087.25
C19: Cost of cavities (100% paid by AIBD - under negotiation) | D19: 26000000
C20: Total revised capex - Worst case | D20: =D16+D18-D10-D11+D19 -> 600827929.2 | E20: Case 4

Sheet Workings ->

Sheet Long Term Financing
A1: Uses and Sources of the Long-Term Financing
A3: USES | D3: SOURCES
A4: Items | B4: Cost | C4: % of Total | D4: Sources of financing | E4: Tentative Financial Close as of:
A5: Items tentatively financed by Lenders | D5: RDIA | F5: End of December 2009 | G5: End of January 2010
A6: 1 - EPC CONTRACT (SBG) | B6: =B24 -> 349479665 | C6: =B6/$B$59 -> 0.6716179746 | E6: "Spent Equity" (i.e. RDIA proceeds already used to partially reqpy the Bridge Loans): | F6: =74324619+6999766 -> 81324385 | G6: =74324619+6999766+16790940 -> 98115325
A7: ='[9]Financing Plan updated 19_10_09'!A6 -> Mobilization / Temp Facilities | B7: ='[9]Financing Plan updated 19_10_09'!B6 -> 9894345
A8: ='[9]Financing Plan updated 19_10_09'!A7 -> Design | B8: ='[9]Financing Plan updated 19_10_09'!B7 -> 11971816
A9: ='[9]Financing Plan updated 19_10_09'!A8 -> Infrastructure | B9: ='[9]Financing Plan updated 19_10_09'!B8 -> 142280447
A10: ='[9]Financing Plan updated 19_10_09'!A9 -> Terminal Building | B10: ='[9]Financing Plan updated 19_10_09'!B9 -> 90114475
A11: ='[9]Financing Plan updated 19_10_09'!A10 -> Presidential Pavilion | B11: ='[9]Financing Plan updated 19_10_09'!B10 -> 3570574
A12: ='[9]Financing Plan updated 19_10_09'!A11 -> Cargo Terminal | B12: ='[9]Financing Plan updated 19_10_09'!B11 -> 8604522
A13: ='[9]Financing Plan updated 19_10_09'!A12 -> Hajj Terminal | B13: ='[9]Financing Plan updated 19_10_09'!B12 -> 2555282
A14: ='[9]Financing Plan updated 19_10_09'!A13 -> Technical Block / Control Tower | B14: ='[9]Financing Plan updated 19_10_09'!B13 -> 21531097
A15: ='[9]Financing Plan updated 19_10_09'!A14 -> SSLI Station | B15: ='[9]Financing Plan updated 19_10_09'!B14 -> 980553
A16: ='[9]Financing Plan updated 19_10_09'!A15 -> SepticTank/Transformer / Oxidation Pond | B16: ='[9]Financing Plan updated 19_10_09'!B15 -> 8655785
A17: ='[9]Financing Plan updated 19_10_09'!A16 -> (16)Center Utility Complex | B17: ='[9]Financing Plan updated 19_10_09'!B16 -> 0
A18: ='[9]Financing Plan updated 19_10_09'!A17 -> Others | B18: ='[9]Financing Plan updated 19_10_09'!B17 -> 0
A19: ='[9]Financing Plan updated 19_10_09'!A18 -> (4)Warehouse & maintenance | B19: ='[9]Financing Plan updated 19_10_09'!B18 -> 0
A20: ='[9]Financing Plan updated 19_10_09'!A19 -> Navigational Aids | B20: ='[9]Financing Plan updated 19_10_09'!B19 -> 7794500
A21: ='[9]Financing Plan updated 19_10_09'!A20 -> Airport Specialties | B21: ='[9]Financing Plan updated 19_10_09'!B20 -> 23288485
A22: ='[9]Financing Plan updated 19_10_09'!A21 -> Electrical and Lighting | B22: ='[9]Financing Plan updated 19_10_09'!B21 -> 17754051
A23: ='[9]Financing Plan updated 19_10_09'!A22 -> Eqpt Security Fire Prevention | B23: ='[9]Financing Plan updated 19_10_09'!B22 -> 483733
A24: TOTAL EUROS | B24: ='[9]Financing Plan updated 19_10_09'!B23 -> 349479665
A26: 2 - CONTINGENCIES EPC CONTRACT (SBG) (7,5%) | B26: =B28 -> 26210974.88 | C26: =B26/$B$59 -> 0.0503713481
A27: ='[9]Financing Plan updated 19_10_09'!A28 -> Contengencies EPC contract (7,5%) | B27: ='[9]Financing Plan updated 19_10_09'!B28 -> 26210974.88
A28: ='[9]Financing Plan updated 19_10_09'!A29 -> TOTAL EUROS | B28: ='[9]Financing Plan updated 19_10_09'!B29 -> 26210974.88
A30: 3 - STUDIES/PRELIMINARY WORKS/FINANCIAL COST/AIBD | B30: ='[9]Financing Plan updated 19_10_09'!C95 -> 40961700 | C30: =B30/$B$59 -> 0.07871878322 | F30: =F6/B59 -> 0.1562864001 | G30: =G6/B59 -> 0.1885546498
A32: TOTAL (1+2+3) | B32: =B6+B26+B30 -> 416652339.9 | C32: =B32/$B$59 -> 0.8007081059 | E32: Long-Term Financing (including amount on the cash collateral account) | F32: =B59-F6 -> 439030456.9 | G32: =B59-G6 -> 422239516.9
F33: =F32/B59 -> 0.8437135999 | G33: =G32/B59 -> 0.8114453502
A34: 4 - EPC CONTRACTOR CLAIMS (AIBD's view) | B34: =B35 -> 37625000 | C34: =C35 -> 0.07230642817
A35: AIBD's view related to SBG claims (including 7,5% contingencies) (new item) | B35: ='[9]Financing Plan updated 19_10_09'!C32 -> 37625000 | C35: =B35/$B$59 -> 0.07230642817 | E35: Of wich Cash collateral account balance: (based on SDG trafic studies) | F35: =35200000 -> 35200000 | G35: =24000000 -> 24000000
A37: 5 - SELECTED ITEMS OUT OF SCOPE OF THE EPC CONTRACT | B37: =B38+B41 -> 66077502.03 | C37: =B37/B59 -> 0.1269854659
A38: Items from FRAPORT previously existing and now tentatively integrated into financing (including 7,5% contingencies) | B38: =B39+B40 -> 23762990.56 | C38: =B38/B59 -> 0.04566689622
A39: Hangar de Maintenance Avion | B39: =(('[9]Financing Plan updated 19_10_09'!C69*1000000000)/655.957)*(1+7.5%) -> 15732738.58 | C39: =B39/$B$59 -> 0.03023463474
A40: Aviation Générale | B40: =(('[9]Financing Plan updated 19_10_09'!C73*1000000000)/655.957)*(1+7.5%) -> 8030251.983 | C40: =B40/$B$59 -> 0.01543226148
A41: Items from STATE previously existing and now tentatively integrated into financing (including 7,5% contingencies) | B41: =B56*(1+7.5%) -> 42314511.47 | C41: =B41/$B$59 -> 0.08131856968 | F41: =F35/B59 -> 0.06764614675 | G41: =G35/B59 -> 0.04612237279
A42: ='[9]Financing Plan updated 19_10_09'!A58 -> Réalisation du reseau d'amenée de l'eau | B42: =(('[9]Financing Plan updated 19_10_09'!C58*1000000000)/655.957) -> 1524490.172
A43: ='[9]Financing Plan updated 19_10_09'!A59 -> Réalisation du reseau d'amenée de l'éléctricité | B43: =('[9]Financing Plan updated 19_10_09'!C59*1000000000)/655.957 -> 762245.0862
A44: ='[9]Financing Plan updated 19_10_09'!A60 -> Réalisation du reseau d'amenée des télécommunications | B44: =('[9]Financing Plan updated 19_10_09'!C60*1000000000)/655.957 -> 457347.0517
A45: ='[9]Financing Plan updated 19_10_09'!A61 -> Amenagement (VRD) et Réalisation des Equipements Sociaux sur le site de recasement (dispensaires, écoles, etc.) | B45: =('[9]Financing Plan updated 19_10_09'!C61*1000000000)/655.957 -> 3811225.431
A46: ='[9]Financing Plan updated 19_10_09'!A62 -> Etudes et constuction des accès à l'aérogare Fret | B46: =('[9]Financing Plan updated 19_10_09'!C62*1000000000)/655.957 -> 4878368.552
A47: ='[9]Financing Plan updated 19_10_09'!A63 -> Réalisation d'infrastuctures pour la Gendarmerie | B47: =('[9]Financing Plan updated 19_10_09'!C63*1000000000)/655.957 -> 4893613.453
A48: ='[9]Financing Plan updated 19_10_09'!A64 -> Etudes, constuction et équipement batiments administratifs pour l'ANACS la representation de l'ASECNA, Meteo et haute autorité | B48: =('[9]Financing Plan updated 19_10_09'!C64*1000000000)/655.957 -> 5335715.603
A49: ='[9]Financing Plan updated 19_10_09'!A65 -> Réalisation complete (y compris VRD) de la cité des logements d'astreinte (personnel présent sur la plateforme aéroportuaire en permanance) | B49: =('[9]Financing Plan updated 19_10_09'!C65*1000000000)/655.957 -> 10518982.19
A50: ='[9]Financing Plan updated 19_10_09'!A66 -> Transfert de tous les services de la Direction Générale de l'ASECNA (Direction technique, station hertziene) | B50: =('[9]Financing Plan updated 19_10_09'!C66*1000000000)/655.957 -> 4360041.893
A51: ='[9]Financing Plan updated 19_10_09'!A67 -> Bâtiment VVIP | B51: =('[9]Financing Plan updated 19_10_09'!C67*1000000000)/655.957 -> 1097632.924
A52: ='[9]Financing Plan updated 19_10_09'!A68 -> Hangar Avion Présidentiel (Code C) (included in SBG claims and AIBD's view on SBG claims) | B52: =('[9]Financing Plan updated 19_10_09'!C68*1000000000)/655.957 -> 0
A53: ='[9]Financing Plan updated 19_10_09'!A70 -> Bâtiment Handling (assitance au sol) | B53: =('[9]Financing Plan updated 19_10_09'!C70*1000000000)/655.957 -> 1173857.433
A54: ='[9]Financing Plan updated 19_10_09'!A71 -> Centre Médical (800 m² + équipements) | B54: =('[9]Financing Plan updated 19_10_09'!C71*1000000000)/655.957 -> 365877.6414
A55: ='[9]Financing Plan updated 19_10_09'!A72 -> Bâtiment Poste (400 m² + équipements) | B55: =('[9]Financing Plan updated 19_10_09'!C72*1000000000)/655.957 -> 182938.8207
A56: TOTAL EUROS (without 7,5% contingencies) | B56: =SUM(B42:B55) -> 39362336.25
A59: TOTAL (1+2+3+4+5) | B59: =B32+B35+B39+B40+B41 -> 520354841.9 | C59: =C32+C35+C39+C40+C41 -> 1 | E59: TOTAL | F59: =F6+F32 -> 520354841.9 | G59: =G6+G32 -> 520354841.9

Sheet Financing Plan updated 19_10_09
A1: PLAN DE FINANCEMENT GLOBAL - PROJET AIBD
B2: Coûts du Projet | E2: =D5 -> Sources de Financement | F2: =E5 -> Date prévue de décaissement
D3: Difference
A4: I - EPC Contract (SBG) | B4: =B23 -> 349479665 | C4: =C23 -> 349479665 | D4: =B4-C4 -> 0 | E4: =D6 -> Prêteurs et RDIA | F4: =E6 -> 2010-03-01
A5: Description | B5: Montant en Euro | C5: Montant en Euro | D5: Sources de Financement | E5: Date prévue de décaissement | F5: Référence
A6: Mobilization / Temp Facilities | B6: 9894345 | C6: 9894345 | D6: Prêteurs et RDIA | E6: 2010-03-01 | F6: EPC contract
A7: Design | B7: 11971816 | C7: 11971816
A8: Infrastructure | B8: 142280447 | C8: 142280447
A9: Terminal Building | B9: 90114475 | C9: 90114475
A10: Presidential Pavilion | B10: 3570574 | C10: 3570574
A11: Cargo Terminal | B11: 8604522 | C11: 8604522
A12: Hajj Terminal | B12: 2555282 | C12: 2555282
A13: Technical Block / Control Tower | B13: 21531097 | C13: 21531097
A14: SSLI Station | B14: 980553 | C14: 980553
A15: SepticTank/Transformer / Oxidation Pond | B15: 8655785 | C15: 8655785
A16: (16)Center Utility Complex
A17: Others
A18: (4)Warehouse & maintenance
A19: Navigational Aids | B19: 7794500 | C19: 7794500
A20: Airport Specialties | B20: 23288485 | C20: 23288485
A21: Electrical and Lighting | B21: 17754051 | C21: 17754051
A22: Eqpt Security Fire Prevention | B22: 483733 | C22: 483733
A23: TOTAL EN EUROS | B23: =SUM(B6:B22) -> 349479665 | C23: =SUM(C6:C22) -> 349479665
A24: Soit en milliards de F CFA | B24: =+B23*0.656/1000000 -> 229.2586602 | C24: =+C23*0.656/1000000 -> 229.2586602
A26: II - Contengencies EPC contract (SBG) | B26: =B29 -> 26210974.88 | C26: =C29 -> 26210974.88 | D26: =B26-C26 -> 0 | E26: =D28 -> Prêteurs et RDIA | F26: =E28 -> 2010-03-01
A27: Description | B27: Montant en Euro | C27: Montant en Euro | D27: Sources de Financement | E27: Date prévue de réalisation | F27: Référence
A28: Contengencies EPC contract (7,5%) | B28: =7.5%*B23 -> 26210974.88 | C28: =7.5%*C23 -> 26210974.88 | D28: Prêteurs et RDIA | E28: 2010-03-01 | F28: Estimated contengencies
A29: TOTAL EUROS | B29: =SUM(B28) -> 26210974.88 | C29: =SUM(C28) -> 26210974.88
B31: With SBG's claims | C31: AIBD's position on SBG's claims
A32: III - Surcoût EPC Contract (SBG) + Contengencies | B32: =B54 -> 61098087.25 | C32: =C54 -> 37625000 | D32: =B32-C32 -> 23473087.25 | E32: =D34 -> Prêteurs et RDIA | F32: =E34 -> 2010-03-01
A33: Description | B33: Estimation coût (Euros) | C33: Estimation coût (Euros) | D33: Sources de Financement | E33: Date prévue de réalisation | F33: Référence
A34: Variations to Main Contract | C34: =25000000+10000000 -> 35000000 | D34: Prêteurs et RDIA | E34: 2010-03-01 | F34: Undergoing discussion between AIBD and SBG
A35: Reverse space right and left of main terminal | B35: 267480
A36: Change Runway and Taxiway from Cat E to Cat F | B36: 5654910
A37: Additional services required for separation of VVIP Building | B37: 51430
A38: Extension of Taxiway to Military zone | B38: 1114380
A39: Addition of hangar for Presidential Aircraft | B39: 7158800
A40: Additional physical training area for firemen with shelter | B40: 4886560
A41: Second reserve area for GSE equipment storage | B41: 40860
A42: New Taxiway to Cargo new location | B42: 2435640
A43: New road between intersection (RNI) and Cargo access | B43: 3697000
A44: Additional 2m to the stairs receiving tubes in Main Terminal | B44: 209390
A45: Increase ATCT height from 40 to 50m | B45: 2688380
A46: Military battalion area near presidential pavilion | B46: 973890
A47: Additional parking near presidential pavilion | B47: 65800
A48: Shelter for drivers, waiting troop near presidential pavilion | B48: 258020
A49: E/M systems and equipments for building (Budget) | B49: 6000000
A50: Design Modification | B50: 1420100
A51: Variation due cost inflation
A52: Construction cost inflation during the period of October 2006 to September 2009 | B52: 19912790
A53: Contengencies Surcoût EPC contract (7,5%) | B53: =(SUM(B35:B52))*(7.5%) -> 4262657.25 | C53: =7.5%*C34 -> 2625000 | F53: Contengencies profile maintened at 7,5% of contractual cost
A54: TOTAL EN EUROS | B54: =SUM(B35:B53) -> 61098087.25 | C54: =SUM(C34:C53) -> 37625000
A56: IV - Installations et bâtiments hors scope EPC | B56: =B75 -> 82252723.88 | C56: =C75 -> 66077502.03 | D56: =B56-C56 -> 16175221.85 | E56: =D58 -> A soumettre aux Prêteurs | F56: =E58 -> 2010-03-01
A57: Description | B57: Estimation coût (en milliard de Fcfa) | C57: Estimation coût (en milliard de Fcfa) | D57: Sources de Financement | E57: Date prévue de décaissement | F57: Référence
A58: Réalisation du reseau d'amenée de l'eau | B58: 1 | C58: 1 | D58: A soumettre aux Prêteurs | E58: 2010-03-01 | F58: Etude SONES 2004
A59: Réalisation du reseau d'amenée de l'éléctricité | B59: 2 | C59: 0.5 | F59: Etude Senelec 2004
A60: Réalisation du reseau d'amenée des télécommunications | B60: 0.3 | C60: 0.3 | F60: Etude Sonatel 2004
A61: Amenagement (VRD) et Réalisation des Equipements Sociaux sur le site de recasement (dispensaires, écoles, etc.) | B61: 2.5 | C61: 2.5 | F61: Etude Buursink 2005 et Simon&Christiansen 2008
A62: Etudes et constuction des accès à l'aérogare Fret | B62: 3.2 | C62: 3.2 | F62: Annexes protocole Etat-JAFZA 2008
A63: Réalisation d'infrastuctures pour la Gendarmerie | B63: 3.21 | C63: 3.21 | F63: Etude du Commandant de la Gendarmerie 2004
A64: Etudes, constuction et équipement batiments administratifs pour l'ANACS la representation de l'ASECNA, Meteo et haute autorité | B64: 4.5 | C64: 3.5 | F64: Basé sur offre 2006 (SBG), Estimation maj le 15/10/09
A65: Réalisation complete (y compris VRD) de la cité des logements d'astreinte (personnel présent sur la plateforme aéroportuaire en permanance) | B65: 4.5 | C65: 6.9 | F65: Basé sur une estimation de 100 villas
A66: Transfert de tous les services de la Direction Générale de l'ASECNA (Direction technique, station hertziene) | B66: 2.86 | C66: 2.86 | F66: Etude 2007 Groupe de travail Sénégal sur les options de transfert
A67: Bâtiment VVIP | B67: 0.15 | C67: 0.72 | F67: Estimation maj le 15/10/09
A68: Hangar Avion Présidentiel (Code C) (included in SBG claims and AIBD's view on SBG claims) | B68: 0 | C68: 0 | F68: Estimation maj le 15/10/09
A69: Hangar de Maintenance Avion | B69: 20 | C69: =8.88+0.72 -> 9.6 | F69: Estimation maj le 15/10/09
A70: Bâtiment Handling (assitance au sol) | B70: 0.77 | C70: 0.77 | F70: Estimation
A71: Centre Médical (800 m² + équipements) | B71: 0.2 | C71: 0.24 | F71: Estimation maj le 15/10/09
A72: Bâtiment Poste (400 m² + équipements) | B72: 0.1 | C72: 0.12 | F72: Estimation maj le 15/10/09
A73: Aviation Générale | B73: 4.9 | C73: 4.9
A74: Total en milliards de F CFA | B74: =SUM(B58:B73) -> 50.19 | C74: =SUM(C58:C73) -> 40.32
A75: TOTAL EUROS | B75: =((B74*1000000000)/655.957)*(1+7.5%) -> 82252723.88 | C75: =((C74*1000000000)/655.957)*(1+7.5%) -> 66077502.03
A78: GRAND TOTAL (à financer par prêteurs RDIA) | B78: =B97-B87-B79 -> 560003151 | C78: =C97-C87-C79 -> 520354841.9
A79: V - Installations complémentaires externalisées | B79: =B85 -> 71651038.1 | C79: =C85 -> 71651038.1 | D79: =B79-C79 -> 0 | E79: =D81 -> Par des partenaires professionnels sélectionnés par Fraport et validés par AIBD en mode BOT | F79: =E81 -> Fin 2010
A80: Description | B80: Estimation coût (en milliard de Fcfa) | C80: Estimation coût (en milliard de Fcfa) | D80: Sources de Financement | E80: Date prévue de réalisation | F80: Référence
A81: Catering | B81: 20.5 | C81: 20.5 | D81: Par des partenaires professionnels sélectionnés par Fraport et validés par AIBD en mode BOT | E81: Fin 2010 | F81: Evaluation de TECSULT
A82: Fueling | B82: 7.6 | C82: 7.6
A83: Hotels | B83: 18.9 | C83: 18.9
A84: Total en milliards de F CFA | B84: =SUM(B81:B83) -> 47 | C84: =SUM(C81:C83) -> 47
A85: TOTAL EN EUROS (entre) | B85: =(B84*1000000000)/655.957 -> 71651038.1 | C85: =(C84*1000000000)/655.957 -> 71651038.1
A87: VI - Autres | B87: =B93 -> 8079797.914 | C87: =C93 -> 8079797.914 | D87: =B87-C87 -> 0 | E87: =D89 -> Etat du Sénégal | F87: =E89 -> A compléter par AIBD
A88: Description | B88: Estimation coût (en milliard de Fcfa) | C88: Estimation coût (en milliard de Fcfa) | D88: Financement | E88: Date prévue de réalisation | F88: Référence
A89: 1. Paiement des impenses | B89: 1.8 | C89: 1.8 | D89: Etat du Sénégal | E89: A compléter par AIBD | F89: Décrets existants
A90: 2. Armée de l'Air (CCS inclus et parking protégé VVIP) | B90: 3.5 | C90: 3.5 | F90: Etude de l'Armée de l'air 2004
A91: 3. Bâtiment Air Sénégal | B91: PM | C91: PM
A92: Total en milliards de F CFA | B92: =SUM(B89:B91) -> 5.3 | C92: =SUM(C89:C91) -> 5.3
A93: TOTAL EN EUROS | B93: =(B92*1000000000)/655.957 -> 8079797.914 | C93: =(C92*1000000000)/655.957 -> 8079797.914
A95: VII - Etudes, Conseil, Prêteurs et Budget AIBD | B95: =40961700 -> 40961700 | C95: =40961700 -> 40961700 | D95: =B95-C95 -> 0 | E95: =E32 -> Prêteurs et RDIA | F95: =F56 -> 2010-03-01
A97: GRAND TOTAL | B97: =B4+B56+B26+B32+B79+B87+B95 -> 639733987 | C97: =C4+C56+C26+C32+C79+C87+C95 -> 600085677.9 | D97: =D4+D26+D32+D56+D79+D87+D95 -> 39648309.1

Sheet Inv costs
C2: DEPRECIATION TABLE FOR THE CONSTRUCTION OF THE NEW AIRPORT- Million EUR, NOMINAL
B5: 1. | C5: DEPRECIATION PER ELEMENT OF CAPEX (Nominal, Million EUR)
E7: 2007 | F7: =E7+1 -> 2008 | G7: =F7+1 -> 2009 | H7: =G7+1 -> 2010 | I7: Total
C8: I. Studies & Follow up | E8: =[6]Assumptions!F869*[6]Assumptions!D895 -> 1.049575728 | F8: =[6]Assumptions!F869*[6]Assumptions!E895 -> 3.207765819 | G8: =[6]Assumptions!F869*[6]Assumptions!F895 -> 8.704918694 | H8: =[6]Assumptions!F869-SUM('Inv costs'!E8:G8) -> 8.903900759 | I8: =SUM(E8:H8) -> 21.866161
C10: II. Infrastructures
C11: 2.1. Preparatory studies | E11: =[6]Assumptions!$F$872*[6]Assumptions!D895 -> 0.191292 | F11: =[6]Assumptions!$F$872*[6]Assumptions!E895 -> 0.584636175 | G11: =[6]Assumptions!$F$872*[6]Assumptions!F895 -> 1.586528025 | H11: =[6]Assumptions!F872-SUM('Inv costs'!E11:G11) -> 1.6227938 | I11: =SUM(E11:H11) -> 3.98525
C12: 2.2. Groundworks | E12: =[6]Assumptions!$F$873*[6]Assumptions!D895 -> 6.330803904 | F12: =[6]Assumptions!$F$873*[6]Assumptions!E895 -> 19.34851943 | G12: =[6]Assumptions!$F$873*[6]Assumptions!F895 -> 52.50610488 | H12: =[6]Assumptions!F873-SUM('Inv costs'!E12:G12) -> 53.70631979 | I12: =SUM(E12:H12) -> 131.891748
C13: 2.3. Equipments | E13: =[6]Assumptions!$F$874*[6]Assumptions!D895 -> 0.3073656 | F13: =[6]Assumptions!$F$874*[6]Assumptions!E895 -> 0.939386115 | G13: =[6]Assumptions!$F$874*[6]Assumptions!F895 -> 2.549213445 | H13: =[6]Assumptions!F874-SUM('Inv costs'!E13:G13) -> 2.60748484 | I13: =SUM(E13:H13) -> 6.40345
C15: III. Superstructures (building & Installations) | E15: =[6]Assumptions!$F$877*[6]Assumptions!D895 -> 6.528589776 | F15: =[6]Assumptions!$F$877*[6]Assumptions!E895 -> 19.9530025 | G15: =[6]Assumptions!$F$877*[6]Assumptions!F895 -> 54.14649145 | H15: =[6]Assumptions!F877-SUM('Inv costs'!E15:G15) -> 55.38420327 | I15: =SUM(E15:H15) -> 136.012287
C17: IV. Equipments | E17: =[6]Assumptions!$F$879*[6]Assumptions!D895 -> 2.367396912 | F17: =[6]Assumptions!$F$879*[6]Assumptions!E895 -> 7.235356812 | G17: =[6]Assumptions!$F$879*[6]Assumptions!F895 -> 19.63459814 | H17: =[6]Assumptions!F879-SUM('Inv costs'!E17:G17) -> 20.08341714 | I17: =SUM(E17:H17) -> 49.320769
C19: Total construction works | I19: =I8+I11+I12+I13+I15+I17 -> 349.479665 | J19: EPC total
C21: V. Studies, assistance & work monitoring | E21: =[6]Assumptions!$F$883*[6]Assumptions!D895 -> 0.67321488 | F21: =[6]Assumptions!$F$883*[6]Assumptions!E895 -> 2.057512977 | G21: =[6]Assumptions!$F$883*[6]Assumptions!F895 -> 5.583475911 | H21: =[6]Assumptions!F883-SUM('Inv costs'!E21:G21) -> 5.711106232 | I21: =SUM(E21:H21) -> 14.02531
I22: 0
C23: VI. Follow-up by AIBD | E23: =[6]Assumptions!$F$885*[6]Assumptions!D895 -> 0.3731952 | F23: =[6]Assumptions!$F$885*[6]Assumptions!E895 -> 1.14057783 | G23: =[6]Assumptions!$F$885*[6]Assumptions!F895 -> 3.09518769 | H23: =[6]Assumptions!F885-SUM('Inv costs'!E23:G23) -> 3.16593928 | I23: 7.7749
I24: 0
C25: VII. Environmental measures | E25: =[6]Assumptions!$F$887*[6]Assumptions!D895 -> 0.10976328 | F25: =[6]Assumptions!$F$887*[6]Assumptions!E895 -> 0.3354640245 | G25: =[6]Assumptions!$F$887*[6]Assumptions!F895 -> 0.9103492035 | H25: =[6]Assumptions!F887-SUM('Inv costs'!E25:G25) -> 0.931158492 | I25: 2.286735
I26: 0
C27: VIII. Access roads | E27: =[6]Assumptions!$F$889*[6]Assumptions!D895 -> 0.826883472 | F27: =[6]Assumptions!$F$889*[6]Assumptions!E895 -> 2.527162611 | G27: =[6]Assumptions!$F$889*[6]Assumptions!F895 -> 6.857964796 | H27: =[6]Assumptions!F889-SUM('Inv costs'!E27:G27) -> 7.014728121 | I27: 17.226739
C29: Grand total | E29: =SUM(E8,E11:E13,E15,E17,E21,E23,E25,E27) -> 18.75808075 | F29: =SUM(F8,F11:F13,F15,F17,F21,F23,F25,F27) -> 57.3293843 | G29: =SUM(G8,G11:G13,G15,G17,G21,G23,G25,G27) -> 155.5748322 | H29: =SUM(H8,H11:H13,H15,H17,H21,H23,H25,H27) -> 159.1310517 | I29: =SUM(I19:I27) -> 390.793349
F32: 2008 | G32: =F32+1 -> 2009 | H32: 2010 | I32: 2011 | J32: 2012 | K32: 2013 | L32: 2014 | M32: 2015 | N32: 2016 | O32: 2017 | P32: 2018 | Q32: 2019 | R32: 2020 | S32: 2021 | T32: 2022 | U32: 2023 | V32: 2024 | W32: 2025 | X32: 2026 | Y32: 2027 | Z32: 2028 | AA32: 2029 | AB32: 2030
C34: I. Studies & Follow up | F34: =$E$8*[6]Assumptions!$H$869 -> 0.2099151456 | G34: =$E$8*[6]Assumptions!$H$869 -> 0.2099151456 | H34: =$E$8*[6]Assumptions!$H$869 -> 0.2099151456 | I34: =$E$8*[6]Assumptions!$H$869 -> 0.2099151456 | J34: =$E$8*[6]Assumptions!$H$869 -> 0.2099151456
G35: =$F$8*[6]Assumptions!$H869 -> 0.6415531637 | H35: =$F$8*[6]Assumptions!$H869 -> 0.6415531637 | I35: =$F$8*[6]Assumptions!$H869 -> 0.6415531637 | J35: =$F$8*[6]Assumptions!$H869 -> 0.6415531637 | K35: =$F$8*[6]Assumptions!$H869 -> 0.6415531637
H36: =$G$8*[6]Assumptions!$H$869 -> 1.740983739 | I36: =$G$8*[6]Assumptions!$H$869 -> 1.740983739 | J36: =$G$8*[6]Assumptions!$H$869 -> 1.740983739 | K36: =$G$8*[6]Assumptions!$H$869 -> 1.740983739 | L36: =$G$8*[6]Assumptions!$H$869 -> 1.740983739
I37: =$H$8*[6]Assumptions!$H869 -> 1.780780152 | J37: =$H$8*[6]Assumptions!$H869 -> 1.780780152 | K37: =$H$8*[6]Assumptions!$H869 -> 1.780780152 | L37: =$H$8*[6]Assumptions!$H869 -> 1.780780152 | M37: =$H$8*[6]Assumptions!$H869 -> 1.780780152
C38: II. Infrastructures
C39: 2.1. Preparatory studies | F39: =$E$11*[6]Assumptions!$H$872 -> 0.0382584 | G39: =$E$11*[6]Assumptions!$H$872 -> 0.0382584 | H39: =$E$11*[6]Assumptions!$H$872 -> 0.0382584 | I39: =$E$11*[6]Assumptions!$H$872 -> 0.0382584 | J39: =$E$11*[6]Assumptions!$H$872 -> 0.0382584
G40: =$F$11*[6]Assumptions!$H$872 -> 0.116927235 | H40: =$F$11*[6]Assumptions!$H$872 -> 0.116927235 | I40: =$F$11*[6]Assumptions!$H$872 -> 0.116927235 | J40: =$F$11*[6]Assumptions!$H$872 -> 0.116927235 | K40: =$F$11*[6]Assumptions!$H$872 -> 0.116927235
H41: =$G$11*[6]Assumptions!$H$872 -> 0.317305605 | I41: =$G$11*[6]Assumptions!$H$872 -> 0.317305605 | J41: =$G$11*[6]Assumptions!$H$872 -> 0.317305605 | K41: =$G$11*[6]Assumptions!$H$872 -> 0.317305605 | L41: =$G$11*[6]Assumptions!$H$872 -> 0.317305605
I42: =$H$11*[6]Assumptions!$H$872 -> 0.32455876 | J42: =$H$11*[6]Assumptions!$H$872 -> 0.32455876 | K42: =$H$11*[6]Assumptions!$H$872 -> 0.32455876 | L42: =$H$11*[6]Assumptions!$H$872 -> 0.32455876 | M42: =$H$11*[6]Assumptions!$H$872 -> 0.32455876
C44: 2.2. Groundworks | F44: =$E$12*[6]Assumptions!$H$873 -> 0.3165401952 | G44: =$E$12*[6]Assumptions!$H$873 -> 0.3165401952 | H44: =$E$12*[6]Assumptions!$H$873 -> 0.3165401952 | I44: =$E$12*[6]Assumptions!$H$873 -> 0.3165401952 | J44: =$E$12*[6]Assumptions!$H$873 -> 0.3165401952 | K44: =$E$12*[6]Assumptions!$H$873 -> 0.3165401952 | L44: =$E$12*[6]Assumptions!$H$873 -> 0.3165401952 | M44: =$E$12*[6]Assumptions!$H$873 -> 0.3165401952 | N44: =$E$12*[6]Assumptions!$H$873 -> 0.3165401952 | O44: =$E$12*[6]Assumptions!$H$873 -> 0.3165401952 | P44: =$E$12*[6]Assumptions!$H$873 -> 0.3165401952 | Q44: =$E$12*[6]Assumptions!$H$873 -> 0.3165401952 | R44: =$E$12*[6]Assumptions!$H$873 -> 0.3165401952 | S44: =$E$12*[6]Assumptions!$H$873 -> 0.3165401952 | T44: =$E$12*[6]Assumptions!$H$873 -> 0.3165401952 | U44: =$E$12*[6]Assumptions!$H$873 -> 0.3165401952 | V44: =$E$12*[6]Assumptions!$H$873 -> 0.3165401952 | W44: =$E$12*[6]Assumptions!$H$873 -> 0.3165401952 | X44: =$E$12*[6]Assumptions!$H$873 -> 0.3165401952 | Y44: =$E$12*[6]Assumptions!$H$873 -> 0.3165401952
G45: =$F$12*[6]Assumptions!$H$873 -> 0.9674259716 | H45: =$F$12*[6]Assumptions!$H$873 -> 0.9674259716 | I45: =$F$12*[6]Assumptions!$H$873 -> 0.9674259716 | J45: =$F$12*[6]Assumptions!$H$873 -> 0.9674259716 | K45: =$F$12*[6]Assumptions!$H$873 -> 0.9674259716 | L45: =$F$12*[6]Assumptions!$H$873 -> 0.9674259716 | M45: =$F$12*[6]Assumptions!$H$873 -> 0.9674259716 | N45: =$F$12*[6]Assumptions!$H$873 -> 0.9674259716 | O45: =$F$12*[6]Assumptions!$H$873 -> 0.9674259716 | P45: =$F$12*[6]Assumptions!$H$873 -> 0.9674259716 | Q45: =$F$12*[6]Assumptions!$H$873 -> 0.9674259716 | R45: =$F$12*[6]Assumptions!$H$873 -> 0.9674259716 | S45: =$F$12*[6]Assumptions!$H$873 -> 0.9674259716 | T45: =$F$12*[6]Assumptions!$H$873 -> 0.9674259716 | U45: =$F$12*[6]Assumptions!$H$873 -> 0.9674259716 | V45: =$F$12*[6]Assumptions!$H$873 -> 0.9674259716 | W45: =$F$12*[6]Assumptions!$H$873 -> 0.9674259716 | X45: =$F$12*[6]Assumptions!$H$873 -> 0.9674259716 | Y45: =$F$12*[6]Assumptions!$H$873 -> 0.9674259716 | Z45: =$F$12*[6]Assumptions!$H$873 -> 0.9674259716
H46: =$G$12*[6]Assumptions!$H$873 -> 2.625305244 | I46: =$G$12*[6]Assumptions!$H$873 -> 2.625305244 | J46: =$G$12*[6]Assumptions!$H$873 -> 2.625305244 | K46: =$G$12*[6]Assumptions!$H$873 -> 2.625305244 | L46: =$G$12*[6]Assumptions!$H$873 -> 2.625305244 | M46: =$G$12*[6]Assumptions!$H$873 -> 2.625305244 | N46: =$G$12*[6]Assumptions!$H$873 -> 2.625305244 | O46: =$G$12*[6]Assumptions!$H$873 -> 2.625305244 | P46: =$G$12*[6]Assumptions!$H$873 -> 2.625305244 | Q46: =$G$12*[6]Assumptions!$H$873 -> 2.625305244 | R46: =$G$12*[6]Assumptions!$H$873 -> 2.625305244 | S46: =$G$12*[6]Assumptions!$H$873 -> 2.625305244 | T46: =$G$12*[6]Assumptions!$H$873 -> 2.625305244 | U46: =$G$12*[6]Assumptions!$H$873 -> 2.625305244 | V46: =$G$12*[6]Assumptions!$H$873 -> 2.625305244 | W46: =$G$12*[6]Assumptions!$H$873 -> 2.625305244 | X46: =$G$12*[6]Assumptions!$H$873 -> 2.625305244 | Y46: =$G$12*[6]Assumptions!$H$873 -> 2.625305244 | Z46: =$G$12*[6]Assumptions!$H$873 -> 2.625305244 | AA46: =$G$12*[6]Assumptions!$H$873 -> 2.625305244
I47: =$H$12*[6]Assumptions!$H$873 -> 2.685315989 | J47: =$H$12*[6]Assumptions!$H$873 -> 2.685315989 | K47: =$H$12*[6]Assumptions!$H$873 -> 2.685315989 | L47: =$H$12*[6]Assumptions!$H$873 -> 2.685315989 | M47: =$H$12*[6]Assumptions!$H$873 -> 2.685315989 | N47: =$H$12*[6]Assumptions!$H$873 -> 2.685315989 | O47: =$H$12*[6]Assumptions!$H$873 -> 2.685315989 | P47: =$H$12*[6]Assumptions!$H$873 -> 2.685315989 | Q47: =$H$12*[6]Assumptions!$H$873 -> 2.685315989 | R47: =$H$12*[6]Assumptions!$H$873 -> 2.685315989 | S47: =$H$12*[6]Assumptions!$H$873 -> 2.685315989 | T47: =$H$12*[6]Assumptions!$H$873 -> 2.685315989 | U47: =$H$12*[6]Assumptions!$H$873 -> 2.685315989 | V47: =$H$12*[6]Assumptions!$H$873 -> 2.685315989 | W47: =$H$12*[6]Assumptions!$H$873 -> 2.685315989 | X47: =$H$12*[6]Assumptions!$H$873 -> 2.685315989 | Y47: =$H$12*[6]Assumptions!$H$873 -> 2.685315989 | Z47: =$H$12*[6]Assumptions!$H$873 -> 2.685315989 | AA47: =$H$12*[6]Assumptions!$H$873 -> 2.685315989 | AB47: =$H$12*[6]Assumptions!$H$873 -> 2.685315989
C49: 2.3. Equipments | F49: =$E$13*[6]Assumptions!$H$874 -> 0.02049104 | G49: =$E$13*[6]Assumptions!$H$874 -> 0.02049104 | H49: =$E$13*[6]Assumptions!$H$874 -> 0.02049104 | I49: =$E$13*[6]Assumptions!$H$874 -> 0.02049104 | J49: =$E$13*[6]Assumptions!$H$874 -> 0.02049104 | K49: =$E$13*[6]Assumptions!$H$874 -> 0.02049104 | L49: =$E$13*[6]Assumptions!$H$874 -> 0.02049104 | M49: =$E$13*[6]Assumptions!$H$874 -> 0.02049104 | N49: =$E$13*[6]Assumptions!$H$874 -> 0.02049104 | O49: =$E$13*[6]Assumptions!$H$874 -> 0.02049104 | P49: =$E$13*[6]Assumptions!$H$874 -> 0.02049104 | Q49: =$E$13*[6]Assumptions!$H$874 -> 0.02049104 | R49: =$E$13*[6]Assumptions!$H$874 -> 0.02049104 | S49: =$E$13*[6]Assumptions!$H$874 -> 0.02049104 | T49: =$E$13*[6]Assumptions!$H$874 -> 0.02049104
G50: =$F$13*[6]Assumptions!$H$874 -> 0.062625741 | H50: =$F$13*[6]Assumptions!$H$874 -> 0.062625741 | I50: =$F$13*[6]Assumptions!$H$874 -> 0.062625741 | J50: =$F$13*[6]Assumptions!$H$874 -> 0.062625741 | K50: =$F$13*[6]Assumptions!$H$874 -> 0.062625741 | L50: =$F$13*[6]Assumptions!$H$874 -> 0.062625741 | M50: =$F$13*[6]Assumptions!$H$874 -> 0.062625741 | N50: =$F$13*[6]Assumptions!$H$874 -> 0.062625741 | O50: =$F$13*[6]Assumptions!$H$874 -> 0.062625741 | P50: =$F$13*[6]Assumptions!$H$874 -> 0.062625741 | Q50: =$F$13*[6]Assumptions!$H$874 -> 0.062625741 | R50: =$F$13*[6]Assumptions!$H$874 -> 0.062625741 | S50: =$F$13*[6]Assumptions!$H$874 -> 0.062625741 | T50: =$F$13*[6]Assumptions!$H$874 -> 0.062625741 | U50: =$F$13*[6]Assumptions!$H$874 -> 0.062625741
H51: =$G$13*[6]Assumptions!$H$874 -> 0.169947563 | I51: =$G$13*[6]Assumptions!$H$874 -> 0.169947563 | J51: =$G$13*[6]Assumptions!$H$874 -> 0.169947563 | K51: =$G$13*[6]Assumptions!$H$874 -> 0.169947563 | L51: =$G$13*[6]Assumptions!$H$874 -> 0.169947563 | M51: =$G$13*[6]Assumptions!$H$874 -> 0.169947563 | N51: =$G$13*[6]Assumptions!$H$874 -> 0.169947563 | O51: =$G$13*[6]Assumptions!$H$874 -> 0.169947563 | P51: =$G$13*[6]Assumptions!$H$874 -> 0.169947563 | Q51: =$G$13*[6]Assumptions!$H$874 -> 0.169947563 | R51: =$G$13*[6]Assumptions!$H$874 -> 0.169947563 | S51: =$G$13*[6]Assumptions!$H$874 -> 0.169947563 | T51: =$G$13*[6]Assumptions!$H$874 -> 0.169947563 | U51: =$G$13*[6]Assumptions!$H$874 -> 0.169947563 | V51: =$G$13*[6]Assumptions!$H$874 -> 0.169947563
I52: =$H$13*[6]Assumptions!$H$874 -> 0.1738323227 | J52: =$H$13*[6]Assumptions!$H$874 -> 0.1738323227 | K52: =$H$13*[6]Assumptions!$H$874 -> 0.1738323227 | L52: =$H$13*[6]Assumptions!$H$874 -> 0.1738323227 | M52: =$H$13*[6]Assumptions!$H$874 -> 0.1738323227 | N52: =$H$13*[6]Assumptions!$H$874 -> 0.1738323227 | O52: =$H$13*[6]Assumptions!$H$874 -> 0.1738323227 | P52: =$H$13*[6]Assumptions!$H$874 -> 0.1738323227 | Q52: =$H$13*[6]Assumptions!$H$874 -> 0.1738323227 | R52: =$H$13*[6]Assumptions!$H$874 -> 0.1738323227 | S52: =$H$13*[6]Assumptions!$H$874 -> 0.1738323227 | T52: =$H$13*[6]Assumptions!$H$874 -> 0.1738323227 | U52: =$H$13*[6]Assumptions!$H$874 -> 0.1738323227 | V52: =$H$13*[6]Assumptions!$H$874 -> 0.1738323227 | W52: =$H$13*[6]Assumptions!$H$874 -> 0.1738323227
C54: III. Superstructures (building & Installations) | F54: =$E$15*[6]Assumptions!$H$877 -> 0.3264294888 | G54: =$E$15*[6]Assumptions!$H$877 -> 0.3264294888 | H54: =$E$15*[6]Assumptions!$H$877 -> 0.3264294888 | I54: =$E$15*[6]Assumptions!$H$877 -> 0.3264294888 | J54: =$E$15*[6]Assumptions!$H$877 -> 0.3264294888 | K54: =$E$15*[6]Assumptions!$H$877 -> 0.3264294888 | L54: =$E$15*[6]Assumptions!$H$877 -> 0.3264294888 | M54: =$E$15*[6]Assumptions!$H$877 -> 0.3264294888 | N54: =$E$15*[6]Assumptions!$H$877 -> 0.3264294888 | O54: =$E$15*[6]Assumptions!$H$877 -> 0.3264294888 | P54: =$E$15*[6]Assumptions!$H$877 -> 0.3264294888 | Q54: =$E$15*[6]Assumptions!$H$877 -> 0.3264294888 | R54: =$E$15*[6]Assumptions!$H$877 -> 0.3264294888 | S54: =$E$15*[6]Assumptions!$H$877 -> 0.3264294888 | T54: =$E$15*[6]Assumptions!$H$877 -> 0.3264294888 | U54: =$E$15*[6]Assumptions!$H$877 -> 0.3264294888 | V54: =$E$15*[6]Assumptions!$H$877 -> 0.3264294888 | W54: =$E$15*[6]Assumptions!$H$877 -> 0.3264294888 | X54: =$E$15*[6]Assumptions!$H$877 -> 0.3264294888 | Y54: =$E$15*[6]Assumptions!$H$877 -> 0.3264294888
G55: =$F$15*[6]Assumptions!$H$877 -> 0.9976501251 | H55: =$F$15*[6]Assumptions!$H$877 -> 0.9976501251 | I55: =$F$15*[6]Assumptions!$H$877 -> 0.9976501251 | J55: =$F$15*[6]Assumptions!$H$877 -> 0.9976501251 | K55: =$F$15*[6]Assumptions!$H$877 -> 0.9976501251 | L55: =$F$15*[6]Assumptions!$H$877 -> 0.9976501251 | M55: =$F$15*[6]Assumptions!$H$877 -> 0.9976501251 | N55: =$F$15*[6]Assumptions!$H$877 -> 0.9976501251 | O55: =$F$15*[6]Assumptions!$H$877 -> 0.9976501251 | P55: =$F$15*[6]Assumptions!$H$877 -> 0.9976501251 | Q55: =$F$15*[6]Assumptions!$H$877 -> 0.9976501251 | R55: =$F$15*[6]Assumptions!$H$877 -> 0.9976501251 | S55: =$F$15*[6]Assumptions!$H$877 -> 0.9976501251 | T55: =$F$15*[6]Assumptions!$H$877 -> 0.9976501251 | U55: =$F$15*[6]Assumptions!$H$877 -> 0.9976501251 | V55: =$F$15*[6]Assumptions!$H$877 -> 0.9976501251 | W55: =$F$15*[6]Assumptions!$H$877 -> 0.9976501251 | X55: =$F$15*[6]Assumptions!$H$877 -> 0.9976501251 | Y55: =$F$15*[6]Assumptions!$H$877 -> 0.9976501251 | Z55: =$F$15*[6]Assumptions!$H$877 -> 0.9976501251
H56: =$G$15*[6]Assumptions!$H$877 -> 2.707324573 | I56: =$G$15*[6]Assumptions!$H$877 -> 2.707324573 | J56: =$G$15*[6]Assumptions!$H$877 -> 2.707324573 | K56: =$G$15*[6]Assumptions!$H$877 -> 2.707324573 | L56: =$G$15*[6]Assumptions!$H$877 -> 2.707324573 | M56: =$G$15*[6]Assumptions!$H$877 -> 2.707324573 | N56: =$G$15*[6]Assumptions!$H$877 -> 2.707324573 | O56: =$G$15*[6]Assumptions!$H$877 -> 2.707324573 | P56: =$G$15*[6]Assumptions!$H$877 -> 2.707324573 | Q56: =$G$15*[6]Assumptions!$H$877 -> 2.707324573 | R56: =$G$15*[6]Assumptions!$H$877 -> 2.707324573 | S56: =$G$15*[6]Assumptions!$H$877 -> 2.707324573 | T56: =$G$15*[6]Assumptions!$H$877 -> 2.707324573 | U56: =$G$15*[6]Assumptions!$H$877 -> 2.707324573 | V56: =$G$15*[6]Assumptions!$H$877 -> 2.707324573 | W56: =$G$15*[6]Assumptions!$H$877 -> 2.707324573 | X56: =$G$15*[6]Assumptions!$H$877 -> 2.707324573 | Y56: =$G$15*[6]Assumptions!$H$877 -> 2.707324573 | Z56: =$G$15*[6]Assumptions!$H$877 -> 2.707324573 | AA56: =$G$15*[6]Assumptions!$H$877 -> 2.707324573
I57: =$H$15*[6]Assumptions!$H$877 -> 2.769210163 | J57: =$H$15*[6]Assumptions!$H$877 -> 2.769210163 | K57: =$H$15*[6]Assumptions!$H$877 -> 2.769210163 | L57: =$H$15*[6]Assumptions!$H$877 -> 2.769210163 | M57: =$H$15*[6]Assumptions!$H$877 -> 2.769210163 | N57: =$H$15*[6]Assumptions!$H$877 -> 2.769210163 | O57: =$H$15*[6]Assumptions!$H$877 -> 2.769210163 | P57: =$H$15*[6]Assumptions!$H$877 -> 2.769210163 | Q57: =$H$15*[6]Assumptions!$H$877 -> 2.769210163 | R57: =$H$15*[6]Assumptions!$H$877 -> 2.769210163 | S57: =$H$15*[6]Assumptions!$H$877 -> 2.769210163 | T57: =$H$15*[6]Assumptions!$H$877 -> 2.769210163 | U57: =$H$15*[6]Assumptions!$H$877 -> 2.769210163 | V57: =$H$15*[6]Assumptions!$H$877 -> 2.769210163 | W57: =$H$15*[6]Assumptions!$H$877 -> 2.769210163 | X57: =$H$15*[6]Assumptions!$H$877 -> 2.769210163 | Y57: =$H$15*[6]Assumptions!$H$877 -> 2.769210163 | Z57: =$H$15*[6]Assumptions!$H$877 -> 2.769210163 | AA57: =$H$15*[6]Assumptions!$H$877 -> 2.769210163 | AB57: =$H$15*[6]Assumptions!$H$877 -> 2.769210163
C59: IV. Equipments | F59: =$E$17*[6]Assumptions!$H$879 -> 0.1578264608 | G59: =$E$17*[6]Assumptions!$H$879 -> 0.1578264608 | H59: =$E$17*[6]Assumptions!$H$879 -> 0.1578264608 | I59: =$E$17*[6]Assumptions!$H$879 -> 0.1578264608 | J59: =$E$17*[6]Assumptions!$H$879 -> 0.1578264608 | K59: =$E$17*[6]Assumptions!$H$879 -> 0.1578264608 | L59: =$E$17*[6]Assumptions!$H$879 -> 0.1578264608 | M59: =$E$17*[6]Assumptions!$H$879 -> 0.1578264608 | N59: =$E$17*[6]Assumptions!$H$879 -> 0.1578264608 | O59: =$E$17*[6]Assumptions!$H$879 -> 0.1578264608 | P59: =$E$17*[6]Assumptions!$H$879 -> 0.1578264608 | Q59: =$E$17*[6]Assumptions!$H$879 -> 0.1578264608 | R59: =$E$17*[6]Assumptions!$H$879 -> 0.1578264608 | S59: =$E$17*[6]Assumptions!$H$879 -> 0.1578264608 | T59: =$E$17*[6]Assumptions!$H$879 -> 0.1578264608
G60: =$F$17*[6]Assumptions!$H$879 -> 0.4823571208 | H60: =$F$17*[6]Assumptions!$H$879 -> 0.4823571208 | I60: =$F$17*[6]Assumptions!$H$879 -> 0.4823571208 | J60: =$F$17*[6]Assumptions!$H$879 -> 0.4823571208 | K60: =$F$17*[6]Assumptions!$H$879 -> 0.4823571208 | L60: =$F$17*[6]Assumptions!$H$879 -> 0.4823571208 | M60: =$F$17*[6]Assumptions!$H$879 -> 0.4823571208 | N60: =$F$17*[6]Assumptions!$H$879 -> 0.4823571208 | O60: =$F$17*[6]Assumptions!$H$879 -> 0.4823571208 | P60: =$F$17*[6]Assumptions!$H$879 -> 0.4823571208 | Q60: =$F$17*[6]Assumptions!$H$879 -> 0.4823571208 | R60: =$F$17*[6]Assumptions!$H$879 -> 0.4823571208 | S60: =$F$17*[6]Assumptions!$H$879 -> 0.4823571208 | T60: =$F$17*[6]Assumptions!$H$879 -> 0.4823571208 | U60: =$F$17*[6]Assumptions!$H$879 -> 0.4823571208
H61: =$G$17*[6]Assumptions!$H$879 -> 1.308973209 | I61: =$G$17*[6]Assumptions!$H$879 -> 1.308973209 | J61: =$G$17*[6]Assumptions!$H$879 -> 1.308973209 | K61: =$G$17*[6]Assumptions!$H$879 -> 1.308973209 | L61: =$G$17*[6]Assumptions!$H$879 -> 1.308973209 | M61: =$G$17*[6]Assumptions!$H$879 -> 1.308973209 | N61: =$G$17*[6]Assumptions!$H$879 -> 1.308973209 | O61: =$G$17*[6]Assumptions!$H$879 -> 1.308973209 | P61: =$G$17*[6]Assumptions!$H$879 -> 1.308973209 | Q61: =$G$17*[6]Assumptions!$H$879 -> 1.308973209 | R61: =$G$17*[6]Assumptions!$H$879 -> 1.308973209 | S61: =$G$17*[6]Assumptions!$H$879 -> 1.308973209 | T61: =$G$17*[6]Assumptions!$H$879 -> 1.308973209 | U61: =$G$17*[6]Assumptions!$H$879 -> 1.308973209 | V61: =$G$17*[6]Assumptions!$H$879 -> 1.308973209
I62: =$H$17*[6]Assumptions!$H$879 -> 1.338894476 | J62: =$H$17*[6]Assumptions!$H$879 -> 1.338894476 | K62: =$H$17*[6]Assumptions!$H$879 -> 1.338894476 | L62: =$H$17*[6]Assumptions!$H$879 -> 1.338894476 | M62: =$H$17*[6]Assumptions!$H$879 -> 1.338894476 | N62: =$H$17*[6]Assumptions!$H$879 -> 1.338894476 | O62: =$H$17*[6]Assumptions!$H$879 -> 1.338894476 | P62: =$H$17*[6]Assumptions!$H$879 -> 1.338894476 | Q62: =$H$17*[6]Assumptions!$H$879 -> 1.338894476 | R62: =$H$17*[6]Assumptions!$H$879 -> 1.338894476 | S62: =$H$17*[6]Assumptions!$H$879 -> 1.338894476 | T62: =$H$17*[6]Assumptions!$H$879 -> 1.338894476 | U62: =$H$17*[6]Assumptions!$H$879 -> 1.338894476 | V62: =$H$17*[6]Assumptions!$H$879 -> 1.338894476 | W62: =$H$17*[6]Assumptions!$H$879 -> 1.338894476
C64: V. Studies, assistance & work monitoring | F64: =$E$21*[6]Assumptions!$H$883 -> 0.134642976 | G64: =$E$21*[6]Assumptions!$H$883 -> 0.134642976 | H64: =$E$21*[6]Assumptions!$H$883 -> 0.134642976 | I64: =$E$21*[6]Assumptions!$H$883 -> 0.134642976 | J64: =$E$21*[6]Assumptions!$H$883 -> 0.134642976
G65: =$F$21*[6]Assumptions!$H$883 -> 0.4115025954 | H65: =$F$21*[6]Assumptions!$H$883 -> 0.4115025954 | I65: =$F$21*[6]Assumptions!$H$883 -> 0.4115025954 | J65: =$F$21*[6]Assumptions!$H$883 -> 0.4115025954 | K65: =$F$21*[6]Assumptions!$H$883 -> 0.4115025954
H66: =$G$21*[6]Assumptions!$H$883 -> 1.116695182 | I66: =$G$21*[6]Assumptions!$H$883 -> 1.116695182 | J66: =$G$21*[6]Assumptions!$H$883 -> 1.116695182 | K66: =$G$21*[6]Assumptions!$H$883 -> 1.116695182 | L66: =$G$21*[6]Assumptions!$H$883 -> 1.116695182
I67: =$H$21*[6]Assumptions!$H$883 -> 1.142221246 | J67: =$H$21*[6]Assumptions!$H$883 -> 1.142221246 | K67: =$H$21*[6]Assumptions!$H$883 -> 1.142221246 | L67: =$H$21*[6]Assumptions!$H$883 -> 1.142221246 | M67: =$H$21*[6]Assumptions!$H$883 -> 1.142221246
C69: VI. Follow-up by AIBD | F69: =$E$23*[6]Assumptions!$H$885 -> 0.07463904 | G69: =$E$23*[6]Assumptions!$H$885 -> 0.07463904 | H69: =$E$23*[6]Assumptions!$H$885 -> 0.07463904 | I69: =$E$23*[6]Assumptions!$H$885 -> 0.07463904 | J69: =$E$23*[6]Assumptions!$H$885 -> 0.07463904
G70: =$F$23*[6]Assumptions!$H$885 -> 0.228115566 | H70: =$F$23*[6]Assumptions!$H$885 -> 0.228115566 | I70: =$F$23*[6]Assumptions!$H$885 -> 0.228115566 | J70: =$F$23*[6]Assumptions!$H$885 -> 0.228115566 | K70: =$F$23*[6]Assumptions!$H$885 -> 0.228115566
H71: =$G$23*[6]Assumptions!$H$885 -> 0.619037538 | I71: =$G$23*[6]Assumptions!$H$885 -> 0.619037538 | J71: =$G$23*[6]Assumptions!$H$885 -> 0.619037538 | K71: =$G$23*[6]Assumptions!$H$885 -> 0.619037538 | L71: =$G$23*[6]Assumptions!$H$885 -> 0.619037538
I72: =$H$23*[6]Assumptions!$H$885 -> 0.633187856 | J72: =$H$23*[6]Assumptions!$H$885 -> 0.633187856 | K72: =$H$23*[6]Assumptions!$H$885 -> 0.633187856 | L72: =$H$23*[6]Assumptions!$H$885 -> 0.633187856 | M72: =$H$23*[6]Assumptions!$H$885 -> 0.633187856
C73: VII. Environmental measures | F73: =$E$25*[6]Assumptions!$H$887 -> 0.03658776 | G73: =$E$25*[6]Assumptions!$H$887 -> 0.03658776 | H73: =$E$25*[6]Assumptions!$H$887 -> 0.03658776
G74: =$F$25*[6]Assumptions!$H$887 -> 0.1118213415 | H74: =$F$25*[6]Assumptions!$H$887 -> 0.1118213415 | I74: =$F$25*[6]Assumptions!$H$887 -> 0.1118213415
H75: =$G$25*[6]Assumptions!$H$887 -> 0.3034497345 | I75: =$G$25*[6]Assumptions!$H$887 -> 0.3034497345 | J75: =$G$25*[6]Assumptions!$H$887 -> 0.3034497345
I76: =$H$25*[6]Assumptions!$H$887 -> 0.310386164 | J76: =$H$25*[6]Assumptions!$H$887 -> 0.310386164 | K76: =$H$25*[6]Assumptions!$H$887 -> 0.310386164
C78: VIII. Access roads | F78: =$E$27*[6]Assumptions!$H$889 -> 0.1653766944 | G78: =$E$27*[6]Assumptions!$H$889 -> 0.1653766944 | H78: =$E$27*[6]Assumptions!$H$889 -> 0.1653766944 | I78: =$E$27*[6]Assumptions!$H$889 -> 0.1653766944 | J78: =$E$27*[6]Assumptions!$H$889 -> 0.1653766944
G79: =$F$27*[6]Assumptions!$H$889 -> 0.5054325223 | H79: =$F$27*[6]Assumptions!$H$889 -> 0.5054325223 | I79: =$F$27*[6]Assumptions!$H$889 -> 0.5054325223 | J79: =$F$27*[6]Assumptions!$H$889 -> 0.5054325223 | K79: =$F$27*[6]Assumptions!$H$889 -> 0.5054325223
H80: =$G$27*[6]Assumptions!$H$889 -> 1.371592959 | I80: =$G$27*[6]Assumptions!$H$889 -> 1.371592959 | J80: =$G$27*[6]Assumptions!$H$889 -> 1.371592959 | K80: =$G$27*[6]Assumptions!$H$889 -> 1.371592959 | L80: =$G$27*[6]Assumptions!$H$889 -> 1.371592959
I81: =$H$27*[6]Assumptions!$H$889 -> 1.402945624 | J81: =$H$27*[6]Assumptions!$H$889 -> 1.402945624 | K81: =$H$27*[6]Assumptions!$H$889 -> 1.402945624 | L81: =$H$27*[6]Assumptions!$H$889 -> 1.402945624 | M81: =$H$27*[6]Assumptions!$H$889 -> 1.402945624
B85: 2. | C85: ANNUAL DEPRECIATION-SUMMARY TABLE (Nominal, Million Eur)
F87: 2008 | G87: =F87+1 -> 2009 | H87: =G87+1 -> 2010 | I87: 2011 | J87: 2012 | K87: 2013 | L87: 2014 | M87: 2015 | N87: 2016 | O87: 2017 | P87: 2018 | Q87: 2019 | R87: 2020 | S87: 2021 | T87: 2022 | U87: 2023 | V87: 2024 | W87: 2025 | X87: 2026 | Y87: 2027 | Z87: 2028 | AA87: 2029 | AB87: 2030
C88: I. Studies & Follow up | F88: =SUM(F34:F37) -> 0.2099151456 | G88: 0.8514683093 | H88: 2.592452048 | I88: 4.3732322 | J88: 4.3732322 | K88: 4.163317054 | L88: 3.521763891 | M88: 1.780780152 | N88: 0 | O88: 0 | P88: 0 | Q88: 0 | R88: 0 | S88: 0 | T88: 0 | U88: 0 | V88: 0 | W88: 0 | X88: 0 | Y88: 0 | Z88: 0 | AA88: 0 | AB88: 0
C90: II. Infrastructures
C91: 2.1. Preparatory studies | F91: =SUM(F39:F42) -> 0.0382584 | G91: 0.155185635 | H91: 0.47249124 | I91: 0.79705 | J91: 0.79705 | K91: 0.7587916 | L91: 0.641864365 | M91: 0.32455876 | N91: 0 | O91: 0 | P91: 0 | Q91: 0 | R91: 0 | S91: 0 | T91: 0 | U91: 0 | V91: 0 | W91: 0 | X91: 0 | Y91: 0 | Z91: 0 | AA91: 0 | AB91: 0
C92: 2.2. Groundworks | F92: =SUM(F44:F47) -> 0.3165401952 | G92: 1.283966167 | H92: 3.909271411 | I92: 6.5945874 | J92: 6.5945874 | K92: 6.5945874 | L92: 6.5945874 | M92: 6.5945874 | N92: 6.5945874 | O92: 6.5945874 | P92: 6.5945874 | Q92: 6.5945874 | R92: 6.5945874 | S92: 6.5945874 | T92: 6.5945874 | U92: 6.5945874 | V92: 6.5945874 | W92: 6.5945874 | X92: 6.5945874 | Y92: 6.5945874 | Z92: 6.278047205 | AA92: 5.310621233 | AB92: 2.685315989
C93: 2.3. Equipments | F93: =SUM(F49:F52) -> 0.02049104 | G93: 0.083116781 | H93: 0.253064344 | I93: 0.4268966667 | J93: 0.4268966667 | K93: 0.4268966667 | L93: 0.4268966667 | M93: 0.4268966667 | N93: 0.4268966667 | O93: 0.4268966667 | P93: 0.4268966667 | Q93: 0.4268966667 | R93: 0.4268966667 | S93: 0.4268966667 | T93: 0.4268966667 | U93: 0.4064056267 | V93: 0.3437798857 | W93: 0.1738323227 | X93: 0 | Y93: 0 | Z93: 0 | AA93: 0 | AB93: 0
C95: III. Superstructures (building & Installations) | F95: =SUM(F54:F57) -> 0.3264294888 | G95: 1.324079614 | H95: 4.031404187 | I95: 6.80061435 | J95: 6.80061435 | K95: 6.80061435 | L95: 6.80061435 | M95: 6.80061435 | N95: 6.80061435 | O95: 6.80061435 | P95: 6.80061435 | Q95: 6.80061435 | R95: 6.80061435 | S95: 6.80061435 | T95: 6.80061435 | U95: 6.80061435 | V95: 6.80061435 | W95: 6.80061435 | X95: 6.80061435 | Y95: 6.80061435 | Z95: 6.474184861 | AA95: 5.476534736 | AB95: 2.769210163
C97: IV. Equipments | F97: =SUM(F59:F62) -> 0.1578264608 | G97: 0.6401835816 | H97: 1.949156791 | I97: 3.288051267 | J97: 3.288051267 | K97: 3.288051267 | L97: 3.288051267 | M97: 3.288051267 | N97: 3.288051267 | O97: 3.288051267 | P97: 3.288051267 | Q97: 3.288051267 | R97: 3.288051267 | S97: 3.288051267 | T97: 3.288051267 | U97: 3.130224806 | V97: 2.647867685 | W97: 1.338894476 | X97: 0 | Y97: 0 | Z97: 0 | AA97: 0 | AB97: 0
C99: V. Studies, assistance & work monitoring | F99: =SUM(F64:F67) -> 0.134642976 | G99: 0.5461455714 | H99: 1.662840754 | I99: 2.805062 | J99: 2.805062 | K99: 2.670419024 | L99: 2.258916429 | M99: 1.142221246 | N99: 0 | O99: 0 | P99: 0 | Q99: 0 | R99: 0 | S99: 0 | T99: 0 | U99: 0 | V99: 0 | W99: 0 | X99: 0 | Y99: 0 | Z99: 0 | AA99: 0 | AB99: 0
C101: VI. Follow-up by AIBD | F101: =SUM(F69:F72) -> 0.07463904 | G101: 0.302754606 | H101: 0.921792144 | I101: 1.55498 | J101: 1.55498 | K101: 1.48034096 | L101: 1.252225394 | M101: 0.633187856 | N101: 0 | O101: 0 | P101: 0 | Q101: 0 | R101: 0 | S101: 0 | T101: 0 | U101: 0 | V101: 0 | W101: 0 | X101: 0 | Y101: 0 | Z101: 0 | AA101: 0 | AB101: 0
C103: VII. Environmental measures | F103: =SUM(F73:F76) -> 0.03658776 | G103: 0.1484091015 | H103: 0.451858836 | I103: 0.72565724 | J103: 0.6138358985 | K103: 0.310386164 | L103: 0 | M103: 0 | N103: 0 | O103: 0 | P103: 0 | Q103: 0 | R103: 0 | S103: 0 | T103: 0 | U103: 0 | V103: 0 | W103: 0 | X103: 0 | Y103: 0 | Z103: 0 | AA103: 0 | AB103: 0
C105: VIII. Access roads | F105: =SUM(F78:F81) -> 0.1653766944 | G105: 0.6708092167 | H105: 2.042402176 | I105: 3.4453478 | J105: 3.4453478 | K105: 3.279971106 | L105: 2.774538583 | M105: 1.402945624 | N105: 0 | O105: 0 | P105: 0 | Q105: 0 | R105: 0 | S105: 0 | T105: 0 | U105: 0 | V105: 0 | W105: 0 | X105: 0 | Y105: 0 | Z105: 0 | AA105: 0 | AB105: 0
C107: TOTAL | F107: =SUM(F88:F105) -> 1.480707201 | G107: =SUM(G88:G105) -> 6.006118583 | H107: 18.28673393 | I107: 30.81147892 | J107: 30.69965758 | K107: 29.77337559 | L107: 27.55945834 | M107: 22.39384332 | N107: 17.11014968 | O107: 17.11014968 | P107: 17.11014968 | Q107: 17.11014968 | R107: 17.11014968 | S107: 17.11014968 | T107: 17.11014968 | U107: 16.93183218 | V107: 16.38684932 | W107: 14.90792855 | X107: 13.39520175 | Y107: 13.39520175 | Z107: 12.75223207 | AA107: 10.78715597 | AB107: 5.454526153
B112: 3. | C112: COMPUTATION OF LIQUIDATION VALUE, REAL (EUR)
E116: =E7 -> 2007 | F116: =F7 -> 2008 | G116: =G7 -> 2009 | H116: =H7 -> 2010 | I116: =I7 -> Total
C117: =C8 -> I. Studies & Follow up | E117: =E8/[7]Assumptions!D$114 -> 1.09330805 | F117: =F8/[7]Assumptions!E$114 -> 3.273230427 | G117: =G8/[7]Assumptions!F$114 -> 8.704918694 | H117: =H8/[7]Assumptions!G$114 -> 8.72931447 | I117: =SUM(E117:H117) -> 21.80077164
E118: =E9/[7]Assumptions!D$114 -> 0 | F118: =F9/[7]Assumptions!E$114 -> 0 | G118: =G9/[7]Assumptions!F$114 -> 0 | H118: =H9/[7]Assumptions!G$114 -> 0 | I118: =SUM(E118:H118) -> 0
C119: =C10 -> II. Infrastructures | E119: =E10/[7]Assumptions!D$114 -> 0 | F119: =F10/[7]Assumptions!E$114 -> 0 | G119: =G10/[7]Assumptions!F$114 -> 0 | H119: =H10/[7]Assumptions!G$114 -> 0 | I119: 0
C120: =C11 -> 2.1. Preparatory studies | E120: =E11/[7]Assumptions!D$114 -> 0.1992625 | F120: =F11/[7]Assumptions!E$114 -> 0.5965675255 | G120: =G11/[7]Assumptions!F$114 -> 1.586528025 | H120: =H11/[7]Assumptions!G$114 -> 1.590974314 | I120: 3.973332364
C121: =C12 -> 2.2. Groundworks | E121: =E12/[7]Assumptions!D$114 -> 6.5945874 | F121: =F12/[7]Assumptions!E$114 -> 19.74338718 | G121: =G12/[7]Assumptions!F$114 -> 52.50610488 | H121: =H12/[7]Assumptions!G$114 -> 52.65325469 | I121: 131.4973341
C122: =C13 -> 2.3. Equipments | E122: =E13/[7]Assumptions!D$114 -> 0.3201725 | F122: =F13/[7]Assumptions!E$114 -> 0.9585572602 | G122: =G13/[7]Assumptions!F$114 -> 2.549213445 | H122: =H13/[7]Assumptions!G$114 -> 2.556357686 | I122: 6.384300891
E123: =E14/[7]Assumptions!D$114 -> 0 | F123: =F14/[7]Assumptions!E$114 -> 0 | G123: =G14/[7]Assumptions!F$114 -> 0 | H123: =H14/[7]Assumptions!G$114 -> 0 | I123: 0
C124: =C15 -> III. Superstructures (building & Installations) | E124: =E15/[7]Assumptions!D$114 -> 6.80061435 | F124: =F15/[7]Assumptions!E$114 -> 20.36020664 | G124: =G15/[7]Assumptions!F$114 -> 54.14649145 | H124: =H15/[7]Assumptions!G$114 -> 54.2982385 | I124: 135.6055509
E125: =E16/[7]Assumptions!D$114 -> 0 | F125: =F16/[7]Assumptions!E$114 -> 0 | G125: =G16/[7]Assumptions!F$114 -> 0 | H125: =H16/[7]Assumptions!G$114 -> 0 | I125: 0
C126: =C17 -> IV. Equipments | E126: =E17/[7]Assumptions!D$114 -> 2.46603845 | F126: =F17/[7]Assumptions!E$114 -> 7.383017155 | G126: =G17/[7]Assumptions!F$114 -> 19.63459814 | H126: =H17/[7]Assumptions!G$114 -> 19.68962464 | I126: 49.17327839
E127: =E18/[7]Assumptions!D$114 -> 0 | F127: =F18/[7]Assumptions!E$114 -> 0 | G127: =G18/[7]Assumptions!F$114 -> 0 | H127: =H18/[7]Assumptions!G$114 -> 0 | I127: 0
C128: =C19 -> Total construction works | E128: =E19/[7]Assumptions!D$114 -> 0 | F128: =F19/[7]Assumptions!E$114 -> 0 | G128: =G19/[7]Assumptions!F$114 -> 0 | H128: =H19/[7]Assumptions!G$114 -> 0 | I128: 0
E129: =E20/[7]Assumptions!D$114 -> 0 | F129: =F20/[7]Assumptions!E$114 -> 0 | G129: =G20/[7]Assumptions!F$114 -> 0 | H129: =H20/[7]Assumptions!G$114 -> 0 | I129: 0
C130: =C21 -> V. Studies, assistance & work monitoring | E130: =E21/[7]Assumptions!D$114 -> 0.7012655 | F130: =F21/[7]Assumptions!E$114 -> 2.099503038 | G130: =G21/[7]Assumptions!F$114 -> 5.583475911 | H130: =H21/[7]Assumptions!G$114 -> 5.599123757 | I130: 13.98336821
E131: =E22/[7]Assumptions!D$114 -> 0 | F131: =F22/[7]Assumptions!E$114 -> 0 | G131: =G22/[7]Assumptions!F$114 -> 0 | H131: =H22/[7]Assumptions!G$114 -> 0 | I131: 0
C132: =C23 -> VI. Follow-up by AIBD | E132: =E23/[7]Assumptions!D$114 -> 0.388745 | F132: =F23/[7]Assumptions!E$114 -> 1.163854929 | G132: =G23/[7]Assumptions!F$114 -> 3.09518769 | H132: =H23/[7]Assumptions!G$114 -> 3.103862039 | I132: 7.751649658
E133: =E24/[7]Assumptions!D$114 -> 0 | F133: =F24/[7]Assumptions!E$114 -> 0 | G133: =G24/[7]Assumptions!F$114 -> 0 | H133: =H24/[7]Assumptions!G$114 -> 0 | I133: 0
C134: =C25 -> VII. Environmental measures | E134: =E25/[7]Assumptions!D$114 -> 0.11433675 | F134: =F25/[7]Assumptions!E$114 -> 0.3423102291 | G134: =G25/[7]Assumptions!F$114 -> 0.9103492035 | H134: =H25/[7]Assumptions!G$114 -> 0.9129004824 | I134: 2.279896665
E135: =E26/[7]Assumptions!D$114 -> 0 | F135: =F26/[7]Assumptions!E$114 -> 0 | G135: =G26/[7]Assumptions!F$114 -> 0 | H135: =H26/[7]Assumptions!G$114 -> 0 | I135: 0
C136: =C27 -> VIII. Access roads | E136: =E27/[7]Assumptions!D$114 -> 0.86133695 | F136: =F27/[7]Assumptions!E$114 -> 2.578737358 | G136: =G27/[7]Assumptions!F$114 -> 6.857964796 | H136: =H27/[7]Assumptions!G$114 -> 6.877184432 | I136: 17.17522354
I137: =SUM(E137:H137) -> 0
C138: =C29 -> Grand total | E138: =SUM(E117,E120:E122,E124,E126,E130,E132,E134,E136) -> 19.53966745 | F138: =SUM(F117,F120:F122,F124,F126,F130,F132,F134,F136) -> 58.49937173 | G138: =SUM(G117,G120:G122,G124,G126,G130,G132,G134,G136) -> 155.5748322 | H138: =SUM(H117,H120:H122,H124,H126,H130,H132,H134,H136) -> 156.010835 | I138: =SUM(I117,I120:I122,I124,I126,I130,I132,I134,I136) -> 389.6247064
C142: Total capex (EUR) | D142: =I138*1000000 -> 389624706.4
C144: Economic life in years | D144: 40
C146: Annual depreciation | D146: =D142/D144 -> 9740617.661
C148: Operating period considered in years | D148: 15
C150: Liquidating value in 2025 | D150: =D142-D146*D148 -> 243515441.5

Sheet Budget AIBD SA
J2: Exchange rate | K2: =Assumptions!F25 -> 0.00152449
A4: ANNEE | B4: (N-1) | C4: (N) | D4: (N+1) | E4: (N+2) | F4: (N+3) | G4: (N+4) | H4: (N+5) | I4: TOTAL
A5: DESIGNATION | B5: 2006 | C5: 2007 En cours | D5: 2008 | E5: 2009 | F5: 2010 | G5: 2011 | H5: 2012 | K5: 2006 | L5: =+K5+1 -> 2007 | M5: =+L5+1 -> 2008 | N5: =+M5+1 -> 2009 | O5: =+N5+1 -> 2010 | P5: =+O5+1 -> 2011 | Q5: =+P5+1 -> 2012 | R5: 2013 | S5: 2014 | T5: 2015 | U5: 2016 | V5: 2017 | W5: 2018 | X5: 2019 | Y5: 2020 | Z5: 2021 | AA5: 2022 | AB5: 2023 | AC5: 2024 | AD5: 2025 | AE5: 2026
A6: I - Dépenses d'Equipements
A7: 1. Véhicules (5 plus scooter) | B7: 60 | C7: 70 | D7: 0 | E7: 0 | F7: 0 | G7: 69 | H7: 80.5 | I7: =SUM(B7:H7) -> 279.5 | K7: =B7*$K$2 -> 0.0914694 | L7: =C7*$K$2 -> 0.1067143 | M7: 0 | N7: 0 | O7: 0 | P7: 0.10518981 | Q7: 0.122721445
A8: 2. Ordinateurs (Serveurs + 4 ordinateurs port. + 15 PC) | B8: 13.5 | C8: 15 | D8: 0 | E8: 0 | F8: 9.5 | G8: 10.5 | H8: 0 | I8: 48.5 | K8: =B8*$K$2 -> 0.020580615 | L8: 0.02286735 | M8: 0 | N8: 0 | O8: 0.014482655 | P8: 0.016007145 | Q8: 0
A9: 3. Cablâge informatique/électrique/téléphonique | B9: 17 | C9: 17 | D9: 0 | E9: 0 | F9: 0 | G9: 0 | H9: 0 | I9: 34 | K9: 0.02591633 | L9: 0.02591633 | M9: 0 | N9: 0 | O9: 0 | P9: 0 | Q9: 0
A10: 4. Imprimantes /Fax/Photocopieuses | B10: 6.5 | C10: 6 | D10: 0 | E10: 0 | F10: 0 | G10: 4 | H10: 4 | I10: 20.5 | K10: 0.009909185 | L10: 0.00914694 | M10: 0 | N10: 0 | O10: 0 | P10: 0.00609796 | Q10: 0.00609796
A11: 5. Appareils téléphones fixes + mobiles | B11: 1.7 | C11: 4.2 | D11: 0 | E11: 0 | F11: 5 | G11: 0 | H11: 0 | I11: 10.9 | K11: 0.002591633 | L11: 0.006402858 | M11: 0 | N11: 0 | O11: 0.00762245 | P11: 0 | Q11: 0
A12: 6. Mobilier Domicile | B12: 12 | C12: 0 | D12: 0 | E12: 0 | F12: 0 | G12: 0 | H12: 0 | I12: 12 | K12: 0.01829388 | L12: 0 | M12: 0 | N12: 0 | O12: 0 | P12: 0 | Q12: 0
A13: 7. Mobilier Bureau | B13: 25 | C13: 20 | D13: 0 | E13: 0 | F13: 10 | G13: 0 | H13: 0 | I13: 55 | K13: 0.03811225 | L13: 0.0304898 | M13: 0 | N13: 0 | O13: 0.0152449 | P13: 0 | Q13: 0
A14: 8. Aménagements bureaux et climatisation | B14: 18.5 | C14: 18.5 | D14: 0 | E14: 0 | F14: 0 | G14: 0 | H14: 0 | I14: 37 | K14: 0.028203065 | L14: 0.028203065 | M14: 0 | N14: 0 | O14: 0 | P14: 0 | Q14: 0
A15: Sous Total 1 | B15: =SUM(B7:B14) -> 154.2 | C15: 150.7 | D15: 0 | E15: 0 | F15: 24.5 | G15: 83.5 | H15: 84.5 | I15: 497.4 | K15: 0.235076358 | L15: 0.229740643 | M15: 0 | N15: 0 | O15: 0.037350005 | P15: 0.127294915 | Q15: 0.128819405
A16: II - Dépenses de Fonctionnement
A17: 1. Location Locaux (Bureaux + Dom) | B17: 52 | C17: 78 | D17: 93.6 | E17: 93.6 | F17: 18 | G17: 18 | H17: 18 | I17: =SUM(B17:H17) -> 371.2 | K17: 0.07927348 | L17: =C17*$K$2 -> 0.11891022 | M17: =D17*$K$2 -> 0.142692264 | N17: =E17*$K$2 -> 0.142692264 | O17: =F17*$K$2 -> 0.02744082 | P17: =G17*$K$2 -> 0.02744082 | Q17: =H17*$K$2 -> 0.02744082
A18: 2. Réunions Statuaires | B18: 40 | C18: 40 | D18: 32 | E18: 40 | F18: 30 | G18: 30 | H18: 30 | I18: =SUM(B18:H18) -> 242 | K18: =B18*$K$2 -> 0.0609796 | L18: 0.0609796 | M18: 0.04878368 | N18: 0.0609796 | O18: 0.0457347 | P18: 0.0457347 | Q18: 0.0457347
A19: 3. Frais de personnel (Salaires, Assurances, | B19: 55.5 | C19: 200 | D19: 250 | E19: 260 | F19: 273 | G19: 287 | H19: 301 | I19: =SUM(B19:H19) -> 1626.5 | K19: 0.084609195 | L19: 0.304898 | M19: 0.3811225 | N19: 0.3963674 | O19: 0.41618577 | P19: 0.43752863 | Q19: 0.45887149
A20: retraite complémentaire, Assurance Mal/Décès) | K20: 0 | L20: 0 | M20: 0 | N20: 0 | O20: 0 | P20: 0 | Q20: 0
A21: 4. Communications (téléphone, Internet) | B21: 4.8 | C21: 15 | D21: 20 | E21: 20 | F21: 19 | G21: 18 | H21: 17 | I21: =SUM(B21:H21) -> 113.8 | K21: 0.007317552 | L21: 0.02286735 | M21: 0.0304898 | N21: 0.0304898 | O21: 0.02896531 | P21: 0.02744082 | Q21: 0.02591633
A22: 5. Véhicules | K22: 0 | L22: 0 | M22: 0 | N22: 0 | O22: 0 | P22: 0 | Q22: 0
A23: - Entretien, assurances et documents | B23: 1 | C23: 7 | D23: 10 | E23: 12 | F23: 15 | G23: 10 | H23: 8 | I23: =SUM(B23:H23) -> 63 | K23: 0.00152449 | L23: 0.01067143 | M23: 0.0152449 | N23: 0.01829388 | O23: 0.02286735 | P23: 0.0152449 | Q23: 0.01219592
A24: - Carburant | B24: 2.7 | C24: 17 | D24: 20 | E24: 22 | F24: 24.5 | G24: 27 | H24: 30 | I24: 143.2 | K24: 0.004116123 | L24: 0.02591633 | M24: 0.0304898 | N24: 0.03353878 | O24: 0.037350005 | P24: 0.04116123 | Q24: 0.0457347
A25: - Location | B25: 3 | C25: 2 | D25: 2 | E25: 2 | F25: 3 | G25: 3 | H25: 3 | I25: 18 | K25: 0.00457347 | L25: 0.00304898 | M25: 0.00304898 | N25: 0.00304898 | O25: 0.00457347 | P25: 0.00457347 | Q25: 0.00457347
A26: 6. Fournitures administratives et informatiques | B26: 3 | C26: 18 | D26: 24 | E26: 24 | F26: 20 | G26: 20 | H26: 20 | I26: 129 | K26: 0.00457347 | L26: 0.02744082 | M26: 0.03658776 | N26: 0.03658776 | O26: 0.0304898 | P26: 0.0304898 | Q26: 0.0304898
A27: 7. Frais de déplacement (Missions) | B27: 47 | C27: 90 | D27: 80 | E27: 90 | F27: 95 | G27: 100 | H27: 105 | I27: 607 | K27: 0.07165103 | L27: 0.1372041 | M27: 0.1219592 | N27: 0.1372041 | O27: 0.14482655 | P27: 0.152449 | Q27: 0.16007145
A28: 8. Séminaires & Formation | B28: 0 | C28: 10 | D28: 10 | E28: 10 | F28: 15 | G28: 18 | H28: 22 | I28: 85 | K28: 0 | L28: 0.0152449 | M28: 0.0152449 | N28: 0.0152449 | O28: 0.02286735 | P28: 0.02744082 | Q28: 0.03353878
A29: 9. Frais Eau et Electricité | B29: 3 | C29: 15 | D29: 18 | E29: 20 | F29: 22 | G29: 25 | H29: 27.5 | I29: 130.5 | K29: 0.00457347 | L29: 0.02286735 | M29: 0.02744082 | N29: 0.0304898 | O29: 0.03353878 | P29: 0.03811225 | Q29: 0.041923475
A30: 10. Frais de communication et publicité | B30: 39 | C30: 375 | D30: 100 | E30: 100 | F30: 500 | G30: 100 | H30: 100 | I30: 1314 | K30: 0.05945511 | L30: 0.57168375 | M30: 0.152449 | N30: 0.152449 | O30: 0.762245 | P30: 0.152449 | Q30: 0.152449
A31: 11. Frais de représentation | B31: 1.3 | C31: 15 | D31: 20 | E31: 22 | F31: 25 | G31: 27.5 | H31: 30 | I31: 140.8 | K31: 0.001981837 | L31: 0.02286735 | M31: 0.0304898 | N31: 0.03353878 | O31: 0.03811225 | P31: 0.041923475 | Q31: 0.0457347
A32: 12. Consultants/Prestataires Divers | B32: 18 | C32: 40 | D32: 50 | E32: 50 | F32: 55 | G32: 60 | H32: 65 | I32: 338 | K32: 0.02744082 | L32: 0.0609796 | M32: 0.0762245 | N32: 0.0762245 | O32: 0.08384695 | P32: 0.0914694 | Q32: 0.09909185
A33: Sous Total 2 | B33: =SUM(B17:B32) -> 270.3 | C33: 922 | D33: 729.6 | E33: 765.6 | F33: 1114.5 | G33: 743.5 | H33: 776.5 | I33: 5322 | K33: 0.412069647 | L33: 1.40557978 | M33: 1.112267904 | N33: 1.167149544 | O33: 1.699044105 | P33: 1.133458315 | Q33: 1.183766485
A37: III - Expertises
A38: 1. Conseil Financier (Payé sur financement) (BMCE) | B38: 1850 | C38: 7610 | D38: 0 | E38: 0 | F38: 0 | G38: 0 | H38: 0 | I38: =SUM(B38:E38) -> 9460 | K38: =B38*$K$2 -> 2.8203065 | L38: =C38*$K$2 -> 11.6013689 | M38: =D38*$K$2 -> 0 | N38: =E38*$K$2 -> 0 | O38: =F38*$K$2 -> 0 | P38: =G38*$K$2 -> 0 | Q38: =H38*$K$2 -> 0
A39: 2. Arrangeur Financier (BNP) | B39: 0 | C39: 6723 | D39: 0 | E39: 0 | F39: 0 | G39: 0 | H39: 0 | I39: =SUM(C39:E39) -> 6723 | K39: 0 | L39: 10.24914627 | M39: 0 | N39: 0 | O39: 0 | P39: 0 | Q39: 0
A40: 3. Expert Technique Indépendant | B40: 0 | C40: 157 | D40: 85 | E40: 85 | F40: 0 | G40: 0 | H40: 0 | I40: =SUM(C40:E40) -> 327 | K40: 0 | L40: 0.23934493 | M40: 0.12958165 | N40: 0.12958165 | O40: 0 | P40: 0 | Q40: 0
A41: 4. Assist. Maitrise ouvrage (Payé sur financement) (STUDI) | B41: 0 | C41: 1218 | D41: 1077 | E41: 1077 | F41: 0 | G41: 0 | H41: 0 | I41: =SUM(C41:E41) -> 3372 | K41: 0 | L41: 1.85682882 | M41: 1.64187573 | N41: 1.64187573 | O41: 0 | P41: 0 | Q41: 0
A42: 5. Conseil Juridique (Gide + Locaux) | B42: 100 | C42: 150 | D42: 50 | E42: 50 | F42: 25 | G42: 25 | H42: 25 | I42: =SUM(B42:H42) -> 425 | K42: 0.152449 | L42: 0.2286735 | M42: 0.0762245 | N42: 0.0762245 | O42: 0.03811225 | P42: 0.03811225 | Q42: 0.03811225
A43: 6. Conseil Technique/Audit (BAERA/TECSULT/ASECNA etc.) | B43: 0 | C43: 200 | D43: 350 | E43: 350 | F43: 0 | G43: 0 | H43: 0 | I43: 900 | K43: 0 | L43: 0.304898 | M43: 0.5335715 | N43: 0.5335715 | O43: 0 | P43: 0 | Q43: 0
A44: 7. Etude Impact Environnemental (DAR, SBG) | B44: PM | C44: PM | D44: PM | E44: PM | F44: 0 | G44: 0 | H44: 0 | I44: 0 | O44: 0 | P44: 0 | Q44: 0
A45: 8. Cartographie/Topographie | B45: 85 | C45: 48 | D45: 0 | E45: 0 | F45: 0 | G45: 0 | H45: 0 | I45: 133 | K45: 0.12958165 | L45: 0.07317552 | M45: 0 | N45: 0 | O45: 0 | P45: 0 | Q45: 0
A46: 9. Elaboration DAO + Assistance Sélection | B46: 155 | C46: 0 | D46: 0 | E46: 0 | F46: 0 | G46: 0 | H46: 0 | I46: 155 | K46: 0.23629595 | L46: 0 | M46: 0 | N46: 0 | O46: 0 | P46: 0 | Q46: 0
F47: 0 | G47: 0 | H47: 0 | K47: 0 | L47: 0 | M47: 0 | N47: 0 | O47: 0 | P47: =G47*$K$2 -> 0 | Q47: =H47*$K$2 -> 0
A48: Sous Total 3 | B48: =SUM(B38:B47) -> 2190 | C48: =SUM(C38:C47) -> 16106 | D48: =SUM(D38:D44) -> 1562 | E48: =SUM(E40:E47) -> 1562 | F48: =SUM(F40:F47) -> 25 | G48: =SUM(G40:G47) -> 25 | H48: =SUM(H40:H47) -> 25 | I48: =SUM(I38:I47) -> 21495 | K48: 3.3386331 | L48: 24.55343594 | M48: 2.38125338 | N48: 2.38125338 | O48: 0.03811225 | P48: =G48*$K$2 -> 0.03811225 | Q48: =H48*$K$2 -> 0.03811225
A49: IV - Autres Dépenses
A50: 1. Remboursement Etat/Apix | B50: 0 | C50: 0 | D50: 0 | E50: 0 | F50: 0 | G50: 0 | H50: 0 | I50: 0 | K50: =B50*$K$2 -> 0 | L50: 0 | M50: 0 | N50: 0 | O50: 0 | P50: =G50*$K$2 -> 0 | Q50: =H50*$K$2 -> 0
A51: 2. Déplacement des populations (GOE + Mesures d'accomp.) | B51: 0 | C51: 50 | D51: 50 | E51: 50 | F51: 30 | G51: 30 | H51: 30 | I51: =SUM(C51:H51) -> 240 | K51: 0 | L51: 0.0762245 | M51: 0.0762245 | N51: 0.0762245 | O51: 0.0457347 | P51: 0.0457347 | Q51: 0.0457347
A52: 3. Etudes routes d'accès | B52: 0 | C52: 100 | D52: 0 | E52: 0 | F52: 0 | G52: 0 | H52: 0 | I52: 100 | K52: 0 | L52: 0.152449 | M52: 0 | N52: 0 | O52: 0 | P52: 0 | Q52: 0
A53: 4. Aménagement site recasement | B53: 0 | C53: 450 | D53: 0 | E53: 0 | F53: 0 | G53: 0 | H53: 0 | I53: =SUM(C53:E53) -> 450 | K53: 0 | L53: 0.6860205 | M53: 0 | N53: 0 | O53: 0 | P53: 0 | Q53: 0
A54: 5. Amenée (Eau/Electricité/Tel) | B54: 0 | C54: 0 | D54: 0 | E54: 0 | F54: 0 | G54: 0 | H54: 0 | K54: 0 | L54: 0 | M54: 0 | N54: 0 | O54: 0 | P54: 0 | Q54: 0
A55: Sous Total 4 | B55: 0 | C55: =SUM(C50:C54) -> 600 | D55: =SUM(D50:D54) -> 50 | E55: =SUM(E51:E54) -> 50 | F55: =SUM(F51:F54) -> 30 | G55: =SUM(G51:G54) -> 30 | H55: =SUM(H51:H54) -> 30 | I55: =SUM(I50:I54) -> 790 | K55: 0 | L55: 0.914694 | M55: 0.0762245 | N55: 0.0762245 | O55: 0.0457347 | P55: 0.0457347 | Q55: 0.0457347
A57: TOTAL (I + II + III + IV) | B57: =+B48+B33+B15 -> 2614.5 | C57: =+C48+C33+C15+C55 -> 17778.7 | D57: 2341.6 | E57: 2377.6 | F57: 1194 | G57: 882 | H57: 916 | I57: 28104.4
A58: IV - Imprévus & Divers
A59: 5 % Budget (I + II + III + IV) | B59: 0 | C59: =+C57*5% -> 888.935 | D59: 117.08 | E59: 118.88 | F59: 59.7 | G59: 44.1 | H59: 45.8 | I59: =SUM(C59:H59) -> 1274.495 | K59: =B59*$K$2 -> 0 | L59: 1.355172518 | M59: 0.1784872892 | N59: 0.1812313712 | O59: 0.091012053 | P59: 0.067230009 | Q59: 0.069821642
A61: TOTAL BUDGET | B61: =+B57 -> 2614.5 | C61: =+C59+C57 -> 18667.635 | D61: 2458.68 | E61: 2496.48 | F61: 1253.7 | G61: 926.1 | H61: 961.8 | I61: =SUM(I57+I59) -> 29378.895 | K61: =B61*$K$2 -> 3.985779105 | L61: 28.45862288 | M61: 3.748233073 | N61: 3.805858795 | O61: 1.911253113 | P61: 1.411830189 | Q61: 1.466254482
A63: N.B. : Ne sont pas inclus dans le présent budget :
A65: 1) Coût du PDR (Programme de Déplacement | B65: - Aménagement site recasement : 1 milliard | I65: operating costs | K65: =+K33 -> 0.412069647 | L65: =+L33 -> 1.40557978 | M65: 1.112267904 | N65: 1.167149544 | O65: 1.699044105 | P65: 1.133458315 | Q65: 1.183766485 | R65: =Q65*(1+R66) -> 1.231117144 | S65: =R65*(1+S66) -> 1.28036183 | T65: =S65*(1+T66) -> 1.331576303 | U65: 1.384839356 | V65: 1.44023293 | W65: 1.497842247 | X65: 1.557755937 | Y65: 1.620066174 | Z65: 1.684868821 | AA65: 1.752263574 | AB65: 1.822354117 | AC65: 1.895248282 | AD65: 1.971058213 | AE65: 2.049900542
A66: et de Réimplantation) | B66: - Impenses (1) : 1,8 milliard | R66: 0.04 | S66: =$R$66 -> 0.04 | T66: =$R$66 -> 0.04 | U66: 0.04 | V66: 0.04 | W66: 0.04 | X66: 0.04 | Y66: 0.04 | Z66: 0.04 | AA66: 0.04 | AB66: 0.04 | AC66: 0.04 | AD66: 0.04 | AE66: 0.04
B68: - Equipements Recasement : 1,1 milliard | I68: capex | K68: =K15+K55+K59 -> 0.235076358 | L68: =L15+L55+L59 -> 2.499607161 | M68: 0.2547117892 | N68: 0.2574558712 | O68: 0.174096758 | P68: 0.240259624 | Q68: 0.244375747 | R68: 0 | S68: =R68*(1+S69) -> 0 | T68: 0 | U68: 0 | V68: 0 | W68: 0 | X68: 0 | Y68: 0 | Z68: 0 | AA68: 0 | AB68: 0 | AC68: 0 | AD68: 0 | AE68: 0
R69: =$R$66 -> 0.04 | S69: =$R$66 -> 0.04 | T69: 0.04 | U69: 0.04 | V69: 0.04 | W69: 0.04 | X69: 0.04 | Y69: 0.04 | Z69: 0.04 | AA69: 0.04 | AB69: 0.04 | AC69: 0.04 | AD69: 0.04 | AE69: 0.04
I71: dvpt costs | K71: =+K48 -> 3.3386331 | L71: =+L48 -> 24.55343594 | M71: 2.38125338 | N71: 2.38125338 | O71: 0.03811225 | P71: 0.03811225 | Q71: 0.03811225 | R71: 0 | S71: =R71*(1+S72) -> 0 | T71: 0 | U71: 0 | V71: 0 | W71: 0 | X71: 0 | Y71: 0 | Z71: 0 | AA71: 0 | AB71: 0 | AC71: 0 | AD71: 0 | AE71: 0
A72: 2) Coût d'Amenée des réseaux : | B72: - 3,300 milliards. | R72: =$R$66 -> 0.04 | S72: =$R$66 -> 0.04 | T72: 0.04 | U72: 0.04 | V72: 0.04 | W72: 0.04 | X72: 0.04 | Y72: 0.04 | Z72: 0.04 | AA72: 0.04 | AB72: 0.04 | AC72: 0.04 | AD72: 0.04 | AE72: 0.04
A74: 3) Les dépenses de l'Etat/APIX antérieures à la création d'AIBD SA. | K74: =SUM(K65:K71) -> 3.985779105 | L74: =SUM(L65:L71) -> 28.45862288 | M74: 3.748233073 | N74: 3.805858795 | O74: 1.911253113 | P74: 1.411830189 | Q74: 1.466254482 | R74: =+R65+R68+R71 -> 1.231117144 | S74: =+S65+S68+S71 -> 1.28036183 | T74: 1.331576303 | U74: 1.384839356 | V74: 1.44023293 | W74: 1.497842247 | X74: 1.557755937 | Y74: 1.620066174 | Z74: 1.684868821 | AA74: 1.752263574 | AB74: 1.822354117 | AC74: 1.895248282 | AD74: 1.971058213 | AE74: 2.049900542
I75: check | K75: =K74-K61 -> 0 | L75: =L74-L61 -> 0 | M75: 0 | N75: 0 | O75: 0 | P75: 0 | Q75: 0
A78: Payment to Senegalese Transport Authorities (FCFA 4 per PIM) | F78: 4 | O78: =F78*$K$2*10^3 -> 6.09796 | P78: =O78*(1+P79) -> 6.3418784 | Q78: =P78*(1+Q79) -> 6.595553536 | R78: 6.859375677 | S78: 7.133750705 | T78: 7.419100733 | U78: 7.715864762 | V78: 8.024499353 | W78: 8.345479327 | X78: 8.6792985 | Y78: 9.02647044 | Z78: 9.387529257 | AA78: 9.763030428 | AB78: 10.15355164 | AC78: 10.55969371 | AD78: 10.98208146 | AE78: 11.42136472
P79: =+$R$66 -> 0.04 | Q79: =+$R$66 -> 0.04 | R79: 0.04 | S79: 0.04 | T79: 0.04 | U79: 0.04 | V79: 0.04 | W79: 0.04 | X79: 0.04 | Y79: 0.04 | Z79: 0.04 | AA79: 0.04 | AB79: 0.04 | AC79: 0.04 | AD79: 0.04 | AE79: 0.04
A81: Reserves for repairs and equipment renewals (FCFA 2 per PIM) | F81: 2 | O81: =F81*$K$2*10^3 -> 3.04898 | P81: =O81*(1+P82) -> 3.1709392 | Q81: =P81*(1+Q82) -> 3.297776768 | R81: 3.429687839 | S81: 3.566875352 | T81: 3.709550366 | U81: 3.857932381 | V81: 4.012249676 | W81: 4.172739663 | X81: 4.33964925 | Y81: 4.51323522 | Z81: 4.693764629 | AA81: 4.881515214 | AB81: 5.076775822 | AC81: 5.279846855 | AD81: 5.491040729 | AE81: 5.710682359
P82: =+$R$66 -> 0.04 | Q82: =+$R$66 -> 0.04 | R82: 0.04 | S82: 0.04 | T82: 0.04 | U82: 0.04 | V82: 0.04 | W82: 0.04 | X82: 0.04 | Y82: 0.04 | Z82: 0.04 | AA82: 0.04 | AB82: 0.04 | AC82: 0.04 | AD82: 0.04 | AE82: 0.04

Sheet PPT table
A8: Project capital expenditure (capex) | D8: Capex | F8: Min | H8: Annual DSCR (first 6 years) | O8: Opening | Q8: Tenor
A9: scenarios | D9: €m | F9: DSCR | H9: 2011 | I9: 2012 | J9: 2013 | K9: 2014 | L9: 2015 | M9: 2016 | O9: LLCR | Q9: years
A11: 1. Base case traffic projections
A13: 1 | B13: Initial cost | D13: ='Capex assumptions'!D8 -> 416652339.9 | F13: 1.400641513 | H13: 1.400641513 | I13: 1.42826083 | J13: 1.725196329 | K13: 1.554751991 | L13: 1.667940105 | M13: 1.639091684 | O13: 1.716333694 | Q13: 8 | S13: 7.58630137 | T13: 2017-09-01
A14: 2 | B14: Initials cost + claims (AIBD view) | D14: ='Capex assumptions'!D13 -> 498277339.9 | F14: 1.147815898 | H14: 1.147815898 | I14: 1.190276247 | J14: 1.398080633 | K14: 1.292326922 | L14: 1.368058324 | M14: 1.347742481 | O14: 1.453755616 | Q14: 10 | S14: 9.501369863 | T14: 2019-08-01
A15: 3 | B15: Total revised capex (AIBD view) | D15: ='Capex assumptions'!D16 -> 564354841.9 | F15: 1.000975653 | H15: 1.000975653 | I15: 1.048803708 | J15: 1.212050259 | K15: 1.136973347 | L15: 1.194242637 | M15: 1.178207563 | O15: 1.227704686 | Q15: 11 | S15: 11.3369863 | T15: 2021-06-01
A16: 4 | B16: Total revised capex - Worst case | D16: ='Capex assumptions'!D20 -> 600827929.2 | F16: 0.9347868532 | H16: 0.9347868532 | I16: 0.984231607 | J16: 1.12958881 | K16: 1.066273839 | L16: 1.116033016 | M16: 1.101764217 | O16: 1.128383649 | Q16: 12 | S16: 12.16986301 | T16: 2022-04-01
A18: 2. Low case traffic projections
A20: 1 | B20: Initial cost | D20: =D13 -> 416652339.9 | F20: 1.375821342 | H20: 1.381882388 | I20: 1.383498981 | J20: 1.598745499 | K20: 1.375821342 | L20: 1.465903848 | M20: 1.429151027 | O20: 1.581835127 | Q20: 8 | S20: 8.167123288 | T20: 2018-04-01
A21: 2 | B21: Initials cost + claims (AIBD view) | D21: =D14 -> 498277339.9 | F21: 1.132409721 | H21: 1.132409721 | I21: 1.153284457 | J21: 1.297208706 | K21: 1.14688201 | L21: 1.20748445 | M21: 1.183286964 | O21: 1.335319753 | Q21: 10 | S21: 10.3369863 | T21: 2020-06-01
A22: 3 | B22: Total revised capex (AIBD view) | D22: =D15 -> 564354841.9 | F22: 0.9875168577 | H22: 0.9875168577 | I22: 1.01637188 | J22: 1.12556214 | K22: 1.010747683 | L22: 1.056705681 | M22: 1.038657781 | O22: 1.126054079 | Q22: 12 | S22: 12.16986301 | T22: 2022-04-01
A23: 4 | B23: Total revised capex - Worst case | D23: =D16 -> 600827929.2 | F23: 0.9222058474 | H23: 0.9222058474 | I23: 0.9538664376 | J23: 1.050087663 | K23: 0.9486830898 | L23: 0.9890450229 | M23: 0.9731741072 | O23: 1.034108058 | Q23: 13 | S23: 12.67123288 | T23: 2022-10-01
A25: 3. Stress case traffic projections
A27: 1 | B27: Initial cost | D27: =D20 -> 416652339.9 | F27: 1.159988265 | H27: 1.217291068 | I27: 1.200228607 | J27: 1.363726952 | K27: 1.159988265 | L27: 1.225098086 | M27: 1.176933201 | O27: 1.37913618 | Q27: 9 | S27: 9.334246575 | T27: 2019-06-01
A28: 2 | B28: Initials cost + claims (AIBD view) | D28: =D21 -> 498277339.9 | F28: 0.9448207322 | H28: 0.9972369517 | I28: 1.00287347 | J28: 1.113232108 | K28: 0.9737794171 | L28: 1.018187307 | M28: 0.9853827547 | O28: 1.158878144 | Q28: 12 | S28: 11.83835616 | T28: 2021-12-01
A29: 3 | B29: Total revised capex (AIBD view) | D29: =D22 -> 564354841.9 | F29: 0.8493402071 | H29: 0.8694302808 | I29: 0.8850600174 | J29: 0.9727972738 | K29: 0.8649205922 | L29: 0.9009926641 | M29: 0.8798963279 | O29: 0.9750836223 | Q29: 13 | S29: 12.67123288 | T29: 2022-10-01
A30: 4 | B30: Total revised capex - Worst case | D30: =D23 -> 600827929.2 | F30: 0.811820937 | H30: 0.811820937 | I30: 0.8311636788 | J30: 0.9099489674 | K30: 0.8181889945 | L30: 0.8520903342 | M30: 0.8379219285 | O30: 0.8979191736 | Q30: 13 | S30: 12.67123288 | T30: 2022-10-01
H33: =2011 -> 2011 | I33: =+H33+1 -> 2012 | J33: =+I33+1 -> 2013 | K33: =+J33+1 -> 2014 | L33: =+K33+1 -> 2015 | M33: =+L33+1 -> 2016
F34: =Hypothese!C48 ->  | H34: ='Airport CFS'!O263 ->  | I34: ='Airport CFS'!P263 ->  | J34: ='Airport CFS'!Q263 ->  | K34: ='Airport CFS'!R263 ->  | L34: ='Airport CFS'!S263 ->  | M34: ='Airport CFS'!T263 ->  | O34: =Hypothese!C47 ->  | Q34: =+ROUND((T34-Hypothese!$D$20)/365,0.5) -> 0 | S34: =((T34-Hypothese!$D$20)/365) -> 0 | T34: =Hypothese!C50 -> 2010-02-01

Sheet PPT table 2
B2: Project capital expenditure (capex) | E2: Capex | G2: Min | I2: Annual DSCR (first 6 years) | P2: Opening | R2: Tenor
B3: scenarios | E3: €m | G3: DSCR | I3: 2011 | J3: 2012 | K3: 2013 | L3: 2014 | M3: 2015 | N3: 2016 | P3: LLCR | R3: years
B5: 1. Base case traffic projections
B7: 1 | C7: Initial cost | E7: ='Capex assumptions'!D8 -> 416652339.9 | G7: 1.353986614 | I7: 1.400641513 | J7: 1.353986614 | K7: 1.558938123 | L7: 1.425986836 | M7: 1.522568926 | N7: 1.541851558 | P7: 1.716333694 | R7: 8 | U7: 2017-12-01
B8: 2 | C8: Initial costs + claims | E8: ='Capex assumptions'!D13 -> 498277339.9 | G8: 1.147815898 | I8: 1.147815898 | J8: 1.151788259 | K8: 1.315678076 | L8: 1.209488869 | M8: 1.273282178 | N8: 1.256847038 | P8: 1.453755616 | R8: 10 | U8: 2018-10-01
B9: 3 | C9: Total revised capex - AIBD | E9: ='Capex assumptions'!D16 -> 564354841.9 | G9: 1.000975653 | I9: 1.000975653 | J9: 1.026427025 | K9: 1.167166928 | L9: 1.088255513 | M9: 1.135543322 | N9: 1.114236273 | P9: 1.227704686 | R9: 12 | U9: 2020-07-01
B11: 2. Low case traffic projections
B13: 1 | C13: Initial cost | E13: =E7 -> 416652339.9 | G13: 1.26873979 | I13: 1.381882388 | J13: 1.314169785 | K13: 1.45299385 | L13: 1.26873979 | M13: 1.342070029 | N13: 1.339023467 | P13: 1.581835127 | R13: 8 | U13: 2018-06-01
B14: 2 | C14: Initial costs + claims | E14: =E8 -> 498277339.9 | G14: 1.081009095 | I14: 1.132409721 | J14: 1.117725969 | K14: 1.227403881 | L14: 1.081009095 | M14: 1.130485227 | N14: 1.1104144 | P14: 1.335319753 | R14: 11 | U14: 2019-07-01
B15: 3 | C15: Total revised capex - AIBD | E15: =E9 -> 564354841.9 | G15: 0.9772428714 | I15: 0.9875168577 | J15: 0.9959325001 | K15: 1.088303976 | L15: 0.9772428714 | M15: 1.018181542 | N15: 0.9995019327 | P15: 1.126054079 | R15: 12 | U15: 2021-06-01
B17: 3. Stress case traffic projections
B19: 1 | C19: Initial cost | E19: =E13 -> 416652339.9 | G19: 1.082696475 | I19: 1.217291068 | J19: 1.154599908 | K19: 1.272896519 | L19: 1.082696475 | M19: 1.13515945 | N19: 1.100302958 | P19: 1.37913618 | R19: 10 | U19: 2019-08-01
B20: 2 | C20: Initial costs + claims | E20: =E14 -> 498277339.9 | G20: 0.91 | I20: 0.9972369517 | J20: 0.9812179749 | K20: 1.073855713 | L20: 0.9417925673 | M20: 0.9818860161 | N20: 0.9516524148 | P20: 1.158878144 | R20: 12 | U20: 2020-10-01
B21: 3 | C21: Total revised capex - AIBD | E21: =E15 -> 564354841.9 | G21: 0.8345931719 | I21: 0.8694302808 | J21: 0.8737226739 | K21: 0.9511261549 | L21: 0.8499813403 | M21: 0.8838570732 | N21: 0.8635324075 | P21: 0.9750836223 | R21: 13 | U21: 2022-10-01
I24: =2011 -> 2011 | J24: =+I24+1 -> 2012 | K24: =+J24+1 -> 2013 | L24: =+K24+1 -> 2014 | M24: =+L24+1 -> 2015 | N24: =+M24+1 -> 2016
G25: =Hypothese!C48 ->  | I25: ='Airport CFS'!O263 ->  | J25: ='Airport CFS'!P263 ->  | K25: ='Airport CFS'!Q263 ->  | L25: ='Airport CFS'!R263 ->  | M25: ='Airport CFS'!S263 ->  | N25: ='Airport CFS'!T263 ->  | P25: =Hypothese!C47 ->  | R25: =+ROUND((U25-Hypothese!$D$20)/365,0.5) -> 0 | T25: =((U25-Hypothese!$D$20)/365) -> 0 | U25: =Hypothese!C50 -> 2010-02-01

Sheet PPT
A1: AIBD integrated model
A2: Summary financials
I4: =Assumptions!I17 -> 2005 | J4: =Assumptions!J17 -> 2006 | K4: =Assumptions!K17 -> 2007 | L4: =Assumptions!L17 -> 2008 | M4: =Assumptions!M17 -> 2009 | N4: =Assumptions!N17 -> 2010 | O4: =Assumptions!O17 -> 2011 | P4: =Assumptions!P17 -> 2012 | Q4: =Assumptions!Q17 -> 2013 | R4: =Assumptions!R17 -> 2014 | S4: =Assumptions!S17 -> 2015 | T4: =Assumptions!T17 -> 2016 | U4: =Assumptions!U17 -> 2017 | V4: =Assumptions!V17 -> 2018 | W4: =Assumptions!W17 -> 2019 | X4: =Assumptions!X17 -> 2020 | Y4: =Assumptions!Y17 -> 2021 | Z4: =Assumptions!Z17 -> 2022 | AA4: =Assumptions!AA17 -> 2023 | AB4: =Assumptions!AB17 -> 2024 | AC4: =Assumptions!AC17 -> 2025
A7: 1 | B7: Balance Sheet
B9: Intangible assets
B10: Start-up cost | N10: ='Input Capex, Depr, Assets'!N161 -> 3999375 | O10: ='Input Capex, Depr, Assets'!O161 -> 2666250 | P10: ='Input Capex, Depr, Assets'!P161 -> 1333125 | Q10: ='Input Capex, Depr, Assets'!Q161 -> 0 | R10: ='Input Capex, Depr, Assets'!R161 -> 0 | S10: ='Input Capex, Depr, Assets'!S161 -> 0 | T10: ='Input Capex, Depr, Assets'!T161 -> 0 | U10: ='Input Capex, Depr, Assets'!U161 -> 0 | V10: ='Input Capex, Depr, Assets'!V161 -> 0 | W10: ='Input Capex, Depr, Assets'!W161 -> 0 | X10: ='Input Capex, Depr, Assets'!X161 -> 0 | Y10: ='Input Capex, Depr, Assets'!Y161 -> 0 | Z10: ='Input Capex, Depr, Assets'!Z161 -> 0 | AA10: ='Input Capex, Depr, Assets'!AA161 -> 0 | AB10: ='Input Capex, Depr, Assets'!AB161 -> 0 | AC10: ='Input Capex, Depr, Assets'!AC161 -> 0
B11: Equipment | N11: ='Input Capex, Depr, Assets'!N167 -> 2079000 | O11: ='Input Capex, Depr, Assets'!O167 -> 1948800 | P11: ='Input Capex, Depr, Assets'!P167 -> 1809200 | Q11: ='Input Capex, Depr, Assets'!Q167 -> 1660000 | R11: ='Input Capex, Depr, Assets'!R167 -> 1501000 | S11: ='Input Capex, Depr, Assets'!S167 -> 1332000 | T11: ='Input Capex, Depr, Assets'!T167 -> 1152800 | U11: ='Input Capex, Depr, Assets'!U167 -> 963200 | V11: ='Input Capex, Depr, Assets'!V167 -> 763000 | W11: ='Input Capex, Depr, Assets'!W167 -> 552000 | X11: ='Input Capex, Depr, Assets'!X167 -> 561000 | Y11: ='Input Capex, Depr, Assets'!Y167 -> 570000 | Z11: ='Input Capex, Depr, Assets'!Z167 -> 579000 | AA11: ='Input Capex, Depr, Assets'!AA167 -> 588000 | AB11: ='Input Capex, Depr, Assets'!AB167 -> 597000 | AC11: ='Input Capex, Depr, Assets'!AC167 -> 606000
B12: Office furniture | N12: ='Input Capex, Depr, Assets'!N173 -> 495000 | O12: ='Input Capex, Depr, Assets'!O173 -> 460174.4997 | P12: ='Input Capex, Depr, Assets'!P173 -> 438298.2086 | Q12: ='Input Capex, Depr, Assets'!Q173 -> 415496.1141 | R12: ='Input Capex, Depr, Assets'!R173 -> 391638.733 | S12: ='Input Capex, Depr, Assets'!S173 -> 366138.255 | T12: ='Input Capex, Depr, Assets'!T173 -> 340948.204 | U12: ='Input Capex, Depr, Assets'!U173 -> 315303.4569 | V12: ='Input Capex, Depr, Assets'!V173 -> 283926.9439 | W12: ='Input Capex, Depr, Assets'!W173 -> 243521.5927 | X12: ='Input Capex, Depr, Assets'!X173 -> 256007.8814 | Y12: ='Input Capex, Depr, Assets'!Y173 -> 268510.9091 | Z12: ='Input Capex, Depr, Assets'!Z173 -> 282593.4477 | AA12: ='Input Capex, Depr, Assets'!AA173 -> 298454.8183 | AB12: ='Input Capex, Depr, Assets'!AB173 -> 316306.9123 | AC12: ='Input Capex, Depr, Assets'!AC173 -> 336324.9198
B13: IT for office | N13: ='Input Capex, Depr, Assets'!N179 -> 528000 | O13: ='Input Capex, Depr, Assets'!O179 -> 430363.8515 | P13: ='Input Capex, Depr, Assets'!P179 -> 342327.3419 | Q13: ='Input Capex, Depr, Assets'!Q179 -> 268098.7987 | R13: ='Input Capex, Depr, Assets'!R179 -> 187823.6612 | S13: ='Input Capex, Depr, Assets'!S179 -> 220490.5436 | T13: ='Input Capex, Depr, Assets'!T179 -> 244329.0605 | U13: ='Input Capex, Depr, Assets'!U179 -> 261927.4054 | V13: ='Input Capex, Depr, Assets'!V179 -> 272745 | W13: ='Input Capex, Depr, Assets'!W179 -> 276084.188 | X13: ='Input Capex, Depr, Assets'!X179 -> 281504.4511 | Y13: ='Input Capex, Depr, Assets'!Y179 -> 289815.609 | Z13: ='Input Capex, Depr, Assets'!Z179 -> 301715.106 | AA13: ='Input Capex, Depr, Assets'!AA179 -> 316440.3189 | AB13: ='Input Capex, Depr, Assets'!AB179 -> 332194.807 | AC13: ='Input Capex, Depr, Assets'!AC179 -> 349062.836
B14: Operational hard & software (e.g. Terminal) | N14: ='Input Capex, Depr, Assets'!N185 -> 2357142.857 | O14: ='Input Capex, Depr, Assets'!O185 -> 2228285.714 | P14: ='Input Capex, Depr, Assets'!P185 -> 2060142.857 | Q14: ='Input Capex, Depr, Assets'!Q185 -> 1851928.571 | R14: ='Input Capex, Depr, Assets'!R185 -> 1602857.143 | S14: ='Input Capex, Depr, Assets'!S185 -> 1312142.857 | T14: ='Input Capex, Depr, Assets'!T185 -> 979000 | U14: ='Input Capex, Depr, Assets'!U185 -> 995500 | V14: ='Input Capex, Depr, Assets'!V185 -> 1012000 | W14: ='Input Capex, Depr, Assets'!W185 -> 1028500 | X14: ='Input Capex, Depr, Assets'!X185 -> 1045000 | Y14: ='Input Capex, Depr, Assets'!Y185 -> 1061500 | Z14: ='Input Capex, Depr, Assets'!Z185 -> 1078000 | AA14: ='Input Capex, Depr, Assets'!AA185 -> 1094500 | AB14: ='Input Capex, Depr, Assets'!AB185 -> 1111000 | AC14: ='Input Capex, Depr, Assets'!AC185 -> 1127500
B15: Tangible assets | N15: =SUM(N10:N14) -> 9458517.857 | O15: 7733874.065 | P15: 5983093.408 | Q15: 4195523.484 | R15: 3683319.537 | S15: 3230771.656 | T15: 2717077.264 | U15: 2535930.862 | V15: 2331671.944 | W15: 2100105.781 | X15: 2143512.333 | Y15: 2189826.518 | Z15: 2241308.554 | AA15: 2297395.137 | AB15: 2356501.719 | AC15: 2418887.756
B17: Financing fees | N17: ='Debt Workings'!N33 -> 135000 | O17: ='Debt Workings'!O33 -> 120750 | P17: ='Debt Workings'!P33 -> 107212.5 | Q17: ='Debt Workings'!Q33 -> 94351.875 | R17: ='Debt Workings'!R33 -> 82134.28125 | S17: ='Debt Workings'!S33 -> 70527.56719 | T17: ='Debt Workings'!T33 -> 59501.18883 | U17: ='Debt Workings'!U33 -> 49026.12939 | V17: ='Debt Workings'!V33 -> 39074.82292 | W17: ='Debt Workings'!W33 -> 29621.08177 | X17: ='Debt Workings'!X33 -> 20640.02768 | Y17: ='Debt Workings'!Y33 -> 12108.0263 | Z17: ='Debt Workings'!Z33 -> 4002.624984 | AA17: ='Debt Workings'!AA33 -> 0 | AB17: ='Debt Workings'!AB33 -> 0 | AC17: ='Debt Workings'!AC33 -> 0
B18: Fixed assets | N18: =N15+N17 -> 9593517.857 | O18: 7854624.065 | P18: 6090305.908 | Q18: 4289875.359 | R18: 3765453.818 | S18: 3301299.223 | T18: 2776578.453 | U18: 2584956.992 | V18: 2370746.767 | W18: 2129726.863 | X18: 2164152.36 | Y18: 2201934.544 | Z18: 2245311.179 | AA18: 2297395.137 | AB18: 2356501.719 | AC18: 2418887.756
B20: Inventories | N20: ='Working Capital'!N14 -> 952850.1907 | O20: ='Working Capital'!O14 -> 1038371.063 | P20: ='Working Capital'!P14 -> 1135200.322 | Q20: ='Working Capital'!Q14 -> 1240801.115 | R20: ='Working Capital'!R14 -> 1355599.325 | S20: ='Working Capital'!S14 -> 1475057.603 | T20: ='Working Capital'!T14 -> 1609979.645 | U20: ='Working Capital'!U14 -> 1758631.619 | V20: ='Working Capital'!V14 -> 1909169.27 | W20: ='Working Capital'!W14 -> 2053733.455 | X20: ='Working Capital'!X14 -> 2211637.837 | Y20: ='Working Capital'!Y14 -> 2379456.28 | Z20: ='Working Capital'!Z14 -> 2559247.973 | AA20: ='Working Capital'!AA14 -> 2752029.602 | AB20: ='Working Capital'!AB14 -> 2958744.985 | AC20: ='Working Capital'!AC14 -> 3181068.226
B21: Total Trade Receivables | N21: ='Working Capital'!N18 -> 7119677.639 | O21: ='Working Capital'!O18 -> 7758687.894 | P21: ='Working Capital'!P18 -> 8482194.186 | Q21: ='Working Capital'!Q18 -> 9271241.211 | R21: ='Working Capital'!R18 -> 10129011.15 | S21: ='Working Capital'!S18 -> 11021601.02 | T21: ='Working Capital'!T18 -> 12029735.83 | U21: ='Working Capital'!U18 -> 13140460.42 | V21: ='Working Capital'!V18 -> 14265274.75 | W21: ='Working Capital'!W18 -> 15345455.45 | X21: ='Working Capital'!X18 -> 16525313.85 | Y21: ='Working Capital'!Y18 -> 17779249.91 | Z21: ='Working Capital'!Z18 -> 19122649.86 | AA21: ='Working Capital'!AA18 -> 20563110.35 | AB21: ='Working Capital'!AB18 -> 22107683.57 | AC21: ='Working Capital'!AC18 -> 23768878.4
B22: Other Current Assets | N22: ='Working Capital'!N22 -> 1775766.265 | O22: ='Working Capital'!O22 -> 1935146.072 | P22: ='Working Capital'!P22 -> 2115600.6 | Q22: ='Working Capital'!Q22 -> 2312402.079 | R22: ='Working Capital'!R22 -> 2526344.197 | S22: ='Working Capital'!S22 -> 2748970.987 | T22: ='Working Capital'!T22 -> 3000416.612 | U22: ='Working Capital'!U22 -> 3277449.836 | V22: ='Working Capital'!V22 -> 3557997.276 | W22: ='Working Capital'!W22 -> 3827412.348 | X22: ='Working Capital'!X22 -> 4121688.697 | Y22: ='Working Capital'!Y22 -> 4434441.249 | Z22: ='Working Capital'!Z22 -> 4769507.586 | AA22: ='Working Capital'!AA22 -> 5128782.439 | AB22: ='Working Capital'!AB22 -> 5514024.744 | AC22: ='Working Capital'!AC22 -> 5928354.421
B23: Reserve Accounts
B24: Liquid Assets (Cash) | N24: =N147 -> 850000 | O24: 538042.8895 | P24: 8753060.216 | Q24: 16656786.02 | R24: 25960400.88 | S24: 36635815.08 | T24: 49053364.03 | U24: 63532075.68 | V24: 80522303.55 | W24: 100316866.4 | X24: 123335956 | Y24: 149728344.1 | Z24: 176571495.4 | AA24: 207344797.3 | AB24: 242126355.1 | AC24: 281259151.2
B25: Prepayments and Accrued Income
B26: Current Assets | N26: =N20+N21+N22+N23+N24+N25 -> 10698294.09 | O26: 11270247.92 | P26: 20486055.32 | Q26: 29481230.43 | R26: 39971355.55 | S26: 51881444.69 | T26: 65693496.12 | U26: 81708617.55 | V26: 100254744.8 | W26: 121543467.7 | X26: 146194596.4 | Y26: 174321491.6 | Z26: 203022900.8 | AA26: 235788719.7 | AB26: 272706808.4 | AC26: 314137452.2
B28: Total Assets | N28: =N26+N18 -> 20291811.95 | O28: 19124871.98 | P28: 26576361.23 | Q28: 33771105.79 | R28: 43736809.37 | S28: 55182743.91 | T28: 68470074.57 | U28: 84293574.55 | V28: 102625491.6 | W28: 123673194.6 | X28: 148358748.7 | Y28: 176523426.1 | Z28: 205268212 | AA28: 238086114.9 | AB28: 275063310.1 | AC28: 316556340
B31: Subscribed Equity | D31: =Assumptions!N863 -> 700000 | N31: =$D$31 -> 700000 | O31: 700000 | P31: 700000 | Q31: 700000 | R31: 700000 | S31: 700000 | T31: 700000 | U31: 700000 | V31: 700000 | W31: 700000 | X31: 700000 | Y31: 700000 | Z31: 700000 | AA31: 700000 | AB31: 700000 | AC31: 700000
B32: Retained Earnings | M32: 0 | N32: ='P&L'!N104 -> 4556756.93 | O32: =N32+'P&L'!O104 -> 9858291.163 | P32: =O32+'P&L'!P104 -> 16551027.18 | Q32: =P32+'P&L'!Q104 -> 23086596.51 | R32: =Q32+'P&L'!R104 -> 32122813.75 | S32: =R32+'P&L'!S104 -> 42685541.77 | T32: =S32+'P&L'!T104 -> 55030904.82 | U32: =T32+'P&L'!U104 -> 69779407.64 | V32: =U32+'P&L'!V104 -> 87128344.64 | W32: =V32+'P&L'!W104 -> 107315637 | X32: =W32+'P&L'!X104 -> 131030723.7 | Y32: =X32+'P&L'!Y104 -> 158184248.2 | Z32: =Y32+'P&L'!Z104 -> 186097748 | AA32: =Z32+'P&L'!AA104 -> 217768534.9 | AB32: =AA32+'P&L'!AB104 -> 253509779.4 | AC32: =AB32+'P&L'!AC104 -> 293668463.7
B33: Tied-Up Reserve
B34: Equity | N34: =N31+N32+N33 -> 5256756.93 | O34: 10558291.16 | P34: 17251027.18 | Q34: 23786596.51 | R34: 32822813.75 | S34: 43385541.77 | T34: 55730904.82 | U34: 70479407.64 | V34: 87828344.64 | W34: 108015637 | X34: 131730723.7 | Y34: 158884248.2 | Z34: 186797748 | AA34: 218468534.9 | AB34: 254209779.4 | AC34: 294368463.7
B36: Provisions for Pensions and Similar Obligations
B37: Provisions for Taxation | N37: ='Working Capital'!N28 -> 543831.8458 | O37: ='Working Capital'!O28 -> 621678.7048 | P37: ='Working Capital'!P28 -> 757200.1649 | Q37: ='Working Capital'!Q28 -> 760212.3471 | R37: ='Working Capital'!R28 -> 994493.3313 | S37: ='Working Capital'!S28 -> 1145272.757 | T37: ='Working Capital'!T28 -> 1320630.6 | U37: ='Working Capital'!U28 -> 1551802.461 | V37: ='Working Capital'!V28 -> 1800330.951 | W37: ='Working Capital'!W28 -> 2068493.478 | X37: ='Working Capital'!X28 -> 2398369.542 | Y37: ='Working Capital'!Y28 -> 2722077.575 | Z37: ='Working Capital'!Z28 -> 2816059.797 | AA37: ='Working Capital'!AA28 -> 3171263.604 | AB37: ='Working Capital'!AB28 -> 3555738.112 | AC37: ='Working Capital'!AC28 -> 3972670.215
B38: Other Provisions (e.g. pensions,other) | N38: ='Working Capital'!N32 -> 2273236.019 | O38: ='Working Capital'!O32 -> 2314567.583 | P38: ='Working Capital'!P32 -> 2355899.147 | Q38: ='Working Capital'!Q32 -> 2397230.711 | R38: ='Working Capital'!R32 -> 2438562.275 | S38: ='Working Capital'!S32 -> 2479893.839 | T38: ='Working Capital'!T32 -> 2521225.403 | U38: ='Working Capital'!U32 -> 2562556.967 | V38: ='Working Capital'!V32 -> 2603888.531 | W38: ='Working Capital'!W32 -> 2645220.095 | X38: ='Working Capital'!X32 -> 2686551.659 | Y38: ='Working Capital'!Y32 -> 2727883.223 | Z38: ='Working Capital'!Z32 -> 2769214.787 | AA38: ='Working Capital'!AA32 -> 2810546.351 | AB38: ='Working Capital'!AB32 -> 2851877.915 | AC38: ='Working Capital'!AC32 -> 2893209.479
B39: Provisions | N39: =SUM(N36:N38) -> 2817067.865 | O39: 2936246.288 | P39: 3113099.312 | Q39: 3157443.058 | R39: 3433055.607 | S39: 3625166.596 | T39: 3841856.003 | U39: 4114359.428 | V39: 4404219.482 | W39: 4713713.574 | X39: 5084921.201 | Y39: 5449960.798 | Z39: 5585274.585 | AA39: 5981809.955 | AB39: 6407616.027 | AC39: 6865879.694
B41: Liquidity Facility | N41: ='Debt Workings'!N25 -> 7067831.387 | O41: ='Debt Workings'!O25 -> 0 | P41: ='Debt Workings'!P25 -> 0 | Q41: ='Debt Workings'!Q25 -> 0 | R41: ='Debt Workings'!R25 -> 0 | S41: ='Debt Workings'!S25 -> 0 | T41: ='Debt Workings'!T25 -> 0 | U41: ='Debt Workings'!U25 -> 0 | V41: ='Debt Workings'!V25 -> 0 | W41: ='Debt Workings'!W25 -> 0 | X41: ='Debt Workings'!X25 -> 0 | Y41: ='Debt Workings'!Y25 -> 0 | Z41: ='Debt Workings'!Z25 -> 0 | AA41: ='Debt Workings'!AA25 -> 0 | AB41: ='Debt Workings'!AB25 -> 0 | AC41: ='Debt Workings'!AC25 -> 0
B42: Trade Payables | N42: ='Working Capital'!N36 -> 2272975.663 | O42: ='Working Capital'!O36 -> 2549011.636 | P42: ='Working Capital'!P36 -> 2836877.701 | Q42: ='Working Capital'!Q36 -> 3126661.6 | R42: ='Working Capital'!R36 -> 3422790.732 | S42: ='Working Capital'!S36 -> 3730032.494 | T42: ='Working Capital'!T36 -> 4018181.961 | U42: ='Working Capital'!U36 -> 4332244.881 | V42: ='Working Capital'!V36 -> 4525544.424 | W42: ='Working Capital'!W36 -> 4591972.187 | X42: ='Working Capital'!X36 -> 4661033.125 | Y42: ='Working Capital'!Y36 -> 4732873.093 | Z42: ='Working Capital'!Z36 -> 4804798.789 | AA42: ='Working Capital'!AA36 -> 4876809.887 | AB42: ='Working Capital'!AB36 -> 4948875.357 | AC42: ='Working Capital'!AC36 -> 5020974.648
B43: Other Payables | N43: ='Working Capital'!N44 -> 1481581.887 | O43: ='Working Capital'!O44 -> 1561247.077 | P43: ='Working Capital'!P44 -> 1714580.55 | Q43: ='Working Capital'!Q44 -> 1885819.246 | R43: ='Working Capital'!R44 -> 2076647.818 | S43: ='Working Capital'!S44 -> 2286739.603 | T43: ='Working Capital'!T44 -> 2528000.657 | U43: ='Working Capital'!U44 -> 2800825.974 | V43: ='Working Capital'!V44 -> 3083312.356 | W43: ='Working Capital'!W44 -> 3359760.203 | X43: ='Working Capital'!X44 -> 3663092.43 | Y43: ='Working Capital'!Y44 -> 3996013.569 | Z43: ='Working Capital'!Z44 -> 4361505.514 | AA43: ='Working Capital'!AA44 -> 4762856.341 | AB43: ='Working Capital'!AB44 -> 5203692.139 | AC43: ='Working Capital'!AC44 -> 5688012.19
B44: Other short term liabilities | N44: ='Working Capital'!N48 -> 52945.67806 | O44: ='Working Capital'!O48 -> 56916.59646 | P44: ='Working Capital'!P48 -> 61176.03552 | Q44: ='Working Capital'!Q48 -> 66183.80138 | R44: ='Working Capital'!R48 -> 71338.77471 | S44: ='Working Capital'!S48 -> 76773.18904 | T44: ='Working Capital'!T48 -> 82523.44594 | U44: ='Working Capital'!U48 -> 88664.79485 | V44: ='Working Capital'!V48 -> 93877.64248 | W44: ='Working Capital'!W48 -> 98214.49391 | X44: ='Working Capital'!X48 -> 102579.5408 | Y44: ='Working Capital'!Y48 -> 107460.2199 | Z44: ='Working Capital'!Z48 -> 112672.0791 | AA44: ='Working Capital'!AA48 -> 118243.9072 | AB44: ='Working Capital'!AB48 -> 124206.5086 | AC44: ='Working Capital'!AC48 -> 130595.4739
B45: Total Short term liabilities | N45: =N41+N42+N43+N44 -> 10875334.61 | O45: 4167175.309 | P45: 4612634.287 | Q45: 5078664.646 | R45: 5570777.325 | S45: 6093545.286 | T45: 6628706.064 | U45: 7221735.65 | V45: 7702734.423 | W45: 8049946.884 | X45: 8426705.096 | Y45: 8836346.882 | Z45: 9278976.382 | AA45: 9757910.136 | AB45: 10276774.01 | AC45: 10839582.31
B47: Accruals and deferred income | N47: ='Working Capital'!N52 -> 1342652.541 | O47: ='Working Capital'!O52 -> 1463159.225 | P47: ='Working Capital'!P52 -> 1599600.453 | Q47: ='Working Capital'!Q52 -> 1748401.572 | R47: ='Working Capital'!R52 -> 1910162.686 | S47: ='Working Capital'!S52 -> 2078490.258 | T47: ='Working Capital'!T52 -> 2268607.682 | U47: ='Working Capital'!U52 -> 2478071.827 | V47: ='Working Capital'!V52 -> 2690193.063 | W47: ='Working Capital'!W52 -> 2893897.141 | X47: ='Working Capital'!X52 -> 3116398.771 | Y47: ='Working Capital'!Y52 -> 3352870.213 | Z47: ='Working Capital'!Z52 -> 3606213.053 | AA47: ='Working Capital'!AA52 -> 3877859.893 | AB47: ='Working Capital'!AB52 -> 4169140.66 | AC47: ='Working Capital'!AC52 -> 4482414.318
B49: Total Equity & Liabilities | N49: =N47+N45+N39+N34 -> 20291811.95 | O49: 19124871.98 | P49: 26576361.23 | Q49: 33771105.79 | R49: 43736809.37 | S49: 55182743.91 | T49: 68470074.57 | U49: 84293574.55 | V49: 102625491.6 | W49: 123673194.6 | X49: 148358748.7 | Y49: 176523426.1 | Z49: 205268212 | AA49: 238086114.9 | AB49: 275063310.1 | AC49: 316556340
B51: Balance Check | N51: =N49-N28 -> 0 | O51: 0 | P51: 0 | Q51: 0 | R51: 0 | S51: 0 | T51: 0 | U51: 0 | V51: 0 | W51: 0 | X51: 0 | Y51: 0 | Z51: 0 | AA51: 0 | AB51: 0 | AC51: 0
N52: =N51-M51 -> 0 | O52: 0 | P52: 0 | Q52: 0 | R52: 0 | S52: 0 | T52: 0 | U52: 0 | V52: 0 | W52: 0 | X52: 0 | Y52: 0 | Z52: 0 | AA52: 0 | AB52: 0 | AC52: 0
A56: 1 | B56: Detailed Cash Flow Statement (EUR m)
I58: =+J58-1 -> -4 | J58: =+K58-1 -> -3 | K58: =+L58-1 -> -2 | L58: =+M58-1 -> -1 | M58: 0 | N58: 1 | O58: =+N58+1 -> 2 | P58: 3 | Q58: 4 | R58: 5 | S58: 6 | T58: 7 | U58: 8 | V58: 9 | W58: 10 | X58: 11 | Y58: 12 | Z58: 13 | AA58: 14 | AB58: 15 | AC58: 16
B59: December Year-end | I59: =I$4 -> 2005 | J59: 2006 | K59: 2007 | L59: 2008 | M59: 2009 | N59: 2010 | O59: 2011 | P59: 2012 | Q59: 2013 | R59: 2014 | S59: 2015 | T59: 2016 | U59: 2017 | V59: 2018 | W59: 2019 | X59: 2020 | Y59: 2021 | Z59: 2022 | AA59: 2023 | AB59: 2024 | AC59: 2025
B61: Landing Revenue | N61: ='Aero&ComRevs'!N57 -> 4624650.377 | O61: ='Aero&ComRevs'!O57 -> 4965654.196 | P61: ='Aero&ComRevs'!P57 -> 5327917.072 | Q61: ='Aero&ComRevs'!Q57 -> 5713044.04 | R61: ='Aero&ComRevs'!R57 -> 6117964.348 | S61: ='Aero&ComRevs'!S57 -> 6542106.096 | T61: ='Aero&ComRevs'!T57 -> 7023422.347 | U61: ='Aero&ComRevs'!U57 -> 7536414.16 | V61: ='Aero&ComRevs'!V57 -> 8083213.379 | W61: ='Aero&ComRevs'!W57 -> 8666103.355 | X61: ='Aero&ComRevs'!X57 -> 9358770.992 | Y61: ='Aero&ComRevs'!Y57 -> 10076570.32 | Z61: ='Aero&ComRevs'!Z57 -> 10847439.91 | AA61: ='Aero&ComRevs'!AA57 -> 11675486.2 | AB61: ='Aero&ComRevs'!AB57 -> 12565150.83 | AC61: ='Aero&ComRevs'!AC57 -> 13537961.67
B62: Passenger Revenue | N62: ='Aero&ComRevs'!N67 -> 25046192.74 | O62: ='Aero&ComRevs'!O67 -> 27463741.88 | P62: ='Aero&ComRevs'!P67 -> 30267558.09 | Q62: ='Aero&ComRevs'!Q67 -> 33348080.73 | R62: ='Aero&ComRevs'!R67 -> 36722176.66 | S62: ='Aero&ComRevs'!S67 -> 40364450.24 | T62: ='Aero&ComRevs'!T67 -> 44499527.34 | U62: ='Aero&ComRevs'!U67 -> 49098106.33 | V62: ='Aero&ComRevs'!V67 -> 53712550.93 | W62: ='Aero&ComRevs'!W67 -> 58035050.63 | X62: ='Aero&ComRevs'!X67 -> 62676185.74 | Y62: ='Aero&ComRevs'!Y67 -> 67636604.89 | Z62: ='Aero&ComRevs'!Z67 -> 72959215.49 | AA62: ='Aero&ComRevs'!AA67 -> 78669991.38 | AB62: ='Aero&ComRevs'!AB67 -> 84796758.77 | AC62: ='Aero&ComRevs'!AC67 -> 91369327.66
B63: Freight Revenue | N63: ='Aero&ComRevs'!N73 -> 840068.1758 | O63: ='Aero&ComRevs'!O73 -> 900268.3694 | P63: ='Aero&ComRevs'!P73 -> 963825.9629 | Q63: ='Aero&ComRevs'!Q73 -> 1030913.983 | R63: ='Aero&ComRevs'!R73 -> 1100396.136 | S63: ='Aero&ComRevs'!S73 -> 1175015.85 | T63: ='Aero&ComRevs'!T73 -> 1253735.066 | U63: ='Aero&ComRevs'!U73 -> 1336764.223 | V63: ='Aero&ComRevs'!V73 -> 1424324.363 | W63: ='Aero&ComRevs'!W73 -> 1516647.674 | X63: ='Aero&ComRevs'!X73 -> 1613978.046 | Y63: ='Aero&ComRevs'!Y73 -> 1716571.666 | Z63: ='Aero&ComRevs'!Z73 -> 1819856.538 | AA63: ='Aero&ComRevs'!AA73 -> 1928279.846 | AB63: ='Aero&ComRevs'!AB73 -> 2042076.476 | AC63: ='Aero&ComRevs'!AC73 -> 2161491.575
B64: Safety / Security Revenue | N64: ='Aero&ComRevs'!N79 -> 674384.4018 | O64: ='Aero&ComRevs'!O79 -> 739350.7432 | P64: ='Aero&ComRevs'!P79 -> 814687.4655 | Q64: ='Aero&ComRevs'!Q79 -> 897439.3742 | R64: ='Aero&ComRevs'!R79 -> 988054.8162 | S64: ='Aero&ComRevs'!S79 -> 1085844.601 | T64: ='Aero&ComRevs'!T79 -> 1196898.526 | U64: ='Aero&ComRevs'!U79 -> 1320380.346 | V64: ='Aero&ComRevs'!V79 -> 1444247.246 | W64: ='Aero&ComRevs'!W79 -> 1560223.068 | X64: ='Aero&ComRevs'!X79 -> 1684723.183 | Y64: ='Aero&ComRevs'!Y79 -> 1817648.184 | Z64: ='Aero&ComRevs'!Z79 -> 1960236.641 | AA64: ='Aero&ComRevs'!AA79 -> 2113178.021 | AB64: ='Aero&ComRevs'!AB79 -> 2277210.706 | AC64: ='Aero&ComRevs'!AC79 -> 2453125.446
B65: Fuel Revenue | N65: ='Aero&ComRevs'!N85 -> 1173717.228 | O65: ='Aero&ComRevs'!O85 -> 1291675.735 | P65: ='Aero&ComRevs'!P85 -> 1419229.922 | Q65: ='Aero&ComRevs'!Q85 -> 1557128.837 | R65: ='Aero&ComRevs'!R85 -> 1705378.928 | S65: ='Aero&ComRevs'!S85 -> 1864369.173 | T65: ='Aero&ComRevs'!T85 -> 2041775.472 | U65: ='Aero&ComRevs'!U85 -> 2233664.325 | V65: ='Aero&ComRevs'!V85 -> 2441151.124 | W65: ='Aero&ComRevs'!W85 -> 2665438.083 | X65: ='Aero&ComRevs'!X85 -> 2931869.66 | Y65: ='Aero&ComRevs'!Y85 -> 3211395.988 | Z65: ='Aero&ComRevs'!Z85 -> 3515262.671 | AA65: ='Aero&ComRevs'!AA85 -> 3845565.865 | AB65: ='Aero&ComRevs'!AB85 -> 4204588.15 | AC65: ='Aero&ComRevs'!AC85 -> 4600923.784
B66: Revenue Lighting Systems | N66: ='Aero&ComRevs'!N94 -> 0 | O66: ='Aero&ComRevs'!O94 -> 0 | P66: ='Aero&ComRevs'!P94 -> 0 | Q66: ='Aero&ComRevs'!Q94 -> 0 | R66: ='Aero&ComRevs'!R94 -> 0 | S66: ='Aero&ComRevs'!S94 -> 0 | T66: ='Aero&ComRevs'!T94 -> 0 | U66: ='Aero&ComRevs'!U94 -> 0 | V66: ='Aero&ComRevs'!V94 -> 0 | W66: ='Aero&ComRevs'!W94 -> 0 | X66: ='Aero&ComRevs'!X94 -> 0 | Y66: ='Aero&ComRevs'!Y94 -> 0 | Z66: ='Aero&ComRevs'!Z94 -> 0 | AA66: ='Aero&ComRevs'!AA94 -> 0 | AB66: ='Aero&ComRevs'!AB94 -> 0 | AC66: ='Aero&ComRevs'!AC94 -> 0
B67: Parking Revenue | N67: ='Aero&ComRevs'!N102 -> 298413.9996 | O67: ='Aero&ComRevs'!O102 -> 317810.8912 | P67: ='Aero&ComRevs'!P102 -> 338282.6698 | Q67: ='Aero&ComRevs'!Q102 -> 359904.7483 | R67: ='Aero&ComRevs'!R102 -> 382577.0766 | S67: ='Aero&ComRevs'!S102 -> 406294.4012 | T67: ='Aero&ComRevs'!T102 -> 432595.9511 | U67: ='Aero&ComRevs'!U102 -> 460461.3184 | V67: ='Aero&ComRevs'!V102 -> 489990.9269 | W67: ='Aero&ComRevs'!W102 -> 521291.8802 | X67: ='Aero&ComRevs'!X102 -> 559064.1408 | Y67: ='Aero&ComRevs'!Y102 -> 597429.9252 | Z67: ='Aero&ComRevs'!Z102 -> 638389.0965 | AA67: ='Aero&ComRevs'!AA102 -> 682132.5401 | AB67: ='Aero&ComRevs'!AB102 -> 728866.1049 | AC67: ='Aero&ComRevs'!AC102 -> 779847.1587
B68: Shelter Revenue | N68: ='Aero&ComRevs'!N110 -> 59682.79993 | O68: ='Aero&ComRevs'!O110 -> 63562.17824 | P68: ='Aero&ComRevs'!P110 -> 67656.53396 | Q68: ='Aero&ComRevs'!Q110 -> 71980.94966 | R68: ='Aero&ComRevs'!R110 -> 76515.41531 | S68: ='Aero&ComRevs'!S110 -> 81258.88024 | T68: ='Aero&ComRevs'!T110 -> 86519.19022 | U68: ='Aero&ComRevs'!U110 -> 92092.26368 | V68: ='Aero&ComRevs'!V110 -> 97998.18537 | W68: ='Aero&ComRevs'!W110 -> 104258.376 | X68: ='Aero&ComRevs'!X110 -> 111812.8282 | Y68: ='Aero&ComRevs'!Y110 -> 119485.985 | Z68: ='Aero&ComRevs'!Z110 -> 127677.8193 | AA68: ='Aero&ComRevs'!AA110 -> 136426.508 | AB68: ='Aero&ComRevs'!AB110 -> 145773.221 | AC68: ='Aero&ComRevs'!AC110 -> 155969.4317
B69: Boarding bridge Revenue | N69: ='Aero&ComRevs'!N116 -> 1636666.194 | O69: ='Aero&ComRevs'!O116 -> 1757069.913 | P69: ='Aero&ComRevs'!P116 -> 1884927.648 | Q69: ='Aero&ComRevs'!Q116 -> 2020791.885 | R69: ='Aero&ComRevs'!R116 -> 2163675.385 | S69: ='Aero&ComRevs'!S116 -> 2313415.724 | T69: ='Aero&ComRevs'!T116 -> 2483398.679 | U69: ='Aero&ComRevs'!U116 -> 2664537.503 | V69: ='Aero&ComRevs'!V116 -> 2857579.839 | W69: ='Aero&ComRevs'!W116 -> 3063326.143 | X69: ='Aero&ComRevs'!X116 -> 3307992.286 | Y69: ='Aero&ComRevs'!Y116 -> 3561471.407 | Z69: ='Aero&ComRevs'!Z116 -> 3833658.975 | AA69: ='Aero&ComRevs'!AA116 -> 4125999.055 | AB69: ='Aero&ComRevs'!AB116 -> 4440053.166 | AC69: ='Aero&ComRevs'!AC116 -> 4783462.701
B70: ='Aero&ComRevs'!B120 -> Total Aeronautical Revenues | N70: =SUM(N61:N69) -> 34353775.91 | O70: 37499133.9 | P70: 41084085.36 | Q70: 44999284.54 | R70: 49256738.77 | S70: 53832754.96 | T70: 59017872.57 | U70: 64742420.46 | V70: 70551056 | W70: 76132339.21 | X70: 82244396.87 | Y70: 88737178.37 | Z70: 95701737.14 | AA70: 103177059.4 | AB70: 111200477.4 | AC70: 119842109.4
B71: % of revenues | N71: =N70/N84 -> 0.7931814229 | O71: 0.7944953159 | P71: 0.7962029789 | Q71: 0.7978589378 | R71: 0.799386834 | S71: 0.8028978713 | T71: 0.8064655975 | U71: 0.8099099519 | V71: 0.812983561 | W71: 0.8155447138 | X71: 0.8181161946 | Y71: 0.8204470662 | Z71: 0.822678474 | AA71: 0.8248077368 | AB71: 0.8268406085 | AC71: 0.828817938
B73: Duty Free Shop & other shops | N73: ='Aero&ComRevs'!N127 -> 2293854.312 | O73: ='Aero&ComRevs'!O127 -> 2639451.457 | P73: ='Aero&ComRevs'!P127 -> 3037716.483 | Q73: ='Aero&ComRevs'!Q127 -> 3480735.38 | R73: ='Aero&ComRevs'!R127 -> 3972237.57 | S73: ='Aero&ComRevs'!S127 -> 4330837.58 | T73: ='Aero&ComRevs'!T127 -> 4738653.072 | U73: ='Aero&ComRevs'!U127 -> 5193149.133 | V73: ='Aero&ComRevs'!V127 -> 5647162.557 | W73: ='Aero&ComRevs'!W127 -> 6069301.266 | X73: ='Aero&ComRevs'!X127 -> 6524312.395 | Y73: ='Aero&ComRevs'!Y127 -> 7014837.939 | Z73: ='Aero&ComRevs'!Z127 -> 7543736.905 | AA73: ='Aero&ComRevs'!AA127 -> 8114103.39 | AB73: ='Aero&ComRevs'!AB127 -> 8729286.181 | AC73: ='Aero&ComRevs'!AC127 -> 9392910.003
B74: Inflight Catering-Commissariat | N74: ='Aero&ComRevs'!N129 -> 237881.1879 | O74: ='Aero&ComRevs'!O129 -> 252665.4386 | P74: ='Aero&ComRevs'!P129 -> 270019.243 | Q74: ='Aero&ComRevs'!Q129 -> 288772.1204 | R74: ='Aero&ComRevs'!R129 -> 308951.811 | S74: ='Aero&ComRevs'!S129 -> 330238.1597 | T74: ='Aero&ComRevs'!T129 -> 354250.1976 | U74: ='Aero&ComRevs'!U129 -> 380614.9211 | V74: ='Aero&ComRevs'!V129 -> 405774.8565 | W74: ='Aero&ComRevs'!W129 -> 427556.3562 | X74: ='Aero&ComRevs'!X129 -> 450597.9874 | Y74: ='Aero&ComRevs'!Y129 -> 474976.3332 | Z74: ='Aero&ComRevs'!Z129 -> 500772.752 | AA74: ='Aero&ComRevs'!AA129 -> 528073.6797 | AB74: ='Aero&ComRevs'!AB129 -> 556970.9505 | AC74: ='Aero&ComRevs'!AC129 -> 587562.138
B75: Rental income (offices, warehouses, shops etc.) | N75: ='Aero&ComRevs'!N131 -> 2916965.108 | O75: ='Aero&ComRevs'!O131 -> 3066287.44 | P75: ='Aero&ComRevs'!P131 -> 3223301.176 | Q75: ='Aero&ComRevs'!Q131 -> 3388405.733 | R75: ='Aero&ComRevs'!R131 -> 3561356.902 | S75: ='Aero&ComRevs'!S131 -> 3743890.667 | T75: ='Aero&ComRevs'!T131 -> 3935841.899 | U75: ='Aero&ComRevs'!U131 -> 4137700.708 | V75: ='Aero&ComRevs'!V131 -> 4349982.994 | W75: ='Aero&ComRevs'!W131 -> 4573231.833 | X75: ='Aero&ComRevs'!X131 -> 4808018.926 | Y75: ='Aero&ComRevs'!Y131 -> 5054946.127 | Z75: ='Aero&ComRevs'!Z131 -> 5312331.778 | AA75: ='Aero&ComRevs'!AA131 -> 5582853.109 | AB75: ='Aero&ComRevs'!AB131 -> 5867182.263 | AC75: ='Aero&ComRevs'!AC131 -> 6166025.879
B76: Reinvoicing for utilities (electricity, water, phone, waste etc.) | N76: =Assumptions!N467*Assumptions!N651 -> 1839656.237 | O76: =Assumptions!O467*Assumptions!O651 -> 1950116.591 | P76: =Assumptions!P467*Assumptions!P651 -> 2051562.228 | Q76: =Assumptions!Q467*Assumptions!Q651 -> 2154626.136 | R76: =Assumptions!R467*Assumptions!R651 -> 2262643.908 | S76: =Assumptions!S467*Assumptions!S651 -> 2375090.281 | T76: =Assumptions!T467*Assumptions!T651 -> 2496639.493 | U76: =Assumptions!U467*Assumptions!U651 -> 2622789.685 | V76: =Assumptions!V467*Assumptions!V651 -> 2747204.973 | W76: =Assumptions!W467*Assumptions!W651 -> 2874022.42 | X76: =Assumptions!X467*Assumptions!X651 -> 3017913.021 | Y76: =Assumptions!Y467*Assumptions!Y651 -> 3169005.841 | Z76: =Assumptions!Z467*Assumptions!Z651 -> 3327661.185 | AA76: =Assumptions!AA467*Assumptions!AA651 -> 3494257.377 | AB76: =Assumptions!AB467*Assumptions!AB651 -> 3669191.655 | AC76: =Assumptions!AC467*Assumptions!AC651 -> 3852881.123
B77: Rental income of check-in counters | N77: ='Aero&ComRevs'!N135 -> 849575.671 | O77: ='Aero&ComRevs'!O135 -> 902376.5664 | P77: ='Aero&ComRevs'!P135 -> 964354.4392 | Q77: ='Aero&ComRevs'!Q135 -> 1031329.001 | R77: ='Aero&ComRevs'!R135 -> 1103399.325 | S77: ='Aero&ComRevs'!S135 -> 1179421.999 | T77: ='Aero&ComRevs'!T135 -> 1265179.277 | U77: ='Aero&ComRevs'!U135 -> 1359339.004 | V77: ='Aero&ComRevs'!V135 -> 1449195.916 | W77: ='Aero&ComRevs'!W135 -> 1526986.986 | X77: ='Aero&ComRevs'!X135 -> 1609278.526 | Y77: ='Aero&ComRevs'!Y135 -> 1696344.047 | Z77: ='Aero&ComRevs'!Z135 -> 1788474.114 | AA77: ='Aero&ComRevs'!AA135 -> 1885977.428 | AB77: ='Aero&ComRevs'!AB135 -> 1989181.966 | AC77: ='Aero&ComRevs'!AC135 -> 2098436.207
B78: Parking | N78: ='Aero&ComRevs'!N137 -> 441779.3489 | O78: ='Aero&ComRevs'!O137 -> 469235.8145 | P78: ='Aero&ComRevs'!P137 -> 501464.3084 | Q78: ='Aero&ComRevs'!Q137 -> 536291.0808 | R78: ='Aero&ComRevs'!R137 -> 573767.6489 | S78: ='Aero&ComRevs'!S137 -> 613299.4394 | T78: ='Aero&ComRevs'!T137 -> 657893.2241 | U78: ='Aero&ComRevs'!U137 -> 706856.2821 | V78: ='Aero&ComRevs'!V137 -> 753581.8764 | W78: ='Aero&ComRevs'!W137 -> 794033.2329 | X78: ='Aero&ComRevs'!X137 -> 836824.8337 | Y78: ='Aero&ComRevs'!Y137 -> 882098.9044 | Z78: ='Aero&ComRevs'!Z137 -> 930006.5394 | AA78: ='Aero&ComRevs'!AA137 -> 980708.2624 | AB78: ='Aero&ComRevs'!AB137 -> 1034374.622 | AC78: ='Aero&ComRevs'!AC137 -> 1091186.828
B79: Others e.g. VIP lounges, call center | N79: ='Aero&ComRevs'!N139 -> 377884.5265 | O79: ='Aero&ComRevs'!O139 -> 419417.4777 | P79: ='Aero&ComRevs'!P139 -> 467511.3906 | Q79: ='Aero&ComRevs'!Q139 -> 520606.7078 | R79: ='Aero&ComRevs'!R139 -> 579055.2225 | S79: ='Aero&ComRevs'!S139 -> 642539.7594 | T79: ='Aero&ComRevs'!T139 -> 714563.2305 | U79: ='Aero&ComRevs'!U139 -> 794930.6782 | V79: ='Aero&ComRevs'!V139 -> 876462.2067 | W79: ='Aero&ComRevs'!W139 -> 954049.3693 | X79: ='Aero&ComRevs'!X139 -> 1037650.042 | Y79: ='Aero&ComRevs'!Y139 -> 1127716.081 | Z79: ='Aero&ComRevs'!Z139 -> 1224732.902 | AA79: ='Aero&ComRevs'!AA139 -> 1329221.947 | AB79: ='Aero&ComRevs'!AB139 -> 1441743.327 | AC79: ='Aero&ComRevs'!AC139 -> 1562898.659
B81: Total Non-Aeronautical Revenues | N81: =SUM(N73:N79) -> 8957596.391 | O81: 9699550.785 | P81: 10515929.27 | Q81: 11400766.16 | R81: 12361412.39 | S81: 13215317.89 | T81: 14163020.39 | U81: 15195380.41 | V81: 16229365.38 | W81: 17219181.46 | X81: 18284595.73 | Y81: 19419925.27 | Z81: 20627716.18 | AA81: 21915195.19 | AB81: 23287930.97 | AC81: 24751900.84
B82: % of revenues | N82: =N81/N84 -> 0.2068185771 | O82: 0.2055046841 | P82: 0.2037970211 | Q82: 0.2021410622 | R82: 0.200613166 | S82: 0.1971021287 | T82: 0.1935344025 | U82: 0.1900900481 | V82: 0.187016439 | W82: 0.1844552862 | X82: 0.1818838054 | Y82: 0.1795529338 | Z82: 0.177321526 | AA82: 0.1751922632 | AB82: 0.1731593915 | AC82: 0.171182062
B84: Total Revenues | N84: =N70+N81 -> 43311372.31 | O84: 47198684.69 | P84: 51600014.63 | Q84: 56400050.7 | R84: 61618151.15 | S84: 67048072.85 | T84: 73180892.97 | U84: 79937800.88 | V84: 86780421.38 | W84: 93351520.67 | X84: 100528992.6 | Y84: 108157103.6 | Z84: 116329453.3 | AA84: 125092254.6 | AB84: 134488408.4 | AC84: 144594010.3
B85: growth in % | O85: =O84/N84-1 -> 0.08975269488 | P85: 0.09325111426 | Q85: 0.09302392854 | R85: 0.09251942835 | S85: 0.08812211325 | T85: 0.09146899919 | U85: 0.09233158594 | V85: 0.08559930878 | W85: 0.0757209886 | X85: 0.07688650254 | Y85: 0.07587971227 | Z85: 0.07555999012 | AA85: 0.07532745185 | AB85: 0.07511379346 | AC85: 0.07514106234
B86: Personell Expenses | N86: =Assumptions!N588 -> 4938606.288 | O86: =Assumptions!O588 -> 5204156.922 | P86: =Assumptions!P588 -> 5715268.501 | Q86: =Assumptions!Q588 -> 6286064.152 | R86: =Assumptions!R588 -> 6922159.393 | S86: =Assumptions!S588 -> 7622465.343 | T86: =Assumptions!T588 -> 8426668.857 | U86: =Assumptions!U588 -> 9336086.582 | V86: =Assumptions!V588 -> 10277707.85 | W86: =Assumptions!W588 -> 11199200.68 | X86: =Assumptions!X588 -> 12210308.1 | Y86: =Assumptions!Y588 -> 13320045.23 | Z86: =Assumptions!Z588 -> 14538351.71 | AA86: =Assumptions!AA588 -> 15876187.8 | AB86: =Assumptions!AB588 -> 17345640.46 | AC86: =Assumptions!AC588 -> 18960040.63
B87: % of revenues | N87: =N86/N84 -> 0.1140256248 | O87: 0.1102606345 | P87: 0.1107609861 | Q87: 0.111454938 | R87: 0.1123396153 | S87: 0.1136865688 | T87: 0.1151484836 | U87: 0.1167918867 | V87: 0.1184334864 | W87: 0.1199680583 | X87: 0.1214605636 | Y87: 0.1231546036 | Z87: 0.124975673 | AA87: 0.1269158339 | AB87: 0.1289749851 | AC87: 0.1311260446
B88: Airport Maintenance (inflated) | N88: =(Assumptions!$H$708*Assumptions!N41)*Assumptions!N622 -> 9092944.077 | O88: =(Assumptions!$H$708*Assumptions!O41)*Assumptions!O622 -> 10184097.37 | P88: =(Assumptions!$H$708*Assumptions!P41)*Assumptions!P622 -> 11308315.91 | Q88: =(Assumptions!$H$708*Assumptions!Q41)*Assumptions!Q622 -> 12465599.7 | R88: =(Assumptions!$H$708*Assumptions!R41)*Assumptions!R622 -> 13655948.74 | S88: =(Assumptions!$H$708*Assumptions!S41)*Assumptions!S622 -> 14879363.04 | T88: =(Assumptions!$H$708*Assumptions!T41)*Assumptions!T622 -> 16135842.58 | U88: =(Assumptions!$H$708*Assumptions!U41)*Assumptions!U622 -> 17425387.38 | V88: =(Assumptions!$H$708*Assumptions!V41)*Assumptions!V622 -> 18227219.72 | W88: =(Assumptions!$H$708*Assumptions!W41)*Assumptions!W622 -> 18516540.67 | X88: =(Assumptions!$H$708*Assumptions!X41)*Assumptions!X622 -> 18805861.61 | Y88: =(Assumptions!$H$708*Assumptions!Y41)*Assumptions!Y622 -> 19095182.56 | Z88: =(Assumptions!$H$708*Assumptions!Z41)*Assumptions!Z622 -> 19384503.51 | AA88: =(Assumptions!$H$708*Assumptions!AA41)*Assumptions!AA622 -> 19673824.46 | AB88: =(Assumptions!$H$708*Assumptions!AB41)*Assumptions!AB622 -> 19963145.41 | AC88: =(Assumptions!$H$708*Assumptions!AC41)*Assumptions!AC622 -> 20252466.35
B89: Equipment Maintenance | N89: =Assumptions!N629*('Input Capex, Depr, Assets'!N165+'Input Capex, Depr, Assets'!N167)/2 -> 65835 | O89: =Assumptions!O629*('Input Capex, Depr, Assets'!O164+'Input Capex, Depr, Assets'!O165+'Input Capex, Depr, Assets'!O167)/2 -> 103495 | P89: =Assumptions!P629*('Input Capex, Depr, Assets'!P164+'Input Capex, Depr, Assets'!P165+'Input Capex, Depr, Assets'!P167)/2 -> 154880 | Q89: =Assumptions!Q629*('Input Capex, Depr, Assets'!Q164+'Input Capex, Depr, Assets'!Q165+'Input Capex, Depr, Assets'!Q167)/2 -> 179260 | R89: =Assumptions!R629*('Input Capex, Depr, Assets'!R164+'Input Capex, Depr, Assets'!R165+'Input Capex, Depr, Assets'!R167)/2 -> 196740 | S89: =Assumptions!S629*('Input Capex, Depr, Assets'!S164+'Input Capex, Depr, Assets'!S165+'Input Capex, Depr, Assets'!S167)/2 -> 221475 | T89: =Assumptions!T629*('Input Capex, Depr, Assets'!T164+'Input Capex, Depr, Assets'!T165+'Input Capex, Depr, Assets'!T167)/2 -> 130340 | U89: =Assumptions!U629*('Input Capex, Depr, Assets'!U164+'Input Capex, Depr, Assets'!U165+'Input Capex, Depr, Assets'!U167)/2 -> 112000 | V89: =Assumptions!V629*('Input Capex, Depr, Assets'!V164+'Input Capex, Depr, Assets'!V165+'Input Capex, Depr, Assets'!V167)/2 -> 92610 | W89: =Assumptions!W629*('Input Capex, Depr, Assets'!W164+'Input Capex, Depr, Assets'!W165+'Input Capex, Depr, Assets'!W167)/2 -> 72150 | X89: =Assumptions!X629*('Input Capex, Depr, Assets'!X164+'Input Capex, Depr, Assets'!X165+'Input Capex, Depr, Assets'!X167)/2 -> 62150 | Y89: =Assumptions!Y629*('Input Capex, Depr, Assets'!Y164+'Input Capex, Depr, Assets'!Y165+'Input Capex, Depr, Assets'!Y167)/2 -> 63150 | Z89: =Assumptions!Z629*('Input Capex, Depr, Assets'!Z164+'Input Capex, Depr, Assets'!Z165+'Input Capex, Depr, Assets'!Z167)/2 -> 64150 | AA89: =Assumptions!AA629*('Input Capex, Depr, Assets'!AA164+'Input Capex, Depr, Assets'!AA165+'Input Capex, Depr, Assets'!AA167)/2 -> 65150 | AB89: =Assumptions!AB629*('Input Capex, Depr, Assets'!AB164+'Input Capex, Depr, Assets'!AB165+'Input Capex, Depr, Assets'!AB167)/2 -> 66150 | AC89: =Assumptions!AC629*('Input Capex, Depr, Assets'!AC164+'Input Capex, Depr, Assets'!AC165+'Input Capex, Depr, Assets'!AC167)/2 -> 67150
B90: IT Maintenance | N90: =Assumptions!N631*('Input Capex, Depr, Assets'!N177+'Input Capex, Depr, Assets'!N179)/2 -> 59400 | O90: =Assumptions!O631*('Input Capex, Depr, Assets'!O176+'Input Capex, Depr, Assets'!O177+'Input Capex, Depr, Assets'!O179)/2 -> 50065.93329 | P90: =Assumptions!P631*('Input Capex, Depr, Assets'!P176+'Input Capex, Depr, Assets'!P177+'Input Capex, Depr, Assets'!P179)/2 -> 41919.213 | Q90: =Assumptions!Q631*('Input Capex, Depr, Assets'!Q176+'Input Capex, Depr, Assets'!Q177+'Input Capex, Depr, Assets'!Q179)/2 -> 35490.12159 | R90: =Assumptions!R631*('Input Capex, Depr, Assets'!R176+'Input Capex, Depr, Assets'!R177+'Input Capex, Depr, Assets'!R179)/2 -> 28629.22906 | S90: =Assumptions!S631*('Input Capex, Depr, Assets'!S176+'Input Capex, Depr, Assets'!S177+'Input Capex, Depr, Assets'!S179)/2 -> 26515.96906 | T90: =Assumptions!T631*('Input Capex, Depr, Assets'!T176+'Input Capex, Depr, Assets'!T177+'Input Capex, Depr, Assets'!T179)/2 -> 29777.5957 | U90: =Assumptions!U631*('Input Capex, Depr, Assets'!U176+'Input Capex, Depr, Assets'!U177+'Input Capex, Depr, Assets'!U179)/2 -> 32272.41858 | V90: =Assumptions!V631*('Input Capex, Depr, Assets'!V176+'Input Capex, Depr, Assets'!V177+'Input Capex, Depr, Assets'!V179)/2 -> 33767.11385 | W90: =Assumptions!W631*('Input Capex, Depr, Assets'!W176+'Input Capex, Depr, Assets'!W177+'Input Capex, Depr, Assets'!W179)/2 -> 34307.64945 | X90: =Assumptions!X631*('Input Capex, Depr, Assets'!X176+'Input Capex, Depr, Assets'!X177+'Input Capex, Depr, Assets'!X179)/2 -> 35067.172 | Y90: =Assumptions!Y631*('Input Capex, Depr, Assets'!Y176+'Input Capex, Depr, Assets'!Y177+'Input Capex, Depr, Assets'!Y179)/2 -> 36097.20512 | Z90: =Assumptions!Z631*('Input Capex, Depr, Assets'!Z176+'Input Capex, Depr, Assets'!Z177+'Input Capex, Depr, Assets'!Z179)/2 -> 37474.91076 | AA90: =Assumptions!AA631*('Input Capex, Depr, Assets'!AA176+'Input Capex, Depr, Assets'!AA177+'Input Capex, Depr, Assets'!AA179)/2 -> 39198.97386 | AB90: =Assumptions!AB631*('Input Capex, Depr, Assets'!AB176+'Input Capex, Depr, Assets'!AB177+'Input Capex, Depr, Assets'!AB179)/2 -> 41143.54175 | AC90: =Assumptions!AC631*('Input Capex, Depr, Assets'!AC176+'Input Capex, Depr, Assets'!AC177+'Input Capex, Depr, Assets'!AC179)/2 -> 43225.27526
B91: Material Expenses (maintenance) | N91: =SUM(N88:N90) -> 9218179.077 | O91: 10337658.3 | P91: 11505115.12 | Q91: 12680349.82 | R91: 13881317.97 | S91: 15127354 | T91: 16295960.18 | U91: 17569659.8 | V91: 18353596.83 | W91: 18622998.32 | X91: 18903078.79 | Y91: 19194429.77 | Z91: 19486128.42 | AA91: 19778173.43 | AB91: 20070438.95 | AC91: 20362841.63
B92: % of revenues | N92: =N91/N84 -> 0.2128350728 | O92: 0.2190242878 | P92: 0.2229672841 | Q92: 0.2248286954 | R92: 0.2252796897 | S92: 0.2256195199 | T92: 0.222680532 | U92: 0.219791633 | V92: 0.2114946729 | W92: 0.1994932507 | X92: 0.1880360908 | Y92: 0.1774680453 | Z92: 0.1675081234 | AA92: 0.1581086974 | AB92: 0.149235456 | AC92: 0.1408276981
B93: Office and terminal cleaning | N93: =Assumptions!N689 -> 167503.9857 | O93: =Assumptions!O689 -> 179420.0632 | P93: =Assumptions!P689 -> 193222.2091 | Q93: =Assumptions!Q689 -> 208265.6463 | R93: =Assumptions!R689 -> 224612.8805 | S93: =Assumptions!S689 -> 242103.9598 | T93: =Assumptions!T689 -> 261832.6077 | U93: =Assumptions!U689 -> 283638.6547 | V93: =Assumptions!V689 -> 305196.4281 | W93: =Assumptions!W689 -> 324976.7014 | X93: =Assumptions!X689 -> 346101.3127 | Y93: =Assumptions!Y689 -> 368664.9213 | Z93: =Assumptions!Z689 -> 392768.897 | AA93: =Assumptions!AA689 -> 418521.7952 | AB93: =Assumptions!AB689 -> 446039.867 | AC93: =Assumptions!AC689 -> 475447.6035
B94: % of revenues | N94: =N93/N84 -> 0.003867436583 | O94: 0.003801378457 | P94: 0.003744615394 | Q94: 0.003692649983 | R94: 0.003645238883 | S94: 0.003610901097 | T94: 0.00357788211 | U94: 0.003548241904 | V94: 0.00351688115 | W94: 0.003481214864 | X94: 0.003442800964 | Y94: 0.003408605712 | Z94: 0.003376349547 | AA94: 0.003345705108 | AB94: 0.003316567371 | AC94: 0.003288155592
B95: O&M of operating soft/hardware in terminal | N95: =Assumptions!N693 -> 220000 | O95: =Assumptions!O693 -> 224000 | P95: =Assumptions!P693 -> 228000 | Q95: =Assumptions!Q693 -> 290000 | R95: =Assumptions!R693 -> 295000 | S95: =Assumptions!S693 -> 300000 | T95: =Assumptions!T693 -> 366000 | U95: =Assumptions!U693 -> 372000 | V95: =Assumptions!V693 -> 378000 | W95: =Assumptions!W693 -> 480000 | X95: =Assumptions!X693 -> 390000 | Y95: =Assumptions!Y693 -> 396000 | Z95: =Assumptions!Z693 -> 402000 | AA95: =Assumptions!AA693 -> 408000 | AB95: =Assumptions!AB693 -> 414000 | AC95: =Assumptions!AC693 -> 420000
B96: % of revenues | N96: =N95/N84 -> 0.00507949733 | O96: 0.004745894965 | P96: 0.004418603398 | Q96: 0.005141839349 | R96: 0.004787550332 | S96: 0.004474401534 | T96: 0.005001305466 | U96: 0.004653618137 | V96: 0.00435582121 | W96: 0.005141855179 | X96: 0.003879477849 | Y96: 0.003661340649 | Z96: 0.003455702649 | AA96: 0.003261592824 | AB96: 0.003078332214 | AC96: 0.002904684635
B97: External Services e.g. O&M oper soft/hardware, cleaning | N97: =SUM(N93,N95) -> 387503.9857 | O97: 403420.0632 | P97: 421222.2091 | Q97: 498265.6463 | R97: 519612.8805 | S97: 542103.9598 | T97: 627832.6077 | U97: 655638.6547 | V97: 683196.4281 | W97: 804976.7014 | X97: 736101.3127 | Y97: 764664.9213 | Z97: 794768.897 | AA97: 826521.7952 | AB97: 860039.867 | AC97: 895447.6035
B98: % of revenues | N98: =N97/N84 -> 0.008946933913 | O98: 0.008547273421 | P98: 0.008163218792 | Q98: 0.008834489332 | R98: 0.008432789215 | S98: 0.008085302631 | T98: 0.008579187576 | U98: 0.008201860041 | V98: 0.00787270236 | W98: 0.008623070043 | X98: 0.007322278813 | Y98: 0.007069946361 | Z98: 0.006832052196 | AA98: 0.006607297932 | AB98: 0.006394899585 | AC98: 0.006192840228
B99: Utilities | N99: =Assumptions!N651 -> 9198281.187 | O99: =Assumptions!O651 -> 9750582.956 | P99: =Assumptions!P651 -> 10257811.14 | Q99: =Assumptions!Q651 -> 10773130.68 | R99: =Assumptions!R651 -> 11313219.54 | S99: =Assumptions!S651 -> 11875451.41 | T99: =Assumptions!T651 -> 12483197.47 | U99: =Assumptions!U651 -> 13113948.43 | V99: =Assumptions!V651 -> 13736024.86 | W99: =Assumptions!W651 -> 14370112.1 | X99: =Assumptions!X651 -> 15089565.1 | Y99: =Assumptions!Y651 -> 15845029.2 | Z99: =Assumptions!Z651 -> 16638305.93 | AA99: =Assumptions!AA651 -> 17471286.89 | AB99: =Assumptions!AB651 -> 18345958.28 | AC99: =Assumptions!AC651 -> 19264405.62
B100: % of revenues | N100: =N99/N84 -> 0.2123756579 | O100: 0.2065859042 | P100: 0.1987947332 | Q100: 0.1910127836 | R100: 0.1836020609 | S100: 0.17711846 | T100: 0.1705800102 | U100: 0.1640519039 | V100: 0.1582848371 | W100: 0.1539354902 | X100: 0.1501016245 | Y100: 0.146500125 | Z100: 0.1430274574 | AA100: 0.1396672155 | AB100: 0.1364129333 | AC100: 0.1332310072
B101: Marketing Expense | N101: =Assumptions!N665 -> 510000 | O101: =Assumptions!O665 -> 520200 | P101: =Assumptions!P665 -> 530604 | Q101: =Assumptions!Q665 -> 541216.08 | R101: =Assumptions!R665 -> 552040.4016 | S101: =Assumptions!S665 -> 563081.2096 | T101: =Assumptions!T665 -> 574342.8338 | U101: =Assumptions!U665 -> 585829.6905 | V101: =Assumptions!V665 -> 597546.2843 | W101: =Assumptions!W665 -> 609497.21 | X101: =Assumptions!X665 -> 621687.1542 | Y101: =Assumptions!Y665 -> 634120.8973 | Z101: =Assumptions!Z665 -> 646803.3152 | AA101: =Assumptions!AA665 -> 659739.3815 | AB101: =Assumptions!AB665 -> 672934.1692 | AC101: =Assumptions!AC665 -> 686392.8525
B102: % of revenues | N102: =N101/N84 -> 0.01177519836 | O102: 0.01102149357 | P102: 0.01028302034 | Q102: 0.009596021161 | R102: 0.008959054942 | S102: 0.008398171427 | T102: 0.00784826217 | U102: 0.007328569014 | V102: 0.006885726928 | W102: 0.00652905497 | X102: 0.006184157805 | Y102: 0.005862961155 | Z102: 0.005560099328 | AA102: 0.005274022629 | AB102: 0.005003659254 | AC102: 0.004747035173
B103: Training Expense | N103: =Assumptions!N676 -> 300000 | O103: =Assumptions!O676 -> 300000 | P103: =Assumptions!P676 -> 75000 | Q103: =Assumptions!Q676 -> 76500 | R103: =Assumptions!R676 -> 78030 | S103: =Assumptions!S676 -> 79590.6 | T103: =Assumptions!T676 -> 81182.412 | U103: =Assumptions!U676 -> 82806.06024 | V103: =Assumptions!V676 -> 84462.18144 | W103: =Assumptions!W676 -> 86151.42507 | X103: =Assumptions!X676 -> 87874.45358 | Y103: =Assumptions!Y676 -> 89631.94265 | Z103: =Assumptions!Z676 -> 91424.5815 | AA103: =Assumptions!AA676 -> 93253.07313 | AB103: =Assumptions!AB676 -> 95118.13459 | AC103: =Assumptions!AC676 -> 97020.49728
B104: % of revenues | N104: =N103/N84 -> 0.006926587269 | O104: 0.006356109327 | P104: 0.00145348796 | Q104: 0.001356381759 | R104: 0.001266347635 | S104: 0.001187067676 | T104: 0.001109338909 | U104: 0.001035881139 | V104: 0.0009732861411 | W104: 0.0009228711482 | X104: 0.0008741205029 | Y104: 0.0008287198865 | Z104: 0.0007859108669 | AA104: 0.0007454743974 | AB104: 0.0007072589804 | AC104: 0.00067098559
B105: Insurance | N105: =Assumptions!N659 -> 428927.3238 | O105: =Assumptions!O659 -> 436319.4492 | P105: =Assumptions!P659 -> 444996.3514 | Q105: =Assumptions!Q659 -> 454372.7901 | R105: =Assumptions!R659 -> 464462.6354 | S105: =Assumptions!S659 -> 475105.8098 | T105: =Assumptions!T659 -> 487111.8287 | U105: =Assumptions!U659 -> 500294.1905 | V105: =Assumptions!V659 -> 512874.1582 | W105: =Assumptions!W659 -> 523764.908 | X105: =Assumptions!X659 -> 535285.7236 | Y105: =Assumptions!Y659 -> 547474.8965 | Z105: =Assumptions!Z659 -> 560373.1059 | AA105: =Assumptions!AA659 -> 574023.5698 | AB105: =Assumptions!AB659 -> 588472.2052 | AC105: =Assumptions!AC659 -> 603767.7989
B106: % of revenues | N106: =N105/N84 -> 0.009903341802 | O106: 0.009244313736 | P106: 0.008623957853 | Q106: 0.008056247901 | R106: 0.00753775676 | S106: 0.007086047213 | T106: 0.006656270632 | U106: 0.00625854333 | V106: 0.005910021524 | W106: 0.005610673551 | X106: 0.00532469002 | Y106: 0.005061848719 | Z106: 0.004817121459 | AA106: 0.004588801853 | AB106: 0.004375635136 | AC106: 0.004175607259
B107: Other operating expenses | N107: =Assumptions!N679 -> 102000 | O107: =Assumptions!O679 -> 104040 | P107: =Assumptions!P679 -> 106120.8 | Q107: =Assumptions!Q679 -> 108243.216 | R107: =Assumptions!R679 -> 110408.0803 | S107: =Assumptions!S679 -> 112616.2419 | T107: =Assumptions!T679 -> 114868.5668 | U107: =Assumptions!U679 -> 117165.9381 | V107: =Assumptions!V679 -> 119509.2569 | W107: =Assumptions!W679 -> 121899.442 | X107: =Assumptions!X679 -> 124337.4308 | Y107: =Assumptions!Y679 -> 126824.1795 | Z107: =Assumptions!Z679 -> 129360.663 | AA107: =Assumptions!AA679 -> 131947.8763 | AB107: =Assumptions!AB679 -> 134586.8338 | AC107: =Assumptions!AC679 -> 137278.5705
B108: % of revenues | N108: =N107/N84 -> 0.002355039671 | O108: 0.002204298715 | P108: 0.002056604068 | Q108: 0.001919204232 | R108: 0.001791810988 | S108: 0.001679634285 | T108: 0.001569652434 | U108: 0.001465713803 | V108: 0.001377145386 | W108: 0.001305810994 | X108: 0.001236831561 | Y108: 0.001172592231 | Z108: 0.001112019866 | AA108: 0.001054804526 | AB108: 0.001000731851 | AC108: 0.0009494070346
B109: o/w Management fee paid | D109: =Control!$K$114 -> 0.03 | N109: =$D$109*N84 -> 1299341.169 | O109: 1415960.541 | P109: 1548000.439 | Q109: 1692001.521 | R109: 1848544.535 | S109: 2011442.185 | T109: 2195426.789 | U109: 2398134.026 | V109: 2603412.641 | W109: 2800545.62 | X109: 3015869.778 | Y109: 3244713.109 | Z109: 3489883.6 | AA109: 3752767.638 | AB109: 4034652.252 | AC109: 4337820.308
B110: ="o/w " &'Debt Workings'!D28 -> o/w Commitment fee paid | N110: ='Debt Workings'!N28 -> 90000 | O110: ='Debt Workings'!O28 -> 90000 | P110: ='Debt Workings'!P28 -> 90000 | Q110: ='Debt Workings'!Q28 -> 90000 | R110: ='Debt Workings'!R28 -> 90000 | S110: ='Debt Workings'!S28 -> 90000 | T110: ='Debt Workings'!T28 -> 90000 | U110: ='Debt Workings'!U28 -> 90000 | V110: ='Debt Workings'!V28 -> 90000 | W110: ='Debt Workings'!W28 -> 90000 | X110: ='Debt Workings'!X28 -> 90000 | Y110: ='Debt Workings'!Y28 -> 90000 | Z110: ='Debt Workings'!Z28 -> 90000 | AA110: ='Debt Workings'!AA28 -> 90000 | AB110: ='Debt Workings'!AB28 -> 90000 | AC110: ='Debt Workings'!AC28 -> 90000
B111: Total other operating expenses | N111: =SUM(N107,N109,N110) -> 1491341.169 | O111: =SUM(O109:O110) -> 1505960.541 | P111: 1638000.439 | Q111: 1782001.521 | R111: 1938544.535 | S111: 2101442.185 | T111: 2285426.789 | U111: 2488134.026 | V111: 2693412.641 | W111: 2890545.62 | X111: 3105869.778 | Y111: 3334713.109 | Z111: 3579883.6 | AA111: 3842767.638 | AB111: 4124652.252 | AC111: 4427820.308
B112: % of revenues | N112: =N111/N84 -> 0.03443301585 | O112: 0.0319068328 | P112: 0.03174418555 | Q112: 0.03159574325 | R112: 0.03146060858 | S112: 0.03134232046 | T112: 0.03122982921 | U112: 0.03112587536 | V112: 0.03103710029 | W112: 0.03096409785 | X112: 0.03089526412 | Y112: 0.03083212287 | Z112: 0.03077366477 | AA112: 0.03071946901 | AB112: 0.03066920266 | AC112: 0.03062243242
B114: Total Operating Expenses | N114: =SUM(N86,N91,N97,N99,N101,N103,N105,N111) -> 26472839.03 | O114: 28458298.23 | P114: 30588017.76 | Q114: 33091900.69 | R114: 35669387.36 | S114: 38386594.52 | T114: 41261722.97 | U114: 44332397.43 | V114: 46938821.24 | W114: 49107246.96 | X114: 51289770.41 | Y114: 53730109.97 | Z114: 56336039.56 | AA114: 59121953.58 | AB114: 62103254.32 | AC114: 65297736.94
B115: % of revenues | N115: =N114/N84 -> 0.6112214326 | O115: 0.6029468494 | P115: 0.5927908738 | Q115: 0.5867353004 | R115: 0.578877923 | S115: 0.572523458 | T115: 0.5638319143 | U115: 0.5545861525 | V115: 0.5408918336 | W115: 0.5260465668 | X115: 0.5101987903 | Y115: 0.4967783729 | Z115: 0.4842801024 | AA115: 0.4726268126 | AB115: 0.4617740299 | AC115: 0.4515936505
B117: Gross margin | N117: =N84-N114 -> 16838533.28 | O117: 18740386.46 | P117: 21011996.87 | Q117: 23308150.01 | R117: 25948763.79 | S117: 28661478.33 | T117: 31919170 | U117: 35605403.45 | V117: 39841600.13 | W117: 44244273.72 | X117: 49239222.19 | Y117: 54426993.67 | Z117: 59993413.76 | AA117: 65970301.04 | AB117: 72385154.07 | AC117: 79296273.33
B118: % of revenues | N118: =N117/N84 -> 0.3887785674 | O118: 0.3970531506 | P118: 0.4072091262 | Q118: 0.4132646996 | R118: 0.421122077 | S118: 0.427476542 | T118: 0.4361680857 | U118: 0.4454138475 | V118: 0.4591081664 | W118: 0.4739534332 | X118: 0.4898012097 | Y118: 0.5032216271 | Z118: 0.5157198976 | AA118: 0.5273731874 | AB118: 0.5382259701 | AC118: 0.5484063495
B120: Concession Fee (fix) | D120: =Control!E128 -> 1500000 | E120: inflated | N120: =$D$120*(1+Assumptions!N36) -> 1650000 | O120: =N120*(1+Assumptions!O36) -> 1683000 | P120: =O120*(1+Assumptions!P36) -> 1716660 | Q120: =P120*(1+Assumptions!Q36) -> 1750993.2 | R120: =Q120*(1+Assumptions!R36) -> 1786013.064 | S120: =R120*(1+Assumptions!S36) -> 1821733.325 | T120: =S120*(1+Assumptions!T36) -> 1858167.992 | U120: =T120*(1+Assumptions!U36) -> 1895331.352 | V120: =U120*(1+Assumptions!V36) -> 1933237.979 | W120: =V120*(1+Assumptions!W36) -> 1971902.738 | X120: =W120*(1+Assumptions!X36) -> 2011340.793 | Y120: =X120*(1+Assumptions!Y36) -> 2051567.609 | Z120: =Y120*(1+Assumptions!Z36) -> 2092598.961 | AA120: =Z120*(1+Assumptions!AA36) -> 2134450.94 | AB120: =AA120*(1+Assumptions!AB36) -> 2177139.959 | AC120: =AB120*(1+Assumptions!AC36) -> 2220682.758
B121: % of revenues | N121: =N120/N84 -> 0.03809622998 | O121: 0.03565777333 | P121: 0.03326859522 | Q121: 0.03104595081 | R121: 0.02898517775 | S121: 0.02717055462 | T121: 0.02539143643 | U121: 0.02371007622 | V121: 0.02227735183 | W121: 0.02112341314 | X121: 0.02000756937 | Y121: 0.01896840374 | Z121: 0.01798855665 | AA121: 0.01706301439 | AB121: 0.01618830935 | AC121: 0.01535805497
B122: Concession Fee (variable) | D122: 17% - 20% - 23% | N122: =N123*N84 -> 7362933.292 | O122: 8023776.397 | P122: 8772002.487 | Q122: 11280010.14 | R122: 12323630.23 | S122: 13409614.57 | T122: 14636178.59 | U122: 15987560.18 | V122: 17356084.28 | W122: 18670304.13 | X122: 20105798.52 | Y122: 21631420.73 | Z122: 26755774.26 | AA122: 28771218.56 | AB122: 30932333.93 | AC122: 33256622.36
B123: % of revenues | D123: for Years 1-3, 4-13, thereafter | N123: ='P&L'!N75 -> 0.17 | O123: ='P&L'!O75 -> 0.17 | P123: ='P&L'!P75 -> 0.17 | Q123: ='P&L'!Q75 -> 0.2 | R123: ='P&L'!R75 -> 0.2 | S123: ='P&L'!S75 -> 0.2 | T123: ='P&L'!T75 -> 0.2 | U123: ='P&L'!U75 -> 0.2 | V123: ='P&L'!V75 -> 0.2 | W123: ='P&L'!W75 -> 0.2 | X123: ='P&L'!X75 -> 0.2 | Y123: ='P&L'!Y75 -> 0.2 | Z123: ='P&L'!Z75 -> 0.23 | AA123: ='P&L'!AA75 -> 0.23 | AB123: ='P&L'!AB75 -> 0.23 | AC123: ='P&L'!AC75 -> 0.23
B124: Total Concession Fee | N124: =SUM(N120,N122) -> 9012933.292 | O124: 9706776.397 | P124: 10488662.49 | Q124: 13031003.34 | R124: 14109643.29 | S124: 15231347.89 | T124: 16494346.59 | U124: 17882891.53 | V124: 19289322.25 | W124: 20642206.87 | X124: 22117139.31 | Y124: 23682988.34 | Z124: 28848373.22 | AA124: 30905669.5 | AB124: 33109473.89 | AC124: 35477305.12
B125: % of revenues | N125: =N124/N84 -> 0.20809623 | O125: 0.2056577733 | P125: 0.2032685952 | Q125: 0.2310459508 | R125: 0.2289851778 | S125: 0.2271705546 | T125: 0.2253914364 | U125: 0.2237100762 | V125: 0.2222773518 | W125: 0.2211234131 | X125: 0.2200075694 | Y125: 0.2189684037 | Z125: 0.2479885566 | AA125: 0.2470630144 | AB125: 0.2461883094 | AC125: 0.245358055
B127: ='P&L'!B79 -> EBITDA | N127: =+N117-N124 -> 7825599.983 | O127: 9033610.062 | P127: 10523334.38 | Q127: 10277146.67 | R127: 11839120.5 | S127: 13430130.43 | T127: 15424823.41 | U127: 17722511.92 | V127: 20552277.88 | W127: 23602066.85 | X127: 27122082.88 | Y127: 30744005.33 | Z127: 31145040.53 | AA127: 35064631.53 | AB127: 39275680.18 | AC127: 43818968.21
B128: Tax | N128: =-'Tax Workings'!N11 -> -1109860.91 | O128: =-'Tax Workings'!O11 -> -1268732.051 | P128: =-'Tax Workings'!P11 -> -1545306.459 | Q128: =-'Tax Workings'!Q11 -> -1551453.77 | R128: =-'Tax Workings'!R11 -> -2029578.227 | S128: =-'Tax Workings'!S11 -> -2337291.341 | T128: =-'Tax Workings'!T11 -> -2695164.489 | U128: =-'Tax Workings'!U11 -> -3166943.798 | V128: =-'Tax Workings'!V11 -> -3674144.798 | W128: =-'Tax Workings'!W11 -> -4221415.262 | X128: =-'Tax Workings'!X11 -> -4894631.718 | Y128: =-'Tax Workings'!Y11 -> -5555260.357 | Z128: =-'Tax Workings'!Z11 -> -5747060.811 | AA128: =-'Tax Workings'!AA11 -> -6471966.538 | AB128: =-'Tax Workings'!AB11 -> -7256608.391 | AC128: =-'Tax Workings'!AC11 -> -8107490.234
B129: ='Debt Workings'!D7 -> WC / Provisions | N129: ='Debt Workings'!N7 -> -1881070.461 | O129: ='Debt Workings'!O7 -> -284553.7471 | P129: ='Debt Workings'!P7 -> -242036.8471 | Q129: ='Debt Workings'!Q7 -> -432274.0743 | R129: ='Debt Workings'!R7 -> -257023.9244 | S129: ='Debt Workings'!S7 -> -351468.4109 | T129: ='Debt Workings'!T7 -> -452534.8735 | U129: ='Debt Workings'!U7 -> -461412.6296 | V129: ='Debt Workings'!V7 -> -572919.358 | W129: ='Debt Workings'!W7 -> -633749.3318 | X129: ='Debt Workings'!X7 -> -661571.6616 | Y129: ='Debt Workings'!Y7 -> -723354.2304 | Z129: ='Debt Workings'!Z7 -> -1026971.851 | AA129: ='Debt Workings'!AA7 -> -845401.0044 | AB129: ='Debt Workings'!AB7 -> -900580.203 | AC129: ='Debt Workings'!AC7 -> -963502.1149
B130: Cash Flow from Operations | N130: =N127+N128+N129 -> 4834668.613 | O130: 7480324.264 | P130: 8735991.076 | Q130: 8293418.828 | R130: 9552518.349 | S130: 10741370.68 | T130: 12277124.05 | U130: 14094155.49 | V130: 16305213.72 | W130: 18746902.25 | X130: 21565879.5 | Y130: 24465390.75 | Z130: 24371007.87 | AA130: 27747263.99 | AB130: 31118491.59 | AC130: 34747975.86
B132: CAPEX | N132: ='Debt Workings'!N6 -> -11602500 | O132: ='Debt Workings'!O6 -> -485370.9252 | P132: ='Debt Workings'!P6 -> -532487.8665 | Q132: ='Debt Workings'!Q6 -> -577008.5097 | R132: ='Debt Workings'!R6 -> -605358.7121 | S132: ='Debt Workings'!S6 -> -621509.0585 | T132: ='Debt Workings'!T6 -> -643581.5424 | U132: ='Debt Workings'!U6 -> -665185.8352 | V132: ='Debt Workings'!V6 -> -674572.2753 | W132: ='Debt Workings'!W6 -> -675516.6516 | X132: ='Debt Workings'!X6 -> -693570.9015 | Y132: ='Debt Workings'!Y6 -> -712392.074 | Z132: ='Debt Workings'!Z6 -> -732043.1253 | AA132: ='Debt Workings'!AA6 -> -752592.0914 | AB132: ='Debt Workings'!AB6 -> -774112.4907 | AC132: ='Debt Workings'!AC6 -> -796683.7587
B133: Cash Flow from Investments | N133: =N132 -> -11602500 | O133: -485370.9252 | P133: -532487.8665 | Q133: -577008.5097 | R133: -605358.7121 | S133: -621509.0585 | T133: -643581.5424 | U133: -665185.8352 | V133: -674572.2753 | W133: -675516.6516 | X133: -693570.9015 | Y133: -712392.074 | Z133: -732043.1253 | AA133: -752592.0914 | AB133: -774112.4907 | AC133: -796683.7587
B136: FREE CASH FLOW | N136: =N130+N133 -> -6767831.387 | O136: 6994953.339 | P136: 8203503.209 | Q136: 7716410.318 | R136: 8947159.637 | S136: 10119861.62 | T136: 11633542.51 | U136: 13428969.66 | V136: 15630641.45 | W136: 18071385.6 | X136: 20872308.6 | Y136: 23752998.67 | Z136: 23638964.75 | AA136: 26994671.9 | AB136: 30344379.1 | AC136: 33951292.1
B138: Capital Increase | N138: =N31-M31 -> 700000 | O138: 0 | P138: 0 | Q138: 0 | R138: 0 | S138: 0 | T138: 0 | U138: 0 | V138: 0 | W138: 0 | X138: 0 | Y138: 0 | Z138: 0 | AA138: 0 | AB138: 0 | AC138: 0
B139: Liquidity Facility | N139: ='Debt Workings'!N23+'Debt Workings'!N24 -> 7067831.387 | O139: ='Debt Workings'!O23+'Debt Workings'!O24 -> -7067831.387 | P139: ='Debt Workings'!P23+'Debt Workings'!P24 -> 0 | Q139: ='Debt Workings'!Q23+'Debt Workings'!Q24 -> 0 | R139: ='Debt Workings'!R23+'Debt Workings'!R24 -> 0 | S139: ='Debt Workings'!S23+'Debt Workings'!S24 -> 0 | T139: ='Debt Workings'!T23+'Debt Workings'!T24 -> 0 | U139: ='Debt Workings'!U23+'Debt Workings'!U24 -> 0 | V139: ='Debt Workings'!V23+'Debt Workings'!V24 -> 0 | W139: ='Debt Workings'!W23+'Debt Workings'!W24 -> 0 | X139: ='Debt Workings'!X23+'Debt Workings'!X24 -> 0 | Y139: ='Debt Workings'!Y23+'Debt Workings'!Y24 -> 0 | Z139: ='Debt Workings'!Z23+'Debt Workings'!Z24 -> 0 | AA139: ='Debt Workings'!AA23+'Debt Workings'!AA24 -> 0 | AB139: ='Debt Workings'!AB23+'Debt Workings'!AB24 -> 0 | AC139: ='Debt Workings'!AC23+'Debt Workings'!AC24 -> 0
B140: Interest Income | N140: ='Debt Workings'!N39 -> 0 | O140: ='Debt Workings'!O39 -> 18190 | P140: ='Debt Workings'!P39 -> 11514.11783 | Q140: ='Debt Workings'!Q39 -> 187315.4886 | R140: ='Debt Workings'!R39 -> 356455.2209 | S140: ='Debt Workings'!S39 -> 555552.5788 | T140: ='Debt Workings'!T39 -> 784006.4427 | U140: ='Debt Workings'!U39 -> 1049741.99 | V140: ='Debt Workings'!V39 -> 1359586.42 | W140: ='Debt Workings'!W39 -> 1723177.296 | X140: ='Debt Workings'!X39 -> 2146780.942 | Y140: ='Debt Workings'!Y39 -> 2639389.458 | Z140: ='Debt Workings'!Z39 -> 3204186.564 | AA140: ='Debt Workings'!AA39 -> 3778630.002 | AB140: ='Debt Workings'!AB39 -> 4437178.663 | AC140: ='Debt Workings'!AC39 -> 5181503.999
B141: Interest Expenses | N141: ='Debt Workings'!N41-'Debt Workings'!N30 -> -150000 | O141: ='Debt Workings'!O41 -> -257269.0625 | P141: ='Debt Workings'!P41 -> 0 | Q141: ='Debt Workings'!Q41 -> 0 | R141: ='Debt Workings'!R41 -> 0 | S141: ='Debt Workings'!S41 -> 0 | T141: ='Debt Workings'!T41 -> 0 | U141: ='Debt Workings'!U41 -> 0 | V141: ='Debt Workings'!V41 -> 0 | W141: ='Debt Workings'!W41 -> 0 | X141: ='Debt Workings'!X41 -> 0 | Y141: ='Debt Workings'!Y41 -> 0 | Z141: ='Debt Workings'!Z41 -> 0 | AA141: ='Debt Workings'!AA41 -> 0 | AB141: ='Debt Workings'!AB41 -> 0 | AC141: ='Debt Workings'!AC41 -> 0
B142: Dividend Payment | N142: ='Debt Workings'!N45*-1 -> 0 | O142: ='Debt Workings'!O45*-1 -> 0 | P142: ='Debt Workings'!P45*-1 -> 0 | Q142: ='Debt Workings'!Q45*-1 -> 0 | R142: ='Debt Workings'!R45*-1 -> 0 | S142: ='Debt Workings'!S45*-1 -> 0 | T142: ='Debt Workings'!T45*-1 -> 0 | U142: ='Debt Workings'!U45*-1 -> 0 | V142: ='Debt Workings'!V45*-1 -> 0 | W142: ='Debt Workings'!W45*-1 -> 0 | X142: ='Debt Workings'!X45*-1 -> 0 | Y142: ='Debt Workings'!Y45*-1 -> 0 | Z142: ='Debt Workings'!Z45*-1 -> 0 | AA142: ='Debt Workings'!AA45*-1 -> 0 | AB142: ='Debt Workings'!AB45*-1 -> 0 | AC142: ='Debt Workings'!AC45*-1 -> 0
B143: Cash Flow from Financing | N143: =N138+N139+N140+N141+N142 -> 7617831.387 | O143: -7306910.45 | P143: 11514.11783 | Q143: 187315.4886 | R143: 356455.2209 | S143: 555552.5788 | T143: 784006.4427 | U143: 1049741.99 | V143: 1359586.42 | W143: 1723177.296 | X143: 2146780.942 | Y143: 2639389.458 | Z143: 3204186.564 | AA143: 3778630.002 | AB143: 4437178.663 | AC143: 5181503.999
B145: CASH BoP | N145: =M24 -> 0 | O145: 850000 | P145: 538042.8895 | Q145: 8753060.216 | R145: 16656786.02 | S145: 25960400.88 | T145: 36635815.08 | U145: 49053364.03 | V145: 63532075.68 | W145: 80522303.55 | X145: 100316866.4 | Y145: 123335956 | Z145: 149728344.1 | AA145: 176571495.4 | AB145: 207344797.3 | AC145: 242126355.1
B146: Change | N146: =N136+N143 -> 850000 | O146: -311957.1105 | P146: 8215017.327 | Q146: 7903725.807 | R146: 9303614.857 | S146: 10675414.2 | T146: 12417548.95 | U146: 14478711.65 | V146: 16990227.87 | W146: 19794562.9 | X146: 23019089.54 | Y146: 26392388.13 | Z146: 26843151.31 | AA146: 30773301.9 | AB146: 34781557.76 | AC146: 39132796.1
B147: CASH EoP | N147: =N145+N146 -> 850000 | O147: 538042.8895 | P147: 8753060.216 | Q147: 16656786.02 | R147: 25960400.88 | S147: 36635815.08 | T147: 49053364.03 | U147: 63532075.68 | V147: 80522303.55 | W147: 100316866.4 | X147: 123335956 | Y147: 149728344.1 | Z147: 176571495.4 | AA147: 207344797.3 | AB147: 242126355.1 | AC147: 281259151.2
B148: Check | N148: ='Debt Workings'!N52 -> 850000 | O148: ='Debt Workings'!O52 -> 538042.8895 | P148: ='Debt Workings'!P52 -> 8753060.216 | Q148: ='Debt Workings'!Q52 -> 16656786.02 | R148: ='Debt Workings'!R52 -> 25960400.88 | S148: =S147-'Debt Workings'!S52 -> 0 | T148: =T147-'Debt Workings'!T52 -> 0 | U148: =U147-'Debt Workings'!U52 -> 0 | V148: =V147-'Debt Workings'!V52 -> 0 | W148: =W147-'Debt Workings'!W52 -> 0 | X148: =X147-'Debt Workings'!X52 -> 0 | Y148: =Y147-'Debt Workings'!Y52 -> 0 | Z148: =Z147-'Debt Workings'!Z52 -> 0 | AA148: =AA147-'Debt Workings'!AA52 -> 0 | AB148: =AB147-'Debt Workings'!AB52 -> 0 | AC148: =AC147-'Debt Workings'!AC52 -> 0
A150: 2.a | B150: SUMMARY OF CASHFLOWS FOR AIRPORT OPERATION (EUR m)
I151: =+J151-1 -> -4 | J151: =+K151-1 -> -3 | K151: =+L151-1 -> -2 | L151: =+M151-1 -> -1 | M151: 0 | N151: 1 | O151: =+N151+1 -> 2 | P151: 3 | Q151: 4 | R151: 5 | S151: 6 | T151: 7 | U151: 8 | V151: 9 | W151: 10 | X151: 11 | Y151: 12 | Z151: 13 | AA151: 14 | AB151: 15 | AC151: 16
B152: December Year-end | I152: =I$4 -> 2005 | J152: 2006 | K152: 2007 | L152: 2008 | M152: 2009 | N152: 2010 | O152: 2011 | P152: 2012 | Q152: 2013 | R152: 2014 | S152: 2015 | T152: 2016 | U152: 2017 | V152: 2018 | W152: 2019 | X152: 2020 | Y152: 2021 | Z152: 2022 | AA152: 2023 | AB152: 2024 | AC152: 2025
B154: Airport operating Cashflow before (i) taxes;
B155: (ii) AIBD Concession fee; and (iii) Fraport mgmt fee | N155: =N130+N124-N128+N109+N110 -> 16346803.98 | O155: 19961793.25 | P155: 22407960.46 | Q155: 24657877.46 | R155: 27630284.4 | S155: 30411452.1 | T155: 33752061.91 | U155: 37632124.85 | V155: 41962093.42 | W155: 46501070.01 | X155: 51683520.31 | Y155: 57038352.55 | Z155: 62546325.51 | AA155: 68967667.67 | AB155: 75609226.12 | AC155: 82760591.52
B156: Capex | N156: =N132 -> -11602500 | O156: -485370.9252 | P156: -532487.8665 | Q156: -577008.5097 | R156: -605358.7121 | S156: -621509.0585 | T156: -643581.5424 | U156: -665185.8352 | V156: -674572.2753 | W156: -675516.6516 | X156: -693570.9015 | Y156: -712392.074 | Z156: -732043.1253 | AA156: -752592.0914 | AB156: -774112.4907 | AC156: -796683.7587
B157: Interest expense / commitment fee | N157: =+N141-N110 -> -240000 | O157: -347269.0625 | P157: -90000 | Q157: -90000 | R157: -90000 | S157: -90000 | T157: -90000 | U157: -90000 | V157: -90000 | W157: -90000 | X157: -90000 | Y157: -90000 | Z157: -90000 | AA157: -90000 | AB157: -90000 | AC157: -90000
B158: FCF before (i) taxes; (ii) AIBD concession fee; and (iii) mgmt fee | N158: =SUM(N155:N157) -> 4504303.984 | O158: 19129153.27 | P158: 21785472.59 | Q158: 23990868.95 | R158: 26934925.69 | S158: 29699943.04 | T158: 33018480.37 | U158: 36876939.01 | V158: 41197521.14 | W158: 45735553.36 | X158: 50899949.41 | Y158: 56235960.48 | Z158: 61724282.38 | AA158: 68125075.58 | AB158: 74745113.63 | AC158: 81873907.76
B160: Payments to stakeholders
B161: AIBD Concession fee | N161: =-N124 -> -9012933.292 | O161: -9706776.397 | P161: -10488662.49 | Q161: -13031003.34 | R161: -14109643.29 | S161: -15231347.89 | T161: -16494346.59 | U161: -17882891.53 | V161: -19289322.25 | W161: -20642206.87 | X161: -22117139.31 | Y161: -23682988.34 | Z161: -28848373.22 | AA161: -30905669.5 | AB161: -33109473.89 | AC161: -35477305.12
B162: Govt - taxes paid by Daport (15% on EBIT and 20% on Mgmt fees) | N162: =+N128 -> -1109860.91 | O162: -1268732.051 | P162: -1545306.459 | Q162: -1551453.77 | R162: -2029578.227 | S162: -2337291.341 | T162: -2695164.489 | U162: -3166943.798 | V162: -3674144.798 | W162: -4221415.262 | X162: -4894631.718 | Y162: -5555260.357 | Z162: -5747060.811 | AA162: -6471966.538 | AB162: -7256608.391 | AC162: -8107490.234
B163: Cashflow pre-capital injection | N163: =N158+N161+N162 -> -5618490.218 | O163: 8153644.818 | P163: 9751503.648 | Q163: 9408411.839 | R163: 10795704.17 | S163: 12131303.81 | T163: 13828969.3 | U163: 15827103.69 | V163: 18234054.09 | W163: 20871931.22 | X163: 23888178.37 | Y163: 26997711.78 | Z163: 27128848.35 | AA163: 30747439.54 | AB163: 34379031.35 | AC163: 38289112.41
B165: Financing - equity | N165: =N138 -> 700000 | O165: 0 | P165: 0 | Q165: 0 | R165: 0 | S165: 0 | T165: 0 | U165: 0 | V165: 0 | W165: 0 | X165: 0 | Y165: 0 | Z165: 0 | AA165: 0 | AB165: 0 | AC165: 0
B166: Financing - debt drawdown (+) or repayment (-) | N166: =N139 -> 7067831.387 | O166: =O139 -> -7067831.387 | P166: =(P139>0)*P139 -> 0 | Q166: 0 | R166: 0 | S166: 0 | T166: 0 | U166: 0 | V166: 0 | W166: 0 | X166: 0 | Y166: 0 | Z166: 0 | AA166: 0 | AB166: 0 | AC166: 0
B168: Daport - mgmt fee (3% of revenues) | N168: =-N109 -> -1299341.169 | O168: -1415960.541 | P168: -1548000.439 | Q168: -1692001.521 | R168: -1848544.535 | S168: -2011442.185 | T168: -2195426.789 | U168: -2398134.026 | V168: -2603412.641 | W168: -2800545.62 | X168: -3015869.778 | Y168: -3244713.109 | Z168: -3489883.6 | AA168: -3752767.638 | AB168: -4034652.252 | AC168: -4337820.308
B169: Daport - project total cashflows | N169: =+N163+N165+N166+N168 -> 850000 | O169: -330147.1105 | P169: 8203503.209 | Q169: 7716410.318 | R169: 8947159.637 | S169: 10119861.62 | T169: 11633542.51 | U169: 13428969.66 | V169: 15630641.45 | W169: 18071385.6 | X169: 20872308.6 | Y169: 23752998.67 | Z169: 23638964.75 | AA169: 26994671.9 | AB169: 30344379.1 | AC169: 33951292.1
B171: Daport/Fraport - total cashflows received (project total CF + mgmt fees) | N171: =+N169-N168 -> 2149341.169 | O171: 1085813.43 | P171: 9751503.648 | Q171: 9408411.839 | R171: 10795704.17 | S171: 12131303.81 | T171: 13828969.3 | U171: 15827103.69 | V171: 18234054.09 | W171: 20871931.22 | X171: 23888178.37 | Y171: 26997711.78 | Z171: 27128848.35 | AA171: 30747439.54 | AB171: 34379031.35 | AC171: 38289112.41
B174: Notes
B175: 1. Does not include interest income on cash balances - i.e. assumes cash is paid out as dividend to Daport shareholders every year
B176: 2. ASECNA fees already deducted
B178: Interest income / commitment fee - PER FRAPORT MODEL | N178: =+N140 -> 0 | O178: 18190 | P178: 11514.11783 | Q178: 187315.4886 | R178: 356455.2209 | S178: 555552.5788 | T178: 784006.4427 | U178: 1049741.99 | V178: 1359586.42 | W178: 1723177.296 | X178: 2146780.942 | Y178: 2639389.458 | Z178: 3204186.564 | AA178: 3778630.002 | AB178: 4437178.663 | AC178: 5181503.999
B179: CHECK | F179: =MAX(MAX(N179:AC179),-MIN(N179:AC179)) -> 1.629814506e-09 | N179: =+N169+N178-N146 -> 0 | O179: -1.629814506e-09 | P179: 0 | Q179: 0 | R179: 0 | S179: 0 | T179: 0 | U179: 0 | V179: 0 | W179: 0 | X179: 0 | Y179: 0 | Z179: 0 | AA179: 0 | AB179: 0 | AC179: 0
A181: 2.b | B181: DISTRIBUTION OF AIRPORT CASHFLOWS TO VARIOUS STAKEHOLDERS (EUR m)
I182: =+I$151 -> -4 | J182: -3 | K182: -2 | L182: -1 | M182: 0 | N182: 1 | O182: =+N182+1 -> 2 | P182: 3 | Q182: 4 | R182: 5 | S182: 6 | T182: 7 | U182: 8 | V182: 9 | W182: 10 | X182: 11 | Y182: 12 | Z182: 13 | AA182: 14 | AB182: 15 | AC182: 16
B183: December Year-end | I183: =I$152 -> 2005 | J183: 2006 | K183: 2007 | L183: 2008 | M183: 2009 | N183: 2010 | O183: 2011 | P183: 2012 | Q183: 2013 | R183: 2014 | S183: 2015 | T183: 2016 | U183: 2017 | V183: 2018 | W183: 2019 | X183: 2020 | Y183: 2021 | Z183: 2022 | AA183: 2023 | AB183: 2024 | AC183: 2025
E185: Years 1-16
E186: Total | F186: Disc. @
E187: undisc. | F187: 0.1
B188: Airport cashflow distributed to stakeholders | E188: =SUM(N188:AC188) -> 677177450.6 | F188: =NPV($F$187,N188:AC188) -> 263908493.7 | N188: =N189+N190+N191 -> 12272135.37 | O188: 12061321.88 | P188: 21785472.59 | Q188: 23990868.95 | R188: 26934925.69 | S188: 29699943.04 | T188: 33018480.37 | U188: 36876939.01 | V188: 41197521.14 | W188: 45735553.36 | X188: 50899949.41 | Y188: 56235960.48 | Z188: 61724282.38 | AA188: 68125075.58 | AB188: 74745113.63 | AC188: 81873907.76
B189: AIBD (pre-own costs) | E189: =SUM(N189:AC189) -> 320030083.3 | F189: =NPV($F$187,N189:AC189) -> 130740616.1 | N189: =-N161 -> 9012933.292 | O189: 9706776.397 | P189: 10488662.49 | Q189: 13031003.34 | R189: 14109643.29 | S189: 15231347.89 | T189: 16494346.59 | U189: 17882891.53 | V189: 19289322.25 | W189: 20642206.87 | X189: 22117139.31 | Y189: 23682988.34 | Z189: 28848373.22 | AA189: 30905669.5 | AB189: 33109473.89 | AC189: 35477305.12
B190: Govt - taxes received from Daport | E190: =SUM(N190:AC190) -> 61632909.15 | F190: =NPV($F$187,N190:AC190) -> 23260115.79 | N190: =-N162 -> 1109860.91 | O190: 1268732.051 | P190: 1545306.459 | Q190: 1551453.77 | R190: 2029578.227 | S190: 2337291.341 | T190: 2695164.489 | U190: 3166943.798 | V190: 3674144.798 | W190: 4221415.262 | X190: 4894631.718 | Y190: 5555260.357 | Z190: 5747060.811 | AA190: 6471966.538 | AB190: 7256608.391 | AC190: 8107490.234
B191: Daport (cashflows) / Fraport (mgmt fee) | E191: =SUM(N191:AC191) -> 295514458.2 | F191: =NPV($F$187,N191:AC191) -> 109907761.8 | N191: =N171 -> 2149341.169 | O191: 1085813.43 | P191: 9751503.648 | Q191: 9408411.839 | R191: 10795704.17 | S191: 12131303.81 | T191: 13828969.3 | U191: 15827103.69 | V191: 18234054.09 | W191: 20871931.22 | X191: 23888178.37 | Y191: 26997711.78 | Z191: 27128848.35 | AA191: 30747439.54 | AB191: 34379031.35 | AC191: 38289112.41
B193: Share of airport cashflow by stakeholder
B194: AIBD (pre-own costs) | E194: =E189/E$188 -> 0.4725941229 | F194: 0.4954013198 | N194: =N189/N$188 -> 0.7344225776 | O194: 0.8047854535 | P194: 0.4814521439 | Q194: 0.5431651254 | R194: 0.5238419239 | S194: 0.51284098 | T194: 0.4995489314 | U194: 0.4849342708 | V194: 0.4682156042 | W194: 0.4513382994 | X194: 0.434521833 | Y194: 0.4211360158 | Z194: 0.4673747853 | AA194: 0.4536607004 | AB194: 0.4429650619 | AC194: 0.4333163775
B195: Govt - taxes received from Daport | E195: 0.09101441446 | F195: 0.0881370488 | N195: =N190/N$188 -> 0.09043747289 | O195: 0.1051901328 | P195: 0.07093288669 | Q195: 0.06466851087 | R195: 0.07535117231 | S195: 0.07869682906 | T195: 0.08162593975 | U195: 0.08587870584 | V195: 0.08918363766 | W195: 0.09230051792 | X195: 0.09616181892 | Y195: 0.09878483999 | Z195: 0.09310858854 | AA195: 0.09500123828 | AB195: 0.0970847195 | AC195: 0.0990241025
B196: Daport (cashflows) / Fraport (mgmt fee) | E196: 0.4363914626 | F196: 0.4164616314 | N196: =N191/N$188 -> 0.1751399495 | O196: 0.09002441367 | P196: 0.4476149694 | Q196: 0.3921663638 | R196: 0.4008069038 | S196: 0.408462191 | T196: 0.4188251289 | U196: 0.4291870234 | V196: 0.4426007581 | W196: 0.4563611827 | X196: 0.4693163481 | Y196: 0.4800791443 | Z196: 0.4395166262 | AA196: 0.4513380613 | AB196: 0.4599502186 | AC196: 0.46765952
A199: 3 | B199: AIBD (EUR m)
I201: =+I$151 -> -4 | J201: -3 | K201: -2 | L201: -1 | M201: 0 | N201: 1 | O201: 2 | P201: 3 | Q201: 4 | R201: 5 | S201: 6 | T201: 7 | U201: 8 | V201: 9 | W201: 10 | X201: 11 | Y201: 12 | Z201: 13 | AA201: 14 | AB201: 15 | AC201: 16
B202: December Year-end | I202: =I$152 -> 2005 | J202: 2006 | K202: 2007 | L202: 2008 | M202: 2009 | N202: 2010 | O202: 2011 | P202: 2012 | Q202: 2013 | R202: 2014 | S202: 2015 | T202: 2016 | U202: 2017 | V202: 2018 | W202: 2019 | X202: 2020 | Y202: 2021 | Z202: 2022 | AA202: 2023 | AB202: 2024 | AC202: 2025
B204: Cash revenues (concession fee) | I204: =+I189 -> 0 | J204: 0 | K204: 0 | L204: 0 | M204: 0 | N204: 9012933.292 | O204: 9706776.397 | P204: 10488662.49 | Q204: 13031003.34 | R204: 14109643.29 | S204: 15231347.89 | T204: 16494346.59 | U204: 17882891.53 | V204: 19289322.25 | W204: 20642206.87 | X204: 22117139.31 | Y204: 23682988.34 | Z204: 28848373.22 | AA204: 30905669.5 | AB204: 33109473.89 | AC204: 35477305.12
B206: Operating costs (per Budget) | I206: =-('Budget AIBD SA'!J65)*10^6 -> 0 | J206: =-('Budget AIBD SA'!K65)*10^6 -> -412069.647 | K206: =-('Budget AIBD SA'!L65)*10^6 -> -1405579.78 | L206: =-('Budget AIBD SA'!M65)*10^6 -> -1112267.904 | M206: =-('Budget AIBD SA'!N65)*10^6 -> -1167149.544 | N206: =-('Budget AIBD SA'!O65)*10^6 -> -1699044.105 | O206: =-('Budget AIBD SA'!P65)*10^6 -> -1133458.315 | P206: =-('Budget AIBD SA'!Q65)*10^6 -> -1183766.485 | Q206: =-('Budget AIBD SA'!R65)*10^6 -> -1231117.144 | R206: =-('Budget AIBD SA'!S65)*10^6 -> -1280361.83 | S206: =-('Budget AIBD SA'!T65)*10^6 -> -1331576.303 | T206: =-('Budget AIBD SA'!U65)*10^6 -> -1384839.356 | U206: =-('Budget AIBD SA'!V65)*10^6 -> -1440232.93 | V206: =-('Budget AIBD SA'!W65)*10^6 -> -1497842.247 | W206: =-('Budget AIBD SA'!X65)*10^6 -> -1557755.937 | X206: =-('Budget AIBD SA'!Y65)*10^6 -> -1620066.174 | Y206: =-('Budget AIBD SA'!Z65)*10^6 -> -1684868.821 | Z206: =-('Budget AIBD SA'!AA65)*10^6 -> -1752263.574 | AA206: =-('Budget AIBD SA'!AB65)*10^6 -> -1822354.117 | AB206: =-('Budget AIBD SA'!AC65)*10^6 -> -1895248.282 | AC206: =-('Budget AIBD SA'!AD65)*10^6 -> -1971058.213
B207: Payment to Senegalese Transport Authorities (FCFA 4bn per PIM) | I207: =-'Budget AIBD SA'!J78*10^6 -> 0 | J207: =-'Budget AIBD SA'!K78*10^6 -> 0 | K207: =-'Budget AIBD SA'!L78*10^6 -> 0 | L207: =-'Budget AIBD SA'!M78*10^6 -> 0 | M207: =-'Budget AIBD SA'!N78*10^6 -> 0 | N207: =-'Budget AIBD SA'!O78*10^6 -> -6097960 | O207: =-'Budget AIBD SA'!P78*10^6 -> -6341878.4 | P207: =-'Budget AIBD SA'!Q78*10^6 -> -6595553.536 | Q207: =-'Budget AIBD SA'!R78*10^6 -> -6859375.677 | R207: =-'Budget AIBD SA'!S78*10^6 -> -7133750.705 | S207: =-'Budget AIBD SA'!T78*10^6 -> -7419100.733 | T207: =-'Budget AIBD SA'!U78*10^6 -> -7715864.762 | U207: =-'Budget AIBD SA'!V78*10^6 -> -8024499.353 | V207: =-'Budget AIBD SA'!W78*10^6 -> -8345479.327 | W207: =-'Budget AIBD SA'!X78*10^6 -> -8679298.5 | X207: =-'Budget AIBD SA'!Y78*10^6 -> -9026470.44 | Y207: =-'Budget AIBD SA'!Z78*10^6 -> -9387529.257 | Z207: =-'Budget AIBD SA'!AA78*10^6 -> -9763030.428 | AA207: =-'Budget AIBD SA'!AB78*10^6 -> -10153551.64 | AB207: =-'Budget AIBD SA'!AC78*10^6 -> -10559693.71 | AC207: =-'Budget AIBD SA'!AD78*10^6 -> -10982081.46
B209: Project development costs (consultants etc.) | I209: =-'Budget AIBD SA'!K71*10^6 -> -3338633.1 | J209: =-'Budget AIBD SA'!L71*10^6 -> -24553435.94 | K209: =-'Budget AIBD SA'!M71*10^6 -> -2381253.38 | L209: =-'Budget AIBD SA'!N71*10^6 -> -2381253.38 | M209: =-'Budget AIBD SA'!O71*10^6 -> -38112.25 | N209: =-'Budget AIBD SA'!P71*10^6 -> -38112.25 | O209: =-'Budget AIBD SA'!Q71*10^6 -> -38112.25 | P209: =-'Budget AIBD SA'!R71*10^6 -> 0 | Q209: =-'Budget AIBD SA'!S71*10^6 -> 0 | R209: =-'Budget AIBD SA'!T71*10^6 -> 0 | S209: =-'Budget AIBD SA'!U71*10^6 -> 0 | T209: =-'Budget AIBD SA'!V71*10^6 -> 0 | U209: =-'Budget AIBD SA'!W71*10^6 -> 0 | V209: =-'Budget AIBD SA'!X71*10^6 -> 0 | W209: =-'Budget AIBD SA'!Y71*10^6 -> 0 | X209: =-'Budget AIBD SA'!Z71*10^6 -> 0 | Y209: =-'Budget AIBD SA'!AA71*10^6 -> 0 | Z209: =-'Budget AIBD SA'!AB71*10^6 -> 0 | AA209: =-'Budget AIBD SA'!AC71*10^6 -> 0 | AB209: =-'Budget AIBD SA'!AD71*10^6 -> 0 | AC209: =-'Budget AIBD SA'!AE71*10^6 -> 0
B210: Capex | I210: =-'Budget AIBD SA'!K68*10^6 -> -235076.358 | J210: =-'Budget AIBD SA'!L68*10^6 -> -2499607.161 | K210: =-'Budget AIBD SA'!M68*10^6 -> -254711.7892 | L210: =-'Budget AIBD SA'!N68*10^6 -> -257455.8712 | M210: =-'Budget AIBD SA'!O68*10^6 -> -174096.758 | N210: =-'Budget AIBD SA'!P68*10^6 -> -240259.624 | O210: =-'Budget AIBD SA'!Q68*10^6 -> -244375.747 | P210: =-'Budget AIBD SA'!R68*10^6 -> 0 | Q210: =-'Budget AIBD SA'!S68*10^6 -> 0 | R210: =-'Budget AIBD SA'!T68*10^6 -> 0 | S210: =-'Budget AIBD SA'!U68*10^6 -> 0 | T210: =-'Budget AIBD SA'!V68*10^6 -> 0 | U210: =-'Budget AIBD SA'!W68*10^6 -> 0 | V210: =-'Budget AIBD SA'!X68*10^6 -> 0 | W210: =-'Budget AIBD SA'!Y68*10^6 -> 0 | X210: =-'Budget AIBD SA'!Z68*10^6 -> 0 | Y210: =-'Budget AIBD SA'!AA68*10^6 -> 0 | Z210: =-'Budget AIBD SA'!AB68*10^6 -> 0 | AA210: =-'Budget AIBD SA'!AC68*10^6 -> 0 | AB210: =-'Budget AIBD SA'!AD68*10^6 -> 0 | AC210: =-'Budget AIBD SA'!AE68*10^6 -> 0
B211: Reserves for repairs and equipment renewals (FCFA 2bn per PIM) | I211: =-'Budget AIBD SA'!J81*10^6 -> 0 | J211: =-'Budget AIBD SA'!K81*10^6 -> 0 | K211: =-'Budget AIBD SA'!L81*10^6 -> 0 | L211: =-'Budget AIBD SA'!M81*10^6 -> 0 | M211: =-'Budget AIBD SA'!N81*10^6 -> 0 | N211: =-'Budget AIBD SA'!O81*10^6 -> -3048980 | O211: =-'Budget AIBD SA'!P81*10^6 -> -3170939.2 | P211: =-'Budget AIBD SA'!Q81*10^6 -> -3297776.768 | Q211: =-'Budget AIBD SA'!R81*10^6 -> -3429687.839 | R211: =-'Budget AIBD SA'!S81*10^6 -> -3566875.352 | S211: =-'Budget AIBD SA'!T81*10^6 -> -3709550.366 | T211: =-'Budget AIBD SA'!U81*10^6 -> -3857932.381 | U211: =-'Budget AIBD SA'!V81*10^6 -> -4012249.676 | V211: =-'Budget AIBD SA'!W81*10^6 -> -4172739.663 | W211: =-'Budget AIBD SA'!X81*10^6 -> -4339649.25 | X211: =-'Budget AIBD SA'!Y81*10^6 -> -4513235.22 | Y211: =-'Budget AIBD SA'!Z81*10^6 -> -4693764.629 | Z211: =-'Budget AIBD SA'!AA81*10^6 -> -4881515.214 | AA211: =-'Budget AIBD SA'!AB81*10^6 -> -5076775.822 | AB211: =-'Budget AIBD SA'!AC81*10^6 -> -5279846.855 | AC211: =-'Budget AIBD SA'!AD81*10^6 -> -5491040.729
B213: Total AIBD cashflow (pre-insurance and other costs) | I213: =SUM(I204:I211) -> -3573709.458 | J213: -27465112.75 | K213: -4041544.949 | L213: -3750977.155 | M213: -1379358.552 | N213: -2111422.687 | O213: -1221987.515 | P213: -588434.3021 | Q213: 1510822.68 | R213: 2128655.407 | S213: 2771120.492 | T213: 3535710.087 | U213: 4405909.568 | V213: 5273261.017 | W213: 6065503.187 | X213: 6957367.48 | Y213: 7916825.629 | Z213: 12451564.01 | AA213: 13852987.92 | AB213: 15374685.04 | AC213: 17033124.72
B215: Note: For simplicity, taxes are not considered above at this stage (15% CIT)
A217: 4 | B217: Summary of RDIA and loan repayment (EUR m)
I219: =+I$151 -> -4 | J219: -3 | K219: -2 | L219: -1 | M219: 0 | N219: 1 | O219: 2 | P219: 3 | Q219: 4 | R219: 5 | S219: 6 | T219: 7 | U219: 8 | V219: 9 | W219: 10 | X219: 11 | Y219: 12 | Z219: 13 | AA219: 14 | AB219: 15 | AC219: 16
B220: December Year-end | I220: =I$152 -> 2005 | J220: 2006 | K220: 2007 | L220: 2008 | M220: 2009 | N220: 2010 | O220: 2011 | P220: 2012 | Q220: 2013 | R220: 2014 | S220: 2015 | T220: 2016 | U220: 2017 | V220: 2018 | W220: 2019 | X220: 2020 | Y220: 2021 | Z220: 2022 | AA220: 2023 | AB220: 2024 | AC220: 2025
B222: 1. Summary of Long Term Debt Facility
C224: Opening debt balance | O224: ='LT with Cash Sweep '!CU234 ->  | P224: ='LT with Cash Sweep '!CV234 ->  | Q224: ='LT with Cash Sweep '!CW234 ->  | R224: ='LT with Cash Sweep '!CX234 ->  | S224: ='LT with Cash Sweep '!CY234 ->  | T224: ='LT with Cash Sweep '!CZ234 ->  | U224: ='LT with Cash Sweep '!DA234 ->  | V224: ='LT with Cash Sweep '!DB234 ->  | W224: ='LT with Cash Sweep '!DC234 ->  | X224: ='LT with Cash Sweep '!DD234 ->  | Y224: ='LT with Cash Sweep '!DE234 ->  | Z224: ='LT with Cash Sweep '!DF234 ->  | AA224: ='LT with Cash Sweep '!DG234 ->  | AB224: ='LT with Cash Sweep '!DH234 ->  | AC224: ='LT with Cash Sweep '!DI234 ->  | AH224: ='LT with Cash Sweep '!DN234 -> 0 | AI224: ='LT with Cash Sweep '!DO234 -> 0 | AJ224: ='LT with Cash Sweep '!DP234 -> 47581880.1
C225: Drawdown / scheduled repayment | N225: =N227 ->  | O225: =+O227-O226-O224 -> 
C226: Cash sweep | O226: =-'LT with Cash Sweep '!DR234 ->  | P226: =-'LT with Cash Sweep '!DS234 ->  | Q226: =-'LT with Cash Sweep '!DT234 ->  | R226: =-'LT with Cash Sweep '!DU234 ->  | S226: =-'LT with Cash Sweep '!DV234 ->  | T226: =-'LT with Cash Sweep '!DW234 ->  | U226: =-'LT with Cash Sweep '!DX234 ->  | V226: =-'LT with Cash Sweep '!DY234 ->  | W226: =-'LT with Cash Sweep '!DZ234 ->  | X226: =-'LT with Cash Sweep '!EA234 ->  | Y226: =-'LT with Cash Sweep '!EB234 ->  | Z226: =-'LT with Cash Sweep '!EC234 ->  | AA226: =-'LT with Cash Sweep '!ED234 ->  | AB226: =-'LT with Cash Sweep '!EE234 ->  | AC226: =-'LT with Cash Sweep '!EF234 -> 
C227: Closing debt balance | N227: =O224 ->  | AC227: 0 | AH227: =AI224 -> 0 | AI227: =AJ224 -> 47581880.1
B229: Scheduled repayment | I229: ='LT with Cash Sweep '!EJ234 -> 0 | J229: ='LT with Cash Sweep '!EK234 -> 0 | K229: ='LT with Cash Sweep '!EL234 -> 0 | L229: ='LT with Cash Sweep '!EM234 -> 0 | M229: ='LT with Cash Sweep '!EN234 ->  | N229: ='LT with Cash Sweep '!EO234 ->  | O229: ='LT with Cash Sweep '!EP234 ->  | P229: ='LT with Cash Sweep '!EQ234 ->  | Q229: ='LT with Cash Sweep '!ER234 ->  | R229: ='LT with Cash Sweep '!ES234 ->  | S229: ='LT with Cash Sweep '!ET234 ->  | T229: ='LT with Cash Sweep '!EU234 ->  | U229: ='LT with Cash Sweep '!EV234 ->  | V229: ='LT with Cash Sweep '!EW234 ->  | W229: ='LT with Cash Sweep '!EX234 ->  | X229: ='LT with Cash Sweep '!EY234 ->  | Y229: ='LT with Cash Sweep '!EZ234 ->  | Z229: ='LT with Cash Sweep '!FA234 ->  | AA229: ='LT with Cash Sweep '!FB234 ->  | AB229: ='LT with Cash Sweep '!FC234 ->  | AC229: ='LT with Cash Sweep '!FD234 -> 
B230: CHECK | F230: =MAX(MAX(N230:AC230),-MIN(N230:AC230)) ->  | I230: =I225-I229 -> 0 | J230: =J225-J229 -> 0 | K230: =K225-K229 -> 0 | L230: =L225-L229 -> 0 | M230: =M225-M229 ->  | O230: =O225+O229 -> 
C231: Interest paid and commitment fees | I231: ='LT with Cash Sweep '!FG234 -> 0 | J231: ='LT with Cash Sweep '!FH234 -> 0 | K231: ='LT with Cash Sweep '!FI234 -> 0 | L231: ='LT with Cash Sweep '!FJ234 -> 0 | M231: ='LT with Cash Sweep '!FK234 -> 3116293.81 | N231: ='LT with Cash Sweep '!FL234 ->  | O231: ='LT with Cash Sweep '!FM234 ->  | P231: ='LT with Cash Sweep '!FN234 ->  | Q231: ='LT with Cash Sweep '!FO234 ->  | R231: ='LT with Cash Sweep '!FP234 ->  | S231: ='LT with Cash Sweep '!FQ234 ->  | T231: ='LT with Cash Sweep '!FR234 ->  | U231: ='LT with Cash Sweep '!FS234 ->  | V231: ='LT with Cash Sweep '!FT234 ->  | W231: ='LT with Cash Sweep '!FU234 ->  | X231: ='LT with Cash Sweep '!FV234 ->  | Y231: ='LT with Cash Sweep '!FW234 ->  | Z231: ='LT with Cash Sweep '!FX234 ->  | AA231: ='LT with Cash Sweep '!FY234 ->  | AB231: ='LT with Cash Sweep '!FZ234 ->  | AC231: ='LT with Cash Sweep '!GA234 -> 
C233: Total Debt Service for DSCR computations [excl. cash sweep] (A) | I233: =+IF(I225>0,0,-I225)+I231 -> 0 | J233: 0 | K233: 0 | L233: 0 | M233: 3116293.81
B235: 2. RDIA summary
C237: RDIA collected during the year | I237: ='LT with Cash Sweep '!AU234 -> 0 | J237: ='LT with Cash Sweep '!AV234 -> 0 | K237: ='LT with Cash Sweep '!AW234 -> 0 | L237: ='LT with Cash Sweep '!AX234 -> 3548514.27 | M237: ='LT with Cash Sweep '!AY234 -> 35069286.79 | N237: ='LT with Cash Sweep '!AZ234 -> 33568498.45 | O237: ='LT with Cash Sweep '!BA234 -> 41416795.96 | P237: ='LT with Cash Sweep '!BB234 -> 47544876.79 | Q237: ='LT with Cash Sweep '!BC234 -> 52240484.08 | R237: ='LT with Cash Sweep '!BD234 -> 56930770.55 | S237: ='LT with Cash Sweep '!BE234 -> 61093394.62 | T237: ='LT with Cash Sweep '!BF234 -> 65088513.49 | U237: ='LT with Cash Sweep '!BG234 -> 69308422.52 | V237: ='LT with Cash Sweep '!BH234 -> 73837899.19 | W237: ='LT with Cash Sweep '!BI234 -> 77989583.88 | X237: ='LT with Cash Sweep '!BJ234 -> 82196870.2 | Y237: ='LT with Cash Sweep '!BK234 -> 86657101.25 | Z237: ='LT with Cash Sweep '!BL234 -> 91386243.36 | AA237: ='LT with Cash Sweep '!BM234 -> 96401297.17 | AB237: ='LT with Cash Sweep '!BN234 -> 101720365.5 | AC237: ='LT with Cash Sweep '!BO234 -> 107362725.5
C238: Interest on escrow account balances | I238: ='LT with Cash Sweep '!BR234 -> 0 | J238: ='LT with Cash Sweep '!BS234 -> 0 | K238: ='LT with Cash Sweep '!BT234 -> 0 | L238: ='LT with Cash Sweep '!BU234 -> 237122.96 | M238: ='LT with Cash Sweep '!BV234 -> 203368.71 | N238: ='LT with Cash Sweep '!BW234 ->  | O238: ='LT with Cash Sweep '!BX234 ->  | P238: ='LT with Cash Sweep '!BY234 ->  | Q238: ='LT with Cash Sweep '!BZ234 ->  | R238: ='LT with Cash Sweep '!CA234 ->  | S238: ='LT with Cash Sweep '!CB234 ->  | T238: ='LT with Cash Sweep '!CC234 ->  | U238: ='LT with Cash Sweep '!CD234 ->  | V238: ='LT with Cash Sweep '!CE234 ->  | W238: ='LT with Cash Sweep '!CF234 ->  | X238: ='LT with Cash Sweep '!CG234 ->  | Y238: ='LT with Cash Sweep '!CH234 ->  | Z238: ='LT with Cash Sweep '!CI234 ->  | AA238: ='LT with Cash Sweep '!CJ234 ->  | AB238: ='LT with Cash Sweep '!CK234 ->  | AC238: ='LT with Cash Sweep '!CL234 -> 
C239: Total CF for DSCR / LLCR computations (B) | I239: =I237+I238 -> 0 | J239: 0 | K239: 0 | L239: 3785637.23 | M239: 35272655.5
C241: RDIA escrow account - Opening (December) | O241: =N244 -> 
C242: New RDIA and interest on cash | O242: =+O239 -> 
C243: Payments to debt holder (incl. cash sweep) | O243: =-O233+O226 -> 
C244: RDIA escrow account - Closing (December) | N244: ='LT with Cash Sweep '!HF234 ->  | O244: =SUM(O241:O243) -> 
C246: Notes:
C247: 1. Cash is swept in October and April of each year
C248: 2. IATA fees deducted from RDIA figures shown above
C250: RDIA escrow account - closing per BNP sheet | N250: ='LT with Cash Sweep '!HF234 ->  | O250: ='LT with Cash Sweep '!HG234 ->  | P250: ='LT with Cash Sweep '!HH234 ->  | Q250: ='LT with Cash Sweep '!HI234 ->  | R250: ='LT with Cash Sweep '!HJ234 ->  | S250: ='LT with Cash Sweep '!HK234 ->  | T250: ='LT with Cash Sweep '!HL234 ->  | U250: ='LT with Cash Sweep '!HM234 ->  | V250: ='LT with Cash Sweep '!HN234 ->  | W250: ='LT with Cash Sweep '!HO234 ->  | X250: ='LT with Cash Sweep '!HP234 ->  | Y250: ='LT with Cash Sweep '!HQ234 ->  | Z250: ='LT with Cash Sweep '!HR234 ->  | AA250: ='LT with Cash Sweep '!HS234 ->  | AB250: ='LT with Cash Sweep '!HT234 ->  | AC250: ='LT with Cash Sweep '!HU234 -> 0
F251: =MAX(MAX(N251:AC251),-MIN(N251:AC251)) ->  | N251: =+N250-N244 -> 
B252: 3. DSCR computations
C254: Indicative annual DSCR (= A / B) | I254: =IF(I233=0,"n/a",IF(I220>$F$274,I239/I233,"n/a")) -> n/a | J254: n/a | K254: n/a | L254: n/a | M254: n/a
C256: 6month DSCR calculation per Term sheet (minimum of H1 and H2) | I256: =IF(OR(I220<A274,I224=0),"n/a",'LT with Cash Sweep '!GD234) -> n/a | J256: =IF(OR(J220<B274,J224=0),"n/a",'LT with Cash Sweep '!GE234) -> n/a | K256: =IF(OR(K220<C274,K224=0),"n/a",'LT with Cash Sweep '!GF234) -> n/a | L256: =IF(OR(L220<D274,L224=0),"n/a",'LT with Cash Sweep '!GG234) -> n/a | M256: =IF(OR(M220<E274,M224=0),"n/a",'LT with Cash Sweep '!GH234) -> n/a | N256: =IF(OR(N220<F274,N224=0),"n/a",'LT with Cash Sweep '!GI234) -> n/a | O256: =IF(OR(O220<G274,O224=0),"n/a",'LT with Cash Sweep '!GJ234) ->  | P256: =IF(OR(P220<H274,P224=0),"n/a",'LT with Cash Sweep '!GK234) ->  | Q256: =IF(OR(Q220<I274,Q224=0),"n/a",'LT with Cash Sweep '!GL234) ->  | R256: =IF(OR(R220<J274,R224=0),"n/a",'LT with Cash Sweep '!GM234) ->  | S256: =IF(OR(S220<K274,S224=0),"n/a",'LT with Cash Sweep '!GN234) ->  | T256: =IF(OR(T220<L274,T224=0),"n/a",'LT with Cash Sweep '!GO234) ->  | U256: =IF(OR(U220<M274,U224=0),"n/a",'LT with Cash Sweep '!GP234) ->  | V256: =IF(OR(V220<N274,V224=0),"n/a",'LT with Cash Sweep '!GQ234) ->  | W256: =IF(OR(W220<O274,W224=0),"n/a",'LT with Cash Sweep '!GR234) ->  | X256: =IF(OR(X220<P274,X224=0),"n/a",'LT with Cash Sweep '!GS234) ->  | Y256: =IF(OR(Y220<Q274,Y224=0),"n/a",'LT with Cash Sweep '!GT234) ->  | Z256: =IF(OR(Z220<R274,Z224=0),"n/a",'LT with Cash Sweep '!GU234) ->  | AA256: =IF(OR(AA220<S274,AA224=0),"n/a",'LT with Cash Sweep '!GV234) ->  | AB256: =IF(OR(AB220<T274,AB224=0),"n/a",'LT with Cash Sweep '!GW234) ->  | AC256: =IF(OR(AC220<U274,AC224=0),"n/a",'LT with Cash Sweep '!GX234) -> 
C257: Note: DSCR are computed in October and April of each year
B259: 4. LLCR computations
C261: CF only if debt is outstanding
C264: Total annual CF for debt service in years when debt is outstanding | N264: =+N239 ->  | O264: =IF(O$224>0,O239,0) -> 
C265: PV of future CF for debt service (C) | D265: Discount rate | F265: =Hypothese!D29+Hypothese!D31 -> 0.07 | N265: =IF(N264=0,0,NPV($F$265,O264:AH264)) -> 
C266: Escrow account closing balance (D) | N266: =N244 ->  | O266: =IF(O$224>0,O244,0) -> 
C267: Total CF and cash balances available for future debt repayments | N267: =+N265+N266 -> 
C269: Closing Debt balance | N269: =N227 ->  | AC269: 0
... 11 more rows

Sheet PPT 2 (hidden)
A1: AIBD integrated model
A2: Summary financials
I4: =Assumptions!I17 -> 2005 | J4: =Assumptions!J17 -> 2006 | K4: =Assumptions!K17 -> 2007 | L4: =Assumptions!L17 -> 2008 | M4: =Assumptions!M17 -> 2009 | N4: =Assumptions!N17 -> 2010 | O4: =Assumptions!O17 -> 2011 | P4: =Assumptions!P17 -> 2012 | Q4: =Assumptions!Q17 -> 2013 | R4: =Assumptions!R17 -> 2014 | S4: =Assumptions!S17 -> 2015 | T4: =Assumptions!T17 -> 2016 | U4: =Assumptions!U17 -> 2017 | V4: =Assumptions!V17 -> 2018 | W4: =Assumptions!W17 -> 2019 | X4: =Assumptions!X17 -> 2020 | Y4: =Assumptions!Y17 -> 2021 | Z4: =Assumptions!Z17 -> 2022 | AA4: =Assumptions!AA17 -> 2023 | AB4: =Assumptions!AB17 -> 2024 | AC4: =Assumptions!AC17 -> 2025
A7: 1 | B7: Balance Sheet
B9: Intangible assets
B10: Start-up cost | N10: ='Input Capex, Depr, Assets'!N161 -> 3999375 | O10: ='Input Capex, Depr, Assets'!O161 -> 2666250 | P10: ='Input Capex, Depr, Assets'!P161 -> 1333125 | Q10: ='Input Capex, Depr, Assets'!Q161 -> 0 | R10: ='Input Capex, Depr, Assets'!R161 -> 0 | S10: ='Input Capex, Depr, Assets'!S161 -> 0 | T10: ='Input Capex, Depr, Assets'!T161 -> 0 | U10: ='Input Capex, Depr, Assets'!U161 -> 0 | V10: ='Input Capex, Depr, Assets'!V161 -> 0 | W10: ='Input Capex, Depr, Assets'!W161 -> 0 | X10: ='Input Capex, Depr, Assets'!X161 -> 0 | Y10: ='Input Capex, Depr, Assets'!Y161 -> 0 | Z10: ='Input Capex, Depr, Assets'!Z161 -> 0 | AA10: ='Input Capex, Depr, Assets'!AA161 -> 0 | AB10: ='Input Capex, Depr, Assets'!AB161 -> 0 | AC10: ='Input Capex, Depr, Assets'!AC161 -> 0
B11: Equipment | N11: ='Input Capex, Depr, Assets'!N167 -> 2079000 | O11: ='Input Capex, Depr, Assets'!O167 -> 1948800 | P11: ='Input Capex, Depr, Assets'!P167 -> 1809200 | Q11: ='Input Capex, Depr, Assets'!Q167 -> 1660000 | R11: ='Input Capex, Depr, Assets'!R167 -> 1501000 | S11: ='Input Capex, Depr, Assets'!S167 -> 1332000 | T11: ='Input Capex, Depr, Assets'!T167 -> 1152800 | U11: ='Input Capex, Depr, Assets'!U167 -> 963200 | V11: ='Input Capex, Depr, Assets'!V167 -> 763000 | W11: ='Input Capex, Depr, Assets'!W167 -> 552000 | X11: ='Input Capex, Depr, Assets'!X167 -> 561000 | Y11: ='Input Capex, Depr, Assets'!Y167 -> 570000 | Z11: ='Input Capex, Depr, Assets'!Z167 -> 579000 | AA11: ='Input Capex, Depr, Assets'!AA167 -> 588000 | AB11: ='Input Capex, Depr, Assets'!AB167 -> 597000 | AC11: ='Input Capex, Depr, Assets'!AC167 -> 606000
B12: Office furniture | N12: ='Input Capex, Depr, Assets'!N173 -> 495000 | O12: ='Input Capex, Depr, Assets'!O173 -> 460174.4997 | P12: ='Input Capex, Depr, Assets'!P173 -> 438298.2086 | Q12: ='Input Capex, Depr, Assets'!Q173 -> 415496.1141 | R12: ='Input Capex, Depr, Assets'!R173 -> 391638.733 | S12: ='Input Capex, Depr, Assets'!S173 -> 366138.255 | T12: ='Input Capex, Depr, Assets'!T173 -> 340948.204 | U12: ='Input Capex, Depr, Assets'!U173 -> 315303.4569 | V12: ='Input Capex, Depr, Assets'!V173 -> 283926.9439 | W12: ='Input Capex, Depr, Assets'!W173 -> 243521.5927 | X12: ='Input Capex, Depr, Assets'!X173 -> 256007.8814 | Y12: ='Input Capex, Depr, Assets'!Y173 -> 268510.9091 | Z12: ='Input Capex, Depr, Assets'!Z173 -> 282593.4477 | AA12: ='Input Capex, Depr, Assets'!AA173 -> 298454.8183 | AB12: ='Input Capex, Depr, Assets'!AB173 -> 316306.9123 | AC12: ='Input Capex, Depr, Assets'!AC173 -> 336324.9198
B13: IT for office | N13: ='Input Capex, Depr, Assets'!N179 -> 528000 | O13: ='Input Capex, Depr, Assets'!O179 -> 430363.8515 | P13: ='Input Capex, Depr, Assets'!P179 -> 342327.3419 | Q13: ='Input Capex, Depr, Assets'!Q179 -> 268098.7987 | R13: ='Input Capex, Depr, Assets'!R179 -> 187823.6612 | S13: ='Input Capex, Depr, Assets'!S179 -> 220490.5436 | T13: ='Input Capex, Depr, Assets'!T179 -> 244329.0605 | U13: ='Input Capex, Depr, Assets'!U179 -> 261927.4054 | V13: ='Input Capex, Depr, Assets'!V179 -> 272745 | W13: ='Input Capex, Depr, Assets'!W179 -> 276084.188 | X13: ='Input Capex, Depr, Assets'!X179 -> 281504.4511 | Y13: ='Input Capex, Depr, Assets'!Y179 -> 289815.609 | Z13: ='Input Capex, Depr, Assets'!Z179 -> 301715.106 | AA13: ='Input Capex, Depr, Assets'!AA179 -> 316440.3189 | AB13: ='Input Capex, Depr, Assets'!AB179 -> 332194.807 | AC13: ='Input Capex, Depr, Assets'!AC179 -> 349062.836
B14: Operational hard & software (e.g. Terminal) | N14: ='Input Capex, Depr, Assets'!N185 -> 2357142.857 | O14: ='Input Capex, Depr, Assets'!O185 -> 2228285.714 | P14: ='Input Capex, Depr, Assets'!P185 -> 2060142.857 | Q14: ='Input Capex, Depr, Assets'!Q185 -> 1851928.571 | R14: ='Input Capex, Depr, Assets'!R185 -> 1602857.143 | S14: ='Input Capex, Depr, Assets'!S185 -> 1312142.857 | T14: ='Input Capex, Depr, Assets'!T185 -> 979000 | U14: ='Input Capex, Depr, Assets'!U185 -> 995500 | V14: ='Input Capex, Depr, Assets'!V185 -> 1012000 | W14: ='Input Capex, Depr, Assets'!W185 -> 1028500 | X14: ='Input Capex, Depr, Assets'!X185 -> 1045000 | Y14: ='Input Capex, Depr, Assets'!Y185 -> 1061500 | Z14: ='Input Capex, Depr, Assets'!Z185 -> 1078000 | AA14: ='Input Capex, Depr, Assets'!AA185 -> 1094500 | AB14: ='Input Capex, Depr, Assets'!AB185 -> 1111000 | AC14: ='Input Capex, Depr, Assets'!AC185 -> 1127500
B15: Tangible assets | N15: =SUM(N10:N14) -> 9458517.857 | O15: 7733874.065 | P15: 5983093.408 | Q15: 4195523.484 | R15: 3683319.537 | S15: 3230771.656 | T15: 2717077.264 | U15: 2535930.862 | V15: 2331671.944 | W15: 2100105.781 | X15: 2143512.333 | Y15: 2189826.518 | Z15: 2241308.554 | AA15: 2297395.137 | AB15: 2356501.719 | AC15: 2418887.756
B17: Financing fees | N17: ='Debt Workings'!N33 -> 135000 | O17: ='Debt Workings'!O33 -> 120750 | P17: ='Debt Workings'!P33 -> 107212.5 | Q17: ='Debt Workings'!Q33 -> 94351.875 | R17: ='Debt Workings'!R33 -> 82134.28125 | S17: ='Debt Workings'!S33 -> 70527.56719 | T17: ='Debt Workings'!T33 -> 59501.18883 | U17: ='Debt Workings'!U33 -> 49026.12939 | V17: ='Debt Workings'!V33 -> 39074.82292 | W17: ='Debt Workings'!W33 -> 29621.08177 | X17: ='Debt Workings'!X33 -> 20640.02768 | Y17: ='Debt Workings'!Y33 -> 12108.0263 | Z17: ='Debt Workings'!Z33 -> 4002.624984 | AA17: ='Debt Workings'!AA33 -> 0 | AB17: ='Debt Workings'!AB33 -> 0 | AC17: ='Debt Workings'!AC33 -> 0
B18: Fixed assets | N18: =N15+N17 -> 9593517.857 | O18: 7854624.065 | P18: 6090305.908 | Q18: 4289875.359 | R18: 3765453.818 | S18: 3301299.223 | T18: 2776578.453 | U18: 2584956.992 | V18: 2370746.767 | W18: 2129726.863 | X18: 2164152.36 | Y18: 2201934.544 | Z18: 2245311.179 | AA18: 2297395.137 | AB18: 2356501.719 | AC18: 2418887.756
B20: Inventories | N20: ='Working Capital'!N14 -> 952850.1907 | O20: ='Working Capital'!O14 -> 1038371.063 | P20: ='Working Capital'!P14 -> 1135200.322 | Q20: ='Working Capital'!Q14 -> 1240801.115 | R20: ='Working Capital'!R14 -> 1355599.325 | S20: ='Working Capital'!S14 -> 1475057.603 | T20: ='Working Capital'!T14 -> 1609979.645 | U20: ='Working Capital'!U14 -> 1758631.619 | V20: ='Working Capital'!V14 -> 1909169.27 | W20: ='Working Capital'!W14 -> 2053733.455 | X20: ='Working Capital'!X14 -> 2211637.837 | Y20: ='Working Capital'!Y14 -> 2379456.28 | Z20: ='Working Capital'!Z14 -> 2559247.973 | AA20: ='Working Capital'!AA14 -> 2752029.602 | AB20: ='Working Capital'!AB14 -> 2958744.985 | AC20: ='Working Capital'!AC14 -> 3181068.226
B21: Total Trade Receivables | N21: ='Working Capital'!N18 -> 7119677.639 | O21: ='Working Capital'!O18 -> 7758687.894 | P21: ='Working Capital'!P18 -> 8482194.186 | Q21: ='Working Capital'!Q18 -> 9271241.211 | R21: ='Working Capital'!R18 -> 10129011.15 | S21: ='Working Capital'!S18 -> 11021601.02 | T21: ='Working Capital'!T18 -> 12029735.83 | U21: ='Working Capital'!U18 -> 13140460.42 | V21: ='Working Capital'!V18 -> 14265274.75 | W21: ='Working Capital'!W18 -> 15345455.45 | X21: ='Working Capital'!X18 -> 16525313.85 | Y21: ='Working Capital'!Y18 -> 17779249.91 | Z21: ='Working Capital'!Z18 -> 19122649.86 | AA21: ='Working Capital'!AA18 -> 20563110.35 | AB21: ='Working Capital'!AB18 -> 22107683.57 | AC21: ='Working Capital'!AC18 -> 23768878.4
B22: Other Current Assets | N22: ='Working Capital'!N22 -> 1775766.265 | O22: ='Working Capital'!O22 -> 1935146.072 | P22: ='Working Capital'!P22 -> 2115600.6 | Q22: ='Working Capital'!Q22 -> 2312402.079 | R22: ='Working Capital'!R22 -> 2526344.197 | S22: ='Working Capital'!S22 -> 2748970.987 | T22: ='Working Capital'!T22 -> 3000416.612 | U22: ='Working Capital'!U22 -> 3277449.836 | V22: ='Working Capital'!V22 -> 3557997.276 | W22: ='Working Capital'!W22 -> 3827412.348 | X22: ='Working Capital'!X22 -> 4121688.697 | Y22: ='Working Capital'!Y22 -> 4434441.249 | Z22: ='Working Capital'!Z22 -> 4769507.586 | AA22: ='Working Capital'!AA22 -> 5128782.439 | AB22: ='Working Capital'!AB22 -> 5514024.744 | AC22: ='Working Capital'!AC22 -> 5928354.421
B23: Reserve Accounts
B24: Liquid Assets (Cash) | N24: =N147 -> 850000 | O24: 538042.8895 | P24: 8753060.216 | Q24: 16656786.02 | R24: 25960400.88 | S24: 36635815.08 | T24: 49053364.03 | U24: 63532075.68 | V24: 80522303.55 | W24: 100316866.4 | X24: 123335956 | Y24: 149728344.1 | Z24: 176571495.4 | AA24: 207344797.3 | AB24: 242126355.1 | AC24: 281259151.2
B25: Prepayments and Accrued Income
B26: Current Assets | N26: =N20+N21+N22+N23+N24+N25 -> 10698294.09 | O26: 11270247.92 | P26: 20486055.32 | Q26: 29481230.43 | R26: 39971355.55 | S26: 51881444.69 | T26: 65693496.12 | U26: 81708617.55 | V26: 100254744.8 | W26: 121543467.7 | X26: 146194596.4 | Y26: 174321491.6 | Z26: 203022900.8 | AA26: 235788719.7 | AB26: 272706808.4 | AC26: 314137452.2
B28: Total Assets | N28: =N26+N18 -> 20291811.95 | O28: 19124871.98 | P28: 26576361.23 | Q28: 33771105.79 | R28: 43736809.37 | S28: 55182743.91 | T28: 68470074.57 | U28: 84293574.55 | V28: 102625491.6 | W28: 123673194.6 | X28: 148358748.7 | Y28: 176523426.1 | Z28: 205268212 | AA28: 238086114.9 | AB28: 275063310.1 | AC28: 316556340
B31: Subscribed Equity | D31: =Assumptions!N863 -> 700000 | N31: =$D$31 -> 700000 | O31: 700000 | P31: 700000 | Q31: 700000 | R31: 700000 | S31: 700000 | T31: 700000 | U31: 700000 | V31: 700000 | W31: 700000 | X31: 700000 | Y31: 700000 | Z31: 700000 | AA31: 700000 | AB31: 700000 | AC31: 700000
B32: Retained Earnings | M32: 0 | N32: ='P&L'!N104 -> 4556756.93 | O32: =N32+'P&L'!O104 -> 9858291.163 | P32: =O32+'P&L'!P104 -> 16551027.18 | Q32: =P32+'P&L'!Q104 -> 23086596.51 | R32: =Q32+'P&L'!R104 -> 32122813.75 | S32: =R32+'P&L'!S104 -> 42685541.77 | T32: =S32+'P&L'!T104 -> 55030904.82 | U32: =T32+'P&L'!U104 -> 69779407.64 | V32: =U32+'P&L'!V104 -> 87128344.64 | W32: =V32+'P&L'!W104 -> 107315637 | X32: =W32+'P&L'!X104 -> 131030723.7 | Y32: =X32+'P&L'!Y104 -> 158184248.2 | Z32: =Y32+'P&L'!Z104 -> 186097748 | AA32: =Z32+'P&L'!AA104 -> 217768534.9 | AB32: =AA32+'P&L'!AB104 -> 253509779.4 | AC32: =AB32+'P&L'!AC104 -> 293668463.7
B33: Tied-Up Reserve
B34: Equity | N34: =N31+N32+N33 -> 5256756.93 | O34: 10558291.16 | P34: 17251027.18 | Q34: 23786596.51 | R34: 32822813.75 | S34: 43385541.77 | T34: 55730904.82 | U34: 70479407.64 | V34: 87828344.64 | W34: 108015637 | X34: 131730723.7 | Y34: 158884248.2 | Z34: 186797748 | AA34: 218468534.9 | AB34: 254209779.4 | AC34: 294368463.7
B36: Provisions for Pensions and Similar Obligations
B37: Provisions for Taxation | N37: ='Working Capital'!N28 -> 543831.8458 | O37: ='Working Capital'!O28 -> 621678.7048 | P37: ='Working Capital'!P28 -> 757200.1649 | Q37: ='Working Capital'!Q28 -> 760212.3471 | R37: ='Working Capital'!R28 -> 994493.3313 | S37: ='Working Capital'!S28 -> 1145272.757 | T37: ='Working Capital'!T28 -> 1320630.6 | U37: ='Working Capital'!U28 -> 1551802.461 | V37: ='Working Capital'!V28 -> 1800330.951 | W37: ='Working Capital'!W28 -> 2068493.478 | X37: ='Working Capital'!X28 -> 2398369.542 | Y37: ='Working Capital'!Y28 -> 2722077.575 | Z37: ='Working Capital'!Z28 -> 2816059.797 | AA37: ='Working Capital'!AA28 -> 3171263.604 | AB37: ='Working Capital'!AB28 -> 3555738.112 | AC37: ='Working Capital'!AC28 -> 3972670.215
B38: Other Provisions (e.g. pensions,other) | N38: ='Working Capital'!N32 -> 2273236.019 | O38: ='Working Capital'!O32 -> 2314567.583 | P38: ='Working Capital'!P32 -> 2355899.147 | Q38: ='Working Capital'!Q32 -> 2397230.711 | R38: ='Working Capital'!R32 -> 2438562.275 | S38: ='Working Capital'!S32 -> 2479893.839 | T38: ='Working Capital'!T32 -> 2521225.403 | U38: ='Working Capital'!U32 -> 2562556.967 | V38: ='Working Capital'!V32 -> 2603888.531 | W38: ='Working Capital'!W32 -> 2645220.095 | X38: ='Working Capital'!X32 -> 2686551.659 | Y38: ='Working Capital'!Y32 -> 2727883.223 | Z38: ='Working Capital'!Z32 -> 2769214.787 | AA38: ='Working Capital'!AA32 -> 2810546.351 | AB38: ='Working Capital'!AB32 -> 2851877.915 | AC38: ='Working Capital'!AC32 -> 2893209.479
B39: Provisions | N39: =SUM(N36:N38) -> 2817067.865 | O39: 2936246.288 | P39: 3113099.312 | Q39: 3157443.058 | R39: 3433055.607 | S39: 3625166.596 | T39: 3841856.003 | U39: 4114359.428 | V39: 4404219.482 | W39: 4713713.574 | X39: 5084921.201 | Y39: 5449960.798 | Z39: 5585274.585 | AA39: 5981809.955 | AB39: 6407616.027 | AC39: 6865879.694
B41: Liquidity Facility | N41: ='Debt Workings'!N25 -> 7067831.387 | O41: ='Debt Workings'!O25 -> 0 | P41: ='Debt Workings'!P25 -> 0 | Q41: ='Debt Workings'!Q25 -> 0 | R41: ='Debt Workings'!R25 -> 0 | S41: ='Debt Workings'!S25 -> 0 | T41: ='Debt Workings'!T25 -> 0 | U41: ='Debt Workings'!U25 -> 0 | V41: ='Debt Workings'!V25 -> 0 | W41: ='Debt Workings'!W25 -> 0 | X41: ='Debt Workings'!X25 -> 0 | Y41: ='Debt Workings'!Y25 -> 0 | Z41: ='Debt Workings'!Z25 -> 0 | AA41: ='Debt Workings'!AA25 -> 0 | AB41: ='Debt Workings'!AB25 -> 0 | AC41: ='Debt Workings'!AC25 -> 0
B42: Trade Payables | N42: ='Working Capital'!N36 -> 2272975.663 | O42: ='Working Capital'!O36 -> 2549011.636 | P42: ='Working Capital'!P36 -> 2836877.701 | Q42: ='Working Capital'!Q36 -> 3126661.6 | R42: ='Working Capital'!R36 -> 3422790.732 | S42: ='Working Capital'!S36 -> 3730032.494 | T42: ='Working Capital'!T36 -> 4018181.961 | U42: ='Working Capital'!U36 -> 4332244.881 | V42: ='Working Capital'!V36 -> 4525544.424 | W42: ='Working Capital'!W36 -> 4591972.187 | X42: ='Working Capital'!X36 -> 4661033.125 | Y42: ='Working Capital'!Y36 -> 4732873.093 | Z42: ='Working Capital'!Z36 -> 4804798.789 | AA42: ='Working Capital'!AA36 -> 4876809.887 | AB42: ='Working Capital'!AB36 -> 4948875.357 | AC42: ='Working Capital'!AC36 -> 5020974.648
B43: Other Payables | N43: ='Working Capital'!N44 -> 1481581.887 | O43: ='Working Capital'!O44 -> 1561247.077 | P43: ='Working Capital'!P44 -> 1714580.55 | Q43: ='Working Capital'!Q44 -> 1885819.246 | R43: ='Working Capital'!R44 -> 2076647.818 | S43: ='Working Capital'!S44 -> 2286739.603 | T43: ='Working Capital'!T44 -> 2528000.657 | U43: ='Working Capital'!U44 -> 2800825.974 | V43: ='Working Capital'!V44 -> 3083312.356 | W43: ='Working Capital'!W44 -> 3359760.203 | X43: ='Working Capital'!X44 -> 3663092.43 | Y43: ='Working Capital'!Y44 -> 3996013.569 | Z43: ='Working Capital'!Z44 -> 4361505.514 | AA43: ='Working Capital'!AA44 -> 4762856.341 | AB43: ='Working Capital'!AB44 -> 5203692.139 | AC43: ='Working Capital'!AC44 -> 5688012.19
B44: Other short term liabilities | N44: ='Working Capital'!N48 -> 52945.67806 | O44: ='Working Capital'!O48 -> 56916.59646 | P44: ='Working Capital'!P48 -> 61176.03552 | Q44: ='Working Capital'!Q48 -> 66183.80138 | R44: ='Working Capital'!R48 -> 71338.77471 | S44: ='Working Capital'!S48 -> 76773.18904 | T44: ='Working Capital'!T48 -> 82523.44594 | U44: ='Working Capital'!U48 -> 88664.79485 | V44: ='Working Capital'!V48 -> 93877.64248 | W44: ='Working Capital'!W48 -> 98214.49391 | X44: ='Working Capital'!X48 -> 102579.5408 | Y44: ='Working Capital'!Y48 -> 107460.2199 | Z44: ='Working Capital'!Z48 -> 112672.0791 | AA44: ='Working Capital'!AA48 -> 118243.9072 | AB44: ='Working Capital'!AB48 -> 124206.5086 | AC44: ='Working Capital'!AC48 -> 130595.4739
B45: Total Short term liabilities | N45: =N41+N42+N43+N44 -> 10875334.61 | O45: 4167175.309 | P45: 4612634.287 | Q45: 5078664.646 | R45: 5570777.325 | S45: 6093545.286 | T45: 6628706.064 | U45: 7221735.65 | V45: 7702734.423 | W45: 8049946.884 | X45: 8426705.096 | Y45: 8836346.882 | Z45: 9278976.382 | AA45: 9757910.136 | AB45: 10276774.01 | AC45: 10839582.31
B47: Accruals and deferred income | N47: ='Working Capital'!N52 -> 1342652.541 | O47: ='Working Capital'!O52 -> 1463159.225 | P47: ='Working Capital'!P52 -> 1599600.453 | Q47: ='Working Capital'!Q52 -> 1748401.572 | R47: ='Working Capital'!R52 -> 1910162.686 | S47: ='Working Capital'!S52 -> 2078490.258 | T47: ='Working Capital'!T52 -> 2268607.682 | U47: ='Working Capital'!U52 -> 2478071.827 | V47: ='Working Capital'!V52 -> 2690193.063 | W47: ='Working Capital'!W52 -> 2893897.141 | X47: ='Working Capital'!X52 -> 3116398.771 | Y47: ='Working Capital'!Y52 -> 3352870.213 | Z47: ='Working Capital'!Z52 -> 3606213.053 | AA47: ='Working Capital'!AA52 -> 3877859.893 | AB47: ='Working Capital'!AB52 -> 4169140.66 | AC47: ='Working Capital'!AC52 -> 4482414.318
B49: Total Equity & Liabilities | N49: =N47+N45+N39+N34 -> 20291811.95 | O49: 19124871.98 | P49: 26576361.23 | Q49: 33771105.79 | R49: 43736809.37 | S49: 55182743.91 | T49: 68470074.57 | U49: 84293574.55 | V49: 102625491.6 | W49: 123673194.6 | X49: 148358748.7 | Y49: 176523426.1 | Z49: 205268212 | AA49: 238086114.9 | AB49: 275063310.1 | AC49: 316556340
B51: Balance Check | N51: =N49-N28 -> 0 | O51: 0 | P51: 0 | Q51: 0 | R51: 0 | S51: 0 | T51: 0 | U51: 0 | V51: 0 | W51: 0 | X51: 0 | Y51: 0 | Z51: 0 | AA51: 0 | AB51: 0 | AC51: 0
N52: =N51-M51 -> 0 | O52: 0 | P52: 0 | Q52: 0 | R52: 0 | S52: 0 | T52: 0 | U52: 0 | V52: 0 | W52: 0 | X52: 0 | Y52: 0 | Z52: 0 | AA52: 0 | AB52: 0 | AC52: 0
A56: 1 | B56: Detailed Cash Flow Statement (EUR m)
I58: =+J58-1 -> -4 | J58: =+K58-1 -> -3 | K58: =+L58-1 -> -2 | L58: =+M58-1 -> -1 | M58: 0 | N58: 1 | O58: =+N58+1 -> 2 | P58: 3 | Q58: 4 | R58: 5 | S58: 6 | T58: 7 | U58: 8 | V58: 9 | W58: 10 | X58: 11 | Y58: 12 | Z58: 13 | AA58: 14 | AB58: 15 | AC58: 16
B59: December Year-end | I59: =I$4 -> 2005 | J59: 2006 | K59: 2007 | L59: 2008 | M59: 2009 | N59: 2010 | O59: 2011 | P59: 2012 | Q59: 2013 | R59: 2014 | S59: 2015 | T59: 2016 | U59: 2017 | V59: 2018 | W59: 2019 | X59: 2020 | Y59: 2021 | Z59: 2022 | AA59: 2023 | AB59: 2024 | AC59: 2025
B61: Landing Revenue | N61: ='Aero&ComRevs'!N57 -> 4624650.377 | O61: ='Aero&ComRevs'!O57 -> 4965654.196 | P61: ='Aero&ComRevs'!P57 -> 5327917.072 | Q61: ='Aero&ComRevs'!Q57 -> 5713044.04 | R61: ='Aero&ComRevs'!R57 -> 6117964.348 | S61: ='Aero&ComRevs'!S57 -> 6542106.096 | T61: ='Aero&ComRevs'!T57 -> 7023422.347 | U61: ='Aero&ComRevs'!U57 -> 7536414.16 | V61: ='Aero&ComRevs'!V57 -> 8083213.379 | W61: ='Aero&ComRevs'!W57 -> 8666103.355 | X61: ='Aero&ComRevs'!X57 -> 9358770.992 | Y61: ='Aero&ComRevs'!Y57 -> 10076570.32 | Z61: ='Aero&ComRevs'!Z57 -> 10847439.91 | AA61: ='Aero&ComRevs'!AA57 -> 11675486.2 | AB61: ='Aero&ComRevs'!AB57 -> 12565150.83 | AC61: ='Aero&ComRevs'!AC57 -> 13537961.67
B62: Passenger Revenue | N62: ='Aero&ComRevs'!N67 -> 25046192.74 | O62: ='Aero&ComRevs'!O67 -> 27463741.88 | P62: ='Aero&ComRevs'!P67 -> 30267558.09 | Q62: ='Aero&ComRevs'!Q67 -> 33348080.73 | R62: ='Aero&ComRevs'!R67 -> 36722176.66 | S62: ='Aero&ComRevs'!S67 -> 40364450.24 | T62: ='Aero&ComRevs'!T67 -> 44499527.34 | U62: ='Aero&ComRevs'!U67 -> 49098106.33 | V62: ='Aero&ComRevs'!V67 -> 53712550.93 | W62: ='Aero&ComRevs'!W67 -> 58035050.63 | X62: ='Aero&ComRevs'!X67 -> 62676185.74 | Y62: ='Aero&ComRevs'!Y67 -> 67636604.89 | Z62: ='Aero&ComRevs'!Z67 -> 72959215.49 | AA62: ='Aero&ComRevs'!AA67 -> 78669991.38 | AB62: ='Aero&ComRevs'!AB67 -> 84796758.77 | AC62: ='Aero&ComRevs'!AC67 -> 91369327.66
B63: Freight Revenue | N63: ='Aero&ComRevs'!N73 -> 840068.1758 | O63: ='Aero&ComRevs'!O73 -> 900268.3694 | P63: ='Aero&ComRevs'!P73 -> 963825.9629 | Q63: ='Aero&ComRevs'!Q73 -> 1030913.983 | R63: ='Aero&ComRevs'!R73 -> 1100396.136 | S63: ='Aero&ComRevs'!S73 -> 1175015.85 | T63: ='Aero&ComRevs'!T73 -> 1253735.066 | U63: ='Aero&ComRevs'!U73 -> 1336764.223 | V63: ='Aero&ComRevs'!V73 -> 1424324.363 | W63: ='Aero&ComRevs'!W73 -> 1516647.674 | X63: ='Aero&ComRevs'!X73 -> 1613978.046 | Y63: ='Aero&ComRevs'!Y73 -> 1716571.666 | Z63: ='Aero&ComRevs'!Z73 -> 1819856.538 | AA63: ='Aero&ComRevs'!AA73 -> 1928279.846 | AB63: ='Aero&ComRevs'!AB73 -> 2042076.476 | AC63: ='Aero&ComRevs'!AC73 -> 2161491.575
B64: Safety / Security Revenue | N64: ='Aero&ComRevs'!N79 -> 674384.4018 | O64: ='Aero&ComRevs'!O79 -> 739350.7432 | P64: ='Aero&ComRevs'!P79 -> 814687.4655 | Q64: ='Aero&ComRevs'!Q79 -> 897439.3742 | R64: ='Aero&ComRevs'!R79 -> 988054.8162 | S64: ='Aero&ComRevs'!S79 -> 1085844.601 | T64: ='Aero&ComRevs'!T79 -> 1196898.526 | U64: ='Aero&ComRevs'!U79 -> 1320380.346 | V64: ='Aero&ComRevs'!V79 -> 1444247.246 | W64: ='Aero&ComRevs'!W79 -> 1560223.068 | X64: ='Aero&ComRevs'!X79 -> 1684723.183 | Y64: ='Aero&ComRevs'!Y79 -> 1817648.184 | Z64: ='Aero&ComRevs'!Z79 -> 1960236.641 | AA64: ='Aero&ComRevs'!AA79 -> 2113178.021 | AB64: ='Aero&ComRevs'!AB79 -> 2277210.706 | AC64: ='Aero&ComRevs'!AC79 -> 2453125.446
B65: Fuel Revenue | N65: ='Aero&ComRevs'!N85 -> 1173717.228 | O65: ='Aero&ComRevs'!O85 -> 1291675.735 | P65: ='Aero&ComRevs'!P85 -> 1419229.922 | Q65: ='Aero&ComRevs'!Q85 -> 1557128.837 | R65: ='Aero&ComRevs'!R85 -> 1705378.928 | S65: ='Aero&ComRevs'!S85 -> 1864369.173 | T65: ='Aero&ComRevs'!T85 -> 2041775.472 | U65: ='Aero&ComRevs'!U85 -> 2233664.325 | V65: ='Aero&ComRevs'!V85 -> 2441151.124 | W65: ='Aero&ComRevs'!W85 -> 2665438.083 | X65: ='Aero&ComRevs'!X85 -> 2931869.66 | Y65: ='Aero&ComRevs'!Y85 -> 3211395.988 | Z65: ='Aero&ComRevs'!Z85 -> 3515262.671 | AA65: ='Aero&ComRevs'!AA85 -> 3845565.865 | AB65: ='Aero&ComRevs'!AB85 -> 4204588.15 | AC65: ='Aero&ComRevs'!AC85 -> 4600923.784
B66: Revenue Lighting Systems | N66: ='Aero&ComRevs'!N94 -> 0 | O66: ='Aero&ComRevs'!O94 -> 0 | P66: ='Aero&ComRevs'!P94 -> 0 | Q66: ='Aero&ComRevs'!Q94 -> 0 | R66: ='Aero&ComRevs'!R94 -> 0 | S66: ='Aero&ComRevs'!S94 -> 0 | T66: ='Aero&ComRevs'!T94 -> 0 | U66: ='Aero&ComRevs'!U94 -> 0 | V66: ='Aero&ComRevs'!V94 -> 0 | W66: ='Aero&ComRevs'!W94 -> 0 | X66: ='Aero&ComRevs'!X94 -> 0 | Y66: ='Aero&ComRevs'!Y94 -> 0 | Z66: ='Aero&ComRevs'!Z94 -> 0 | AA66: ='Aero&ComRevs'!AA94 -> 0 | AB66: ='Aero&ComRevs'!AB94 -> 0 | AC66: ='Aero&ComRevs'!AC94 -> 0
B67: Parking Revenue | N67: ='Aero&ComRevs'!N102 -> 298413.9996 | O67: ='Aero&ComRevs'!O102 -> 317810.8912 | P67: ='Aero&ComRevs'!P102 -> 338282.6698 | Q67: ='Aero&ComRevs'!Q102 -> 359904.7483 | R67: ='Aero&ComRevs'!R102 -> 382577.0766 | S67: ='Aero&ComRevs'!S102 -> 406294.4012 | T67: ='Aero&ComRevs'!T102 -> 432595.9511 | U67: ='Aero&ComRevs'!U102 -> 460461.3184 | V67: ='Aero&ComRevs'!V102 -> 489990.9269 | W67: ='Aero&ComRevs'!W102 -> 521291.8802 | X67: ='Aero&ComRevs'!X102 -> 559064.1408 | Y67: ='Aero&ComRevs'!Y102 -> 597429.9252 | Z67: ='Aero&ComRevs'!Z102 -> 638389.0965 | AA67: ='Aero&ComRevs'!AA102 -> 682132.5401 | AB67: ='Aero&ComRevs'!AB102 -> 728866.1049 | AC67: ='Aero&ComRevs'!AC102 -> 779847.1587
B68: Shelter Revenue | N68: ='Aero&ComRevs'!N110 -> 59682.79993 | O68: ='Aero&ComRevs'!O110 -> 63562.17824 | P68: ='Aero&ComRevs'!P110 -> 67656.53396 | Q68: ='Aero&ComRevs'!Q110 -> 71980.94966 | R68: ='Aero&ComRevs'!R110 -> 76515.41531 | S68: ='Aero&ComRevs'!S110 -> 81258.88024 | T68: ='Aero&ComRevs'!T110 -> 86519.19022 | U68: ='Aero&ComRevs'!U110 -> 92092.26368 | V68: ='Aero&ComRevs'!V110 -> 97998.18537 | W68: ='Aero&ComRevs'!W110 -> 104258.376 | X68: ='Aero&ComRevs'!X110 -> 111812.8282 | Y68: ='Aero&ComRevs'!Y110 -> 119485.985 | Z68: ='Aero&ComRevs'!Z110 -> 127677.8193 | AA68: ='Aero&ComRevs'!AA110 -> 136426.508 | AB68: ='Aero&ComRevs'!AB110 -> 145773.221 | AC68: ='Aero&ComRevs'!AC110 -> 155969.4317
B69: Boarding bridge Revenue | N69: ='Aero&ComRevs'!N116 -> 1636666.194 | O69: ='Aero&ComRevs'!O116 -> 1757069.913 | P69: ='Aero&ComRevs'!P116 -> 1884927.648 | Q69: ='Aero&ComRevs'!Q116 -> 2020791.885 | R69: ='Aero&ComRevs'!R116 -> 2163675.385 | S69: ='Aero&ComRevs'!S116 -> 2313415.724 | T69: ='Aero&ComRevs'!T116 -> 2483398.679 | U69: ='Aero&ComRevs'!U116 -> 2664537.503 | V69: ='Aero&ComRevs'!V116 -> 2857579.839 | W69: ='Aero&ComRevs'!W116 -> 3063326.143 | X69: ='Aero&ComRevs'!X116 -> 3307992.286 | Y69: ='Aero&ComRevs'!Y116 -> 3561471.407 | Z69: ='Aero&ComRevs'!Z116 -> 3833658.975 | AA69: ='Aero&ComRevs'!AA116 -> 4125999.055 | AB69: ='Aero&ComRevs'!AB116 -> 4440053.166 | AC69: ='Aero&ComRevs'!AC116 -> 4783462.701
B70: ='Aero&ComRevs'!B120 -> Total Aeronautical Revenues | N70: =SUM(N61:N69) -> 34353775.91 | O70: 37499133.9 | P70: 41084085.36 | Q70: 44999284.54 | R70: 49256738.77 | S70: 53832754.96 | T70: 59017872.57 | U70: 64742420.46 | V70: 70551056 | W70: 76132339.21 | X70: 82244396.87 | Y70: 88737178.37 | Z70: 95701737.14 | AA70: 103177059.4 | AB70: 111200477.4 | AC70: 119842109.4
B71: % of revenues | N71: =N70/N84 -> 0.7931814229 | O71: 0.7944953159 | P71: 0.7962029789 | Q71: 0.7978589378 | R71: 0.799386834 | S71: 0.8028978713 | T71: 0.8064655975 | U71: 0.8099099519 | V71: 0.812983561 | W71: 0.8155447138 | X71: 0.8181161946 | Y71: 0.8204470662 | Z71: 0.822678474 | AA71: 0.8248077368 | AB71: 0.8268406085 | AC71: 0.828817938
B73: Duty Free Shop & other shops | N73: ='Aero&ComRevs'!N127 -> 2293854.312 | O73: ='Aero&ComRevs'!O127 -> 2639451.457 | P73: ='Aero&ComRevs'!P127 -> 3037716.483 | Q73: ='Aero&ComRevs'!Q127 -> 3480735.38 | R73: ='Aero&ComRevs'!R127 -> 3972237.57 | S73: ='Aero&ComRevs'!S127 -> 4330837.58 | T73: ='Aero&ComRevs'!T127 -> 4738653.072 | U73: ='Aero&ComRevs'!U127 -> 5193149.133 | V73: ='Aero&ComRevs'!V127 -> 5647162.557 | W73: ='Aero&ComRevs'!W127 -> 6069301.266 | X73: ='Aero&ComRevs'!X127 -> 6524312.395 | Y73: ='Aero&ComRevs'!Y127 -> 7014837.939 | Z73: ='Aero&ComRevs'!Z127 -> 7543736.905 | AA73: ='Aero&ComRevs'!AA127 -> 8114103.39 | AB73: ='Aero&ComRevs'!AB127 -> 8729286.181 | AC73: ='Aero&ComRevs'!AC127 -> 9392910.003
B74: Inflight Catering-Commissariat | N74: ='Aero&ComRevs'!N129 -> 237881.1879 | O74: ='Aero&ComRevs'!O129 -> 252665.4386 | P74: ='Aero&ComRevs'!P129 -> 270019.243 | Q74: ='Aero&ComRevs'!Q129 -> 288772.1204 | R74: ='Aero&ComRevs'!R129 -> 308951.811 | S74: ='Aero&ComRevs'!S129 -> 330238.1597 | T74: ='Aero&ComRevs'!T129 -> 354250.1976 | U74: ='Aero&ComRevs'!U129 -> 380614.9211 | V74: ='Aero&ComRevs'!V129 -> 405774.8565 | W74: ='Aero&ComRevs'!W129 -> 427556.3562 | X74: ='Aero&ComRevs'!X129 -> 450597.9874 | Y74: ='Aero&ComRevs'!Y129 -> 474976.3332 | Z74: ='Aero&ComRevs'!Z129 -> 500772.752 | AA74: ='Aero&ComRevs'!AA129 -> 528073.6797 | AB74: ='Aero&ComRevs'!AB129 -> 556970.9505 | AC74: ='Aero&ComRevs'!AC129 -> 587562.138
B75: Rental income (offices, warehouses, shops etc.) | N75: ='Aero&ComRevs'!N131 -> 2916965.108 | O75: ='Aero&ComRevs'!O131 -> 3066287.44 | P75: ='Aero&ComRevs'!P131 -> 3223301.176 | Q75: ='Aero&ComRevs'!Q131 -> 3388405.733 | R75: ='Aero&ComRevs'!R131 -> 3561356.902 | S75: ='Aero&ComRevs'!S131 -> 3743890.667 | T75: ='Aero&ComRevs'!T131 -> 3935841.899 | U75: ='Aero&ComRevs'!U131 -> 4137700.708 | V75: ='Aero&ComRevs'!V131 -> 4349982.994 | W75: ='Aero&ComRevs'!W131 -> 4573231.833 | X75: ='Aero&ComRevs'!X131 -> 4808018.926 | Y75: ='Aero&ComRevs'!Y131 -> 5054946.127 | Z75: ='Aero&ComRevs'!Z131 -> 5312331.778 | AA75: ='Aero&ComRevs'!AA131 -> 5582853.109 | AB75: ='Aero&ComRevs'!AB131 -> 5867182.263 | AC75: ='Aero&ComRevs'!AC131 -> 6166025.879
B76: Reinvoicing for utilities (electricity, water, phone, waste etc.) | N76: =Assumptions!N467*Assumptions!N651 -> 1839656.237 | O76: =Assumptions!O467*Assumptions!O651 -> 1950116.591 | P76: =Assumptions!P467*Assumptions!P651 -> 2051562.228 | Q76: =Assumptions!Q467*Assumptions!Q651 -> 2154626.136 | R76: =Assumptions!R467*Assumptions!R651 -> 2262643.908 | S76: =Assumptions!S467*Assumptions!S651 -> 2375090.281 | T76: =Assumptions!T467*Assumptions!T651 -> 2496639.493 | U76: =Assumptions!U467*Assumptions!U651 -> 2622789.685 | V76: =Assumptions!V467*Assumptions!V651 -> 2747204.973 | W76: =Assumptions!W467*Assumptions!W651 -> 2874022.42 | X76: =Assumptions!X467*Assumptions!X651 -> 3017913.021 | Y76: =Assumptions!Y467*Assumptions!Y651 -> 3169005.841 | Z76: =Assumptions!Z467*Assumptions!Z651 -> 3327661.185 | AA76: =Assumptions!AA467*Assumptions!AA651 -> 3494257.377 | AB76: =Assumptions!AB467*Assumptions!AB651 -> 3669191.655 | AC76: =Assumptions!AC467*Assumptions!AC651 -> 3852881.123
B77: Rental income of check-in counters | N77: ='Aero&ComRevs'!N135 -> 849575.671 | O77: ='Aero&ComRevs'!O135 -> 902376.5664 | P77: ='Aero&ComRevs'!P135 -> 964354.4392 | Q77: ='Aero&ComRevs'!Q135 -> 1031329.001 | R77: ='Aero&ComRevs'!R135 -> 1103399.325 | S77: ='Aero&ComRevs'!S135 -> 1179421.999 | T77: ='Aero&ComRevs'!T135 -> 1265179.277 | U77: ='Aero&ComRevs'!U135 -> 1359339.004 | V77: ='Aero&ComRevs'!V135 -> 1449195.916 | W77: ='Aero&ComRevs'!W135 -> 1526986.986 | X77: ='Aero&ComRevs'!X135 -> 1609278.526 | Y77: ='Aero&ComRevs'!Y135 -> 1696344.047 | Z77: ='Aero&ComRevs'!Z135 -> 1788474.114 | AA77: ='Aero&ComRevs'!AA135 -> 1885977.428 | AB77: ='Aero&ComRevs'!AB135 -> 1989181.966 | AC77: ='Aero&ComRevs'!AC135 -> 2098436.207
B78: Parking | N78: ='Aero&ComRevs'!N137 -> 441779.3489 | O78: ='Aero&ComRevs'!O137 -> 469235.8145 | P78: ='Aero&ComRevs'!P137 -> 501464.3084 | Q78: ='Aero&ComRevs'!Q137 -> 536291.0808 | R78: ='Aero&ComRevs'!R137 -> 573767.6489 | S78: ='Aero&ComRevs'!S137 -> 613299.4394 | T78: ='Aero&ComRevs'!T137 -> 657893.2241 | U78: ='Aero&ComRevs'!U137 -> 706856.2821 | V78: ='Aero&ComRevs'!V137 -> 753581.8764 | W78: ='Aero&ComRevs'!W137 -> 794033.2329 | X78: ='Aero&ComRevs'!X137 -> 836824.8337 | Y78: ='Aero&ComRevs'!Y137 -> 882098.9044 | Z78: ='Aero&ComRevs'!Z137 -> 930006.5394 | AA78: ='Aero&ComRevs'!AA137 -> 980708.2624 | AB78: ='Aero&ComRevs'!AB137 -> 1034374.622 | AC78: ='Aero&ComRevs'!AC137 -> 1091186.828
B79: Others e.g. VIP lounges, call center | N79: ='Aero&ComRevs'!N139 -> 377884.5265 | O79: ='Aero&ComRevs'!O139 -> 419417.4777 | P79: ='Aero&ComRevs'!P139 -> 467511.3906 | Q79: ='Aero&ComRevs'!Q139 -> 520606.7078 | R79: ='Aero&ComRevs'!R139 -> 579055.2225 | S79: ='Aero&ComRevs'!S139 -> 642539.7594 | T79: ='Aero&ComRevs'!T139 -> 714563.2305 | U79: ='Aero&ComRevs'!U139 -> 794930.6782 | V79: ='Aero&ComRevs'!V139 -> 876462.2067 | W79: ='Aero&ComRevs'!W139 -> 954049.3693 | X79: ='Aero&ComRevs'!X139 -> 1037650.042 | Y79: ='Aero&ComRevs'!Y139 -> 1127716.081 | Z79: ='Aero&ComRevs'!Z139 -> 1224732.902 | AA79: ='Aero&ComRevs'!AA139 -> 1329221.947 | AB79: ='Aero&ComRevs'!AB139 -> 1441743.327 | AC79: ='Aero&ComRevs'!AC139 -> 1562898.659
B81: Total Non-Aeronautical Revenues | N81: =SUM(N73:N79) -> 8957596.391 | O81: 9699550.785 | P81: 10515929.27 | Q81: 11400766.16 | R81: 12361412.39 | S81: 13215317.89 | T81: 14163020.39 | U81: 15195380.41 | V81: 16229365.38 | W81: 17219181.46 | X81: 18284595.73 | Y81: 19419925.27 | Z81: 20627716.18 | AA81: 21915195.19 | AB81: 23287930.97 | AC81: 24751900.84
B82: % of revenues | N82: =N81/N84 -> 0.2068185771 | O82: 0.2055046841 | P82: 0.2037970211 | Q82: 0.2021410622 | R82: 0.200613166 | S82: 0.1971021287 | T82: 0.1935344025 | U82: 0.1900900481 | V82: 0.187016439 | W82: 0.1844552862 | X82: 0.1818838054 | Y82: 0.1795529338 | Z82: 0.177321526 | AA82: 0.1751922632 | AB82: 0.1731593915 | AC82: 0.171182062
B84: Total Revenues | N84: =N70+N81 -> 43311372.31 | O84: 47198684.69 | P84: 51600014.63 | Q84: 56400050.7 | R84: 61618151.15 | S84: 67048072.85 | T84: 73180892.97 | U84: 79937800.88 | V84: 86780421.38 | W84: 93351520.67 | X84: 100528992.6 | Y84: 108157103.6 | Z84: 116329453.3 | AA84: 125092254.6 | AB84: 134488408.4 | AC84: 144594010.3
B85: growth in % | O85: =O84/N84-1 -> 0.08975269488 | P85: 0.09325111426 | Q85: 0.09302392854 | R85: 0.09251942835 | S85: 0.08812211325 | T85: 0.09146899919 | U85: 0.09233158594 | V85: 0.08559930878 | W85: 0.0757209886 | X85: 0.07688650254 | Y85: 0.07587971227 | Z85: 0.07555999012 | AA85: 0.07532745185 | AB85: 0.07511379346 | AC85: 0.07514106234
B86: Personell Expenses | N86: =Assumptions!N588 -> 4938606.288 | O86: =Assumptions!O588 -> 5204156.922 | P86: =Assumptions!P588 -> 5715268.501 | Q86: =Assumptions!Q588 -> 6286064.152 | R86: =Assumptions!R588 -> 6922159.393 | S86: =Assumptions!S588 -> 7622465.343 | T86: =Assumptions!T588 -> 8426668.857 | U86: =Assumptions!U588 -> 9336086.582 | V86: =Assumptions!V588 -> 10277707.85 | W86: =Assumptions!W588 -> 11199200.68 | X86: =Assumptions!X588 -> 12210308.1 | Y86: =Assumptions!Y588 -> 13320045.23 | Z86: =Assumptions!Z588 -> 14538351.71 | AA86: =Assumptions!AA588 -> 15876187.8 | AB86: =Assumptions!AB588 -> 17345640.46 | AC86: =Assumptions!AC588 -> 18960040.63
B87: % of revenues | N87: =N86/N84 -> 0.1140256248 | O87: 0.1102606345 | P87: 0.1107609861 | Q87: 0.111454938 | R87: 0.1123396153 | S87: 0.1136865688 | T87: 0.1151484836 | U87: 0.1167918867 | V87: 0.1184334864 | W87: 0.1199680583 | X87: 0.1214605636 | Y87: 0.1231546036 | Z87: 0.124975673 | AA87: 0.1269158339 | AB87: 0.1289749851 | AC87: 0.1311260446
B88: Airport Maintenance (inflated) | N88: =(Assumptions!$H$708*Assumptions!N41)*Assumptions!N622 -> 9092944.077 | O88: =(Assumptions!$H$708*Assumptions!O41)*Assumptions!O622 -> 10184097.37 | P88: =(Assumptions!$H$708*Assumptions!P41)*Assumptions!P622 -> 11308315.91 | Q88: =(Assumptions!$H$708*Assumptions!Q41)*Assumptions!Q622 -> 12465599.7 | R88: =(Assumptions!$H$708*Assumptions!R41)*Assumptions!R622 -> 13655948.74 | S88: =(Assumptions!$H$708*Assumptions!S41)*Assumptions!S622 -> 14879363.04 | T88: =(Assumptions!$H$708*Assumptions!T41)*Assumptions!T622 -> 16135842.58 | U88: =(Assumptions!$H$708*Assumptions!U41)*Assumptions!U622 -> 17425387.38 | V88: =(Assumptions!$H$708*Assumptions!V41)*Assumptions!V622 -> 18227219.72 | W88: =(Assumptions!$H$708*Assumptions!W41)*Assumptions!W622 -> 18516540.67 | X88: =(Assumptions!$H$708*Assumptions!X41)*Assumptions!X622 -> 18805861.61 | Y88: =(Assumptions!$H$708*Assumptions!Y41)*Assumptions!Y622 -> 19095182.56 | Z88: =(Assumptions!$H$708*Assumptions!Z41)*Assumptions!Z622 -> 19384503.51 | AA88: =(Assumptions!$H$708*Assumptions!AA41)*Assumptions!AA622 -> 19673824.46 | AB88: =(Assumptions!$H$708*Assumptions!AB41)*Assumptions!AB622 -> 19963145.41 | AC88: =(Assumptions!$H$708*Assumptions!AC41)*Assumptions!AC622 -> 20252466.35
B89: Equipment Maintenance | N89: =Assumptions!N629*('Input Capex, Depr, Assets'!N165+'Input Capex, Depr, Assets'!N167)/2 -> 65835 | O89: =Assumptions!O629*('Input Capex, Depr, Assets'!O164+'Input Capex, Depr, Assets'!O165+'Input Capex, Depr, Assets'!O167)/2 -> 103495 | P89: =Assumptions!P629*('Input Capex, Depr, Assets'!P164+'Input Capex, Depr, Assets'!P165+'Input Capex, Depr, Assets'!P167)/2 -> 154880 | Q89: =Assumptions!Q629*('Input Capex, Depr, Assets'!Q164+'Input Capex, Depr, Assets'!Q165+'Input Capex, Depr, Assets'!Q167)/2 -> 179260 | R89: =Assumptions!R629*('Input Capex, Depr, Assets'!R164+'Input Capex, Depr, Assets'!R165+'Input Capex, Depr, Assets'!R167)/2 -> 196740 | S89: =Assumptions!S629*('Input Capex, Depr, Assets'!S164+'Input Capex, Depr, Assets'!S165+'Input Capex, Depr, Assets'!S167)/2 -> 221475 | T89: =Assumptions!T629*('Input Capex, Depr, Assets'!T164+'Input Capex, Depr, Assets'!T165+'Input Capex, Depr, Assets'!T167)/2 -> 130340 | U89: =Assumptions!U629*('Input Capex, Depr, Assets'!U164+'Input Capex, Depr, Assets'!U165+'Input Capex, Depr, Assets'!U167)/2 -> 112000 | V89: =Assumptions!V629*('Input Capex, Depr, Assets'!V164+'Input Capex, Depr, Assets'!V165+'Input Capex, Depr, Assets'!V167)/2 -> 92610 | W89: =Assumptions!W629*('Input Capex, Depr, Assets'!W164+'Input Capex, Depr, Assets'!W165+'Input Capex, Depr, Assets'!W167)/2 -> 72150 | X89: =Assumptions!X629*('Input Capex, Depr, Assets'!X164+'Input Capex, Depr, Assets'!X165+'Input Capex, Depr, Assets'!X167)/2 -> 62150 | Y89: =Assumptions!Y629*('Input Capex, Depr, Assets'!Y164+'Input Capex, Depr, Assets'!Y165+'Input Capex, Depr, Assets'!Y167)/2 -> 63150 | Z89: =Assumptions!Z629*('Input Capex, Depr, Assets'!Z164+'Input Capex, Depr, Assets'!Z165+'Input Capex, Depr, Assets'!Z167)/2 -> 64150 | AA89: =Assumptions!AA629*('Input Capex, Depr, Assets'!AA164+'Input Capex, Depr, Assets'!AA165+'Input Capex, Depr, Assets'!AA167)/2 -> 65150 | AB89: =Assumptions!AB629*('Input Capex, Depr, Assets'!AB164+'Input Capex, Depr, Assets'!AB165+'Input Capex, Depr, Assets'!AB167)/2 -> 66150 | AC89: =Assumptions!AC629*('Input Capex, Depr, Assets'!AC164+'Input Capex, Depr, Assets'!AC165+'Input Capex, Depr, Assets'!AC167)/2 -> 67150
B90: IT Maintenance | N90: =Assumptions!N631*('Input Capex, Depr, Assets'!N177+'Input Capex, Depr, Assets'!N179)/2 -> 59400 | O90: =Assumptions!O631*('Input Capex, Depr, Assets'!O176+'Input Capex, Depr, Assets'!O177+'Input Capex, Depr, Assets'!O179)/2 -> 50065.93329 | P90: =Assumptions!P631*('Input Capex, Depr, Assets'!P176+'Input Capex, Depr, Assets'!P177+'Input Capex, Depr, Assets'!P179)/2 -> 41919.213 | Q90: =Assumptions!Q631*('Input Capex, Depr, Assets'!Q176+'Input Capex, Depr, Assets'!Q177+'Input Capex, Depr, Assets'!Q179)/2 -> 35490.12159 | R90: =Assumptions!R631*('Input Capex, Depr, Assets'!R176+'Input Capex, Depr, Assets'!R177+'Input Capex, Depr, Assets'!R179)/2 -> 28629.22906 | S90: =Assumptions!S631*('Input Capex, Depr, Assets'!S176+'Input Capex, Depr, Assets'!S177+'Input Capex, Depr, Assets'!S179)/2 -> 26515.96906 | T90: =Assumptions!T631*('Input Capex, Depr, Assets'!T176+'Input Capex, Depr, Assets'!T177+'Input Capex, Depr, Assets'!T179)/2 -> 29777.5957 | U90: =Assumptions!U631*('Input Capex, Depr, Assets'!U176+'Input Capex, Depr, Assets'!U177+'Input Capex, Depr, Assets'!U179)/2 -> 32272.41858 | V90: =Assumptions!V631*('Input Capex, Depr, Assets'!V176+'Input Capex, Depr, Assets'!V177+'Input Capex, Depr, Assets'!V179)/2 -> 33767.11385 | W90: =Assumptions!W631*('Input Capex, Depr, Assets'!W176+'Input Capex, Depr, Assets'!W177+'Input Capex, Depr, Assets'!W179)/2 -> 34307.64945 | X90: =Assumptions!X631*('Input Capex, Depr, Assets'!X176+'Input Capex, Depr, Assets'!X177+'Input Capex, Depr, Assets'!X179)/2 -> 35067.172 | Y90: =Assumptions!Y631*('Input Capex, Depr, Assets'!Y176+'Input Capex, Depr, Assets'!Y177+'Input Capex, Depr, Assets'!Y179)/2 -> 36097.20512 | Z90: =Assumptions!Z631*('Input Capex, Depr, Assets'!Z176+'Input Capex, Depr, Assets'!Z177+'Input Capex, Depr, Assets'!Z179)/2 -> 37474.91076 | AA90: =Assumptions!AA631*('Input Capex, Depr, Assets'!AA176+'Input Capex, Depr, Assets'!AA177+'Input Capex, Depr, Assets'!AA179)/2 -> 39198.97386 | AB90: =Assumptions!AB631*('Input Capex, Depr, Assets'!AB176+'Input Capex, Depr, Assets'!AB177+'Input Capex, Depr, Assets'!AB179)/2 -> 41143.54175 | AC90: =Assumptions!AC631*('Input Capex, Depr, Assets'!AC176+'Input Capex, Depr, Assets'!AC177+'Input Capex, Depr, Assets'!AC179)/2 -> 43225.27526
B91: Material Expenses (maintenance) | N91: =SUM(N88:N90) -> 9218179.077 | O91: 10337658.3 | P91: 11505115.12 | Q91: 12680349.82 | R91: 13881317.97 | S91: 15127354 | T91: 16295960.18 | U91: 17569659.8 | V91: 18353596.83 | W91: 18622998.32 | X91: 18903078.79 | Y91: 19194429.77 | Z91: 19486128.42 | AA91: 19778173.43 | AB91: 20070438.95 | AC91: 20362841.63
B92: % of revenues | N92: =N91/N84 -> 0.2128350728 | O92: 0.2190242878 | P92: 0.2229672841 | Q92: 0.2248286954 | R92: 0.2252796897 | S92: 0.2256195199 | T92: 0.222680532 | U92: 0.219791633 | V92: 0.2114946729 | W92: 0.1994932507 | X92: 0.1880360908 | Y92: 0.1774680453 | Z92: 0.1675081234 | AA92: 0.1581086974 | AB92: 0.149235456 | AC92: 0.1408276981
B93: Office and terminal cleaning | N93: =Assumptions!N689 -> 167503.9857 | O93: =Assumptions!O689 -> 179420.0632 | P93: =Assumptions!P689 -> 193222.2091 | Q93: =Assumptions!Q689 -> 208265.6463 | R93: =Assumptions!R689 -> 224612.8805 | S93: =Assumptions!S689 -> 242103.9598 | T93: =Assumptions!T689 -> 261832.6077 | U93: =Assumptions!U689 -> 283638.6547 | V93: =Assumptions!V689 -> 305196.4281 | W93: =Assumptions!W689 -> 324976.7014 | X93: =Assumptions!X689 -> 346101.3127 | Y93: =Assumptions!Y689 -> 368664.9213 | Z93: =Assumptions!Z689 -> 392768.897 | AA93: =Assumptions!AA689 -> 418521.7952 | AB93: =Assumptions!AB689 -> 446039.867 | AC93: =Assumptions!AC689 -> 475447.6035
B94: % of revenues | N94: =N93/N84 -> 0.003867436583 | O94: 0.003801378457 | P94: 0.003744615394 | Q94: 0.003692649983 | R94: 0.003645238883 | S94: 0.003610901097 | T94: 0.00357788211 | U94: 0.003548241904 | V94: 0.00351688115 | W94: 0.003481214864 | X94: 0.003442800964 | Y94: 0.003408605712 | Z94: 0.003376349547 | AA94: 0.003345705108 | AB94: 0.003316567371 | AC94: 0.003288155592
B95: O&M of operating soft/hardware in terminal | N95: =Assumptions!N693 -> 220000 | O95: =Assumptions!O693 -> 224000 | P95: =Assumptions!P693 -> 228000 | Q95: =Assumptions!Q693 -> 290000 | R95: =Assumptions!R693 -> 295000 | S95: =Assumptions!S693 -> 300000 | T95: =Assumptions!T693 -> 366000 | U95: =Assumptions!U693 -> 372000 | V95: =Assumptions!V693 -> 378000 | W95: =Assumptions!W693 -> 480000 | X95: =Assumptions!X693 -> 390000 | Y95: =Assumptions!Y693 -> 396000 | Z95: =Assumptions!Z693 -> 402000 | AA95: =Assumptions!AA693 -> 408000 | AB95: =Assumptions!AB693 -> 414000 | AC95: =Assumptions!AC693 -> 420000
B96: % of revenues | N96: =N95/N84 -> 0.00507949733 | O96: 0.004745894965 | P96: 0.004418603398 | Q96: 0.005141839349 | R96: 0.004787550332 | S96: 0.004474401534 | T96: 0.005001305466 | U96: 0.004653618137 | V96: 0.00435582121 | W96: 0.005141855179 | X96: 0.003879477849 | Y96: 0.003661340649 | Z96: 0.003455702649 | AA96: 0.003261592824 | AB96: 0.003078332214 | AC96: 0.002904684635
B97: External Services e.g. O&M oper soft/hardware, cleaning | N97: =SUM(N93,N95) -> 387503.9857 | O97: 403420.0632 | P97: 421222.2091 | Q97: 498265.6463 | R97: 519612.8805 | S97: 542103.9598 | T97: 627832.6077 | U97: 655638.6547 | V97: 683196.4281 | W97: 804976.7014 | X97: 736101.3127 | Y97: 764664.9213 | Z97: 794768.897 | AA97: 826521.7952 | AB97: 860039.867 | AC97: 895447.6035
B98: % of revenues | N98: =N97/N84 -> 0.008946933913 | O98: 0.008547273421 | P98: 0.008163218792 | Q98: 0.008834489332 | R98: 0.008432789215 | S98: 0.008085302631 | T98: 0.008579187576 | U98: 0.008201860041 | V98: 0.00787270236 | W98: 0.008623070043 | X98: 0.007322278813 | Y98: 0.007069946361 | Z98: 0.006832052196 | AA98: 0.006607297932 | AB98: 0.006394899585 | AC98: 0.006192840228
B99: Utilities | N99: =Assumptions!N651 -> 9198281.187 | O99: =Assumptions!O651 -> 9750582.956 | P99: =Assumptions!P651 -> 10257811.14 | Q99: =Assumptions!Q651 -> 10773130.68 | R99: =Assumptions!R651 -> 11313219.54 | S99: =Assumptions!S651 -> 11875451.41 | T99: =Assumptions!T651 -> 12483197.47 | U99: =Assumptions!U651 -> 13113948.43 | V99: =Assumptions!V651 -> 13736024.86 | W99: =Assumptions!W651 -> 14370112.1 | X99: =Assumptions!X651 -> 15089565.1 | Y99: =Assumptions!Y651 -> 15845029.2 | Z99: =Assumptions!Z651 -> 16638305.93 | AA99: =Assumptions!AA651 -> 17471286.89 | AB99: =Assumptions!AB651 -> 18345958.28 | AC99: =Assumptions!AC651 -> 19264405.62
B100: % of revenues | N100: =N99/N84 -> 0.2123756579 | O100: 0.2065859042 | P100: 0.1987947332 | Q100: 0.1910127836 | R100: 0.1836020609 | S100: 0.17711846 | T100: 0.1705800102 | U100: 0.1640519039 | V100: 0.1582848371 | W100: 0.1539354902 | X100: 0.1501016245 | Y100: 0.146500125 | Z100: 0.1430274574 | AA100: 0.1396672155 | AB100: 0.1364129333 | AC100: 0.1332310072
B101: Marketing Expense | N101: =Assumptions!N665 -> 510000 | O101: =Assumptions!O665 -> 520200 | P101: =Assumptions!P665 -> 530604 | Q101: =Assumptions!Q665 -> 541216.08 | R101: =Assumptions!R665 -> 552040.4016 | S101: =Assumptions!S665 -> 563081.2096 | T101: =Assumptions!T665 -> 574342.8338 | U101: =Assumptions!U665 -> 585829.6905 | V101: =Assumptions!V665 -> 597546.2843 | W101: =Assumptions!W665 -> 609497.21 | X101: =Assumptions!X665 -> 621687.1542 | Y101: =Assumptions!Y665 -> 634120.8973 | Z101: =Assumptions!Z665 -> 646803.3152 | AA101: =Assumptions!AA665 -> 659739.3815 | AB101: =Assumptions!AB665 -> 672934.1692 | AC101: =Assumptions!AC665 -> 686392.8525
B102: % of revenues | N102: =N101/N84 -> 0.01177519836 | O102: 0.01102149357 | P102: 0.01028302034 | Q102: 0.009596021161 | R102: 0.008959054942 | S102: 0.008398171427 | T102: 0.00784826217 | U102: 0.007328569014 | V102: 0.006885726928 | W102: 0.00652905497 | X102: 0.006184157805 | Y102: 0.005862961155 | Z102: 0.005560099328 | AA102: 0.005274022629 | AB102: 0.005003659254 | AC102: 0.004747035173
